Workbook

Sheet Contents

Sheet Operation
J2: FALSE

Sheet InputC
D2: Project | E2: =scenario -> 3 | F2: Project IRR | G2: ='Template Model'!G1 -> 0.07219581363 | J2: 3
F3: Equity IRR | G3: ='Template Model'!G204 -> 0.1074689594
F4: Debt IRR | G4: ='Template Model'!G206 -> 0.03975370541
B5: General
C6: Project Number | I6: 1 | J6: 2 | K6: 3 | L6: 4 | M6: 5 | N6: 6 | O6: 7 | P6: 8 | Q6: 9 | R6: 10 | S6: 11 | T6: 12
C7: Flag for Include | I7: TRUE | J7: TRUE | K7: TRUE | L7: TRUE | M7: TRUE | N7: TRUE | O7: TRUE | P7: TRUE | Q7: TRUE | R7: TRUE | S7: TRUE | T7: TRUE
C8: Project Name | F8: =INDEX(I8:XFD8,InputC!J2) -> Project 3 - BESS | I8: Project 1 - Solar | J8: Project 2 - Wind | K8: Project 3 - BESS | L8: Project 4 - Solar 2 | M8: Project 5 - Wind 2 | N8: Project 6 - BESS 2 | O8: Project 7 - Solar 3 | P8: Project 8 - Wind 3 | Q8: Project 9 - BESS 3 | R8: Project 10 - Solar 4 | S8: Project 11 - Wind 4 | T8: Project 12 - BESS 4
B10: Timeline
D11: Construction Start | E11: Date | F11: =INDEX(I11:AG11,InputC!$J$2) -> 2027-03-01 | I11: 2025-01-01 | J11: =EDATE(I11,11) -> 2025-12-01 | K11: =EDATE(J11,15) -> 2027-03-01 | L11: =EDATE(K11,15) -> 2028-06-01 | M11: =EDATE(L11,12) -> 2029-06-01 | N11: =EDATE(M11,8) -> 2030-02-01 | O11: =EDATE(N11,16) -> 2031-06-01 | P11: =EDATE(O11,10) -> 2032-04-01 | Q11: =EDATE(P11,10) -> 2033-02-01 | R11: =EDATE(Q11,12) -> 2034-02-01 | S11: =EDATE(R11,14) -> 2035-04-01 | T11: =EDATE(S11,11) -> 2036-03-01
D12: Construction months | E12: months | F12: =INDEX(I12:AG12,InputC!$J$2) -> 8 | I12: 6 | J12: 18 | K12: 8 | L12: 9 | M12: 16 | N12: 7 | O12: 11 | P12: 17 | Q12: 5 | R12: 12 | S12: 18 | T12: 8
D14: Commercial Operation Date | E14: date | F14: =INDEX(I14:AG14,InputC!$J$2) -> 2027-11-01 | I14: =EDATE(I11,I12) -> 2025-07-01 | J14: 2027-06-01 | K14: 2027-11-01 | L14: 2029-03-01 | M14: 2030-10-01 | N14: 2030-09-01 | O14: 2032-05-01 | P14: 2033-09-01 | Q14: 2033-07-01 | R14: 2035-02-01 | S14: 2036-10-01 | T14: 2036-11-01
D15: Months in period - construction | E15: months | F15: =INDEX(I15:AG15,InputC!$J$2) -> 1 | I15: 1 | J15: 1 | K15: 1 | L15: 1 | M15: 1 | N15: 1 | O15: 1 | P15: 1 | Q15: 1 | R15: 1 | S15: 1 | T15: 1
D16: Months in period - operations | E16: months | F16: =INDEX(I16:AG16,InputC!$J$2) -> 1 | I16: 1 | J16: 1 | K16: 1 | L16: 1 | M16: 1 | N16: 1 | O16: 1 | P16: 1 | Q16: 1 | R16: 1 | S16: 1 | T16: 1
D18: Operations Period | E18: years | F18: =INDEX(I18:AG18,InputC!$J$2) -> 20 | I18: 35 | J18: 30 | K18: 20 | L18: 32 | M18: 33 | N18: 18 | O18: 35 | P18: 28 | Q18: 17 | R18: 35 | S18: 30 | T18: 20
D19: Operations End Date | E19: date | F19: =INDEX(I19:AG19,InputC!$J$2) -> 2047-11-01 | I19: =EDATE(I14,I18*months) -> 2060-07-01 | J19: 2057-06-01 | K19: 2047-11-01 | L19: 2061-03-01 | M19: 2063-10-01 | N19: 2048-09-01 | O19: 2067-05-01 | P19: 2061-09-01 | Q19: 2050-07-01 | R19: 2070-02-01 | S19: 2066-10-01 | T19: 2056-11-01
B21: Operations - Capacity and Production
C23: Solar
D24: Capacity - DC | E24: kWp | F24: =INDEX(I24:AG24,InputC!$J$2) -> 0 | I24: 1200 | L24: 2000 | O24: 800 | R24: 1500
D25: DC/AC Ratio | E25: Ratio | F25: =INDEX(I25:AG25,InputC!$J$2) -> 0 | I25: 1.2 | L25: 1.2 | O25: 1.2 | R25: 1.2
D26: Capacity - AC | E26: kWac | F26: =INDEX(I26:AG26,InputC!$J$2) -> 0 | I26: =I24/I25 -> 1000 | L26: =L24/L25 -> 1666.666667 | O26: 666.6666667 | R26: 1250
D27: Yield | E27: kWh/kWp | F27: =INDEX(I27:AG27,InputC!$J$2) -> 0 | I27: =8760*0.24 -> 2102.4 | L27: =8760*0.23 -> 2014.8 | O27: =8760*0.21 -> 1839.6 | R27: =8760*0.23 -> 2014.8
C29: Wind
D30: Capacity | E30: kW | F30: =INDEX(I30:AG30,InputC!$J$2) -> 0 | J30: 800 | M30: 1400 | P30: 900 | S30: 1800
D31: Capacity Factor | E31: % | F31: =INDEX(I31:AG31,InputC!$J$2) -> 0 | J31: 0.35 | M31: 0.25 | P31: 0.36 | S31: 0.41
C33: Battery
D34: Inverter Capacity | E34: kW | F34: =INDEX(I34:AG34,InputC!$J$2) -> 400 | K34: 400 | N34: 600 | Q34: 550 | T34: 2000
D35: Duration | E35: Hours | F35: =INDEX(I35:AG35,InputC!$J$2) -> 2 | K35: 2 | N35: 1 | Q35: 4 | T35: 4
D36: Storage Capacity | E36: kWh | F36: =INDEX(I36:AG36,InputC!$J$2) -> 800 | K36: =K34*K35 -> 800 | N36: =N34*N35 -> 600 | Q36: =Q34*Q35 -> 2200 | T36: =T34*T35 -> 8000
D37: Availability Factor | E37: % | F37: =INDEX(I37:AG37,InputC!$J$2) -> 0.97 | K37: 0.97 | N37: 0.95 | Q37: 0.98 | T37: 0.98
C39: Degradation | E39: % p.a | F39: =INDEX(I39:AG39,InputC!$J$2) -> 0.023 | I39: 0.005 | J39: 0 | K39: 0.023 | L39: 0.004 | M39: 0 | N39: 0.023 | O39: 0.005 | P39: 0 | Q39: 0.023 | R39: 0.005 | S39: 0 | T39: 0.023
B41: Operating Cash Flows
C43: Inflation Code | E43: Code | F43: =INDEX(I43:AG43,InputC!$J$2) -> 3 | I43: 1 | J43: 2 | K43: 3 | L43: 1 | M43: 2 | N43: 3 | O43: 1 | P43: 1 | Q43: 1 | R43: 1 | S43: 1 | T43: 1
C45: Capital Expenditure
D46: Capital Expenditure - Solar | E46: USD/kWp | F46: =INDEX(I46:AG46,InputC!$J$2) -> 0 | I46: 360 | L46: 400 | O46: 380 | R46: 450
D47: Capital Expenditure - Wind | E47: USD/kW | F47: =INDEX(I47:AG47,InputC!$J$2) -> 0 | J47: 850 | M47: 800 | P47: 900 | S47: 700
D48: Capital Expenditure - BESS | E48: USD/kWh | F48: =INDEX(I48:AG48,InputC!$J$2) -> 350 | K48: 350 | N48: 250 | Q48: 100 | T48: 75
C50: Price
D51: Price per kWh - Solar/Wind | E51: USD/kWh | F51: =INDEX(I51:AG51,InputC!$J$2) -> 0 | I51: 0.014 | J51: 0.027 | L51: 0.016 | M51: 0.04 | O51: 0.016 | P51: 0.03 | R51: 0.015 | S51: 0.025
D52: Price per kWh - Battery | E52: USD/kWh | F52: =INDEX(I52:AG52,InputC!$J$2) -> 0.0055 | K52: 0.0055 | N52: 0.0032 | Q52: 0.0018 | T52: 0.0016
D53: Inflate PPA | E53: Flag | F53: =INDEX(I53:AG53,InputC!$J$2) -> FALSE | I53: TRUE | J53: TRUE | K53: FALSE | L53: TRUE | M53: FALSE | N53: TRUE | O53: TRUE | P53: FALSE | Q53: TRUE | R53: TRUE | S53: FALSE | T53: TRUE
C55: Operating and Maintenance
D56: Solar O&M | E56: USD/kWy | F56: =INDEX(I56:AG56,InputC!$J$2) -> 0 | I56: 6 | L56: 5 | O56: 4 | R56: 4
D57: Wind O&M | E57: USD/kWy | F57: =INDEX(I57:AG57,InputC!$J$2) -> 0 | J57: 16 | M57: 16 | P57: 18 | S57: 15
D58: Battery O&M | E58: USD/kwhy | F58: =INDEX(I58:AG58,InputC!$J$2) -> 3 | K58: 3 | N58: 2 | Q58: 4 | T58: 3
B61: Valuation
D62: Risk Free Rate | E62: % p.a. | F62: =INDEX(I62:AG62,InputC!$J$2) -> 0.035 | I62: 0.035 | J62: 0.035 | K62: 0.035 | L62: 0.035 | M62: 0.035 | N62: 0.035 | O62: 0.035 | P62: 0.035 | Q62: 0.035 | R62: 0.035 | S62: 0.035 | T62: 0.035
D63: Valuation Discount Rate | E63: % p.a. | F63: =INDEX(I63:AG63,InputC!$J$2) -> 0.06 | I63: 0.06 | J63: 0.06 | K63: 0.06 | L63: 0.06 | M63: 0.06 | N63: 0.06 | O63: 0.06 | P63: 0.06 | Q63: 0.06 | R63: 0.06 | S63: 0.06 | T63: 0.06
B65: Debt Structuring
C66: Max Debt to Capital | E66: % | F66: =INDEX(I66:AG66,InputC!$J$2) -> 0.8 | I66: 0.8 | J66: 0.8 | K66: 0.8 | L66: 0.8 | M66: 0.8 | N66: 0.8 | O66: 0.8 | P66: 0.8 | Q66: 0.8 | R66: 0.8 | S66: 0.8 | T66: 0.8
C67: Min DSCR | E67: x | F67: =INDEX(I67:AG67,InputC!$J$2) -> 1.4 | I67: 1.2 | J67: 1.3 | K67: 1.4 | L67: 1.3 | M67: 1.4 | N67: 1.4 | O67: 1.4 | P67: 1.4 | Q67: 1.4 | R67: 1.4 | S67: 1.4 | T67: 1.4
C69: Debt Tenure | E69: Years | F69: =INDEX(I69:AG69,InputC!$J$2) -> 12 | I69: 23 | J69: 20 | K69: 12 | L69: 24 | M69: 20 | N69: 10 | O69: 25 | P69: 22 | Q69: 12 | R69: 21 | S69: 15 | T69: 11
C71: Base SOFR Swap Rate | E71: % p.a. | F71: =INDEX(I71:AG71,InputC!$J$2) -> 0.04 | I71: 0.04 | J71: 0.04 | K71: 0.04 | L71: 0.04 | M71: 0.04 | N71: 0.04 | O71: 0.04 | P71: 0.04 | Q71: 0.04 | R71: 0.04 | S71: 0.04 | T71: 0.04
C72: Credit Spread | E72: % p.a. | F72: =INDEX(I72:AG72,InputC!$J$2) -> 0.015 | I72: 0.01 | J72: 0.012 | K72: 0.015 | L72: 0.011 | M72: 0.011 | N72: 0.011 | O72: 0.011 | P72: 0.011 | Q72: 0.011 | R72: 0.01 | S72: 0.012 | T72: 0.015
C74: Up-Front Fees | E74: % | F74: =INDEX(I74:AG74,InputC!$J$2) -> 0.02 | I74: 0.02 | J74: 0.02 | K74: 0.02 | L74: 0.02 | M74: 0.02 | N74: 0.02 | O74: 0.02 | P74: 0.02 | Q74: 0.02 | R74: 0.02 | S74: 0.02 | T74: 0.02
C76: Pro-Rata Funding | E76: Flag | F76: =INDEX(I76:AG76,InputC!$J$2) -> TRUE | I76: TRUE | J76: TRUE | K76: TRUE | L76: TRUE | M76: TRUE | N76: TRUE | O76: TRUE | P76: TRUE | Q76: TRUE | R76: TRUE | S76: TRUE | T76: TRUE
C77: Equity Up-front | E77: Flag | F77: =INDEX(I77:AG77,InputC!$J$2) -> FALSE | I77: =NOT(I76) -> FALSE | J77: FALSE | K77: FALSE | L77: FALSE | M77: FALSE | N77: FALSE | O77: FALSE | P77: FALSE | Q77: FALSE | R77: FALSE | S77: FALSE | T77: FALSE
B79: Constants
D80: Months in a year | F80: 12 | G80: months
D81: One Range Name | F81: 1 | G81: One
D83: Circular Method | F83: 3
D84: Iteration | F84: =F83=1 -> FALSE
D85: Copy Paste | F85: =F83=2 -> FALSE
D86: UDF | F86: =F83=3 -> TRUE
D87: None | F87: =circ_method=4 -> FALSE
D138: =TRANSPOSE(I8:AK8) -> Project 1 - Solar
D139: Project 2 - Wind
D140: Project 3 - BESS
D141: Project 4 - Solar 2
D142: Project 5 - Wind 2
D143: Project 6 - BESS 2
D144: Project 7 - Solar 3
D145: Project 8 - Wind 3
D146: Project 9 - BESS 3
D147: Project 10 - Solar 4
D148: Project 11 - Wind 4
D149: Project 12 - BESS 4
D150: 0
D151: 0
D152: 0
D153: 0
D154: 0
D155: 0
D156: 0
D157: 0
D158: 0
D159: 0
D160: 0
D161: 0
D162: 0
D163: 0
D164: 0
D165: 0
D166: 0

Sheet InputS
B3: General
C4: Start of Timeline | E4: Date | G4: 2025-01-01
C6: Year | G6: 2025 | H6: 2026 | I6: 2027 | J6: 2028 | K6: 2029 | L6: 2030 | M6: 2031 | N6: 2032 | O6: 2033 | P6: 2034 | Q6: 2035 | R6: 2036 | S6: 2037
C8: Inflation Code | E8: =InputC!F43 -> 3
E9: Row
C10: Inflation Rate 1 | E10: =ROW() -> 10 | F10: 1 | G10: 0.03 | H10: 0.027 | I10: 0.025 | J10: 0.026 | K10: 0.02 | L10: 0.02 | M10: 0.02 | N10: 0.02 | O10: 0.02 | P10: 0.02 | Q10: 0.02 | R10: 0.02 | S10: 0.02
C11: Inflation Rate 2 | E11: =ROW() -> 11 | F11: 2 | G11: 0.025 | H11: 0.03 | I11: 0.03 | J11: 0.03 | K11: 0.03 | L11: 0.03 | M11: 0.03 | N11: 0.03 | O11: 0.03 | P11: 0.03 | Q11: 0.03 | R11: 0.03 | S11: 0.03
C12: Inflation Rate 3 | E12: =ROW() -> 12 | F12: 3 | G12: 0.02 | H12: 0.02 | I12: 0.02 | J12: 0.02 | K12: 0.02 | L12: 0.02 | M12: 0.02 | N12: 0.02 | O12: 0.02 | P12: 0.02 | Q12: 0.02 | R12: 0.02 | S12: 0.02
C14: =INDEX(C10:C12,$E$8) -> Inflation Rate 3 | G14: =INDEX(G10:G12,$E$8) -> 0.02 | H14: =INDEX(H10:H12,$E$8) -> 0.02 | I14: =INDEX(I10:I12,$E$8) -> 0.02 | J14: =INDEX(J10:J12,$E$8) -> 0.02 | K14: =INDEX(K10:K12,$E$8) -> 0.02 | L14: =INDEX(L10:L12,$E$8) -> 0.02 | M14: =INDEX(M10:M12,$E$8) -> 0.02 | N14: =INDEX(N10:N12,$E$8) -> 0.02 | O14: =INDEX(O10:O12,$E$8) -> 0.02 | P14: =INDEX(P10:P12,$E$8) -> 0.02 | Q14: =INDEX(Q10:Q12,$E$8) -> 0.02 | R14: =INDEX(R10:R12,$E$8) -> 0.02 | S14: =INDEX(S10:S12,$E$8) -> 0.02
C17: Month | G17: 1 | H17: 2 | I17: 3 | J17: 4 | K17: 5 | L17: 6 | M17: 7 | N17: 8 | O17: 9 | P17: 10 | Q17: 11 | R17: 12
C19: Seasonal Code
C21: Seasonal Factor 1 | G21: 1 | H21: 1 | I21: 1 | J21: 1 | K21: 1 | L21: 1 | M21: 1 | N21: 1 | O21: 1 | P21: 1 | Q21: 1 | R21: 1
C22: Seasonal Factor 2 | G22: 1.010228864 | H22: 1.085098322 | I22: 1.120939167 | J22: 1.128255791 | K22: 1.066213276 | L22: 0.9469052647 | M22: 0.8225408548 | N22: 0.8149307676 | O22: 0.9326991802 | P22: 1.058163157 | Q22: 1.015033325 | R22: 0.9989920294

Sheet Template Model
E1: 1 | F1: PIRR | G1: =G73 -> 0.07219581363
B2: Timeline | E2: Input Units | F2: Constants | G2: Constants | H2: Sum | I2: Model Units | J2: Initial
D3: Time Period | I3: Period | K3: 1 | L3: 2 | M3: 3 | N3: 4 | O3: 5 | P3: 6 | Q3: 7 | R3: 8 | S3: 9 | T3: 10 | U3: 11 | V3: 12 | W3: 13 | X3: 14 | Y3: 15 | Z3: 16 | AA3: 17 | AB3: 18 | AC3: 19 | AD3: 20 | AE3: 21 | AF3: 22 | AG3: 23 | AH3: 24 | AI3: 25 | AJ3: 26 | AK3: 27 | AL3: 28 | AM3: 29 | AN3: 30 | AO3: 31 | AP3: 32 | AQ3: 33 | AR3: 34 | AS3: 35 | AT3: 36 | AU3: 37 | AV3: 38 | AW3: 39 | AX3: 40 | AY3: 41 | AZ3: 42 | BA3: 43 | BB3: 44 | BC3: 45 | BD3: 46 | BE3: 47 | BF3: 48 | BG3: 49 | BH3: 50 | BI3: 51 | BJ3: 52 | BK3: 53 | BL3: 54 | BM3: 55 | BN3: 56 | BO3: 57 | BP3: 58 | BQ3: 59 | BR3: 60 | BS3: 61 | BT3: 62 | BU3: 63 | BV3: 64 | BW3: 65 | BX3: 66 | BY3: 67 | BZ3: 68 | CA3: 69 | CB3: 70 | CC3: 71 | CD3: 72 | CE3: 73 | CF3: 74 | CG3: 75 | CH3: 76 | CI3: 77 | CJ3: 78 | CK3: 79 | CL3: 80 | CM3: 81 | CN3: 82 | CO3: 83 | CP3: 84 | CQ3: 85 | CR3: 86 | CS3: 87 | CT3: 88 | CU3: 89 | CV3: 90 | CW3: 91 | CX3: 92 | CY3: 93 | CZ3: 94 | DA3: 95 | DB3: 96 | DC3: 97 | DD3: 98 | DE3: 99 | DF3: 100 | DG3: 101 | DH3: 102 | DI3: 103 | DJ3: 104 | DK3: 105 | DL3: 106 | DM3: 107 | DN3: 108 | DO3: 109 | DP3: 110 | DQ3: 111 | DR3: 112 | DS3: 113 | DT3: 114 | DU3: 115 | DV3: 116 | DW3: 117 | DX3: 118 | DY3: 119 | DZ3: 120 | EA3: 121 | EB3: 122 | EC3: 123 | ED3: 124 | EE3: 125 | EF3: 126 | EG3: 127 | EH3: 128 | EI3: 129 | EJ3: 130 | EK3: 131 | EL3: 132 | EM3: 133 | EN3: 134 | EO3: 135 | EP3: 136 | EQ3: 137 | ER3: 138 | ES3: 139 | ET3: 140 | EU3: 141 | EV3: 142 | EW3: 143 | EX3: 144 | EY3: 145 | EZ3: 146 | FA3: 147 | FB3: 148 | FC3: 149 | FD3: 150 | FE3: 151 | FF3: 152 | FG3: 153 | FH3: 154 | FI3: 155 | FJ3: 156 | FK3: 157 | FL3: 158 | FM3: 159 | FN3: 160 | FO3: 161 | FP3: 162 | FQ3: 163 | FR3: 164 | FS3: 165 | FT3: 166 | FU3: 167 | FV3: 168 | FW3: 169 | FX3: 170 | FY3: 171 | FZ3: 172 | GA3: 173 | GB3: 174 | GC3: 175 | GD3: 176 | GE3: 177 | GF3: 178 | GG3: 179 | GH3: 180 | GI3: 181 | GJ3: 182 | GK3: 183 | GL3: 184 | GM3: 185 | GN3: 186 | GO3: 187 | GP3: 188 | GQ3: 189 | GR3: 190 | GS3: 191 | GT3: 192 | GU3: 193 | GV3: 194 | GW3: 195 | GX3: 196 | GY3: 197 | GZ3: 198 | HA3: 199 | HB3: 200 | HC3: 201 | HD3: 202 | HE3: 203 | HF3: 204 | HG3: 205 | HH3: 206 | HI3: 207 | HJ3: 208 | HK3: 209 | HL3: 210 | HM3: 211 | HN3: 212 | HO3: 213 | HP3: 214 | HQ3: 215 | HR3: 216 | HS3: 217 | HT3: 218 | HU3: 219 | HV3: 220 | HW3: 221 | HX3: 222 | HY3: 223 | HZ3: 224 | IA3: 225 | IB3: 226 | IC3: 227 | ID3: 228 | IE3: 229 | IF3: 230 | IG3: 231 | IH3: 232 | II3: 233 | IJ3: 234 | IK3: 235 | IL3: 236 | IM3: 237 | IN3: 238 | IO3: 239 | IP3: 240 | IQ3: 241 | IR3: 242 | IS3: 243 | IT3: 244 | IU3: 245 | IV3: 246 | IW3: 247 | IX3: 248 | IY3: 249 | IZ3: 250 | JA3: 251 | JB3: 252 | JC3: 253 | JD3: 254 | JE3: 255 | JF3: 256 | JG3: 257 | JH3: 258 | JI3: 259 | JJ3: 260 | JK3: 261 | JL3: 262 | JM3: 263 | JN3: 264 | JO3: 265 | JP3: 266 | JQ3: 267 | JR3: 268 | JS3: 269 | JT3: 270 | JU3: 271 | JV3: 272 | JW3: 273 | JX3: 274 | JY3: 275 | JZ3: 276 | KA3: 277 | KB3: 278 | KC3: 279 | KD3: 280 | KE3: 281 | KF3: 282 | KG3: 283 | KH3: 284 | KI3: 285 | KJ3: 286 | KK3: 287 | KL3: 288 | KM3: 289 | KN3: 290 | KO3: 291 | KP3: 292 | KQ3: 293 | KR3: 294 | KS3: 295 | KT3: 296 | KU3: 297 | KV3: 298 | KW3: 299 | KX3: 300 | KY3: 301 | KZ3: 302 | LA3: 303 | LB3: 304 | LC3: 305 | LD3: 306 | LE3: 307 | LF3: 308 | LG3: 309 | LH3: 310 | LI3: 311 | LJ3: 312 | LK3: 313 | LL3: 314 | LM3: 315 | LN3: 316 | LO3: 317 | LP3: 318 | LQ3: 319 | LR3: 320 | LS3: 321 | LT3: 322 | LU3: 323 | LV3: 324 | LW3: 325 | LX3: 326 | LY3: 327 | LZ3: 328 | MA3: 329 | MB3: 330 | MC3: 331 | MD3: 332 | ME3: 333 | MF3: 334 | MG3: 335 | MH3: 336 | MI3: 337 | MJ3: 338 | MK3: 339 | ML3: 340 | MM3: 341 | MN3: 342 | MO3: 343 | MP3: 344 | MQ3: 345 | MR3: 346 | MS3: 347 | MT3: 348 | MU3: 349 | MV3: 350 | MW3: 351 | MX3: 352 | MY3: 353 | MZ3: 354 | NA3: 355 | NB3: 356 | NC3: 357 | ND3: 358 | NE3: 359 | NF3: 360 | NG3: 361 | NH3: 362 | NI3: 363 | NJ3: 364 | NK3: 365 | NL3: 366 | NM3: 367 | NN3: 368 | NO3: 369 | NP3: 370 | NQ3: 371 | NR3: 372 | NS3: 373 | NT3: 374 | NU3: 375 | NV3: 376 | NW3: 377 | NX3: 378 | NY3: 379 | NZ3: 380 | OA3: 381 | OB3: 382 | OC3: 383 | OD3: 384 | OE3: 385 | OF3: 386 | OG3: 387 | OH3: 388 | OI3: 389 | OJ3: 390 | OK3: 391 | OL3: 392 | OM3: 393 | ON3: 394 | OO3: 395 | OP3: 396 | OQ3: 397 | OR3: 398 | OS3: 399 | OT3: 400 | OU3: 401 | OV3: 402 | OW3: 403 | OX3: 404 | OY3: 405 | OZ3: 406 | PA3: 407 | PB3: 408 | PC3: 409 | PD3: 410 | PE3: 411 | PF3: 412 | PG3: 413 | PH3: 414 | PI3: 415 | PJ3: 416 | PK3: 417 | PL3: 418 | PM3: 419 | PN3: 420 | PO3: 421 | PP3: 422 | PQ3: 423 | PR3: 424 | PS3: 425 | PT3: 426 | PU3: 427 | PV3: 428 | PW3: 429 | PX3: 430 | PY3: 431 | PZ3: 432 | QA3: 433 | QB3: 434 | QC3: 435 | QD3: 436 | QE3: 437 | QF3: 438 | QG3: 439 | QH3: 440 | QI3: 441 | QJ3: 442 | QK3: 443 | QL3: 444 | QM3: 445 | QN3: 446 | QO3: 447 | QP3: 448 | QQ3: 449 | QR3: 450 | QS3: 451 | QT3: 452 | QU3: 453 | QV3: 454 | QW3: 455 | QX3: 456 | QY3: 457 | QZ3: 458 | RA3: 459 | RB3: 460 | RC3: 461 | RD3: 462 | RE3: 463 | RF3: 464 | RG3: 465 | RH3: 466 | RI3: 467 | RJ3: 468 | RK3: 469 | RL3: 470 | RM3: 471 | RN3: 472 | RO3: 473 | RP3: 474 | RQ3: 475 | RR3: 476 | RS3: 477 | RT3: 478 | RU3: 479 | RV3: 480 | RW3: 481 | RX3: 482 | RY3: 483 | RZ3: 484 | SA3: 485 | SB3: 486 | SC3: 487 | SD3: 488 | SE3: 489 | SF3: 490 | SG3: 491 | SH3: 492 | SI3: 493 | SJ3: 494 | SK3: 495 | SL3: 496 | SM3: 497 | SN3: 498 | SO3: 499 | SP3: 500 | SQ3: 501 | SR3: 502 | SS3: 503 | ST3: 504 | SU3: 505 | SV3: 506 | SW3: 507 | SX3: 508 | SY3: 509 | SZ3: 510 | TA3: 511 | TB3: 512 | TC3: 513 | TD3: 514 | TE3: 515 | TF3: 516 | TG3: 517 | TH3: 518 | TI3: 519 | TJ3: 520 | TK3: 521 | TL3: 522 | TM3: 523 | TN3: 524 | TO3: 525 | TP3: 526 | TQ3: 527 | TR3: 528 | TS3: 529 | TT3: 530 | TU3: 531 | TV3: 532 | TW3: 533 | TX3: 534 | TY3: 535 | TZ3: 536 | UA3: 537 | UB3: 538 | UC3: 539 | UD3: 540 | UE3: 541 | UF3: 542 | UG3: 543 | UH3: 544 | UI3: 545 | UJ3: 546 | UK3: 547 | UL3: 548 | UM3: 549 | UN3: 550 | UO3: 551 | UP3: 552 | UQ3: 553 | UR3: 554 | US3: 555 | UT3: 556 | UU3: 557 | UV3: 558 | UW3: 559 | UX3: 560 | UY3: 561 | UZ3: 562 | VA3: 563 | VB3: 564 | VC3: 565 | VD3: 566 | VE3: 567 | VF3: 568 | VG3: 569 | VH3: 570 | VI3: 571 | VJ3: 572 | VK3: 573 | VL3: 574 | VM3: 575 | VN3: 576 | VO3: 577 | VP3: 578 | VQ3: 579 | VR3: 580 | VS3: 581 | VT3: 582 | VU3: 583 | VV3: 584 | VW3: 585 | VX3: 586 | VY3: 587 | VZ3: 588 | WA3: 589 | WB3: 590 | WC3: 591 | WD3: 592 | WE3: 593 | WF3: 594 | WG3: 595 | WH3: 596 | WI3: 597 | WJ3: 598 | WK3: 599 | WL3: 600 | WM3: 601 | WN3: 602 | WO3: 603 | WP3: 604 | WQ3: 605 | WR3: 606 | WS3: 607 | WT3: 608 | WU3: 609 | WV3: 610 | WW3: 611 | WX3: 612 | WY3: 613 | WZ3: 614 | XA3: 615 | XB3: 616 | XC3: 617 | XD3: 618 | XE3: 619 | XF3: 620 | XG3: 621 | XH3: 622 | XI3: 623 | XJ3: 624 | XK3: 625 | XL3: 626 | XM3: 627 | XN3: 628 | XO3: 629 | XP3: 630 | XQ3: 631 | XR3: 632 | XS3: 633 | XT3: 634 | XU3: 635 | XV3: 636 | XW3: 637 | XX3: 638 | XY3: 639 | XZ3: 640 | YA3: 641 | YB3: 642 | YC3: 643 | YD3: 644 | YE3: 645 | YF3: 646 | YG3: 647 | YH3: 648 | YI3: 649 | YJ3: 650 | YK3: 651 | YL3: 652 | YM3: 653 | YN3: 654 | YO3: 655 | YP3: 656 | YQ3: 657 | YR3: 658 | YS3: 659 | YT3: 660 | YU3: 661 | YV3: 662 | YW3: 663 | YX3: 664 | YY3: 665 | YZ3: 666 | ZA3: 667 | ZB3: 668 | ZC3: 669 | ZD3: 670 | ZE3: 671 | ZF3: 672 | ZG3: 673 | ZH3: 674 | ZI3: 675 | ZJ3: 676 | ZK3: 677 | ZL3: 678 | ZM3: 679 | ZN3: 680 | ZO3: 681 | ZP3: 682 | ZQ3: 683 | ZR3: 684 | ZS3: 685 | ZT3: 686 | ZU3: 687 | ZV3: 688 | ZW3: 689 | ZX3: 690 | ZY3: 691 | ZZ3: 692 | AAA3: 693 | AAB3: 694 | AAC3: 695 | AAD3: 696 | AAE3: 697 | AAF3: 698 | AAG3: 699 | AAH3: 700 | AAI3: 701 | AAJ3: 702 | AAK3: 703 | AAL3: 704 | AAM3: 705 | AAN3: 706 | AAO3: 707 | AAP3: 708 | AAQ3: 709 | AAR3: 710 | AAS3: 711 | AAT3: 712 | AAU3: 713 | AAV3: 714 | AAW3: 715 | AAX3: 716 | AAY3: 717 | AAZ3: 718 | ABA3: 719 | ABB3: 720 | ABC3: 721 | ABD3: 722 | ABE3: 723 | ABF3: 724 | ABG3: 725 | ABH3: 726 | ABI3: 727 | ABJ3: 728 | ABK3: 729 | ABL3: 730 | ABM3: 731 | ABN3: 732 | ABO3: 733 | ABP3: 734 | ABQ3: 735 | ABR3: 736 | ABS3: 737 | ABT3: 738 | ABU3: 739 | ABV3: 740 | ABW3: 741 | ABX3: 742 | ABY3: 743 | ABZ3: 744
D4: Start of period | E4: Date | I4: Date | K4: =J5+1 -> 2025-01-01 | L4: =K5+1 -> 2025-02-01 | M4: 2025-03-01 | N4: 2025-04-01 | O4: 2025-05-01 | P4: 2025-06-01 | Q4: 2025-07-01 | R4: 2025-08-01 | S4: 2025-09-01 | T4: 2025-10-01 | U4: 2025-11-01 | V4: 2025-12-01 | W4: 2026-01-01 | X4: 2026-02-01 | Y4: 2026-03-01 | Z4: 2026-04-01 | AA4: 2026-05-01 | AB4: 2026-06-01 | AC4: 2026-07-01 | AD4: 2026-08-01 | AE4: 2026-09-01 | AF4: 2026-10-01 | AG4: 2026-11-01 | AH4: 2026-12-01 | AI4: 2027-01-01 | AJ4: 2027-02-01 | AK4: 2027-03-01 | AL4: 2027-04-01 | AM4: 2027-05-01 | AN4: 2027-06-01 | AO4: 2027-07-01 | AP4: 2027-08-01 | AQ4: 2027-09-01 | AR4: 2027-10-01 | AS4: 2027-11-01 | AT4: 2027-12-01 | AU4: 2028-01-01 | AV4: 2028-02-01 | AW4: 2028-03-01 | AX4: 2028-04-01 | AY4: 2028-05-01 | AZ4: 2028-06-01 | BA4: 2028-07-01 | BB4: 2028-08-01 | BC4: 2028-09-01 | BD4: 2028-10-01 | BE4: 2028-11-01 | BF4: 2028-12-01 | BG4: 2029-01-01 | BH4: 2029-02-01 | BI4: 2029-03-01 | BJ4: 2029-04-01 | BK4: 2029-05-01 | BL4: 2029-06-01 | BM4: 2029-07-01 | BN4: 2029-08-01 | BO4: 2029-09-01 | BP4: 2029-10-01 | BQ4: 2029-11-01 | BR4: 2029-12-01 | BS4: 2030-01-01 | BT4: 2030-02-01 | BU4: 2030-03-01 | BV4: 2030-04-01 | BW4: 2030-05-01 | BX4: =BW5+1 -> 2030-06-01 | BY4: 2030-07-01 | BZ4: 2030-08-01 | CA4: 2030-09-01 | CB4: 2030-10-01 | CC4: 2030-11-01 | CD4: 2030-12-01 | CE4: 2031-01-01 | CF4: 2031-02-01 | CG4: 2031-03-01 | CH4: 2031-04-01 | CI4: 2031-05-01 | CJ4: 2031-06-01 | CK4: 2031-07-01 | CL4: 2031-08-01 | CM4: 2031-09-01 | CN4: 2031-10-01 | CO4: 2031-11-01 | CP4: 2031-12-01 | CQ4: 2032-01-01 | CR4: 2032-02-01 | CS4: 2032-03-01 | CT4: 2032-04-01 | CU4: 2032-05-01 | CV4: 2032-06-01 | CW4: 2032-07-01 | CX4: 2032-08-01 | CY4: 2032-09-01 | CZ4: 2032-10-01 | DA4: 2032-11-01 | DB4: 2032-12-01 | DC4: 2033-01-01 | DD4: 2033-02-01 | DE4: 2033-03-01 | DF4: 2033-04-01 | DG4: 2033-05-01 | DH4: 2033-06-01 | DI4: 2033-07-01 | DJ4: 2033-08-01 | DK4: 2033-09-01 | DL4: 2033-10-01 | DM4: 2033-11-01 | DN4: 2033-12-01 | DO4: 2034-01-01 | DP4: 2034-02-01 | DQ4: 2034-03-01 | DR4: 2034-04-01 | DS4: 2034-05-01 | DT4: 2034-06-01 | DU4: 2034-07-01 | DV4: 2034-08-01 | DW4: 2034-09-01 | DX4: 2034-10-01 | DY4: 2034-11-01 | DZ4: 2034-12-01 | EA4: 2035-01-01 | EB4: 2035-02-01 | EC4: 2035-03-01 | ED4: 2035-04-01 | EE4: 2035-05-01 | EF4: 2035-06-01 | EG4: 2035-07-01 | EH4: 2035-08-01 | EI4: 2035-09-01 | EJ4: =EI5+1 -> 2035-10-01 | EK4: 2035-11-01 | EL4: 2035-12-01 | EM4: 2036-01-01 | EN4: 2036-02-01 | EO4: 2036-03-01 | EP4: 2036-04-01 | EQ4: 2036-05-01 | ER4: 2036-06-01 | ES4: 2036-07-01 | ET4: 2036-08-01 | EU4: 2036-09-01 | EV4: 2036-10-01 | EW4: 2036-11-01 | EX4: 2036-12-01 | EY4: 2037-01-01 | EZ4: 2037-02-01 | FA4: 2037-03-01 | FB4: 2037-04-01 | FC4: 2037-05-01 | FD4: 2037-06-01 | FE4: 2037-07-01 | FF4: 2037-08-01 | FG4: 2037-09-01 | FH4: 2037-10-01 | FI4: 2037-11-01 | FJ4: 2037-12-01 | FK4: 2038-01-01 | FL4: 2038-02-01 | FM4: 2038-03-01 | FN4: 2038-04-01 | FO4: 2038-05-01 | FP4: 2038-06-01 | FQ4: 2038-07-01 | FR4: 2038-08-01 | FS4: 2038-09-01 | FT4: 2038-10-01 | FU4: 2038-11-01 | FV4: 2038-12-01 | FW4: 2039-01-01 | FX4: 2039-02-01 | FY4: 2039-03-01 | FZ4: 2039-04-01 | GA4: 2039-05-01 | GB4: 2039-06-01 | GC4: 2039-07-01 | GD4: 2039-08-01 | GE4: 2039-09-01 | GF4: 2039-10-01 | GG4: 2039-11-01 | GH4: 2039-12-01 | GI4: 2040-01-01 | GJ4: 2040-02-01 | GK4: 2040-03-01 | GL4: 2040-04-01 | GM4: 2040-05-01 | GN4: 2040-06-01 | GO4: 2040-07-01 | GP4: 2040-08-01 | GQ4: 2040-09-01 | GR4: 2040-10-01 | GS4: 2040-11-01 | GT4: 2040-12-01 | GU4: 2041-01-01 | GV4: =GU5+1 -> 2041-02-01 | GW4: 2041-03-01 | GX4: 2041-04-01 | GY4: 2041-05-01 | GZ4: 2041-06-01 | HA4: 2041-07-01 | HB4: 2041-08-01 | HC4: 2041-09-01 | HD4: 2041-10-01 | HE4: 2041-11-01 | HF4: 2041-12-01 | HG4: 2042-01-01 | HH4: 2042-02-01 | HI4: 2042-03-01 | HJ4: 2042-04-01 | HK4: 2042-05-01 | HL4: 2042-06-01 | HM4: 2042-07-01 | HN4: 2042-08-01 | HO4: 2042-09-01 | HP4: 2042-10-01 | HQ4: 2042-11-01 | HR4: 2042-12-01 | HS4: 2043-01-01 | HT4: 2043-02-01 | HU4: 2043-03-01 | HV4: 2043-04-01 | HW4: 2043-05-01 | HX4: 2043-06-01 | HY4: 2043-07-01 | HZ4: 2043-08-01 | IA4: 2043-09-01 | IB4: 2043-10-01 | IC4: 2043-11-01 | ID4: 2043-12-01 | IE4: 2044-01-01 | IF4: 2044-02-01 | IG4: 2044-03-01 | IH4: 2044-04-01 | II4: 2044-05-01 | IJ4: 2044-06-01 | IK4: 2044-07-01 | IL4: 2044-08-01 | IM4: 2044-09-01 | IN4: 2044-10-01 | IO4: 2044-11-01 | IP4: 2044-12-01 | IQ4: 2045-01-01 | IR4: 2045-02-01 | IS4: 2045-03-01 | IT4: 2045-04-01 | IU4: 2045-05-01 | IV4: 2045-06-01 | IW4: 2045-07-01 | IX4: 2045-08-01 | IY4: 2045-09-01 | IZ4: 2045-10-01 | JA4: =IZ5+1 -> 2045-11-01 | JB4: =JA5+1 -> 2045-12-01 | JC4: =JB5+1 -> 2046-01-01 | JD4: =JC5+1 -> 2046-02-01 | JE4: =JD5+1 -> 2046-03-01 | JF4: =JE5+1 -> 2046-04-01 | JG4: =JF5+1 -> 2046-05-01 | JH4: =JG5+1 -> 2046-06-01 | JI4: =JH5+1 -> 2046-07-01 | JJ4: =JI5+1 -> 2046-08-01 | JK4: =JJ5+1 -> 2046-09-01 | JL4: =JK5+1 -> 2046-10-01 | JM4: =JL5+1 -> 2046-11-01 | JN4: =JM5+1 -> 2046-12-01 | JO4: =JN5+1 -> 2047-01-01 | JP4: =JO5+1 -> 2047-02-01 | JQ4: =JP5+1 -> 2047-03-01 | JR4: =JQ5+1 -> 2047-04-01 | JS4: =JR5+1 -> 2047-05-01 | JT4: =JS5+1 -> 2047-06-01 | JU4: =JT5+1 -> 2047-07-01 | JV4: =JU5+1 -> 2047-08-01 | JW4: =JV5+1 -> 2047-09-01 | JX4: =JW5+1 -> 2047-10-01 | JY4: =JX5+1 -> 2047-11-01 | JZ4: =JY5+1 -> 2047-12-01 | KA4: =JZ5+1 -> 2048-01-01 | KB4: =KA5+1 -> 2048-02-01 | KC4: =KB5+1 -> 2048-03-01 | KD4: =KC5+1 -> 2048-04-01 | KE4: =KD5+1 -> 2048-05-01 | KF4: =KE5+1 -> 2048-06-01 | KG4: =KF5+1 -> 2048-07-01 | KH4: =KG5+1 -> 2048-08-01 | KI4: =KH5+1 -> 2048-09-01 | KJ4: =KI5+1 -> 2048-10-01 | KK4: =KJ5+1 -> 2048-11-01 | KL4: =KK5+1 -> 2048-12-01 | KM4: =KL5+1 -> 2049-01-01 | KN4: =KM5+1 -> 2049-02-01 | KO4: =KN5+1 -> 2049-03-01 | KP4: =KO5+1 -> 2049-04-01 | KQ4: =KP5+1 -> 2049-05-01 | KR4: =KQ5+1 -> 2049-06-01 | KS4: =KR5+1 -> 2049-07-01 | KT4: =KS5+1 -> 2049-08-01 | KU4: =KT5+1 -> 2049-09-01 | KV4: =KU5+1 -> 2049-10-01 | KW4: =KV5+1 -> 2049-11-01 | KX4: =KW5+1 -> 2049-12-01 | KY4: =KX5+1 -> 2050-01-01 | KZ4: =KY5+1 -> 2050-02-01 | LA4: =KZ5+1 -> 2050-03-01 | LB4: =LA5+1 -> 2050-04-01 | LC4: =LB5+1 -> 2050-05-01 | LD4: =LC5+1 -> 2050-06-01 | LE4: =LD5+1 -> 2050-07-01 | LF4: =LE5+1 -> 2050-08-01 | LG4: =LF5+1 -> 2050-09-01 | LH4: =LG5+1 -> 2050-10-01 | LI4: =LH5+1 -> 2050-11-01 | LJ4: =LI5+1 -> 2050-12-01 | LK4: =LJ5+1 -> 2051-01-01 | LL4: =LK5+1 -> 2051-02-01 | LM4: =LL5+1 -> 2051-03-01 | LN4: =LM5+1 -> 2051-04-01 | LO4: =LN5+1 -> 2051-05-01 | LP4: =LO5+1 -> 2051-06-01 | LQ4: =LP5+1 -> 2051-07-01 | LR4: =LQ5+1 -> 2051-08-01 | LS4: =LR5+1 -> 2051-09-01 | LT4: =LS5+1 -> 2051-10-01 | LU4: =LT5+1 -> 2051-11-01 | LV4: =LU5+1 -> 2051-12-01 | LW4: =LV5+1 -> 2052-01-01 | LX4: =LW5+1 -> 2052-02-01 | LY4: =LX5+1 -> 2052-03-01 | LZ4: =LY5+1 -> 2052-04-01 | MA4: =LZ5+1 -> 2052-05-01 | MB4: =MA5+1 -> 2052-06-01 | MC4: =MB5+1 -> 2052-07-01 | MD4: =MC5+1 -> 2052-08-01 | ME4: =MD5+1 -> 2052-09-01 | MF4: =ME5+1 -> 2052-10-01 | MG4: =MF5+1 -> 2052-11-01 | MH4: =MG5+1 -> 2052-12-01 | MI4: =MH5+1 -> 2053-01-01 | MJ4: =MI5+1 -> 2053-02-01 | MK4: =MJ5+1 -> 2053-03-01 | ML4: =MK5+1 -> 2053-04-01 | MM4: =ML5+1 -> 2053-05-01 | MN4: =MM5+1 -> 2053-06-01 | MO4: =MN5+1 -> 2053-07-01 | MP4: =MO5+1 -> 2053-08-01 | MQ4: =MP5+1 -> 2053-09-01 | MR4: =MQ5+1 -> 2053-10-01 | MS4: =MR5+1 -> 2053-11-01 | MT4: =MS5+1 -> 2053-12-01 | MU4: =MT5+1 -> 2054-01-01 | MV4: =MU5+1 -> 2054-02-01 | MW4: =MV5+1 -> 2054-03-01 | MX4: =MW5+1 -> 2054-04-01 | MY4: =MX5+1 -> 2054-05-01 | MZ4: =MY5+1 -> 2054-06-01 | NA4: =MZ5+1 -> 2054-07-01 | NB4: =NA5+1 -> 2054-08-01 | NC4: =NB5+1 -> 2054-09-01 | ND4: =NC5+1 -> 2054-10-01 | NE4: =ND5+1 -> 2054-11-01 | NF4: =NE5+1 -> 2054-12-01 | NG4: =NF5+1 -> 2055-01-01 | NH4: =NG5+1 -> 2055-02-01 | NI4: =NH5+1 -> 2055-03-01 | NJ4: =NI5+1 -> 2055-04-01 | NK4: =NJ5+1 -> 2055-05-01 | NL4: =NK5+1 -> 2055-06-01 | NM4: =NL5+1 -> 2055-07-01 | NN4: =NM5+1 -> 2055-08-01 | NO4: =NN5+1 -> 2055-09-01 | NP4: =NO5+1 -> 2055-10-01 | NQ4: =NP5+1 -> 2055-11-01 | NR4: =NQ5+1 -> 2055-12-01 | NS4: =NR5+1 -> 2056-01-01 | NT4: =NS5+1 -> 2056-02-01 | NU4: =NT5+1 -> 2056-03-01 | NV4: =NU5+1 -> 2056-04-01 | NW4: =NV5+1 -> 2056-05-01 | NX4: =NW5+1 -> 2056-06-01 | NY4: =NX5+1 -> 2056-07-01 | NZ4: =NY5+1 -> 2056-08-01 | OA4: =NZ5+1 -> 2056-09-01 | OB4: =OA5+1 -> 2056-10-01 | OC4: =OB5+1 -> 2056-11-01 | OD4: =OC5+1 -> 2056-12-01 | OE4: =OD5+1 -> 2057-01-01 | OF4: =OE5+1 -> 2057-02-01 | OG4: =OF5+1 -> 2057-03-01 | OH4: =OG5+1 -> 2057-04-01 | OI4: =OH5+1 -> 2057-05-01 | OJ4: =OI5+1 -> 2057-06-01 | OK4: =OJ5+1 -> 2057-07-01 | OL4: =OK5+1 -> 2057-08-01 | OM4: =OL5+1 -> 2057-09-01 | ON4: =OM5+1 -> 2057-10-01 | OO4: =ON5+1 -> 2057-11-01 | OP4: =OO5+1 -> 2057-12-01 | OQ4: =OP5+1 -> 2058-01-01 | OR4: =OQ5+1 -> 2058-02-01 | OS4: =OR5+1 -> 2058-03-01 | OT4: =OS5+1 -> 2058-04-01 | OU4: =OT5+1 -> 2058-05-01 | OV4: =OU5+1 -> 2058-06-01 | OW4: =OV5+1 -> 2058-07-01 | OX4: =OW5+1 -> 2058-08-01 | OY4: =OX5+1 -> 2058-09-01 | OZ4: =OY5+1 -> 2058-10-01 | PA4: =OZ5+1 -> 2058-11-01 | PB4: =PA5+1 -> 2058-12-01 | PC4: =PB5+1 -> 2059-01-01 | PD4: =PC5+1 -> 2059-02-01 | PE4: =PD5+1 -> 2059-03-01 | PF4: =PE5+1 -> 2059-04-01 | PG4: =PF5+1 -> 2059-05-01 | PH4: =PG5+1 -> 2059-06-01 | PI4: =PH5+1 -> 2059-07-01 | PJ4: =PI5+1 -> 2059-08-01 | PK4: =PJ5+1 -> 2059-09-01 | PL4: =PK5+1 -> 2059-10-01 | PM4: =PL5+1 -> 2059-11-01 | PN4: =PM5+1 -> 2059-12-01 | PO4: =PN5+1 -> 2060-01-01 | PP4: =PO5+1 -> 2060-02-01 | PQ4: =PP5+1 -> 2060-03-01 | PR4: =PQ5+1 -> 2060-04-01 | PS4: =PR5+1 -> 2060-05-01 | PT4: =PS5+1 -> 2060-06-01 | PU4: =PT5+1 -> 2060-07-01 | PV4: =PU5+1 -> 2060-08-01 | PW4: =PV5+1 -> 2060-09-01 | PX4: =PW5+1 -> 2060-10-01 | PY4: =PX5+1 -> 2060-11-01 | PZ4: =PY5+1 -> 2060-12-01 | QA4: =PZ5+1 -> 2061-01-01 | QB4: =QA5+1 -> 2061-02-01 | QC4: =QB5+1 -> 2061-03-01 | QD4: =QC5+1 -> 2061-04-01 | QE4: =QD5+1 -> 2061-05-01 | QF4: =QE5+1 -> 2061-06-01 | QG4: =QF5+1 -> 2061-07-01 | QH4: =QG5+1 -> 2061-08-01 | QI4: =QH5+1 -> 2061-09-01 | QJ4: =QI5+1 -> 2061-10-01 | QK4: =QJ5+1 -> 2061-11-01 | QL4: =QK5+1 -> 2061-12-01 | QM4: =QL5+1 -> 2062-01-01 | QN4: =QM5+1 -> 2062-02-01 | QO4: =QN5+1 -> 2062-03-01 | QP4: =QO5+1 -> 2062-04-01 | QQ4: =QP5+1 -> 2062-05-01 | QR4: =QQ5+1 -> 2062-06-01 | QS4: =QR5+1 -> 2062-07-01 | QT4: =QS5+1 -> 2062-08-01 | QU4: =QT5+1 -> 2062-09-01 | QV4: =QU5+1 -> 2062-10-01 | QW4: =QV5+1 -> 2062-11-01 | QX4: =QW5+1 -> 2062-12-01 | QY4: =QX5+1 -> 2063-01-01 | QZ4: =QY5+1 -> 2063-02-01 | RA4: =QZ5+1 -> 2063-03-01 | RB4: =RA5+1 -> 2063-04-01 | RC4: =RB5+1 -> 2063-05-01 | RD4: =RC5+1 -> 2063-06-01 | RE4: =RD5+1 -> 2063-07-01 | RF4: =RE5+1 -> 2063-08-01 | RG4: =RF5+1 -> 2063-09-01 | RH4: =RG5+1 -> 2063-10-01 | RI4: =RH5+1 -> 2063-11-01 | RJ4: =RI5+1 -> 2063-12-01 | RK4: =RJ5+1 -> 2064-01-01 | RL4: =RK5+1 -> 2064-02-01 | RM4: =RL5+1 -> 2064-03-01 | RN4: =RM5+1 -> 2064-04-01 | RO4: =RN5+1 -> 2064-05-01 | RP4: =RO5+1 -> 2064-06-01 | RQ4: =RP5+1 -> 2064-07-01 | RR4: =RQ5+1 -> 2064-08-01 | RS4: =RR5+1 -> 2064-09-01 | RT4: =RS5+1 -> 2064-10-01 | RU4: =RT5+1 -> 2064-11-01 | RV4: =RU5+1 -> 2064-12-01 | RW4: =RV5+1 -> 2065-01-01 | RX4: =RW5+1 -> 2065-02-01 | RY4: =RX5+1 -> 2065-03-01 | RZ4: =RY5+1 -> 2065-04-01 | SA4: =RZ5+1 -> 2065-05-01 | SB4: =SA5+1 -> 2065-06-01 | SC4: =SB5+1 -> 2065-07-01 | SD4: =SC5+1 -> 2065-08-01 | SE4: =SD5+1 -> 2065-09-01 | SF4: =SE5+1 -> 2065-10-01 | SG4: =SF5+1 -> 2065-11-01 | SH4: =SG5+1 -> 2065-12-01 | SI4: =SH5+1 -> 2066-01-01 | SJ4: =SI5+1 -> 2066-02-01 | SK4: =SJ5+1 -> 2066-03-01 | SL4: =SK5+1 -> 2066-04-01 | SM4: =SL5+1 -> 2066-05-01 | SN4: =SM5+1 -> 2066-06-01 | SO4: =SN5+1 -> 2066-07-01 | SP4: =SO5+1 -> 2066-08-01 | SQ4: =SP5+1 -> 2066-09-01 | SR4: =SQ5+1 -> 2066-10-01 | SS4: =SR5+1 -> 2066-11-01 | ST4: =SS5+1 -> 2066-12-01 | SU4: =ST5+1 -> 2067-01-01 | SV4: =SU5+1 -> 2067-02-01 | SW4: =SV5+1 -> 2067-03-01 | SX4: =SW5+1 -> 2067-04-01 | SY4: =SX5+1 -> 2067-05-01 | SZ4: =SY5+1 -> 2067-06-01 | TA4: =SZ5+1 -> 2067-07-01 | TB4: =TA5+1 -> 2067-08-01 | TC4: =TB5+1 -> 2067-09-01 | TD4: =TC5+1 -> 2067-10-01 | TE4: =TD5+1 -> 2067-11-01 | TF4: =TE5+1 -> 2067-12-01 | TG4: =TF5+1 -> 2068-01-01 | TH4: =TG5+1 -> 2068-02-01 | TI4: =TH5+1 -> 2068-03-01 | TJ4: =TI5+1 -> 2068-04-01 | TK4: =TJ5+1 -> 2068-05-01 | TL4: =TK5+1 -> 2068-06-01 | TM4: =TL5+1 -> 2068-07-01 | TN4: =TM5+1 -> 2068-08-01 | TO4: =TN5+1 -> 2068-09-01 | TP4: =TO5+1 -> 2068-10-01 | TQ4: =TP5+1 -> 2068-11-01 | TR4: =TQ5+1 -> 2068-12-01 | TS4: =TR5+1 -> 2069-01-01 | TT4: =TS5+1 -> 2069-02-01 | TU4: =TT5+1 -> 2069-03-01 | TV4: =TU5+1 -> 2069-04-01 | TW4: =TV5+1 -> 2069-05-01 | TX4: =TW5+1 -> 2069-06-01 | TY4: =TX5+1 -> 2069-07-01 | TZ4: =TY5+1 -> 2069-08-01 | UA4: =TZ5+1 -> 2069-09-01 | UB4: =UA5+1 -> 2069-10-01 | UC4: =UB5+1 -> 2069-11-01 | UD4: =UC5+1 -> 2069-12-01 | UE4: =UD5+1 -> 2070-01-01 | UF4: =UE5+1 -> 2070-02-01 | UG4: =UF5+1 -> 2070-03-01 | UH4: =UG5+1 -> 2070-04-01 | UI4: =UH5+1 -> 2070-05-01 | UJ4: =UI5+1 -> 2070-06-01 | UK4: =UJ5+1 -> 2070-07-01 | UL4: =UK5+1 -> 2070-08-01 | UM4: =UL5+1 -> 2070-09-01 | UN4: =UM5+1 -> 2070-10-01 | UO4: =UN5+1 -> 2070-11-01 | UP4: =UO5+1 -> 2070-12-01 | UQ4: =UP5+1 -> 2071-01-01 | UR4: =UQ5+1 -> 2071-02-01 | US4: =UR5+1 -> 2071-03-01 | UT4: =US5+1 -> 2071-04-01 | UU4: =UT5+1 -> 2071-05-01 | UV4: =UU5+1 -> 2071-06-01 | UW4: =UV5+1 -> 2071-07-01 | UX4: =UW5+1 -> 2071-08-01 | UY4: =UX5+1 -> 2071-09-01 | UZ4: =UY5+1 -> 2071-10-01 | VA4: =UZ5+1 -> 2071-11-01 | VB4: =VA5+1 -> 2071-12-01 | VC4: =VB5+1 -> 2072-01-01 | VD4: =VC5+1 -> 2072-02-01 | VE4: =VD5+1 -> 2072-03-01 | VF4: =VE5+1 -> 2072-04-01 | VG4: =VF5+1 -> 2072-05-01 | VH4: =VG5+1 -> 2072-06-01 | VI4: =VH5+1 -> 2072-07-01 | VJ4: =VI5+1 -> 2072-08-01 | VK4: =VJ5+1 -> 2072-09-01 | VL4: =VK5+1 -> 2072-10-01 | VM4: =VL5+1 -> 2072-11-01 | VN4: =VM5+1 -> 2072-12-01 | VO4: =VN5+1 -> 2073-01-01 | VP4: =VO5+1 -> 2073-02-01 | VQ4: =VP5+1 -> 2073-03-01 | VR4: =VQ5+1 -> 2073-04-01 | VS4: =VR5+1 -> 2073-05-01 | VT4: =VS5+1 -> 2073-06-01 | VU4: =VT5+1 -> 2073-07-01 | VV4: =VU5+1 -> 2073-08-01 | VW4: =VV5+1 -> 2073-09-01 | VX4: =VW5+1 -> 2073-10-01 | VY4: =VX5+1 -> 2073-11-01 | VZ4: =VY5+1 -> 2073-12-01 | WA4: =VZ5+1 -> 2074-01-01 | WB4: =WA5+1 -> 2074-02-01 | WC4: =WB5+1 -> 2074-03-01 | WD4: =WC5+1 -> 2074-04-01 | WE4: =WD5+1 -> 2074-05-01 | WF4: =WE5+1 -> 2074-06-01 | WG4: =WF5+1 -> 2074-07-01 | WH4: =WG5+1 -> 2074-08-01 | WI4: =WH5+1 -> 2074-09-01 | WJ4: =WI5+1 -> 2074-10-01 | WK4: =WJ5+1 -> 2074-11-01 | WL4: =WK5+1 -> 2074-12-01 | WM4: =WL5+1 -> 2075-01-01 | WN4: =WM5+1 -> 2075-02-01 | WO4: =WN5+1 -> 2075-03-01 | WP4: =WO5+1 -> 2075-04-01 | WQ4: =WP5+1 -> 2075-05-01 | WR4: =WQ5+1 -> 2075-06-01 | WS4: =WR5+1 -> 2075-07-01 | WT4: =WS5+1 -> 2075-08-01 | WU4: =WT5+1 -> 2075-09-01 | WV4: =WU5+1 -> 2075-10-01 | WW4: =WV5+1 -> 2075-11-01 | WX4: =WW5+1 -> 2075-12-01 | WY4: =WX5+1 -> 2076-01-01 | WZ4: =WY5+1 -> 2076-02-01 | XA4: =WZ5+1 -> 2076-03-01 | XB4: =XA5+1 -> 2076-04-01 | XC4: =XB5+1 -> 2076-05-01 | XD4: =XC5+1 -> 2076-06-01 | XE4: =XD5+1 -> 2076-07-01 | XF4: =XE5+1 -> 2076-08-01 | XG4: =XF5+1 -> 2076-09-01 | XH4: =XG5+1 -> 2076-10-01 | XI4: =XH5+1 -> 2076-11-01 | XJ4: =XI5+1 -> 2076-12-01 | XK4: =XJ5+1 -> 2077-01-01 | XL4: =XK5+1 -> 2077-02-01 | XM4: =XL5+1 -> 2077-03-01 | XN4: =XM5+1 -> 2077-04-01 | XO4: =XN5+1 -> 2077-05-01 | XP4: =XO5+1 -> 2077-06-01 | XQ4: =XP5+1 -> 2077-07-01 | XR4: =XQ5+1 -> 2077-08-01 | XS4: =XR5+1 -> 2077-09-01 | XT4: =XS5+1 -> 2077-10-01 | XU4: =XT5+1 -> 2077-11-01 | XV4: =XU5+1 -> 2077-12-01 | XW4: =XV5+1 -> 2078-01-01 | XX4: =XW5+1 -> 2078-02-01 | XY4: =XX5+1 -> 2078-03-01 | XZ4: =XY5+1 -> 2078-04-01 | YA4: =XZ5+1 -> 2078-05-01 | YB4: =YA5+1 -> 2078-06-01 | YC4: =YB5+1 -> 2078-07-01 | YD4: =YC5+1 -> 2078-08-01 | YE4: =YD5+1 -> 2078-09-01 | YF4: =YE5+1 -> 2078-10-01 | YG4: =YF5+1 -> 2078-11-01 | YH4: =YG5+1 -> 2078-12-01 | YI4: =YH5+1 -> 2079-01-01 | YJ4: =YI5+1 -> 2079-02-01 | YK4: =YJ5+1 -> 2079-03-01 | YL4: =YK5+1 -> 2079-04-01 | YM4: =YL5+1 -> 2079-05-01 | YN4: =YM5+1 -> 2079-06-01 | YO4: =YN5+1 -> 2079-07-01 | YP4: =YO5+1 -> 2079-08-01 | YQ4: =YP5+1 -> 2079-09-01 | YR4: =YQ5+1 -> 2079-10-01 | YS4: =YR5+1 -> 2079-11-01 | YT4: =YS5+1 -> 2079-12-01 | YU4: =YT5+1 -> 2080-01-01 | YV4: =YU5+1 -> 2080-02-01 | YW4: =YV5+1 -> 2080-03-01 | YX4: =YW5+1 -> 2080-04-01 | YY4: =YX5+1 -> 2080-05-01 | YZ4: =YY5+1 -> 2080-06-01 | ZA4: =YZ5+1 -> 2080-07-01 | ZB4: =ZA5+1 -> 2080-08-01 | ZC4: =ZB5+1 -> 2080-09-01 | ZD4: =ZC5+1 -> 2080-10-01 | ZE4: =ZD5+1 -> 2080-11-01 | ZF4: =ZE5+1 -> 2080-12-01 | ZG4: =ZF5+1 -> 2081-01-01 | ZH4: =ZG5+1 -> 2081-02-01 | ZI4: =ZH5+1 -> 2081-03-01 | ZJ4: =ZI5+1 -> 2081-04-01 | ZK4: =ZJ5+1 -> 2081-05-01 | ZL4: =ZK5+1 -> 2081-06-01 | ZM4: =ZL5+1 -> 2081-07-01 | ZN4: =ZM5+1 -> 2081-08-01 | ZO4: =ZN5+1 -> 2081-09-01 | ZP4: =ZO5+1 -> 2081-10-01 | ZQ4: =ZP5+1 -> 2081-11-01 | ZR4: =ZQ5+1 -> 2081-12-01 | ZS4: =ZR5+1 -> 2082-01-01 | ZT4: =ZS5+1 -> 2082-02-01 | ZU4: =ZT5+1 -> 2082-03-01 | ZV4: =ZU5+1 -> 2082-04-01 | ZW4: =ZV5+1 -> 2082-05-01 | ZX4: =ZW5+1 -> 2082-06-01 | ZY4: =ZX5+1 -> 2082-07-01 | ZZ4: =ZY5+1 -> 2082-08-01 | AAA4: =ZZ5+1 -> 2082-09-01 | AAB4: =AAA5+1 -> 2082-10-01 | AAC4: =AAB5+1 -> 2082-11-01 | AAD4: =AAC5+1 -> 2082-12-01 | AAE4: =AAD5+1 -> 2083-01-01 | AAF4: =AAE5+1 -> 2083-02-01 | AAG4: =AAF5+1 -> 2083-03-01 | AAH4: =AAG5+1 -> 2083-04-01 | AAI4: =AAH5+1 -> 2083-05-01 | AAJ4: =AAI5+1 -> 2083-06-01 | AAK4: =AAJ5+1 -> 2083-07-01 | AAL4: =AAK5+1 -> 2083-08-01 | AAM4: =AAL5+1 -> 2083-09-01 | AAN4: =AAM5+1 -> 2083-10-01 | AAO4: =AAN5+1 -> 2083-11-01 | AAP4: =AAO5+1 -> 2083-12-01 | AAQ4: =AAP5+1 -> 2084-01-01 | AAR4: =AAQ5+1 -> 2084-02-01 | AAS4: =AAR5+1 -> 2084-03-01 | AAT4: =AAS5+1 -> 2084-04-01 | AAU4: =AAT5+1 -> 2084-05-01 | AAV4: =AAU5+1 -> 2084-06-01 | AAW4: =AAV5+1 -> 2084-07-01 | AAX4: =AAW5+1 -> 2084-08-01 | AAY4: =AAX5+1 -> 2084-09-01 | AAZ4: =AAY5+1 -> 2084-10-01 | ABA4: =AAZ5+1 -> 2084-11-01 | ABB4: =ABA5+1 -> 2084-12-01 | ABC4: =ABB5+1 -> 2085-01-01 | ABD4: =ABC5+1 -> 2085-02-01 | ABE4: =ABD5+1 -> 2085-03-01 | ABF4: =ABE5+1 -> 2085-04-01 | ABG4: =ABF5+1 -> 2085-05-01 | ABH4: =ABG5+1 -> 2085-06-01 | ABI4: =ABH5+1 -> 2085-07-01 | ABJ4: =ABI5+1 -> 2085-08-01 | ABK4: =ABJ5+1 -> 2085-09-01 | ABL4: =ABK5+1 -> 2085-10-01 | ABM4: =ABL5+1 -> 2085-11-01 | ABN4: =ABM5+1 -> 2085-12-01 | ABO4: =ABN5+1 -> 2086-01-01 | ABP4: =ABO5+1 -> 2086-02-01 | ABQ4: =ABP5+1 -> 2086-03-01 | ABR4: =ABQ5+1 -> 2086-04-01 | ABS4: =ABR5+1 -> 2086-05-01 | ABT4: =ABS5+1 -> 2086-06-01 | ABU4: =ABT5+1 -> 2086-07-01 | ABV4: =ABU5+1 -> 2086-08-01 | ABW4: =ABV5+1 -> 2086-09-01 | ABX4: =ABW5+1 -> 2086-10-01 | ABY4: =ABX5+1 -> 2086-11-01 | ABZ4: =ABY5+1 -> 2086-12-01
D5: End of period | E5: Date | F5: =INDEX(InputC!I16:AD16,E1) -> 1 | I5: Date | J5: =InputS!G4-1 -> 2024-12-31 | K5: =EOMONTH(K4,$F$5-1) -> 2025-01-31 | L5: =EOMONTH(L4,$F$5-1) -> 2025-02-28 | M5: 2025-03-31 | N5: 2025-04-30 | O5: 2025-05-31 | P5: 2025-06-30 | Q5: 2025-07-31 | R5: 2025-08-31 | S5: 2025-09-30 | T5: 2025-10-31 | U5: 2025-11-30 | V5: 2025-12-31 | W5: 2026-01-31 | X5: 2026-02-28 | Y5: 2026-03-31 | Z5: 2026-04-30 | AA5: 2026-05-31 | AB5: 2026-06-30 | AC5: 2026-07-31 | AD5: 2026-08-31 | AE5: 2026-09-30 | AF5: 2026-10-31 | AG5: 2026-11-30 | AH5: 2026-12-31 | AI5: 2027-01-31 | AJ5: 2027-02-28 | AK5: 2027-03-31 | AL5: 2027-04-30 | AM5: 2027-05-31 | AN5: 2027-06-30 | AO5: 2027-07-31 | AP5: 2027-08-31 | AQ5: 2027-09-30 | AR5: 2027-10-31 | AS5: 2027-11-30 | AT5: 2027-12-31 | AU5: 2028-01-31 | AV5: 2028-02-29 | AW5: 2028-03-31 | AX5: 2028-04-30 | AY5: 2028-05-31 | AZ5: 2028-06-30 | BA5: 2028-07-31 | BB5: 2028-08-31 | BC5: 2028-09-30 | BD5: 2028-10-31 | BE5: 2028-11-30 | BF5: 2028-12-31 | BG5: 2029-01-31 | BH5: 2029-02-28 | BI5: 2029-03-31 | BJ5: 2029-04-30 | BK5: 2029-05-31 | BL5: 2029-06-30 | BM5: 2029-07-31 | BN5: 2029-08-31 | BO5: 2029-09-30 | BP5: 2029-10-31 | BQ5: 2029-11-30 | BR5: 2029-12-31 | BS5: 2030-01-31 | BT5: 2030-02-28 | BU5: 2030-03-31 | BV5: 2030-04-30 | BW5: 2030-05-31 | BX5: =EOMONTH(BX4,$F$5-1) -> 2030-06-30 | BY5: 2030-07-31 | BZ5: 2030-08-31 | CA5: 2030-09-30 | CB5: 2030-10-31 | CC5: 2030-11-30 | CD5: 2030-12-31 | CE5: 2031-01-31 | CF5: 2031-02-28 | CG5: 2031-03-31 | CH5: 2031-04-30 | CI5: 2031-05-31 | CJ5: 2031-06-30 | CK5: 2031-07-31 | CL5: 2031-08-31 | CM5: 2031-09-30 | CN5: 2031-10-31 | CO5: 2031-11-30 | CP5: 2031-12-31 | CQ5: 2032-01-31 | CR5: 2032-02-29 | CS5: 2032-03-31 | CT5: 2032-04-30 | CU5: 2032-05-31 | CV5: 2032-06-30 | CW5: 2032-07-31 | CX5: 2032-08-31 | CY5: 2032-09-30 | CZ5: 2032-10-31 | DA5: 2032-11-30 | DB5: 2032-12-31 | DC5: 2033-01-31 | DD5: 2033-02-28 | DE5: 2033-03-31 | DF5: 2033-04-30 | DG5: 2033-05-31 | DH5: 2033-06-30 | DI5: 2033-07-31 | DJ5: 2033-08-31 | DK5: 2033-09-30 | DL5: 2033-10-31 | DM5: 2033-11-30 | DN5: 2033-12-31 | DO5: 2034-01-31 | DP5: 2034-02-28 | DQ5: 2034-03-31 | DR5: 2034-04-30 | DS5: 2034-05-31 | DT5: 2034-06-30 | DU5: 2034-07-31 | DV5: 2034-08-31 | DW5: 2034-09-30 | DX5: 2034-10-31 | DY5: 2034-11-30 | DZ5: 2034-12-31 | EA5: 2035-01-31 | EB5: 2035-02-28 | EC5: 2035-03-31 | ED5: 2035-04-30 | EE5: 2035-05-31 | EF5: 2035-06-30 | EG5: 2035-07-31 | EH5: 2035-08-31 | EI5: 2035-09-30 | EJ5: =EOMONTH(EJ4,$F$5-1) -> 2035-10-31 | EK5: 2035-11-30 | EL5: 2035-12-31 | EM5: 2036-01-31 | EN5: 2036-02-29 | EO5: 2036-03-31 | EP5: 2036-04-30 | EQ5: 2036-05-31 | ER5: 2036-06-30 | ES5: 2036-07-31 | ET5: 2036-08-31 | EU5: 2036-09-30 | EV5: 2036-10-31 | EW5: 2036-11-30 | EX5: 2036-12-31 | EY5: 2037-01-31 | EZ5: 2037-02-28 | FA5: 2037-03-31 | FB5: 2037-04-30 | FC5: 2037-05-31 | FD5: 2037-06-30 | FE5: 2037-07-31 | FF5: 2037-08-31 | FG5: 2037-09-30 | FH5: 2037-10-31 | FI5: 2037-11-30 | FJ5: 2037-12-31 | FK5: 2038-01-31 | FL5: 2038-02-28 | FM5: 2038-03-31 | FN5: 2038-04-30 | FO5: 2038-05-31 | FP5: 2038-06-30 | FQ5: 2038-07-31 | FR5: 2038-08-31 | FS5: 2038-09-30 | FT5: 2038-10-31 | FU5: 2038-11-30 | FV5: 2038-12-31 | FW5: 2039-01-31 | FX5: 2039-02-28 | FY5: 2039-03-31 | FZ5: 2039-04-30 | GA5: 2039-05-31 | GB5: 2039-06-30 | GC5: 2039-07-31 | GD5: 2039-08-31 | GE5: 2039-09-30 | GF5: 2039-10-31 | GG5: 2039-11-30 | GH5: 2039-12-31 | GI5: 2040-01-31 | GJ5: 2040-02-29 | GK5: 2040-03-31 | GL5: 2040-04-30 | GM5: 2040-05-31 | GN5: 2040-06-30 | GO5: 2040-07-31 | GP5: 2040-08-31 | GQ5: 2040-09-30 | GR5: 2040-10-31 | GS5: 2040-11-30 | GT5: 2040-12-31 | GU5: 2041-01-31 | GV5: =EOMONTH(GV4,$F$5-1) -> 2041-02-28 | GW5: 2041-03-31 | GX5: 2041-04-30 | GY5: 2041-05-31 | GZ5: 2041-06-30 | HA5: 2041-07-31 | HB5: 2041-08-31 | HC5: 2041-09-30 | HD5: 2041-10-31 | HE5: 2041-11-30 | HF5: 2041-12-31 | HG5: 2042-01-31 | HH5: 2042-02-28 | HI5: 2042-03-31 | HJ5: 2042-04-30 | HK5: 2042-05-31 | HL5: 2042-06-30 | HM5: 2042-07-31 | HN5: 2042-08-31 | HO5: 2042-09-30 | HP5: 2042-10-31 | HQ5: 2042-11-30 | HR5: 2042-12-31 | HS5: 2043-01-31 | HT5: 2043-02-28 | HU5: 2043-03-31 | HV5: 2043-04-30 | HW5: 2043-05-31 | HX5: 2043-06-30 | HY5: 2043-07-31 | HZ5: 2043-08-31 | IA5: 2043-09-30 | IB5: 2043-10-31 | IC5: 2043-11-30 | ID5: 2043-12-31 | IE5: 2044-01-31 | IF5: 2044-02-29 | IG5: 2044-03-31 | IH5: 2044-04-30 | II5: 2044-05-31 | IJ5: 2044-06-30 | IK5: 2044-07-31 | IL5: 2044-08-31 | IM5: 2044-09-30 | IN5: 2044-10-31 | IO5: 2044-11-30 | IP5: 2044-12-31 | IQ5: 2045-01-31 | IR5: 2045-02-28 | IS5: 2045-03-31 | IT5: 2045-04-30 | IU5: 2045-05-31 | IV5: 2045-06-30 | IW5: 2045-07-31 | IX5: 2045-08-31 | IY5: 2045-09-30 | IZ5: 2045-10-31 | JA5: 2045-11-30 | JB5: 2045-12-31 | JC5: 2046-01-31 | JD5: 2046-02-28 | JE5: 2046-03-31 | JF5: 2046-04-30 | JG5: 2046-05-31 | JH5: =EOMONTH(JH4,$F$5-1) -> 2046-06-30 | JI5: 2046-07-31 | JJ5: 2046-08-31 | JK5: 2046-09-30 | JL5: 2046-10-31 | JM5: 2046-11-30 | JN5: 2046-12-31 | JO5: 2047-01-31 | JP5: 2047-02-28 | JQ5: 2047-03-31 | JR5: 2047-04-30 | JS5: 2047-05-31 | JT5: 2047-06-30 | JU5: 2047-07-31 | JV5: 2047-08-31 | JW5: 2047-09-30 | JX5: 2047-10-31 | JY5: 2047-11-30 | JZ5: 2047-12-31 | KA5: 2048-01-31 | KB5: 2048-02-29 | KC5: 2048-03-31 | KD5: 2048-04-30 | KE5: 2048-05-31 | KF5: 2048-06-30 | KG5: 2048-07-31 | KH5: 2048-08-31 | KI5: 2048-09-30 | KJ5: 2048-10-31 | KK5: 2048-11-30 | KL5: 2048-12-31 | KM5: 2049-01-31 | KN5: 2049-02-28 | KO5: 2049-03-31 | KP5: 2049-04-30 | KQ5: 2049-05-31 | KR5: 2049-06-30 | KS5: 2049-07-31 | KT5: 2049-08-31 | KU5: 2049-09-30 | KV5: 2049-10-31 | KW5: 2049-11-30 | KX5: 2049-12-31 | KY5: 2050-01-31 | KZ5: 2050-02-28 | LA5: 2050-03-31 | LB5: 2050-04-30 | LC5: 2050-05-31 | LD5: 2050-06-30 | LE5: 2050-07-31 | LF5: 2050-08-31 | LG5: 2050-09-30 | LH5: 2050-10-31 | LI5: 2050-11-30 | LJ5: 2050-12-31 | LK5: 2051-01-31 | LL5: 2051-02-28 | LM5: 2051-03-31 | LN5: 2051-04-30 | LO5: 2051-05-31 | LP5: 2051-06-30 | LQ5: 2051-07-31 | LR5: 2051-08-31 | LS5: 2051-09-30 | LT5: =EOMONTH(LT4,$F$5-1) -> 2051-10-31 | LU5: 2051-11-30 | LV5: 2051-12-31 | LW5: 2052-01-31 | LX5: 2052-02-29 | LY5: 2052-03-31 | LZ5: 2052-04-30 | MA5: 2052-05-31 | MB5: 2052-06-30 | MC5: 2052-07-31 | MD5: 2052-08-31 | ME5: 2052-09-30 | MF5: 2052-10-31 | MG5: 2052-11-30 | MH5: 2052-12-31 | MI5: 2053-01-31 | MJ5: 2053-02-28 | MK5: 2053-03-31 | ML5: 2053-04-30 | MM5: 2053-05-31 | MN5: 2053-06-30 | MO5: 2053-07-31 | MP5: 2053-08-31 | MQ5: 2053-09-30 | MR5: 2053-10-31 | MS5: 2053-11-30 | MT5: 2053-12-31 | MU5: 2054-01-31 | MV5: 2054-02-28 | MW5: 2054-03-31 | MX5: 2054-04-30 | MY5: 2054-05-31 | MZ5: 2054-06-30 | NA5: 2054-07-31 | NB5: 2054-08-31 | NC5: 2054-09-30 | ND5: 2054-10-31 | NE5: 2054-11-30 | NF5: 2054-12-31 | NG5: 2055-01-31 | NH5: 2055-02-28 | NI5: 2055-03-31 | NJ5: 2055-04-30 | NK5: 2055-05-31 | NL5: 2055-06-30 | NM5: 2055-07-31 | NN5: 2055-08-31 | NO5: 2055-09-30 | NP5: 2055-10-31 | NQ5: 2055-11-30 | NR5: 2055-12-31 | NS5: 2056-01-31 | NT5: 2056-02-29 | NU5: 2056-03-31 | NV5: 2056-04-30 | NW5: 2056-05-31 | NX5: 2056-06-30 | NY5: 2056-07-31 | NZ5: 2056-08-31 | OA5: 2056-09-30 | OB5: 2056-10-31 | OC5: 2056-11-30 | OD5: 2056-12-31 | OE5: 2057-01-31 | OF5: =EOMONTH(OF4,$F$5-1) -> 2057-02-28 | OG5: 2057-03-31 | OH5: 2057-04-30 | OI5: 2057-05-31 | OJ5: 2057-06-30 | OK5: 2057-07-31 | OL5: 2057-08-31 | OM5: 2057-09-30 | ON5: 2057-10-31 | OO5: 2057-11-30 | OP5: 2057-12-31 | OQ5: 2058-01-31 | OR5: 2058-02-28 | OS5: 2058-03-31 | OT5: 2058-04-30 | OU5: 2058-05-31 | OV5: 2058-06-30 | OW5: 2058-07-31 | OX5: 2058-08-31 | OY5: 2058-09-30 | OZ5: 2058-10-31 | PA5: 2058-11-30 | PB5: 2058-12-31 | PC5: 2059-01-31 | PD5: 2059-02-28 | PE5: 2059-03-31 | PF5: 2059-04-30 | PG5: 2059-05-31 | PH5: 2059-06-30 | PI5: 2059-07-31 | PJ5: 2059-08-31 | PK5: 2059-09-30 | PL5: 2059-10-31 | PM5: 2059-11-30 | PN5: 2059-12-31 | PO5: 2060-01-31 | PP5: 2060-02-29 | PQ5: 2060-03-31 | PR5: 2060-04-30 | PS5: 2060-05-31 | PT5: 2060-06-30 | PU5: 2060-07-31 | PV5: 2060-08-31 | PW5: 2060-09-30 | PX5: 2060-10-31 | PY5: 2060-11-30 | PZ5: 2060-12-31 | QA5: 2061-01-31 | QB5: 2061-02-28 | QC5: 2061-03-31 | QD5: 2061-04-30 | QE5: 2061-05-31 | QF5: 2061-06-30 | QG5: 2061-07-31 | QH5: 2061-08-31 | QI5: 2061-09-30 | QJ5: 2061-10-31 | QK5: 2061-11-30 | QL5: 2061-12-31 | QM5: 2062-01-31 | QN5: 2062-02-28 | QO5: 2062-03-31 | QP5: 2062-04-30 | QQ5: 2062-05-31 | QR5: =EOMONTH(QR4,$F$5-1) -> 2062-06-30 | QS5: 2062-07-31 | QT5: 2062-08-31 | QU5: 2062-09-30 | QV5: 2062-10-31 | QW5: 2062-11-30 | QX5: 2062-12-31 | QY5: 2063-01-31 | QZ5: 2063-02-28 | RA5: 2063-03-31 | RB5: 2063-04-30 | RC5: 2063-05-31 | RD5: 2063-06-30 | RE5: 2063-07-31 | RF5: 2063-08-31 | RG5: 2063-09-30 | RH5: 2063-10-31 | RI5: 2063-11-30 | RJ5: 2063-12-31 | RK5: 2064-01-31 | RL5: 2064-02-29 | RM5: 2064-03-31 | RN5: 2064-04-30 | RO5: 2064-05-31 | RP5: 2064-06-30 | RQ5: 2064-07-31 | RR5: 2064-08-31 | RS5: 2064-09-30 | RT5: 2064-10-31 | RU5: 2064-11-30 | RV5: 2064-12-31 | RW5: 2065-01-31 | RX5: 2065-02-28 | RY5: 2065-03-31 | RZ5: 2065-04-30 | SA5: 2065-05-31 | SB5: 2065-06-30 | SC5: 2065-07-31 | SD5: 2065-08-31 | SE5: 2065-09-30 | SF5: 2065-10-31 | SG5: 2065-11-30 | SH5: 2065-12-31 | SI5: 2066-01-31 | SJ5: 2066-02-28 | SK5: 2066-03-31 | SL5: 2066-04-30 | SM5: 2066-05-31 | SN5: 2066-06-30 | SO5: 2066-07-31 | SP5: 2066-08-31 | SQ5: 2066-09-30 | SR5: 2066-10-31 | SS5: 2066-11-30 | ST5: 2066-12-31 | SU5: 2067-01-31 | SV5: 2067-02-28 | SW5: 2067-03-31 | SX5: 2067-04-30 | SY5: 2067-05-31 | SZ5: 2067-06-30 | TA5: 2067-07-31 | TB5: 2067-08-31 | TC5: 2067-09-30 | TD5: =EOMONTH(TD4,$F$5-1) -> 2067-10-31 | TE5: 2067-11-30 | TF5: 2067-12-31 | TG5: 2068-01-31 | TH5: 2068-02-29 | TI5: 2068-03-31 | TJ5: 2068-04-30 | TK5: 2068-05-31 | TL5: 2068-06-30 | TM5: 2068-07-31 | TN5: 2068-08-31 | TO5: 2068-09-30 | TP5: 2068-10-31 | TQ5: 2068-11-30 | TR5: 2068-12-31 | TS5: 2069-01-31 | TT5: 2069-02-28 | TU5: 2069-03-31 | TV5: 2069-04-30 | TW5: 2069-05-31 | TX5: 2069-06-30 | TY5: 2069-07-31 | TZ5: 2069-08-31 | UA5: 2069-09-30 | UB5: 2069-10-31 | UC5: 2069-11-30 | UD5: 2069-12-31 | UE5: 2070-01-31 | UF5: 2070-02-28 | UG5: 2070-03-31 | UH5: 2070-04-30 | UI5: 2070-05-31 | UJ5: 2070-06-30 | UK5: 2070-07-31 | UL5: 2070-08-31 | UM5: 2070-09-30 | UN5: 2070-10-31 | UO5: 2070-11-30 | UP5: 2070-12-31 | UQ5: 2071-01-31 | UR5: 2071-02-28 | US5: 2071-03-31 | UT5: 2071-04-30 | UU5: 2071-05-31 | UV5: 2071-06-30 | UW5: 2071-07-31 | UX5: 2071-08-31 | UY5: 2071-09-30 | UZ5: 2071-10-31 | VA5: 2071-11-30 | VB5: 2071-12-31 | VC5: 2072-01-31 | VD5: 2072-02-29 | VE5: 2072-03-31 | VF5: 2072-04-30 | VG5: 2072-05-31 | VH5: 2072-06-30 | VI5: 2072-07-31 | VJ5: 2072-08-31 | VK5: 2072-09-30 | VL5: 2072-10-31 | VM5: 2072-11-30 | VN5: 2072-12-31 | VO5: 2073-01-31 | VP5: =EOMONTH(VP4,$F$5-1) -> 2073-02-28 | VQ5: 2073-03-31 | VR5: 2073-04-30 | VS5: 2073-05-31 | VT5: 2073-06-30 | VU5: 2073-07-31 | VV5: 2073-08-31 | VW5: 2073-09-30 | VX5: 2073-10-31 | VY5: 2073-11-30 | VZ5: 2073-12-31 | WA5: 2074-01-31 | WB5: 2074-02-28 | WC5: 2074-03-31 | WD5: 2074-04-30 | WE5: 2074-05-31 | WF5: 2074-06-30 | WG5: 2074-07-31 | WH5: 2074-08-31 | WI5: 2074-09-30 | WJ5: 2074-10-31 | WK5: 2074-11-30 | WL5: 2074-12-31 | WM5: 2075-01-31 | WN5: 2075-02-28 | WO5: 2075-03-31 | WP5: 2075-04-30 | WQ5: 2075-05-31 | WR5: 2075-06-30 | WS5: 2075-07-31 | WT5: 2075-08-31 | WU5: 2075-09-30 | WV5: 2075-10-31 | WW5: 2075-11-30 | WX5: 2075-12-31 | WY5: 2076-01-31 | WZ5: 2076-02-29 | XA5: 2076-03-31 | XB5: 2076-04-30 | XC5: 2076-05-31 | XD5: 2076-06-30 | XE5: 2076-07-31 | XF5: 2076-08-31 | XG5: 2076-09-30 | XH5: 2076-10-31 | XI5: 2076-11-30 | XJ5: 2076-12-31 | XK5: 2077-01-31 | XL5: 2077-02-28 | XM5: 2077-03-31 | XN5: 2077-04-30 | XO5: 2077-05-31 | XP5: 2077-06-30 | XQ5: 2077-07-31 | XR5: 2077-08-31 | XS5: 2077-09-30 | XT5: 2077-10-31 | XU5: 2077-11-30 | XV5: 2077-12-31 | XW5: 2078-01-31 | XX5: 2078-02-28 | XY5: 2078-03-31 | XZ5: 2078-04-30 | YA5: 2078-05-31 | YB5: =EOMONTH(YB4,$F$5-1) -> 2078-06-30 | YC5: 2078-07-31 | YD5: 2078-08-31 | YE5: 2078-09-30 | YF5: 2078-10-31 | YG5: 2078-11-30 | YH5: 2078-12-31 | YI5: 2079-01-31 | YJ5: 2079-02-28 | YK5: 2079-03-31 | YL5: 2079-04-30 | YM5: 2079-05-31 | YN5: 2079-06-30 | YO5: 2079-07-31 | YP5: 2079-08-31 | YQ5: 2079-09-30 | YR5: 2079-10-31 | YS5: 2079-11-30 | YT5: 2079-12-31 | YU5: 2080-01-31 | YV5: 2080-02-29 | YW5: 2080-03-31 | YX5: 2080-04-30 | YY5: 2080-05-31 | YZ5: 2080-06-30 | ZA5: 2080-07-31 | ZB5: 2080-08-31 | ZC5: 2080-09-30 | ZD5: 2080-10-31 | ZE5: 2080-11-30 | ZF5: 2080-12-31 | ZG5: 2081-01-31 | ZH5: 2081-02-28 | ZI5: 2081-03-31 | ZJ5: 2081-04-30 | ZK5: 2081-05-31 | ZL5: 2081-06-30 | ZM5: 2081-07-31 | ZN5: 2081-08-31 | ZO5: 2081-09-30 | ZP5: 2081-10-31 | ZQ5: 2081-11-30 | ZR5: 2081-12-31 | ZS5: 2082-01-31 | ZT5: 2082-02-28 | ZU5: 2082-03-31 | ZV5: 2082-04-30 | ZW5: 2082-05-31 | ZX5: 2082-06-30 | ZY5: 2082-07-31 | ZZ5: 2082-08-31 | AAA5: 2082-09-30 | AAB5: 2082-10-31 | AAC5: 2082-11-30 | AAD5: 2082-12-31 | AAE5: 2083-01-31 | AAF5: 2083-02-28 | AAG5: 2083-03-31 | AAH5: 2083-04-30 | AAI5: 2083-05-31 | AAJ5: 2083-06-30 | AAK5: 2083-07-31 | AAL5: 2083-08-31 | AAM5: 2083-09-30 | AAN5: =EOMONTH(AAN4,$F$5-1) -> 2083-10-31 | AAO5: 2083-11-30 | AAP5: 2083-12-31 | AAQ5: 2084-01-31 | AAR5: 2084-02-29 | AAS5: 2084-03-31 | AAT5: 2084-04-30 | AAU5: 2084-05-31 | AAV5: 2084-06-30 | AAW5: 2084-07-31 | AAX5: 2084-08-31 | AAY5: 2084-09-30 | AAZ5: 2084-10-31 | ABA5: 2084-11-30 | ABB5: 2084-12-31 | ABC5: 2085-01-31 | ABD5: 2085-02-28 | ABE5: 2085-03-31 | ABF5: 2085-04-30 | ABG5: 2085-05-31 | ABH5: 2085-06-30 | ABI5: 2085-07-31 | ABJ5: 2085-08-31 | ABK5: 2085-09-30 | ABL5: 2085-10-31 | ABM5: 2085-11-30 | ABN5: 2085-12-31 | ABO5: 2086-01-31 | ABP5: 2086-02-28 | ABQ5: 2086-03-31 | ABR5: 2086-04-30 | ABS5: 2086-05-31 | ABT5: 2086-06-30 | ABU5: 2086-07-31 | ABV5: 2086-08-31 | ABW5: 2086-09-30 | ABX5: 2086-10-31 | ABY5: 2086-11-30 | ABZ5: 2086-12-31
D6: Construction in Periods | E6: Periods | F6: =INDEX(InputC!I11:AD11,E1) -> 2025-01-01 | G6: =INDEX(InputC!I14:AD14,E1) -> 2025-07-01 | H6: =SUM(K6:XFD6) -> 6 | I6: Flag | K6: =(AND(K$4>=$F6,K$4<$G6))*1 -> 1 | L6: 1 | M6: 1 | N6: 1 | O6: 1 | P6: 1 | Q6: 0 | R6: 0 | S6: 0 | T6: 0 | U6: =(AND(U$4>=$F6,U$4<$G6))*1 -> 0 | V6: 0 | W6: 0 | X6: 0 | Y6: 0 | Z6: 0 | AA6: 0 | AB6: 0 | AC6: 0 | AD6: 0 | AE6: =(AND(AE$4>=$F6,AE$4<$G6))*1 -> 0 | AF6: 0 | AG6: 0 | AH6: 0 | AI6: 0 | AJ6: 0 | AK6: 0 | AL6: 0 | AM6: 0 | AN6: 0 | AO6: =(AND(AO$4>=$F6,AO$4<$G6))*1 -> 0 | AP6: 0 | AQ6: 0 | AR6: 0 | AS6: 0 | AT6: 0 | AU6: 0 | AV6: 0 | AW6: 0 | AX6: 0 | AY6: =(AND(AY$4>=$F6,AY$4<$G6))*1 -> 0 | AZ6: 0 | BA6: 0 | BB6: 0 | BC6: 0 | BD6: 0 | BE6: 0 | BF6: 0 | BG6: 0 | BH6: 0 | BI6: =(AND(BI$4>=$F6,BI$4<$G6))*1 -> 0 | BJ6: 0 | BK6: 0 | BL6: 0 | BM6: 0 | BN6: 0 | BO6: 0 | BP6: 0 | BQ6: 0 | BR6: 0 | BS6: =(AND(BS$4>=$F6,BS$4<$G6))*1 -> 0 | BT6: 0 | BU6: 0 | BV6: 0 | BW6: 0 | BX6: 0 | BY6: 0 | BZ6: 0 | CA6: 0 | CB6: 0 | CC6: =(AND(CC$4>=$F6,CC$4<$G6))*1 -> 0 | CD6: 0 | CE6: 0 | CF6: 0 | CG6: 0 | CH6: 0 | CI6: 0 | CJ6: 0 | CK6: 0 | CL6: 0 | CM6: =(AND(CM$4>=$F6,CM$4<$G6))*1 -> 0 | CN6: 0 | CO6: 0 | CP6: 0 | CQ6: 0 | CR6: 0 | CS6: 0 | CT6: 0 | CU6: 0 | CV6: 0 | CW6: =(AND(CW$4>=$F6,CW$4<$G6))*1 -> 0 | CX6: 0 | CY6: 0 | CZ6: 0 | DA6: 0 | DB6: 0 | DC6: 0 | DD6: 0 | DE6: 0 | DF6: 0 | DG6: =(AND(DG$4>=$F6,DG$4<$G6))*1 -> 0 | DH6: 0 | DI6: 0 | DJ6: 0 | DK6: 0 | DL6: 0 | DM6: 0 | DN6: 0 | DO6: 0 | DP6: 0 | DQ6: =(AND(DQ$4>=$F6,DQ$4<$G6))*1 -> 0 | DR6: 0 | DS6: 0 | DT6: 0 | DU6: 0 | DV6: 0 | DW6: 0 | DX6: 0 | DY6: 0 | DZ6: 0 | EA6: =(AND(EA$4>=$F6,EA$4<$G6))*1 -> 0 | EB6: 0 | EC6: 0 | ED6: 0 | EE6: 0 | EF6: 0 | EG6: 0 | EH6: 0 | EI6: 0 | EJ6: 0 | EK6: =(AND(EK$4>=$F6,EK$4<$G6))*1 -> 0 | EL6: 0 | EM6: 0 | EN6: 0 | EO6: 0 | EP6: 0 | EQ6: 0 | ER6: 0 | ES6: 0 | ET6: 0 | EU6: =(AND(EU$4>=$F6,EU$4<$G6))*1 -> 0 | EV6: 0 | EW6: 0 | EX6: 0 | EY6: 0 | EZ6: 0 | FA6: 0 | FB6: 0 | FC6: 0 | FD6: 0 | FE6: =(AND(FE$4>=$F6,FE$4<$G6))*1 -> 0 | FF6: 0 | FG6: 0 | FH6: 0 | FI6: 0 | FJ6: 0 | FK6: 0 | FL6: 0 | FM6: 0 | FN6: 0 | FO6: =(AND(FO$4>=$F6,FO$4<$G6))*1 -> 0 | FP6: 0 | FQ6: 0 | FR6: 0 | FS6: 0 | FT6: 0 | FU6: 0 | FV6: 0 | FW6: 0 | FX6: 0 | FY6: =(AND(FY$4>=$F6,FY$4<$G6))*1 -> 0 | FZ6: 0 | GA6: 0 | GB6: 0 | GC6: 0 | GD6: 0 | GE6: 0 | GF6: 0 | GG6: 0 | GH6: 0 | GI6: =(AND(GI$4>=$F6,GI$4<$G6))*1 -> 0 | GJ6: 0 | GK6: 0 | GL6: 0 | GM6: 0 | GN6: 0 | GO6: 0 | GP6: 0 | GQ6: 0 | GR6: 0 | GS6: =(AND(GS$4>=$F6,GS$4<$G6))*1 -> 0 | GT6: 0 | GU6: 0 | GV6: 0 | GW6: 0 | GX6: 0 | GY6: 0 | GZ6: 0 | HA6: 0 | HB6: 0 | HC6: =(AND(HC$4>=$F6,HC$4<$G6))*1 -> 0 | HD6: 0 | HE6: 0 | HF6: 0 | HG6: 0 | HH6: 0 | HI6: 0 | HJ6: 0 | HK6: 0 | HL6: 0 | HM6: =(AND(HM$4>=$F6,HM$4<$G6))*1 -> 0 | HN6: 0 | HO6: 0 | HP6: 0 | HQ6: 0 | HR6: 0 | HS6: 0 | HT6: 0 | HU6: 0 | HV6: 0 | HW6: =(AND(HW$4>=$F6,HW$4<$G6))*1 -> 0 | HX6: 0 | HY6: 0 | HZ6: 0 | IA6: 0 | IB6: 0 | IC6: 0 | ID6: 0 | IE6: 0 | IF6: 0 | IG6: =(AND(IG$4>=$F6,IG$4<$G6))*1 -> 0 | IH6: 0 | II6: 0 | IJ6: 0 | IK6: 0 | IL6: 0 | IM6: 0 | IN6: 0 | IO6: 0 | IP6: 0 | IQ6: =(AND(IQ$4>=$F6,IQ$4<$G6))*1 -> 0 | IR6: 0 | IS6: 0 | IT6: 0 | IU6: 0 | IV6: 0 | IW6: 0 | IX6: 0 | IY6: 0 | IZ6: 0 | JA6: =(AND(JA$4>=$F6,JA$4<$G6))*1 -> 0 | JB6: 0 | JC6: 0 | JD6: 0 | JE6: 0 | JF6: 0 | JG6: 0 | JH6: 0 | JI6: 0 | JJ6: 0 | JK6: =(AND(JK$4>=$F6,JK$4<$G6))*1 -> 0 | JL6: 0 | JM6: 0 | JN6: 0 | JO6: 0 | JP6: 0 | JQ6: 0 | JR6: 0 | JS6: 0 | JT6: 0 | JU6: =(AND(JU$4>=$F6,JU$4<$G6))*1 -> 0 | JV6: 0 | JW6: 0 | JX6: 0 | JY6: 0 | JZ6: 0 | KA6: 0 | KB6: 0 | KC6: 0 | KD6: 0 | KE6: =(AND(KE$4>=$F6,KE$4<$G6))*1 -> 0 | KF6: 0 | KG6: 0 | KH6: 0 | KI6: 0 | KJ6: 0 | KK6: 0 | KL6: 0 | KM6: 0 | KN6: 0 | KO6: =(AND(KO$4>=$F6,KO$4<$G6))*1 -> 0 | KP6: 0 | KQ6: 0 | KR6: 0 | KS6: 0 | KT6: 0 | KU6: 0 | KV6: 0 | KW6: 0 | KX6: 0 | KY6: =(AND(KY$4>=$F6,KY$4<$G6))*1 -> 0 | KZ6: 0 | LA6: 0 | LB6: 0 | LC6: 0 | LD6: 0 | LE6: 0 | LF6: 0 | LG6: 0 | LH6: 0 | LI6: =(AND(LI$4>=$F6,LI$4<$G6))*1 -> 0 | LJ6: 0 | LK6: 0 | LL6: 0 | LM6: 0 | LN6: 0 | LO6: 0 | LP6: 0 | LQ6: 0 | LR6: 0 | LS6: =(AND(LS$4>=$F6,LS$4<$G6))*1 -> 0 | LT6: 0 | LU6: 0 | LV6: 0 | LW6: 0 | LX6: 0 | LY6: 0 | LZ6: 0 | MA6: 0 | MB6: 0 | MC6: =(AND(MC$4>=$F6,MC$4<$G6))*1 -> 0 | MD6: 0 | ME6: 0 | MF6: 0 | MG6: 0 | MH6: 0 | MI6: 0 | MJ6: 0 | MK6: 0 | ML6: 0 | MM6: =(AND(MM$4>=$F6,MM$4<$G6))*1 -> 0 | MN6: 0 | MO6: 0 | MP6: 0 | MQ6: 0 | MR6: 0 | MS6: 0 | MT6: 0 | MU6: 0 | MV6: 0 | MW6: =(AND(MW$4>=$F6,MW$4<$G6))*1 -> 0 | MX6: 0 | MY6: 0 | MZ6: 0 | NA6: 0 | NB6: 0 | NC6: 0 | ND6: 0 | NE6: 0 | NF6: 0 | NG6: =(AND(NG$4>=$F6,NG$4<$G6))*1 -> 0 | NH6: 0 | NI6: 0 | NJ6: 0 | NK6: 0 | NL6: 0 | NM6: 0 | NN6: 0 | NO6: 0 | NP6: 0 | NQ6: =(AND(NQ$4>=$F6,NQ$4<$G6))*1 -> 0 | NR6: 0 | NS6: 0 | NT6: 0 | NU6: 0 | NV6: 0 | NW6: 0 | NX6: 0 | NY6: 0 | NZ6: 0 | OA6: =(AND(OA$4>=$F6,OA$4<$G6))*1 -> 0 | OB6: 0 | OC6: 0 | OD6: 0 | OE6: 0 | OF6: 0 | OG6: 0 | OH6: 0 | OI6: 0 | OJ6: 0 | OK6: =(AND(OK$4>=$F6,OK$4<$G6))*1 -> 0 | OL6: 0 | OM6: 0 | ON6: 0 | OO6: 0 | OP6: 0 | OQ6: 0 | OR6: 0 | OS6: 0 | OT6: 0 | OU6: =(AND(OU$4>=$F6,OU$4<$G6))*1 -> 0 | OV6: 0 | OW6: 0 | OX6: 0 | OY6: 0 | OZ6: 0 | PA6: 0 | PB6: 0 | PC6: 0 | PD6: 0 | PE6: =(AND(PE$4>=$F6,PE$4<$G6))*1 -> 0 | PF6: 0 | PG6: 0 | PH6: 0 | PI6: 0 | PJ6: 0 | PK6: 0 | PL6: 0 | PM6: 0 | PN6: 0 | PO6: =(AND(PO$4>=$F6,PO$4<$G6))*1 -> 0 | PP6: 0 | PQ6: 0 | PR6: 0 | PS6: 0 | PT6: 0 | PU6: 0 | PV6: 0 | PW6: 0 | PX6: 0 | PY6: =(AND(PY$4>=$F6,PY$4<$G6))*1 -> 0 | PZ6: 0 | QA6: 0 | QB6: 0 | QC6: 0 | QD6: 0 | QE6: 0 | QF6: 0 | QG6: 0 | QH6: 0 | QI6: =(AND(QI$4>=$F6,QI$4<$G6))*1 -> 0 | QJ6: 0 | QK6: 0 | QL6: 0 | QM6: 0 | QN6: 0 | QO6: 0 | QP6: 0 | QQ6: 0 | QR6: 0 | QS6: =(AND(QS$4>=$F6,QS$4<$G6))*1 -> 0 | QT6: 0 | QU6: 0 | QV6: 0 | QW6: 0 | QX6: 0 | QY6: 0 | QZ6: 0 | RA6: 0 | RB6: 0 | RC6: =(AND(RC$4>=$F6,RC$4<$G6))*1 -> 0 | RD6: 0 | RE6: 0 | RF6: 0 | RG6: 0 | RH6: 0 | RI6: 0 | RJ6: 0 | RK6: 0 | RL6: 0 | RM6: =(AND(RM$4>=$F6,RM$4<$G6))*1 -> 0 | RN6: 0 | RO6: 0 | RP6: 0 | RQ6: 0 | RR6: 0 | RS6: 0 | RT6: 0 | RU6: 0 | RV6: 0 | RW6: =(AND(RW$4>=$F6,RW$4<$G6))*1 -> 0 | RX6: 0 | RY6: 0 | RZ6: 0 | SA6: 0 | SB6: 0 | SC6: 0 | SD6: 0 | SE6: 0 | SF6: 0 | SG6: =(AND(SG$4>=$F6,SG$4<$G6))*1 -> 0 | SH6: 0 | SI6: 0 | SJ6: 0 | SK6: 0 | SL6: 0 | SM6: 0 | SN6: 0 | SO6: 0 | SP6: 0 | SQ6: =(AND(SQ$4>=$F6,SQ$4<$G6))*1 -> 0 | SR6: 0 | SS6: 0 | ST6: 0 | SU6: 0 | SV6: 0 | SW6: 0 | SX6: 0 | SY6: 0 | SZ6: 0 | TA6: =(AND(TA$4>=$F6,TA$4<$G6))*1 -> 0 | TB6: 0 | TC6: 0 | TD6: 0 | TE6: 0 | TF6: 0 | TG6: 0 | TH6: 0 | TI6: 0 | TJ6: 0 | TK6: =(AND(TK$4>=$F6,TK$4<$G6))*1 -> 0 | TL6: 0 | TM6: 0 | TN6: 0 | TO6: 0 | TP6: 0 | TQ6: 0 | TR6: 0 | TS6: 0 | TT6: 0 | TU6: =(AND(TU$4>=$F6,TU$4<$G6))*1 -> 0 | TV6: 0 | TW6: 0 | TX6: 0 | TY6: 0 | TZ6: 0 | UA6: 0 | UB6: 0 | UC6: 0 | UD6: 0 | UE6: =(AND(UE$4>=$F6,UE$4<$G6))*1 -> 0 | UF6: 0 | UG6: 0 | UH6: 0 | UI6: 0 | UJ6: 0 | UK6: 0 | UL6: 0 | UM6: 0 | UN6: 0 | UO6: =(AND(UO$4>=$F6,UO$4<$G6))*1 -> 0 | UP6: 0 | UQ6: 0 | UR6: 0 | US6: 0 | UT6: 0 | UU6: 0 | UV6: 0 | UW6: 0 | UX6: 0 | UY6: =(AND(UY$4>=$F6,UY$4<$G6))*1 -> 0 | UZ6: 0 | VA6: 0 | VB6: 0 | VC6: 0 | VD6: 0 | VE6: 0 | VF6: 0 | VG6: 0 | VH6: 0 | VI6: =(AND(VI$4>=$F6,VI$4<$G6))*1 -> 0 | VJ6: 0 | VK6: 0 | VL6: 0 | VM6: 0 | VN6: 0 | VO6: 0 | VP6: 0 | VQ6: 0 | VR6: 0 | VS6: =(AND(VS$4>=$F6,VS$4<$G6))*1 -> 0 | VT6: 0 | VU6: 0 | VV6: 0 | VW6: 0 | VX6: 0 | VY6: 0 | VZ6: 0 | WA6: 0 | WB6: 0 | WC6: =(AND(WC$4>=$F6,WC$4<$G6))*1 -> 0 | WD6: 0 | WE6: 0 | WF6: 0 | WG6: 0 | WH6: 0 | WI6: 0 | WJ6: 0 | WK6: 0 | WL6: 0 | WM6: =(AND(WM$4>=$F6,WM$4<$G6))*1 -> 0 | WN6: 0 | WO6: 0 | WP6: 0 | WQ6: 0 | WR6: 0 | WS6: 0 | WT6: 0 | WU6: 0 | WV6: 0 | WW6: =(AND(WW$4>=$F6,WW$4<$G6))*1 -> 0 | WX6: 0 | WY6: 0 | WZ6: 0 | XA6: 0 | XB6: 0 | XC6: 0 | XD6: 0 | XE6: 0 | XF6: 0 | XG6: =(AND(XG$4>=$F6,XG$4<$G6))*1 -> 0 | XH6: 0 | XI6: 0 | XJ6: 0 | XK6: 0 | XL6: 0 | XM6: 0 | XN6: 0 | XO6: 0 | XP6: 0 | XQ6: =(AND(XQ$4>=$F6,XQ$4<$G6))*1 -> 0 | XR6: 0 | XS6: 0 | XT6: 0 | XU6: 0 | XV6: 0 | XW6: 0 | XX6: 0 | XY6: 0 | XZ6: 0 | YA6: =(AND(YA$4>=$F6,YA$4<$G6))*1 -> 0 | YB6: 0 | YC6: 0 | YD6: 0 | YE6: 0 | YF6: 0 | YG6: 0 | YH6: 0 | YI6: 0 | YJ6: 0 | YK6: =(AND(YK$4>=$F6,YK$4<$G6))*1 -> 0 | YL6: 0 | YM6: 0 | YN6: 0 | YO6: 0 | YP6: 0 | YQ6: 0 | YR6: 0 | YS6: 0 | YT6: 0 | YU6: =(AND(YU$4>=$F6,YU$4<$G6))*1 -> 0 | YV6: 0 | YW6: 0 | YX6: 0 | YY6: 0 | YZ6: 0 | ZA6: 0 | ZB6: 0 | ZC6: 0 | ZD6: 0 | ZE6: =(AND(ZE$4>=$F6,ZE$4<$G6))*1 -> 0 | ZF6: 0 | ZG6: 0 | ZH6: 0 | ZI6: 0 | ZJ6: 0 | ZK6: 0 | ZL6: 0 | ZM6: 0 | ZN6: 0 | ZO6: =(AND(ZO$4>=$F6,ZO$4<$G6))*1 -> 0 | ZP6: 0 | ZQ6: 0 | ZR6: 0 | ZS6: 0 | ZT6: 0 | ZU6: 0 | ZV6: 0 | ZW6: 0 | ZX6: 0 | ZY6: =(AND(ZY$4>=$F6,ZY$4<$G6))*1 -> 0 | ZZ6: 0 | AAA6: 0 | AAB6: 0 | AAC6: 0 | AAD6: 0 | AAE6: 0 | AAF6: 0 | AAG6: 0 | AAH6: 0 | AAI6: =(AND(AAI$4>=$F6,AAI$4<$G6))*1 -> 0 | AAJ6: 0 | AAK6: 0 | AAL6: 0 | AAM6: 0 | AAN6: 0 | AAO6: 0 | AAP6: 0 | AAQ6: 0 | AAR6: 0 | AAS6: =(AND(AAS$4>=$F6,AAS$4<$G6))*1 -> 0 | AAT6: 0 | AAU6: 0 | AAV6: 0 | AAW6: 0 | AAX6: 0 | AAY6: 0 | AAZ6: 0 | ABA6: 0 | ABB6: 0 | ABC6: =(AND(ABC$4>=$F6,ABC$4<$G6))*1 -> 0 | ABD6: 0 | ABE6: 0 | ABF6: 0 | ABG6: 0 | ABH6: 0 | ABI6: 0 | ABJ6: 0 | ABK6: 0 | ABL6: 0 | ABM6: =(AND(ABM$4>=$F6,ABM$4<$G6))*1 -> 0 | ABN6: 0 | ABO6: 0 | ABP6: 0 | ABQ6: 0 | ABR6: 0 | ABS6: 0 | ABT6: 0 | ABU6: 0 | ABV6: 0 | ABW6: 0 | ABX6: 0 | ABY6: 0 | ABZ6: 0
D7: Operation period | E7: Flag | F7: =INDEX(InputC!I14:AD14,E1) -> 2025-07-01 | G7: =INDEX(InputC!I19:AD19,E1) -> 2060-07-01 | H7: =SUM(K7:XFD7) -> 420 | I7: Flag | K7: 0 | L7: 0 | M7: 0 | N7: 0 | O7: 0 | P7: 0 | Q7: 1 | R7: 1 | S7: 1 | T7: 1 | U7: 1 | V7: 1 | W7: 1 | X7: 1 | Y7: 1 | Z7: 1 | AA7: 1 | AB7: 1 | AC7: 1 | AD7: 1 | AE7: 1 | AF7: 1 | AG7: 1 | AH7: 1 | AI7: 1 | AJ7: 1 | AK7: 1 | AL7: 1 | AM7: 1 | AN7: 1 | AO7: 1 | AP7: 1 | AQ7: 1 | AR7: 1 | AS7: 1 | AT7: 1 | AU7: 1 | AV7: 1 | AW7: 1 | AX7: 1 | AY7: 1 | AZ7: 1 | BA7: 1 | BB7: 1 | BC7: 1 | BD7: 1 | BE7: 1 | BF7: 1 | BG7: 1 | BH7: 1 | BI7: 1 | BJ7: 1 | BK7: 1 | BL7: 1 | BM7: 1 | BN7: 1 | BO7: 1 | BP7: 1 | BQ7: 1 | BR7: 1 | BS7: 1 | BT7: 1 | BU7: 1 | BV7: 1 | BW7: 1 | BX7: 1 | BY7: 1 | BZ7: 1 | CA7: 1 | CB7: 1 | CC7: 1 | CD7: 1 | CE7: 1 | CF7: 1 | CG7: 1 | CH7: 1 | CI7: 1 | CJ7: 1 | CK7: 1 | CL7: 1 | CM7: 1 | CN7: 1 | CO7: 1 | CP7: 1 | CQ7: 1 | CR7: 1 | CS7: 1 | CT7: 1 | CU7: 1 | CV7: 1 | CW7: 1 | CX7: 1 | CY7: 1 | CZ7: 1 | DA7: 1 | DB7: 1 | DC7: 1 | DD7: 1 | DE7: 1 | DF7: 1 | DG7: 1 | DH7: 1 | DI7: 1 | DJ7: 1 | DK7: 1 | DL7: 1 | DM7: 1 | DN7: 1 | DO7: 1 | DP7: 1 | DQ7: 1 | DR7: 1 | DS7: 1 | DT7: 1 | DU7: 1 | DV7: 1 | DW7: 1 | DX7: 1 | DY7: 1 | DZ7: 1 | EA7: 1 | EB7: 1 | EC7: 1 | ED7: 1 | EE7: 1 | EF7: 1 | EG7: 1 | EH7: 1 | EI7: 1 | EJ7: 1 | EK7: 1 | EL7: 1 | EM7: 1 | EN7: 1 | EO7: 1 | EP7: 1 | EQ7: 1 | ER7: 1 | ES7: 1 | ET7: 1 | EU7: 1 | EV7: 1 | EW7: 1 | EX7: 1 | EY7: 1 | EZ7: 1 | FA7: 1 | FB7: 1 | FC7: 1 | FD7: 1 | FE7: 1 | FF7: 1 | FG7: 1 | FH7: 1 | FI7: 1 | FJ7: 1 | FK7: 1 | FL7: 1 | FM7: 1 | FN7: 1 | FO7: 1 | FP7: 1 | FQ7: 1 | FR7: 1 | FS7: 1 | FT7: 1 | FU7: 1 | FV7: 1 | FW7: 1 | FX7: 1 | FY7: 1 | FZ7: 1 | GA7: 1 | GB7: 1 | GC7: 1 | GD7: 1 | GE7: 1 | GF7: 1 | GG7: 1 | GH7: 1 | GI7: 1 | GJ7: 1 | GK7: 1 | GL7: 1 | GM7: 1 | GN7: 1 | GO7: 1 | GP7: 1 | GQ7: 1 | GR7: 1 | GS7: 1 | GT7: 1 | GU7: 1 | GV7: 1 | GW7: 1 | GX7: 1 | GY7: 1 | GZ7: 1 | HA7: 1 | HB7: 1 | HC7: 1 | HD7: 1 | HE7: 1 | HF7: 1 | HG7: 1 | HH7: 1 | HI7: 1 | HJ7: 1 | HK7: 1 | HL7: 1 | HM7: 1 | HN7: 1 | HO7: 1 | HP7: 1 | HQ7: 1 | HR7: 1 | HS7: 1 | HT7: 1 | HU7: 1 | HV7: 1 | HW7: 1 | HX7: 1 | HY7: 1 | HZ7: 1 | IA7: 1 | IB7: 1 | IC7: 1 | ID7: 1 | IE7: 1 | IF7: 1 | IG7: 1 | IH7: 1 | II7: 1 | IJ7: 1 | IK7: 1 | IL7: 1 | IM7: 1 | IN7: 1 | IO7: 1 | IP7: 1 | IQ7: 1 | IR7: 1 | IS7: 1 | IT7: 1 | IU7: 1 | IV7: 1 | IW7: 1 | IX7: 1 | IY7: 1 | IZ7: 1 | JA7: 1 | JB7: 1 | JC7: 1 | JD7: 1 | JE7: 1 | JF7: 1 | JG7: 1 | JH7: 1 | JI7: 1 | JJ7: 1 | JK7: 1 | JL7: 1 | JM7: 1 | JN7: 1 | JO7: 1 | JP7: 1 | JQ7: 1 | JR7: 1 | JS7: 1 | JT7: 1 | JU7: 1 | JV7: 1 | JW7: 1 | JX7: 1 | JY7: 1 | JZ7: 1 | KA7: 1 | KB7: 1 | KC7: 1 | KD7: 1 | KE7: 1 | KF7: 1 | KG7: 1 | KH7: 1 | KI7: 1 | KJ7: 1 | KK7: 1 | KL7: 1 | KM7: 1 | KN7: 1 | KO7: 1 | KP7: 1 | KQ7: 1 | KR7: 1 | KS7: 1 | KT7: 1 | KU7: 1 | KV7: 1 | KW7: 1 | KX7: 1 | KY7: 1 | KZ7: 1 | LA7: 1 | LB7: 1 | LC7: 1 | LD7: 1 | LE7: 1 | LF7: 1 | LG7: 1 | LH7: 1 | LI7: 1 | LJ7: 1 | LK7: 1 | LL7: 1 | LM7: 1 | LN7: 1 | LO7: 1 | LP7: 1 | LQ7: 1 | LR7: 1 | LS7: 1 | LT7: 1 | LU7: 1 | LV7: 1 | LW7: 1 | LX7: 1 | LY7: 1 | LZ7: 1 | MA7: 1 | MB7: 1 | MC7: 1 | MD7: 1 | ME7: 1 | MF7: 1 | MG7: 1 | MH7: 1 | MI7: 1 | MJ7: 1 | MK7: 1 | ML7: 1 | MM7: 1 | MN7: 1 | MO7: 1 | MP7: 1 | MQ7: 1 | MR7: 1 | MS7: 1 | MT7: 1 | MU7: 1 | MV7: 1 | MW7: 1 | MX7: 1 | MY7: 1 | MZ7: 1 | NA7: 1 | NB7: 1 | NC7: 1 | ND7: 1 | NE7: 1 | NF7: 1 | NG7: 1 | NH7: 1 | NI7: 1 | NJ7: 1 | NK7: 1 | NL7: 1 | NM7: 1 | NN7: 1 | NO7: 1 | NP7: 1 | NQ7: 1 | NR7: 1 | NS7: 1 | NT7: 1 | NU7: 1 | NV7: 1 | NW7: 1 | NX7: 1 | NY7: 1 | NZ7: 1 | OA7: 1 | OB7: 1 | OC7: 1 | OD7: 1 | OE7: 1 | OF7: 1 | OG7: 1 | OH7: 1 | OI7: 1 | OJ7: 1 | OK7: 1 | OL7: 1 | OM7: 1 | ON7: 1 | OO7: 1 | OP7: 1 | OQ7: 1 | OR7: 1 | OS7: 1 | OT7: 1 | OU7: 1 | OV7: 1 | OW7: 1 | OX7: 1 | OY7: 1 | OZ7: 1 | PA7: 1 | PB7: 1 | PC7: 1 | PD7: 1 | PE7: 1 | PF7: 1 | PG7: 1 | PH7: 1 | PI7: 1 | PJ7: 1 | PK7: 1 | PL7: 1 | PM7: 1 | PN7: 1 | PO7: 1 | PP7: 1 | PQ7: 1 | PR7: 1 | PS7: 1 | PT7: 1 | PU7: 0 | PV7: 0 | PW7: 0 | PX7: 0 | PY7: 0 | PZ7: 0 | QA7: 0 | QB7: 0 | QC7: 0 | QD7: 0 | QE7: 0 | QF7: 0 | QG7: 0 | QH7: 0 | QI7: 0 | QJ7: 0 | QK7: 0 | QL7: 0 | QM7: 0 | QN7: 0 | QO7: 0 | QP7: 0 | QQ7: 0 | QR7: 0 | QS7: 0 | QT7: 0 | QU7: 0 | QV7: 0 | QW7: 0 | QX7: 0 | QY7: 0 | QZ7: 0 | RA7: 0 | RB7: 0 | RC7: 0 | RD7: 0 | RE7: 0 | RF7: 0 | RG7: 0 | RH7: 0 | RI7: 0 | RJ7: 0 | RK7: 0 | RL7: 0 | RM7: 0 | RN7: 0 | RO7: 0 | RP7: 0 | RQ7: 0 | RR7: 0 | RS7: 0 | RT7: 0 | RU7: 0 | RV7: 0 | RW7: 0 | RX7: 0 | RY7: 0 | RZ7: 0 | SA7: 0 | SB7: 0 | SC7: 0 | SD7: 0 | SE7: 0 | SF7: 0 | SG7: 0 | SH7: 0 | SI7: 0 | SJ7: 0 | SK7: 0 | SL7: 0 | SM7: 0 | SN7: 0 | SO7: 0 | SP7: 0 | SQ7: 0 | SR7: 0 | SS7: 0 | ST7: 0 | SU7: 0 | SV7: 0 | SW7: 0 | SX7: 0 | SY7: 0 | SZ7: 0 | TA7: 0 | TB7: 0 | TC7: 0 | TD7: 0 | TE7: 0 | TF7: 0 | TG7: 0 | TH7: 0 | TI7: 0 | TJ7: 0 | TK7: 0 | TL7: 0 | TM7: 0 | TN7: 0 | TO7: 0 | TP7: 0 | TQ7: 0 | TR7: 0 | TS7: 0 | TT7: 0 | TU7: 0 | TV7: 0 | TW7: 0 | TX7: 0 | TY7: 0 | TZ7: 0 | UA7: 0 | UB7: 0 | UC7: 0 | UD7: 0 | UE7: 0 | UF7: 0 | UG7: 0 | UH7: 0 | UI7: 0 | UJ7: 0 | UK7: 0 | UL7: 0 | UM7: 0 | UN7: 0 | UO7: 0 | UP7: 0 | UQ7: 0 | UR7: 0 | US7: 0 | UT7: 0 | UU7: 0 | UV7: 0 | UW7: 0 | UX7: 0 | UY7: 0 | UZ7: 0 | VA7: 0 | VB7: 0 | VC7: 0 | VD7: 0 | VE7: 0 | VF7: 0 | VG7: 0 | VH7: 0 | VI7: 0 | VJ7: 0 | VK7: 0 | VL7: 0 | VM7: 0 | VN7: 0 | VO7: 0 | VP7: 0 | VQ7: 0 | VR7: 0 | VS7: 0 | VT7: 0 | VU7: 0 | VV7: 0 | VW7: 0 | VX7: 0 | VY7: 0 | VZ7: 0 | WA7: 0 | WB7: 0 | WC7: 0 | WD7: 0 | WE7: 0 | WF7: 0 | WG7: 0 | WH7: 0 | WI7: 0 | WJ7: 0 | WK7: 0 | WL7: 0 | WM7: 0 | WN7: 0 | WO7: 0 | WP7: 0 | WQ7: 0 | WR7: 0 | WS7: 0 | WT7: 0 | WU7: 0 | WV7: 0 | WW7: 0 | WX7: 0 | WY7: 0 | WZ7: 0 | XA7: 0 | XB7: 0 | XC7: 0 | XD7: 0 | XE7: 0 | XF7: 0 | XG7: 0 | XH7: 0 | XI7: 0 | XJ7: 0 | XK7: 0 | XL7: 0 | XM7: 0 | XN7: 0 | XO7: 0 | XP7: 0 | XQ7: 0 | XR7: 0 | XS7: 0 | XT7: 0 | XU7: 0 | XV7: 0 | XW7: 0 | XX7: 0 | XY7: 0 | XZ7: 0 | YA7: 0 | YB7: 0 | YC7: 0 | YD7: 0 | YE7: 0 | YF7: 0 | YG7: 0 | YH7: 0 | YI7: 0 | YJ7: 0 | YK7: 0 | YL7: 0 | YM7: 0 | YN7: 0 | YO7: 0 | YP7: 0 | YQ7: 0 | YR7: 0 | YS7: 0 | YT7: 0 | YU7: 0 | YV7: 0 | YW7: 0 | YX7: 0 | YY7: 0 | YZ7: 0 | ZA7: 0 | ZB7: 0 | ZC7: 0 | ZD7: 0 | ZE7: 0 | ZF7: 0 | ZG7: 0 | ZH7: 0 | ZI7: 0 | ZJ7: 0 | ZK7: 0 | ZL7: 0 | ZM7: 0 | ZN7: 0 | ZO7: 0 | ZP7: 0 | ZQ7: 0 | ZR7: 0 | ZS7: 0 | ZT7: 0 | ZU7: 0 | ZV7: 0 | ZW7: 0 | ZX7: 0 | ZY7: 0 | ZZ7: 0 | AAA7: 0 | AAB7: 0 | AAC7: 0 | AAD7: 0 | AAE7: 0 | AAF7: 0 | AAG7: 0 | AAH7: 0 | AAI7: 0 | AAJ7: 0 | AAK7: 0 | AAL7: 0 | AAM7: 0 | AAN7: 0 | AAO7: 0 | AAP7: 0 | AAQ7: 0 | AAR7: 0 | AAS7: 0 | AAT7: 0 | AAU7: 0 | AAV7: 0 | AAW7: 0 | AAX7: 0 | AAY7: 0 | AAZ7: 0 | ABA7: 0 | ABB7: 0 | ABC7: 0 | ABD7: 0 | ABE7: 0 | ABF7: 0 | ABG7: 0 | ABH7: 0 | ABI7: 0 | ABJ7: 0 | ABK7: 0 | ABL7: 0 | ABM7: 0 | ABN7: 0 | ABO7: 0 | ABP7: 0 | ABQ7: 0 | ABR7: 0 | ABS7: 0 | ABT7: 0 | ABU7: 0 | ABV7: 0 | ABW7: 0 | ABX7: 0 | ABY7: 0 | ABZ7: 0
D8: Operating Life in Periods | I8: Counter | K8: =J8+K7 -> 0 | L8: =K8+L7 -> 0 | M8: 0 | N8: 0 | O8: 0 | P8: 0 | Q8: 1 | R8: 2 | S8: 3 | T8: 4 | U8: 5 | V8: 6 | W8: 7 | X8: 8 | Y8: 9 | Z8: 10 | AA8: 11 | AB8: 12 | AC8: 13 | AD8: 14 | AE8: 15 | AF8: 16 | AG8: 17 | AH8: 18 | AI8: 19 | AJ8: 20 | AK8: 21 | AL8: 22 | AM8: 23 | AN8: 24 | AO8: 25 | AP8: 26 | AQ8: 27 | AR8: 28 | AS8: 29 | AT8: 30 | AU8: 31 | AV8: 32 | AW8: 33 | AX8: 34 | AY8: 35 | AZ8: 36 | BA8: 37 | BB8: 38 | BC8: 39 | BD8: 40 | BE8: 41 | BF8: 42 | BG8: 43 | BH8: 44 | BI8: 45 | BJ8: 46 | BK8: 47 | BL8: 48 | BM8: 49 | BN8: 50 | BO8: 51 | BP8: 52 | BQ8: 53 | BR8: 54 | BS8: 55 | BT8: 56 | BU8: 57 | BV8: 58 | BW8: 59 | BX8: =BW8+BX7 -> 60 | BY8: 61 | BZ8: 62 | CA8: 63 | CB8: 64 | CC8: 65 | CD8: 66 | CE8: 67 | CF8: 68 | CG8: 69 | CH8: 70 | CI8: 71 | CJ8: 72 | CK8: 73 | CL8: 74 | CM8: 75 | CN8: 76 | CO8: 77 | CP8: 78 | CQ8: 79 | CR8: 80 | CS8: 81 | CT8: 82 | CU8: 83 | CV8: 84 | CW8: 85 | CX8: 86 | CY8: 87 | CZ8: 88 | DA8: 89 | DB8: 90 | DC8: 91 | DD8: 92 | DE8: 93 | DF8: 94 | DG8: 95 | DH8: 96 | DI8: 97 | DJ8: 98 | DK8: 99 | DL8: 100 | DM8: 101 | DN8: 102 | DO8: 103 | DP8: 104 | DQ8: 105 | DR8: 106 | DS8: 107 | DT8: 108 | DU8: 109 | DV8: 110 | DW8: 111 | DX8: 112 | DY8: 113 | DZ8: 114 | EA8: 115 | EB8: 116 | EC8: 117 | ED8: 118 | EE8: 119 | EF8: 120 | EG8: 121 | EH8: 122 | EI8: 123 | EJ8: =EI8+EJ7 -> 124 | EK8: 125 | EL8: 126 | EM8: 127 | EN8: 128 | EO8: 129 | EP8: 130 | EQ8: 131 | ER8: 132 | ES8: 133 | ET8: 134 | EU8: 135 | EV8: 136 | EW8: 137 | EX8: 138 | EY8: 139 | EZ8: 140 | FA8: 141 | FB8: 142 | FC8: 143 | FD8: 144 | FE8: 145 | FF8: 146 | FG8: 147 | FH8: 148 | FI8: 149 | FJ8: 150 | FK8: 151 | FL8: 152 | FM8: 153 | FN8: 154 | FO8: 155 | FP8: 156 | FQ8: 157 | FR8: 158 | FS8: 159 | FT8: 160 | FU8: 161 | FV8: 162 | FW8: 163 | FX8: 164 | FY8: 165 | FZ8: 166 | GA8: 167 | GB8: 168 | GC8: 169 | GD8: 170 | GE8: 171 | GF8: 172 | GG8: 173 | GH8: 174 | GI8: 175 | GJ8: 176 | GK8: 177 | GL8: 178 | GM8: 179 | GN8: 180 | GO8: 181 | GP8: 182 | GQ8: 183 | GR8: 184 | GS8: 185 | GT8: 186 | GU8: 187 | GV8: =GU8+GV7 -> 188 | GW8: 189 | GX8: 190 | GY8: 191 | GZ8: 192 | HA8: 193 | HB8: 194 | HC8: 195 | HD8: 196 | HE8: 197 | HF8: 198 | HG8: 199 | HH8: 200 | HI8: 201 | HJ8: 202 | HK8: 203 | HL8: 204 | HM8: 205 | HN8: 206 | HO8: 207 | HP8: 208 | HQ8: 209 | HR8: 210 | HS8: 211 | HT8: 212 | HU8: 213 | HV8: 214 | HW8: 215 | HX8: 216 | HY8: 217 | HZ8: 218 | IA8: 219 | IB8: 220 | IC8: 221 | ID8: 222 | IE8: 223 | IF8: 224 | IG8: 225 | IH8: 226 | II8: 227 | IJ8: 228 | IK8: 229 | IL8: 230 | IM8: 231 | IN8: 232 | IO8: 233 | IP8: 234 | IQ8: 235 | IR8: 236 | IS8: 237 | IT8: 238 | IU8: 239 | IV8: 240 | IW8: 241 | IX8: 242 | IY8: 243 | IZ8: 244 | JA8: =IZ8+JA7 -> 245 | JB8: =JA8+JB7 -> 246 | JC8: =JB8+JC7 -> 247 | JD8: =JC8+JD7 -> 248 | JE8: =JD8+JE7 -> 249 | JF8: =JE8+JF7 -> 250 | JG8: =JF8+JG7 -> 251 | JH8: =JG8+JH7 -> 252 | JI8: =JH8+JI7 -> 253 | JJ8: =JI8+JJ7 -> 254 | JK8: =JJ8+JK7 -> 255 | JL8: =JK8+JL7 -> 256 | JM8: =JL8+JM7 -> 257 | JN8: =JM8+JN7 -> 258 | JO8: =JN8+JO7 -> 259 | JP8: =JO8+JP7 -> 260 | JQ8: =JP8+JQ7 -> 261 | JR8: =JQ8+JR7 -> 262 | JS8: =JR8+JS7 -> 263 | JT8: =JS8+JT7 -> 264 | JU8: =JT8+JU7 -> 265 | JV8: =JU8+JV7 -> 266 | JW8: =JV8+JW7 -> 267 | JX8: =JW8+JX7 -> 268 | JY8: =JX8+JY7 -> 269 | JZ8: =JY8+JZ7 -> 270 | KA8: =JZ8+KA7 -> 271 | KB8: =KA8+KB7 -> 272 | KC8: =KB8+KC7 -> 273 | KD8: =KC8+KD7 -> 274 | KE8: =KD8+KE7 -> 275 | KF8: =KE8+KF7 -> 276 | KG8: =KF8+KG7 -> 277 | KH8: =KG8+KH7 -> 278 | KI8: =KH8+KI7 -> 279 | KJ8: =KI8+KJ7 -> 280 | KK8: =KJ8+KK7 -> 281 | KL8: =KK8+KL7 -> 282 | KM8: =KL8+KM7 -> 283 | KN8: =KM8+KN7 -> 284 | KO8: =KN8+KO7 -> 285 | KP8: =KO8+KP7 -> 286 | KQ8: =KP8+KQ7 -> 287 | KR8: =KQ8+KR7 -> 288 | KS8: =KR8+KS7 -> 289 | KT8: =KS8+KT7 -> 290 | KU8: =KT8+KU7 -> 291 | KV8: =KU8+KV7 -> 292 | KW8: =KV8+KW7 -> 293 | KX8: =KW8+KX7 -> 294 | KY8: =KX8+KY7 -> 295 | KZ8: =KY8+KZ7 -> 296 | LA8: =KZ8+LA7 -> 297 | LB8: =LA8+LB7 -> 298 | LC8: =LB8+LC7 -> 299 | LD8: =LC8+LD7 -> 300 | LE8: =LD8+LE7 -> 301 | LF8: =LE8+LF7 -> 302 | LG8: =LF8+LG7 -> 303 | LH8: =LG8+LH7 -> 304 | LI8: =LH8+LI7 -> 305 | LJ8: =LI8+LJ7 -> 306 | LK8: =LJ8+LK7 -> 307 | LL8: =LK8+LL7 -> 308 | LM8: =LL8+LM7 -> 309 | LN8: =LM8+LN7 -> 310 | LO8: =LN8+LO7 -> 311 | LP8: =LO8+LP7 -> 312 | LQ8: =LP8+LQ7 -> 313 | LR8: =LQ8+LR7 -> 314 | LS8: =LR8+LS7 -> 315 | LT8: =LS8+LT7 -> 316 | LU8: =LT8+LU7 -> 317 | LV8: =LU8+LV7 -> 318 | LW8: =LV8+LW7 -> 319 | LX8: =LW8+LX7 -> 320 | LY8: =LX8+LY7 -> 321 | LZ8: =LY8+LZ7 -> 322 | MA8: =LZ8+MA7 -> 323 | MB8: =MA8+MB7 -> 324 | MC8: =MB8+MC7 -> 325 | MD8: =MC8+MD7 -> 326 | ME8: =MD8+ME7 -> 327 | MF8: =ME8+MF7 -> 328 | MG8: =MF8+MG7 -> 329 | MH8: =MG8+MH7 -> 330 | MI8: =MH8+MI7 -> 331 | MJ8: =MI8+MJ7 -> 332 | MK8: =MJ8+MK7 -> 333 | ML8: =MK8+ML7 -> 334 | MM8: =ML8+MM7 -> 335 | MN8: =MM8+MN7 -> 336 | MO8: =MN8+MO7 -> 337 | MP8: =MO8+MP7 -> 338 | MQ8: =MP8+MQ7 -> 339 | MR8: =MQ8+MR7 -> 340 | MS8: =MR8+MS7 -> 341 | MT8: =MS8+MT7 -> 342 | MU8: =MT8+MU7 -> 343 | MV8: =MU8+MV7 -> 344 | MW8: =MV8+MW7 -> 345 | MX8: =MW8+MX7 -> 346 | MY8: =MX8+MY7 -> 347 | MZ8: =MY8+MZ7 -> 348 | NA8: =MZ8+NA7 -> 349 | NB8: =NA8+NB7 -> 350 | NC8: =NB8+NC7 -> 351 | ND8: =NC8+ND7 -> 352 | NE8: =ND8+NE7 -> 353 | NF8: =NE8+NF7 -> 354 | NG8: =NF8+NG7 -> 355 | NH8: =NG8+NH7 -> 356 | NI8: =NH8+NI7 -> 357 | NJ8: =NI8+NJ7 -> 358 | NK8: =NJ8+NK7 -> 359 | NL8: =NK8+NL7 -> 360 | NM8: =NL8+NM7 -> 361 | NN8: =NM8+NN7 -> 362 | NO8: =NN8+NO7 -> 363 | NP8: =NO8+NP7 -> 364 | NQ8: =NP8+NQ7 -> 365 | NR8: =NQ8+NR7 -> 366 | NS8: =NR8+NS7 -> 367 | NT8: =NS8+NT7 -> 368 | NU8: =NT8+NU7 -> 369 | NV8: =NU8+NV7 -> 370 | NW8: =NV8+NW7 -> 371 | NX8: =NW8+NX7 -> 372 | NY8: =NX8+NY7 -> 373 | NZ8: =NY8+NZ7 -> 374 | OA8: =NZ8+OA7 -> 375 | OB8: =OA8+OB7 -> 376 | OC8: =OB8+OC7 -> 377 | OD8: =OC8+OD7 -> 378 | OE8: =OD8+OE7 -> 379 | OF8: =OE8+OF7 -> 380 | OG8: =OF8+OG7 -> 381 | OH8: =OG8+OH7 -> 382 | OI8: =OH8+OI7 -> 383 | OJ8: =OI8+OJ7 -> 384 | OK8: =OJ8+OK7 -> 385 | OL8: =OK8+OL7 -> 386 | OM8: =OL8+OM7 -> 387 | ON8: =OM8+ON7 -> 388 | OO8: =ON8+OO7 -> 389 | OP8: =OO8+OP7 -> 390 | OQ8: =OP8+OQ7 -> 391 | OR8: =OQ8+OR7 -> 392 | OS8: =OR8+OS7 -> 393 | OT8: =OS8+OT7 -> 394 | OU8: =OT8+OU7 -> 395 | OV8: =OU8+OV7 -> 396 | OW8: =OV8+OW7 -> 397 | OX8: =OW8+OX7 -> 398 | OY8: =OX8+OY7 -> 399 | OZ8: =OY8+OZ7 -> 400 | PA8: =OZ8+PA7 -> 401 | PB8: =PA8+PB7 -> 402 | PC8: =PB8+PC7 -> 403 | PD8: =PC8+PD7 -> 404 | PE8: =PD8+PE7 -> 405 | PF8: =PE8+PF7 -> 406 | PG8: =PF8+PG7 -> 407 | PH8: =PG8+PH7 -> 408 | PI8: =PH8+PI7 -> 409 | PJ8: =PI8+PJ7 -> 410 | PK8: =PJ8+PK7 -> 411 | PL8: =PK8+PL7 -> 412 | PM8: =PL8+PM7 -> 413 | PN8: =PM8+PN7 -> 414 | PO8: =PN8+PO7 -> 415 | PP8: =PO8+PP7 -> 416 | PQ8: =PP8+PQ7 -> 417 | PR8: =PQ8+PR7 -> 418 | PS8: =PR8+PS7 -> 419 | PT8: =PS8+PT7 -> 420 | PU8: =PT8+PU7 -> 420 | PV8: =PU8+PV7 -> 420 | PW8: =PV8+PW7 -> 420 | PX8: =PW8+PX7 -> 420 | PY8: =PX8+PY7 -> 420 | PZ8: =PY8+PZ7 -> 420 | QA8: =PZ8+QA7 -> 420 | QB8: =QA8+QB7 -> 420 | QC8: =QB8+QC7 -> 420 | QD8: =QC8+QD7 -> 420 | QE8: =QD8+QE7 -> 420 | QF8: =QE8+QF7 -> 420 | QG8: =QF8+QG7 -> 420 | QH8: =QG8+QH7 -> 420 | QI8: =QH8+QI7 -> 420 | QJ8: =QI8+QJ7 -> 420 | QK8: =QJ8+QK7 -> 420 | QL8: =QK8+QL7 -> 420 | QM8: =QL8+QM7 -> 420 | QN8: =QM8+QN7 -> 420 | QO8: =QN8+QO7 -> 420 | QP8: =QO8+QP7 -> 420 | QQ8: =QP8+QQ7 -> 420 | QR8: =QQ8+QR7 -> 420 | QS8: =QR8+QS7 -> 420 | QT8: =QS8+QT7 -> 420 | QU8: =QT8+QU7 -> 420 | QV8: =QU8+QV7 -> 420 | QW8: =QV8+QW7 -> 420 | QX8: =QW8+QX7 -> 420 | QY8: =QX8+QY7 -> 420 | QZ8: =QY8+QZ7 -> 420 | RA8: =QZ8+RA7 -> 420 | RB8: =RA8+RB7 -> 420 | RC8: =RB8+RC7 -> 420 | RD8: =RC8+RD7 -> 420 | RE8: =RD8+RE7 -> 420 | RF8: =RE8+RF7 -> 420 | RG8: =RF8+RG7 -> 420 | RH8: =RG8+RH7 -> 420 | RI8: =RH8+RI7 -> 420 | RJ8: =RI8+RJ7 -> 420 | RK8: =RJ8+RK7 -> 420 | RL8: =RK8+RL7 -> 420 | RM8: =RL8+RM7 -> 420 | RN8: =RM8+RN7 -> 420 | RO8: =RN8+RO7 -> 420 | RP8: =RO8+RP7 -> 420 | RQ8: =RP8+RQ7 -> 420 | RR8: =RQ8+RR7 -> 420 | RS8: =RR8+RS7 -> 420 | RT8: =RS8+RT7 -> 420 | RU8: =RT8+RU7 -> 420 | RV8: =RU8+RV7 -> 420 | RW8: =RV8+RW7 -> 420 | RX8: =RW8+RX7 -> 420 | RY8: =RX8+RY7 -> 420 | RZ8: =RY8+RZ7 -> 420 | SA8: =RZ8+SA7 -> 420 | SB8: =SA8+SB7 -> 420 | SC8: =SB8+SC7 -> 420 | SD8: =SC8+SD7 -> 420 | SE8: =SD8+SE7 -> 420 | SF8: =SE8+SF7 -> 420 | SG8: =SF8+SG7 -> 420 | SH8: =SG8+SH7 -> 420 | SI8: =SH8+SI7 -> 420 | SJ8: =SI8+SJ7 -> 420 | SK8: =SJ8+SK7 -> 420 | SL8: =SK8+SL7 -> 420 | SM8: =SL8+SM7 -> 420 | SN8: =SM8+SN7 -> 420 | SO8: =SN8+SO7 -> 420 | SP8: =SO8+SP7 -> 420 | SQ8: =SP8+SQ7 -> 420 | SR8: =SQ8+SR7 -> 420 | SS8: =SR8+SS7 -> 420 | ST8: =SS8+ST7 -> 420 | SU8: =ST8+SU7 -> 420 | SV8: =SU8+SV7 -> 420 | SW8: =SV8+SW7 -> 420 | SX8: =SW8+SX7 -> 420 | SY8: =SX8+SY7 -> 420 | SZ8: =SY8+SZ7 -> 420 | TA8: =SZ8+TA7 -> 420 | TB8: =TA8+TB7 -> 420 | TC8: =TB8+TC7 -> 420 | TD8: =TC8+TD7 -> 420 | TE8: =TD8+TE7 -> 420 | TF8: =TE8+TF7 -> 420 | TG8: =TF8+TG7 -> 420 | TH8: =TG8+TH7 -> 420 | TI8: =TH8+TI7 -> 420 | TJ8: =TI8+TJ7 -> 420 | TK8: =TJ8+TK7 -> 420 | TL8: =TK8+TL7 -> 420 | TM8: =TL8+TM7 -> 420 | TN8: =TM8+TN7 -> 420 | TO8: =TN8+TO7 -> 420 | TP8: =TO8+TP7 -> 420 | TQ8: =TP8+TQ7 -> 420 | TR8: =TQ8+TR7 -> 420 | TS8: =TR8+TS7 -> 420 | TT8: =TS8+TT7 -> 420 | TU8: =TT8+TU7 -> 420 | TV8: =TU8+TV7 -> 420 | TW8: =TV8+TW7 -> 420 | TX8: =TW8+TX7 -> 420 | TY8: =TX8+TY7 -> 420 | TZ8: =TY8+TZ7 -> 420 | UA8: =TZ8+UA7 -> 420 | UB8: =UA8+UB7 -> 420 | UC8: =UB8+UC7 -> 420 | UD8: =UC8+UD7 -> 420 | UE8: =UD8+UE7 -> 420 | UF8: =UE8+UF7 -> 420 | UG8: =UF8+UG7 -> 420 | UH8: =UG8+UH7 -> 420 | UI8: =UH8+UI7 -> 420 | UJ8: =UI8+UJ7 -> 420 | UK8: =UJ8+UK7 -> 420 | UL8: =UK8+UL7 -> 420 | UM8: =UL8+UM7 -> 420 | UN8: =UM8+UN7 -> 420 | UO8: =UN8+UO7 -> 420 | UP8: =UO8+UP7 -> 420 | UQ8: =UP8+UQ7 -> 420 | UR8: =UQ8+UR7 -> 420 | US8: =UR8+US7 -> 420 | UT8: =US8+UT7 -> 420 | UU8: =UT8+UU7 -> 420 | UV8: =UU8+UV7 -> 420 | UW8: =UV8+UW7 -> 420 | UX8: =UW8+UX7 -> 420 | UY8: =UX8+UY7 -> 420 | UZ8: =UY8+UZ7 -> 420 | VA8: =UZ8+VA7 -> 420 | VB8: =VA8+VB7 -> 420 | VC8: =VB8+VC7 -> 420 | VD8: =VC8+VD7 -> 420 | VE8: =VD8+VE7 -> 420 | VF8: =VE8+VF7 -> 420 | VG8: =VF8+VG7 -> 420 | VH8: =VG8+VH7 -> 420 | VI8: =VH8+VI7 -> 420 | VJ8: =VI8+VJ7 -> 420 | VK8: =VJ8+VK7 -> 420 | VL8: =VK8+VL7 -> 420 | VM8: =VL8+VM7 -> 420 | VN8: =VM8+VN7 -> 420 | VO8: =VN8+VO7 -> 420 | VP8: =VO8+VP7 -> 420 | VQ8: =VP8+VQ7 -> 420 | VR8: =VQ8+VR7 -> 420 | VS8: =VR8+VS7 -> 420 | VT8: =VS8+VT7 -> 420 | VU8: =VT8+VU7 -> 420 | VV8: =VU8+VV7 -> 420 | VW8: =VV8+VW7 -> 420 | VX8: =VW8+VX7 -> 420 | VY8: =VX8+VY7 -> 420 | VZ8: =VY8+VZ7 -> 420 | WA8: =VZ8+WA7 -> 420 | WB8: =WA8+WB7 -> 420 | WC8: =WB8+WC7 -> 420 | WD8: =WC8+WD7 -> 420 | WE8: =WD8+WE7 -> 420 | WF8: =WE8+WF7 -> 420 | WG8: =WF8+WG7 -> 420 | WH8: =WG8+WH7 -> 420 | WI8: =WH8+WI7 -> 420 | WJ8: =WI8+WJ7 -> 420 | WK8: =WJ8+WK7 -> 420 | WL8: =WK8+WL7 -> 420 | WM8: =WL8+WM7 -> 420 | WN8: =WM8+WN7 -> 420 | WO8: =WN8+WO7 -> 420 | WP8: =WO8+WP7 -> 420 | WQ8: =WP8+WQ7 -> 420 | WR8: =WQ8+WR7 -> 420 | WS8: =WR8+WS7 -> 420 | WT8: =WS8+WT7 -> 420 | WU8: =WT8+WU7 -> 420 | WV8: =WU8+WV7 -> 420 | WW8: =WV8+WW7 -> 420 | WX8: =WW8+WX7 -> 420 | WY8: =WX8+WY7 -> 420 | WZ8: =WY8+WZ7 -> 420 | XA8: =WZ8+XA7 -> 420 | XB8: =XA8+XB7 -> 420 | XC8: =XB8+XC7 -> 420 | XD8: =XC8+XD7 -> 420 | XE8: =XD8+XE7 -> 420 | XF8: =XE8+XF7 -> 420 | XG8: =XF8+XG7 -> 420 | XH8: =XG8+XH7 -> 420 | XI8: =XH8+XI7 -> 420 | XJ8: =XI8+XJ7 -> 420 | XK8: =XJ8+XK7 -> 420 | XL8: =XK8+XL7 -> 420 | XM8: =XL8+XM7 -> 420 | XN8: =XM8+XN7 -> 420 | XO8: =XN8+XO7 -> 420 | XP8: =XO8+XP7 -> 420 | XQ8: =XP8+XQ7 -> 420 | XR8: =XQ8+XR7 -> 420 | XS8: =XR8+XS7 -> 420 | XT8: =XS8+XT7 -> 420 | XU8: =XT8+XU7 -> 420 | XV8: =XU8+XV7 -> 420 | XW8: =XV8+XW7 -> 420 | XX8: =XW8+XX7 -> 420 | XY8: =XX8+XY7 -> 420 | XZ8: =XY8+XZ7 -> 420 | YA8: =XZ8+YA7 -> 420 | YB8: =YA8+YB7 -> 420 | YC8: =YB8+YC7 -> 420 | YD8: =YC8+YD7 -> 420 | YE8: =YD8+YE7 -> 420 | YF8: =YE8+YF7 -> 420 | YG8: =YF8+YG7 -> 420 | YH8: =YG8+YH7 -> 420 | YI8: =YH8+YI7 -> 420 | YJ8: =YI8+YJ7 -> 420 | YK8: =YJ8+YK7 -> 420 | YL8: =YK8+YL7 -> 420 | YM8: =YL8+YM7 -> 420 | YN8: =YM8+YN7 -> 420 | YO8: =YN8+YO7 -> 420 | YP8: =YO8+YP7 -> 420 | YQ8: =YP8+YQ7 -> 420 | YR8: =YQ8+YR7 -> 420 | YS8: =YR8+YS7 -> 420 | YT8: =YS8+YT7 -> 420 | YU8: =YT8+YU7 -> 420 | YV8: =YU8+YV7 -> 420 | YW8: =YV8+YW7 -> 420 | YX8: =YW8+YX7 -> 420 | YY8: =YX8+YY7 -> 420 | YZ8: =YY8+YZ7 -> 420 | ZA8: =YZ8+ZA7 -> 420 | ZB8: =ZA8+ZB7 -> 420 | ZC8: =ZB8+ZC7 -> 420 | ZD8: =ZC8+ZD7 -> 420 | ZE8: =ZD8+ZE7 -> 420 | ZF8: =ZE8+ZF7 -> 420 | ZG8: =ZF8+ZG7 -> 420 | ZH8: =ZG8+ZH7 -> 420 | ZI8: =ZH8+ZI7 -> 420 | ZJ8: =ZI8+ZJ7 -> 420 | ZK8: =ZJ8+ZK7 -> 420 | ZL8: =ZK8+ZL7 -> 420 | ZM8: =ZL8+ZM7 -> 420 | ZN8: =ZM8+ZN7 -> 420 | ZO8: =ZN8+ZO7 -> 420 | ZP8: =ZO8+ZP7 -> 420 | ZQ8: =ZP8+ZQ7 -> 420 | ZR8: =ZQ8+ZR7 -> 420 | ZS8: =ZR8+ZS7 -> 420 | ZT8: =ZS8+ZT7 -> 420 | ZU8: =ZT8+ZU7 -> 420 | ZV8: =ZU8+ZV7 -> 420 | ZW8: =ZV8+ZW7 -> 420 | ZX8: =ZW8+ZX7 -> 420 | ZY8: =ZX8+ZY7 -> 420 | ZZ8: =ZY8+ZZ7 -> 420 | AAA8: =ZZ8+AAA7 -> 420 | AAB8: =AAA8+AAB7 -> 420 | AAC8: =AAB8+AAC7 -> 420 | AAD8: =AAC8+AAD7 -> 420 | AAE8: =AAD8+AAE7 -> 420 | AAF8: =AAE8+AAF7 -> 420 | AAG8: =AAF8+AAG7 -> 420 | AAH8: =AAG8+AAH7 -> 420 | AAI8: =AAH8+AAI7 -> 420 | AAJ8: =AAI8+AAJ7 -> 420 | AAK8: =AAJ8+AAK7 -> 420 | AAL8: =AAK8+AAL7 -> 420 | AAM8: =AAL8+AAM7 -> 420 | AAN8: =AAM8+AAN7 -> 420 | AAO8: =AAN8+AAO7 -> 420 | AAP8: =AAO8+AAP7 -> 420 | AAQ8: =AAP8+AAQ7 -> 420 | AAR8: =AAQ8+AAR7 -> 420 | AAS8: =AAR8+AAS7 -> 420 | AAT8: =AAS8+AAT7 -> 420 | AAU8: =AAT8+AAU7 -> 420 | AAV8: =AAU8+AAV7 -> 420 | AAW8: =AAV8+AAW7 -> 420 | AAX8: =AAW8+AAX7 -> 420 | AAY8: =AAX8+AAY7 -> 420 | AAZ8: =AAY8+AAZ7 -> 420 | ABA8: =AAZ8+ABA7 -> 420 | ABB8: =ABA8+ABB7 -> 420 | ABC8: =ABB8+ABC7 -> 420 | ABD8: =ABC8+ABD7 -> 420 | ABE8: =ABD8+ABE7 -> 420 | ABF8: =ABE8+ABF7 -> 420 | ABG8: =ABF8+ABG7 -> 420 | ABH8: =ABG8+ABH7 -> 420 | ABI8: =ABH8+ABI7 -> 420 | ABJ8: =ABI8+ABJ7 -> 420 | ABK8: =ABJ8+ABK7 -> 420 | ABL8: =ABK8+ABL7 -> 420 | ABM8: =ABL8+ABM7 -> 420 | ABN8: =ABM8+ABN7 -> 420 | ABO8: =ABN8+ABO7 -> 420 | ABP8: =ABO8+ABP7 -> 420 | ABQ8: =ABP8+ABQ7 -> 420 | ABR8: =ABQ8+ABR7 -> 420 | ABS8: =ABR8+ABS7 -> 420 | ABT8: =ABS8+ABT7 -> 420 | ABU8: =ABT8+ABU7 -> 420 | ABV8: =ABU8+ABV7 -> 420 | ABW8: =ABV8+ABW7 -> 420 | ABX8: =ABW8+ABX7 -> 420 | ABY8: =ABX8+ABY7 -> 420 | ABZ8: =ABY8+ABZ7 -> 420
D9: Label
B11: Volumes and Production
C12: Capacity
D13: Solar Capacity | E13: kWac | F13: =INDEX(InputC!I26:AD26,E1) -> 1000 | K13: =$F13*K$7 -> 0 | L13: =$F13*L$7 -> 0 | M13: 0 | N13: 0 | O13: 0 | P13: 0 | Q13: 1000 | R13: 1000 | S13: 1000 | T13: 1000 | U13: 1000 | V13: 1000 | W13: 1000 | X13: 1000 | Y13: 1000 | Z13: 1000 | AA13: 1000 | AB13: 1000 | AC13: 1000 | AD13: 1000 | AE13: 1000 | AF13: 1000 | AG13: 1000 | AH13: 1000 | AI13: 1000 | AJ13: 1000 | AK13: 1000 | AL13: 1000 | AM13: 1000 | AN13: 1000 | AO13: 1000 | AP13: 1000 | AQ13: 1000 | AR13: 1000 | AS13: 1000 | AT13: 1000 | AU13: 1000 | AV13: 1000 | AW13: 1000 | AX13: 1000 | AY13: 1000 | AZ13: 1000 | BA13: 1000 | BB13: 1000 | BC13: 1000 | BD13: 1000 | BE13: 1000 | BF13: 1000 | BG13: 1000 | BH13: 1000 | BI13: 1000 | BJ13: 1000 | BK13: 1000 | BL13: 1000 | BM13: 1000 | BN13: 1000 | BO13: 1000 | BP13: 1000 | BQ13: 1000 | BR13: 1000 | BS13: 1000 | BT13: 1000 | BU13: 1000 | BV13: 1000 | BW13: 1000 | BX13: =$F13*BX$7 -> 1000 | BY13: 1000 | BZ13: 1000 | CA13: 1000 | CB13: 1000 | CC13: 1000 | CD13: 1000 | CE13: 1000 | CF13: 1000 | CG13: 1000 | CH13: 1000 | CI13: 1000 | CJ13: 1000 | CK13: 1000 | CL13: 1000 | CM13: 1000 | CN13: 1000 | CO13: 1000 | CP13: 1000 | CQ13: 1000 | CR13: 1000 | CS13: 1000 | CT13: 1000 | CU13: 1000 | CV13: 1000 | CW13: 1000 | CX13: 1000 | CY13: 1000 | CZ13: 1000 | DA13: 1000 | DB13: 1000 | DC13: 1000 | DD13: 1000 | DE13: 1000 | DF13: 1000 | DG13: 1000 | DH13: 1000 | DI13: 1000 | DJ13: 1000 | DK13: 1000 | DL13: 1000 | DM13: 1000 | DN13: 1000 | DO13: 1000 | DP13: 1000 | DQ13: 1000 | DR13: 1000 | DS13: 1000 | DT13: 1000 | DU13: 1000 | DV13: 1000 | DW13: 1000 | DX13: 1000 | DY13: 1000 | DZ13: 1000 | EA13: 1000 | EB13: 1000 | EC13: 1000 | ED13: 1000 | EE13: 1000 | EF13: 1000 | EG13: 1000 | EH13: 1000 | EI13: 1000 | EJ13: =$F13*EJ$7 -> 1000 | EK13: 1000 | EL13: 1000 | EM13: 1000 | EN13: 1000 | EO13: 1000 | EP13: 1000 | EQ13: 1000 | ER13: 1000 | ES13: 1000 | ET13: 1000 | EU13: 1000 | EV13: 1000 | EW13: 1000 | EX13: 1000 | EY13: 1000 | EZ13: 1000 | FA13: 1000 | FB13: 1000 | FC13: 1000 | FD13: 1000 | FE13: 1000 | FF13: 1000 | FG13: 1000 | FH13: 1000 | FI13: 1000 | FJ13: 1000 | FK13: 1000 | FL13: 1000 | FM13: 1000 | FN13: 1000 | FO13: 1000 | FP13: 1000 | FQ13: 1000 | FR13: 1000 | FS13: 1000 | FT13: 1000 | FU13: 1000 | FV13: 1000 | FW13: 1000 | FX13: 1000 | FY13: 1000 | FZ13: 1000 | GA13: 1000 | GB13: 1000 | GC13: 1000 | GD13: 1000 | GE13: 1000 | GF13: 1000 | GG13: 1000 | GH13: 1000 | GI13: 1000 | GJ13: 1000 | GK13: 1000 | GL13: 1000 | GM13: 1000 | GN13: 1000 | GO13: 1000 | GP13: 1000 | GQ13: 1000 | GR13: 1000 | GS13: 1000 | GT13: 1000 | GU13: 1000 | GV13: =$F13*GV$7 -> 1000 | GW13: 1000 | GX13: 1000 | GY13: 1000 | GZ13: 1000 | HA13: 1000 | HB13: 1000 | HC13: 1000 | HD13: 1000 | HE13: 1000 | HF13: 1000 | HG13: 1000 | HH13: 1000 | HI13: 1000 | HJ13: 1000 | HK13: 1000 | HL13: 1000 | HM13: 1000 | HN13: 1000 | HO13: 1000 | HP13: 1000 | HQ13: 1000 | HR13: 1000 | HS13: 1000 | HT13: 1000 | HU13: 1000 | HV13: 1000 | HW13: 1000 | HX13: 1000 | HY13: 1000 | HZ13: 1000 | IA13: 1000 | IB13: 1000 | IC13: 1000 | ID13: 1000 | IE13: 1000 | IF13: 1000 | IG13: 1000 | IH13: 1000 | II13: 1000 | IJ13: 1000 | IK13: 1000 | IL13: 1000 | IM13: 1000 | IN13: 1000 | IO13: 1000 | IP13: 1000 | IQ13: 1000 | IR13: 1000 | IS13: 1000 | IT13: 1000 | IU13: 1000 | IV13: 1000 | IW13: 1000 | IX13: 1000 | IY13: 1000 | IZ13: 1000 | JA13: 1000 | JB13: 1000 | JC13: 1000 | JD13: 1000 | JE13: 1000 | JF13: 1000 | JG13: 1000 | JH13: =$F13*JH$7 -> 1000 | JI13: 1000 | JJ13: 1000 | JK13: 1000 | JL13: 1000 | JM13: 1000 | JN13: 1000 | JO13: 1000 | JP13: 1000 | JQ13: 1000 | JR13: 1000 | JS13: 1000 | JT13: 1000 | JU13: 1000 | JV13: 1000 | JW13: 1000 | JX13: 1000 | JY13: 1000 | JZ13: 1000 | KA13: 1000 | KB13: 1000 | KC13: 1000 | KD13: 1000 | KE13: 1000 | KF13: 1000 | KG13: 1000 | KH13: 1000 | KI13: 1000 | KJ13: 1000 | KK13: 1000 | KL13: 1000 | KM13: 1000 | KN13: 1000 | KO13: 1000 | KP13: 1000 | KQ13: 1000 | KR13: 1000 | KS13: 1000 | KT13: 1000 | KU13: 1000 | KV13: 1000 | KW13: 1000 | KX13: 1000 | KY13: 1000 | KZ13: 1000 | LA13: 1000 | LB13: 1000 | LC13: 1000 | LD13: 1000 | LE13: 1000 | LF13: 1000 | LG13: 1000 | LH13: 1000 | LI13: 1000 | LJ13: 1000 | LK13: 1000 | LL13: 1000 | LM13: 1000 | LN13: 1000 | LO13: 1000 | LP13: 1000 | LQ13: 1000 | LR13: 1000 | LS13: 1000 | LT13: =$F13*LT$7 -> 1000 | LU13: 1000 | LV13: 1000 | LW13: 1000 | LX13: 1000 | LY13: 1000 | LZ13: 1000 | MA13: 1000 | MB13: 1000 | MC13: 1000 | MD13: 1000 | ME13: 1000 | MF13: 1000 | MG13: 1000 | MH13: 1000 | MI13: 1000 | MJ13: 1000 | MK13: 1000 | ML13: 1000 | MM13: 1000 | MN13: 1000 | MO13: 1000 | MP13: 1000 | MQ13: 1000 | MR13: 1000 | MS13: 1000 | MT13: 1000 | MU13: 1000 | MV13: 1000 | MW13: 1000 | MX13: 1000 | MY13: 1000 | MZ13: 1000 | NA13: 1000 | NB13: 1000 | NC13: 1000 | ND13: 1000 | NE13: 1000 | NF13: 1000 | NG13: 1000 | NH13: 1000 | NI13: 1000 | NJ13: 1000 | NK13: 1000 | NL13: 1000 | NM13: 1000 | NN13: 1000 | NO13: 1000 | NP13: 1000 | NQ13: 1000 | NR13: 1000 | NS13: 1000 | NT13: 1000 | NU13: 1000 | NV13: 1000 | NW13: 1000 | NX13: 1000 | NY13: 1000 | NZ13: 1000 | OA13: 1000 | OB13: 1000 | OC13: 1000 | OD13: 1000 | OE13: 1000 | OF13: =$F13*OF$7 -> 1000 | OG13: 1000 | OH13: 1000 | OI13: 1000 | OJ13: 1000 | OK13: 1000 | OL13: 1000 | OM13: 1000 | ON13: 1000 | OO13: 1000 | OP13: 1000 | OQ13: 1000 | OR13: 1000 | OS13: 1000 | OT13: 1000 | OU13: 1000 | OV13: 1000 | OW13: 1000 | OX13: 1000 | OY13: 1000 | OZ13: 1000 | PA13: 1000 | PB13: 1000 | PC13: 1000 | PD13: 1000 | PE13: 1000 | PF13: 1000 | PG13: 1000 | PH13: 1000 | PI13: 1000 | PJ13: 1000 | PK13: 1000 | PL13: 1000 | PM13: 1000 | PN13: 1000 | PO13: 1000 | PP13: 1000 | PQ13: 1000 | PR13: 1000 | PS13: 1000 | PT13: 1000 | PU13: 0 | PV13: 0 | PW13: 0 | PX13: 0 | PY13: 0 | PZ13: 0 | QA13: 0 | QB13: 0 | QC13: 0 | QD13: 0 | QE13: 0 | QF13: 0 | QG13: 0 | QH13: 0 | QI13: 0 | QJ13: 0 | QK13: 0 | QL13: 0 | QM13: 0 | QN13: 0 | QO13: 0 | QP13: 0 | QQ13: 0 | QR13: =$F13*QR$7 -> 0 | QS13: 0 | QT13: 0 | QU13: 0 | QV13: 0 | QW13: 0 | QX13: 0 | QY13: 0 | QZ13: 0 | RA13: 0 | RB13: 0 | RC13: 0 | RD13: 0 | RE13: 0 | RF13: 0 | RG13: 0 | RH13: 0 | RI13: 0 | RJ13: 0 | RK13: 0 | RL13: 0 | RM13: 0 | RN13: 0 | RO13: 0 | RP13: 0 | RQ13: 0 | RR13: 0 | RS13: 0 | RT13: 0 | RU13: 0 | RV13: 0 | RW13: 0 | RX13: 0 | RY13: 0 | RZ13: 0 | SA13: 0 | SB13: 0 | SC13: 0 | SD13: 0 | SE13: 0 | SF13: 0 | SG13: 0 | SH13: 0 | SI13: 0 | SJ13: 0 | SK13: 0 | SL13: 0 | SM13: 0 | SN13: 0 | SO13: 0 | SP13: 0 | SQ13: 0 | SR13: 0 | SS13: 0 | ST13: 0 | SU13: 0 | SV13: 0 | SW13: 0 | SX13: 0 | SY13: 0 | SZ13: 0 | TA13: 0 | TB13: 0 | TC13: 0 | TD13: =$F13*TD$7 -> 0 | TE13: 0 | TF13: 0 | TG13: 0 | TH13: 0 | TI13: 0 | TJ13: 0 | TK13: 0 | TL13: 0 | TM13: 0 | TN13: 0 | TO13: 0 | TP13: 0 | TQ13: 0 | TR13: 0 | TS13: 0 | TT13: 0 | TU13: 0 | TV13: 0 | TW13: 0 | TX13: 0 | TY13: 0 | TZ13: 0 | UA13: 0 | UB13: 0 | UC13: 0 | UD13: 0 | UE13: 0 | UF13: 0 | UG13: 0 | UH13: 0 | UI13: 0 | UJ13: 0 | UK13: 0 | UL13: 0 | UM13: 0 | UN13: 0 | UO13: 0 | UP13: 0 | UQ13: 0 | UR13: 0 | US13: 0 | UT13: 0 | UU13: 0 | UV13: 0 | UW13: 0 | UX13: 0 | UY13: 0 | UZ13: 0 | VA13: 0 | VB13: 0 | VC13: 0 | VD13: 0 | VE13: 0 | VF13: 0 | VG13: 0 | VH13: 0 | VI13: 0 | VJ13: 0 | VK13: 0 | VL13: 0 | VM13: 0 | VN13: 0 | VO13: 0 | VP13: =$F13*VP$7 -> 0 | VQ13: 0 | VR13: 0 | VS13: 0 | VT13: 0 | VU13: 0 | VV13: 0 | VW13: 0 | VX13: 0 | VY13: 0 | VZ13: 0 | WA13: 0 | WB13: 0 | WC13: 0 | WD13: 0 | WE13: 0 | WF13: 0 | WG13: 0 | WH13: 0 | WI13: 0 | WJ13: 0 | WK13: 0 | WL13: 0 | WM13: 0 | WN13: 0 | WO13: 0 | WP13: 0 | WQ13: 0 | WR13: 0 | WS13: 0 | WT13: 0 | WU13: 0 | WV13: 0 | WW13: 0 | WX13: 0 | WY13: 0 | WZ13: 0 | XA13: 0 | XB13: 0 | XC13: 0 | XD13: 0 | XE13: 0 | XF13: 0 | XG13: 0 | XH13: 0 | XI13: 0 | XJ13: 0 | XK13: 0 | XL13: 0 | XM13: 0 | XN13: 0 | XO13: 0 | XP13: 0 | XQ13: 0 | XR13: 0 | XS13: 0 | XT13: 0 | XU13: 0 | XV13: 0 | XW13: 0 | XX13: 0 | XY13: 0 | XZ13: 0 | YA13: 0 | YB13: =$F13*YB$7 -> 0 | YC13: 0 | YD13: 0 | YE13: 0 | YF13: 0 | YG13: 0 | YH13: 0 | YI13: 0 | YJ13: 0 | YK13: 0 | YL13: 0 | YM13: 0 | YN13: 0 | YO13: 0 | YP13: 0 | YQ13: 0 | YR13: 0 | YS13: 0 | YT13: 0 | YU13: 0 | YV13: 0 | YW13: 0 | YX13: 0 | YY13: 0 | YZ13: 0 | ZA13: 0 | ZB13: 0 | ZC13: 0 | ZD13: 0 | ZE13: 0 | ZF13: 0 | ZG13: 0 | ZH13: 0 | ZI13: 0 | ZJ13: 0 | ZK13: 0 | ZL13: 0 | ZM13: 0 | ZN13: 0 | ZO13: 0 | ZP13: 0 | ZQ13: 0 | ZR13: 0 | ZS13: 0 | ZT13: 0 | ZU13: 0 | ZV13: 0 | ZW13: 0 | ZX13: 0 | ZY13: 0 | ZZ13: 0 | AAA13: 0 | AAB13: 0 | AAC13: 0 | AAD13: 0 | AAE13: 0 | AAF13: 0 | AAG13: 0 | AAH13: 0 | AAI13: 0 | AAJ13: 0 | AAK13: 0 | AAL13: 0 | AAM13: 0 | AAN13: =$F13*AAN$7 -> 0 | AAO13: 0 | AAP13: 0 | AAQ13: 0 | AAR13: 0 | AAS13: 0 | AAT13: 0 | AAU13: 0 | AAV13: 0 | AAW13: 0 | AAX13: 0 | AAY13: 0 | AAZ13: 0 | ABA13: 0 | ABB13: 0 | ABC13: 0 | ABD13: 0 | ABE13: 0 | ABF13: 0 | ABG13: 0 | ABH13: 0 | ABI13: 0 | ABJ13: 0 | ABK13: 0 | ABL13: 0 | ABM13: 0 | ABN13: 0 | ABO13: 0 | ABP13: 0 | ABQ13: 0 | ABR13: 0 | ABS13: 0 | ABT13: 0 | ABU13: 0 | ABV13: 0 | ABW13: 0 | ABX13: 0 | ABY13: 0 | ABZ13: 0
D14: Solar Capacity | E14: kWp | F14: =INDEX(InputC!I24:AD24,E1) -> 1200 | K14: =$F14*K$7 -> 0 | L14: 0 | M14: 0 | N14: 0 | O14: 0 | P14: 0 | Q14: 1200 | R14: 1200 | S14: 1200 | T14: 1200 | U14: 1200 | V14: 1200 | W14: 1200 | X14: 1200 | Y14: 1200 | Z14: 1200 | AA14: 1200 | AB14: 1200 | AC14: 1200 | AD14: 1200 | AE14: 1200 | AF14: 1200 | AG14: 1200 | AH14: 1200 | AI14: 1200 | AJ14: 1200 | AK14: 1200 | AL14: 1200 | AM14: 1200 | AN14: 1200 | AO14: 1200 | AP14: 1200 | AQ14: 1200 | AR14: 1200 | AS14: 1200 | AT14: 1200 | AU14: 1200 | AV14: 1200 | AW14: 1200 | AX14: 1200 | AY14: 1200 | AZ14: 1200 | BA14: 1200 | BB14: 1200 | BC14: 1200 | BD14: 1200 | BE14: 1200 | BF14: 1200 | BG14: 1200 | BH14: 1200 | BI14: 1200 | BJ14: 1200 | BK14: 1200 | BL14: 1200 | BM14: 1200 | BN14: 1200 | BO14: 1200 | BP14: 1200 | BQ14: 1200 | BR14: 1200 | BS14: 1200 | BT14: 1200 | BU14: 1200 | BV14: 1200 | BW14: 1200 | BX14: 1200 | BY14: 1200 | BZ14: 1200 | CA14: 1200 | CB14: 1200 | CC14: 1200 | CD14: 1200 | CE14: 1200 | CF14: 1200 | CG14: 1200 | CH14: 1200 | CI14: 1200 | CJ14: 1200 | CK14: 1200 | CL14: 1200 | CM14: 1200 | CN14: 1200 | CO14: 1200 | CP14: 1200 | CQ14: 1200 | CR14: 1200 | CS14: 1200 | CT14: 1200 | CU14: 1200 | CV14: 1200 | CW14: 1200 | CX14: 1200 | CY14: 1200 | CZ14: 1200 | DA14: 1200 | DB14: 1200 | DC14: 1200 | DD14: 1200 | DE14: 1200 | DF14: 1200 | DG14: 1200 | DH14: 1200 | DI14: 1200 | DJ14: 1200 | DK14: 1200 | DL14: 1200 | DM14: 1200 | DN14: 1200 | DO14: 1200 | DP14: 1200 | DQ14: 1200 | DR14: 1200 | DS14: 1200 | DT14: 1200 | DU14: 1200 | DV14: 1200 | DW14: 1200 | DX14: 1200 | DY14: 1200 | DZ14: 1200 | EA14: 1200 | EB14: 1200 | EC14: 1200 | ED14: 1200 | EE14: 1200 | EF14: 1200 | EG14: 1200 | EH14: 1200 | EI14: 1200 | EJ14: 1200 | EK14: 1200 | EL14: 1200 | EM14: 1200 | EN14: 1200 | EO14: 1200 | EP14: 1200 | EQ14: 1200 | ER14: 1200 | ES14: 1200 | ET14: 1200 | EU14: 1200 | EV14: 1200 | EW14: 1200 | EX14: 1200 | EY14: 1200 | EZ14: 1200 | FA14: 1200 | FB14: 1200 | FC14: 1200 | FD14: 1200 | FE14: 1200 | FF14: 1200 | FG14: 1200 | FH14: 1200 | FI14: 1200 | FJ14: 1200 | FK14: 1200 | FL14: 1200 | FM14: 1200 | FN14: 1200 | FO14: 1200 | FP14: 1200 | FQ14: 1200 | FR14: 1200 | FS14: 1200 | FT14: 1200 | FU14: 1200 | FV14: 1200 | FW14: 1200 | FX14: 1200 | FY14: 1200 | FZ14: 1200 | GA14: 1200 | GB14: 1200 | GC14: 1200 | GD14: 1200 | GE14: 1200 | GF14: 1200 | GG14: 1200 | GH14: 1200 | GI14: 1200 | GJ14: 1200 | GK14: 1200 | GL14: 1200 | GM14: 1200 | GN14: 1200 | GO14: 1200 | GP14: 1200 | GQ14: 1200 | GR14: 1200 | GS14: 1200 | GT14: 1200 | GU14: 1200 | GV14: 1200 | GW14: 1200 | GX14: 1200 | GY14: 1200 | GZ14: 1200 | HA14: 1200 | HB14: 1200 | HC14: 1200 | HD14: 1200 | HE14: 1200 | HF14: 1200 | HG14: 1200 | HH14: 1200 | HI14: 1200 | HJ14: 1200 | HK14: 1200 | HL14: 1200 | HM14: 1200 | HN14: 1200 | HO14: 1200 | HP14: 1200 | HQ14: 1200 | HR14: 1200 | HS14: 1200 | HT14: 1200 | HU14: 1200 | HV14: 1200 | HW14: 1200 | HX14: 1200 | HY14: 1200 | HZ14: 1200 | IA14: 1200 | IB14: 1200 | IC14: 1200 | ID14: 1200 | IE14: 1200 | IF14: 1200 | IG14: 1200 | IH14: 1200 | II14: 1200 | IJ14: 1200 | IK14: 1200 | IL14: 1200 | IM14: 1200 | IN14: 1200 | IO14: 1200 | IP14: 1200 | IQ14: 1200 | IR14: 1200 | IS14: 1200 | IT14: 1200 | IU14: 1200 | IV14: 1200 | IW14: 1200 | IX14: 1200 | IY14: 1200 | IZ14: 1200 | JA14: 1200 | JB14: 1200 | JC14: 1200 | JD14: 1200 | JE14: 1200 | JF14: 1200 | JG14: 1200 | JH14: 1200 | JI14: 1200 | JJ14: 1200 | JK14: 1200 | JL14: 1200 | JM14: 1200 | JN14: 1200 | JO14: 1200 | JP14: 1200 | JQ14: 1200 | JR14: 1200 | JS14: 1200 | JT14: 1200 | JU14: 1200 | JV14: 1200 | JW14: 1200 | JX14: 1200 | JY14: 1200 | JZ14: 1200 | KA14: 1200 | KB14: 1200 | KC14: 1200 | KD14: 1200 | KE14: 1200 | KF14: 1200 | KG14: 1200 | KH14: 1200 | KI14: 1200 | KJ14: 1200 | KK14: 1200 | KL14: 1200 | KM14: 1200 | KN14: 1200 | KO14: 1200 | KP14: 1200 | KQ14: 1200 | KR14: 1200 | KS14: 1200 | KT14: 1200 | KU14: 1200 | KV14: 1200 | KW14: 1200 | KX14: 1200 | KY14: 1200 | KZ14: 1200 | LA14: 1200 | LB14: 1200 | LC14: 1200 | LD14: 1200 | LE14: 1200 | LF14: 1200 | LG14: 1200 | LH14: 1200 | LI14: 1200 | LJ14: 1200 | LK14: 1200 | LL14: 1200 | LM14: 1200 | LN14: 1200 | LO14: 1200 | LP14: 1200 | LQ14: 1200 | LR14: 1200 | LS14: 1200 | LT14: 1200 | LU14: 1200 | LV14: 1200 | LW14: 1200 | LX14: 1200 | LY14: 1200 | LZ14: 1200 | MA14: 1200 | MB14: 1200 | MC14: 1200 | MD14: 1200 | ME14: 1200 | MF14: 1200 | MG14: 1200 | MH14: 1200 | MI14: 1200 | MJ14: 1200 | MK14: 1200 | ML14: 1200 | MM14: 1200 | MN14: 1200 | MO14: 1200 | MP14: 1200 | MQ14: 1200 | MR14: 1200 | MS14: 1200 | MT14: 1200 | MU14: 1200 | MV14: 1200 | MW14: 1200 | MX14: 1200 | MY14: 1200 | MZ14: 1200 | NA14: 1200 | NB14: 1200 | NC14: 1200 | ND14: 1200 | NE14: 1200 | NF14: 1200 | NG14: 1200 | NH14: 1200 | NI14: 1200 | NJ14: 1200 | NK14: 1200 | NL14: 1200 | NM14: 1200 | NN14: 1200 | NO14: 1200 | NP14: 1200 | NQ14: 1200 | NR14: 1200 | NS14: 1200 | NT14: 1200 | NU14: 1200 | NV14: 1200 | NW14: 1200 | NX14: 1200 | NY14: 1200 | NZ14: 1200 | OA14: 1200 | OB14: 1200 | OC14: 1200 | OD14: 1200 | OE14: 1200 | OF14: 1200 | OG14: 1200 | OH14: 1200 | OI14: 1200 | OJ14: 1200 | OK14: 1200 | OL14: 1200 | OM14: 1200 | ON14: 1200 | OO14: 1200 | OP14: 1200 | OQ14: 1200 | OR14: 1200 | OS14: 1200 | OT14: 1200 | OU14: 1200 | OV14: 1200 | OW14: 1200 | OX14: 1200 | OY14: 1200 | OZ14: 1200 | PA14: 1200 | PB14: 1200 | PC14: 1200 | PD14: 1200 | PE14: 1200 | PF14: 1200 | PG14: 1200 | PH14: 1200 | PI14: 1200 | PJ14: 1200 | PK14: 1200 | PL14: 1200 | PM14: 1200 | PN14: 1200 | PO14: 1200 | PP14: 1200 | PQ14: 1200 | PR14: 1200 | PS14: 1200 | PT14: 1200 | PU14: 0 | PV14: 0 | PW14: 0 | PX14: 0 | PY14: 0 | PZ14: 0 | QA14: 0 | QB14: 0 | QC14: 0 | QD14: 0 | QE14: 0 | QF14: 0 | QG14: 0 | QH14: 0 | QI14: 0 | QJ14: 0 | QK14: 0 | QL14: 0 | QM14: 0 | QN14: 0 | QO14: 0 | QP14: 0 | QQ14: 0 | QR14: 0 | QS14: 0 | QT14: 0 | QU14: 0 | QV14: 0 | QW14: 0 | QX14: 0 | QY14: 0 | QZ14: 0 | RA14: 0 | RB14: 0 | RC14: 0 | RD14: 0 | RE14: 0 | RF14: 0 | RG14: 0 | RH14: 0 | RI14: 0 | RJ14: 0 | RK14: 0 | RL14: 0 | RM14: 0 | RN14: 0 | RO14: 0 | RP14: 0 | RQ14: 0 | RR14: 0 | RS14: 0 | RT14: 0 | RU14: 0 | RV14: 0 | RW14: 0 | RX14: 0 | RY14: 0 | RZ14: 0 | SA14: 0 | SB14: 0 | SC14: 0 | SD14: 0 | SE14: 0 | SF14: 0 | SG14: 0 | SH14: 0 | SI14: 0 | SJ14: 0 | SK14: 0 | SL14: 0 | SM14: 0 | SN14: 0 | SO14: 0 | SP14: 0 | SQ14: 0 | SR14: 0 | SS14: 0 | ST14: 0 | SU14: 0 | SV14: 0 | SW14: 0 | SX14: 0 | SY14: 0 | SZ14: 0 | TA14: 0 | TB14: 0 | TC14: 0 | TD14: 0 | TE14: 0 | TF14: 0 | TG14: 0 | TH14: 0 | TI14: 0 | TJ14: 0 | TK14: 0 | TL14: 0 | TM14: 0 | TN14: 0 | TO14: 0 | TP14: 0 | TQ14: 0 | TR14: 0 | TS14: 0 | TT14: 0 | TU14: 0 | TV14: 0 | TW14: 0 | TX14: 0 | TY14: 0 | TZ14: 0 | UA14: 0 | UB14: 0 | UC14: 0 | UD14: 0 | UE14: 0 | UF14: 0 | UG14: 0 | UH14: 0 | UI14: 0 | UJ14: 0 | UK14: 0 | UL14: 0 | UM14: 0 | UN14: 0 | UO14: 0 | UP14: 0 | UQ14: 0 | UR14: 0 | US14: 0 | UT14: 0 | UU14: 0 | UV14: 0 | UW14: 0 | UX14: 0 | UY14: 0 | UZ14: 0 | VA14: 0 | VB14: 0 | VC14: 0 | VD14: 0 | VE14: 0 | VF14: 0 | VG14: 0 | VH14: 0 | VI14: 0 | VJ14: 0 | VK14: 0 | VL14: 0 | VM14: 0 | VN14: 0 | VO14: 0 | VP14: 0 | VQ14: 0 | VR14: 0 | VS14: 0 | VT14: 0 | VU14: 0 | VV14: 0 | VW14: 0 | VX14: 0 | VY14: 0 | VZ14: 0 | WA14: 0 | WB14: 0 | WC14: 0 | WD14: 0 | WE14: 0 | WF14: 0 | WG14: 0 | WH14: 0 | WI14: 0 | WJ14: 0 | WK14: 0 | WL14: 0 | WM14: 0 | WN14: 0 | WO14: 0 | WP14: 0 | WQ14: 0 | WR14: 0 | WS14: 0 | WT14: 0 | WU14: 0 | WV14: 0 | WW14: 0 | WX14: 0 | WY14: 0 | WZ14: 0 | XA14: 0 | XB14: 0 | XC14: 0 | XD14: 0 | XE14: 0 | XF14: 0 | XG14: 0 | XH14: 0 | XI14: 0 | XJ14: 0 | XK14: 0 | XL14: 0 | XM14: 0 | XN14: 0 | XO14: 0 | XP14: 0 | XQ14: 0 | XR14: 0 | XS14: 0 | XT14: 0 | XU14: 0 | XV14: 0 | XW14: 0 | XX14: 0 | XY14: 0 | XZ14: 0 | YA14: 0 | YB14: 0 | YC14: 0 | YD14: 0 | YE14: 0 | YF14: 0 | YG14: 0 | YH14: 0 | YI14: 0 | YJ14: 0 | YK14: 0 | YL14: 0 | YM14: 0 | YN14: 0 | YO14: 0 | YP14: 0 | YQ14: 0 | YR14: 0 | YS14: 0 | YT14: 0 | YU14: 0 | YV14: 0 | YW14: 0 | YX14: 0 | YY14: 0 | YZ14: 0 | ZA14: 0 | ZB14: 0 | ZC14: 0 | ZD14: 0 | ZE14: 0 | ZF14: 0 | ZG14: 0 | ZH14: 0 | ZI14: 0 | ZJ14: 0 | ZK14: 0 | ZL14: 0 | ZM14: 0 | ZN14: 0 | ZO14: 0 | ZP14: 0 | ZQ14: 0 | ZR14: 0 | ZS14: 0 | ZT14: 0 | ZU14: 0 | ZV14: 0 | ZW14: 0 | ZX14: 0 | ZY14: 0 | ZZ14: 0 | AAA14: 0 | AAB14: 0 | AAC14: 0 | AAD14: 0 | AAE14: 0 | AAF14: 0 | AAG14: 0 | AAH14: 0 | AAI14: 0 | AAJ14: 0 | AAK14: 0 | AAL14: 0 | AAM14: 0 | AAN14: 0 | AAO14: 0 | AAP14: 0 | AAQ14: 0 | AAR14: 0 | AAS14: 0 | AAT14: 0 | AAU14: 0 | AAV14: 0 | AAW14: 0 | AAX14: 0 | AAY14: 0 | AAZ14: 0 | ABA14: 0 | ABB14: 0 | ABC14: 0 | ABD14: 0 | ABE14: 0 | ABF14: 0 | ABG14: 0 | ABH14: 0 | ABI14: 0 | ABJ14: 0 | ABK14: 0 | ABL14: 0 | ABM14: 0 | ABN14: 0 | ABO14: 0 | ABP14: 0 | ABQ14: 0 | ABR14: 0 | ABS14: 0 | ABT14: 0 | ABU14: 0 | ABV14: 0 | ABW14: 0 | ABX14: 0 | ABY14: 0 | ABZ14: 0
D15: Wind Capacity | E15: kW | F15: =INDEX(InputC!I30:AD30,E1) -> 0 | K15: 0 | L15: 0 | M15: 0 | N15: 0 | O15: 0 | P15: 0 | Q15: 0 | R15: 0 | S15: 0 | T15: 0 | U15: 0 | V15: 0 | W15: 0 | X15: 0 | Y15: 0 | Z15: 0 | AA15: 0 | AB15: 0 | AC15: 0 | AD15: 0 | AE15: 0 | AF15: 0 | AG15: 0 | AH15: 0 | AI15: 0 | AJ15: 0 | AK15: 0 | AL15: 0 | AM15: 0 | AN15: 0 | AO15: 0 | AP15: 0 | AQ15: 0 | AR15: 0 | AS15: 0 | AT15: 0 | AU15: 0 | AV15: 0 | AW15: 0 | AX15: 0 | AY15: 0 | AZ15: 0 | BA15: 0 | BB15: 0 | BC15: 0 | BD15: 0 | BE15: 0 | BF15: 0 | BG15: 0 | BH15: 0 | BI15: 0 | BJ15: 0 | BK15: 0 | BL15: 0 | BM15: 0 | BN15: 0 | BO15: 0 | BP15: 0 | BQ15: 0 | BR15: 0 | BS15: 0 | BT15: 0 | BU15: 0 | BV15: 0 | BW15: 0 | BX15: 0 | BY15: 0 | BZ15: 0 | CA15: 0 | CB15: 0 | CC15: 0 | CD15: 0 | CE15: 0 | CF15: 0 | CG15: 0 | CH15: 0 | CI15: 0 | CJ15: 0 | CK15: 0 | CL15: 0 | CM15: 0 | CN15: 0 | CO15: 0 | CP15: 0 | CQ15: 0 | CR15: 0 | CS15: 0 | CT15: 0 | CU15: 0 | CV15: 0 | CW15: 0 | CX15: 0 | CY15: 0 | CZ15: 0 | DA15: 0 | DB15: 0 | DC15: 0 | DD15: 0 | DE15: 0 | DF15: 0 | DG15: 0 | DH15: 0 | DI15: 0 | DJ15: 0 | DK15: 0 | DL15: 0 | DM15: 0 | DN15: 0 | DO15: 0 | DP15: 0 | DQ15: 0 | DR15: 0 | DS15: 0 | DT15: 0 | DU15: 0 | DV15: 0 | DW15: 0 | DX15: 0 | DY15: 0 | DZ15: 0 | EA15: 0 | EB15: 0 | EC15: 0 | ED15: 0 | EE15: 0 | EF15: 0 | EG15: 0 | EH15: 0 | EI15: 0 | EJ15: 0 | EK15: 0 | EL15: 0 | EM15: 0 | EN15: 0 | EO15: 0 | EP15: 0 | EQ15: 0 | ER15: 0 | ES15: 0 | ET15: 0 | EU15: 0 | EV15: 0 | EW15: 0 | EX15: 0 | EY15: 0 | EZ15: 0 | FA15: 0 | FB15: 0 | FC15: 0 | FD15: 0 | FE15: 0 | FF15: 0 | FG15: 0 | FH15: 0 | FI15: 0 | FJ15: 0 | FK15: 0 | FL15: 0 | FM15: 0 | FN15: 0 | FO15: 0 | FP15: 0 | FQ15: 0 | FR15: 0 | FS15: 0 | FT15: 0 | FU15: 0 | FV15: 0 | FW15: 0 | FX15: 0 | FY15: 0 | FZ15: 0 | GA15: 0 | GB15: 0 | GC15: 0 | GD15: 0 | GE15: 0 | GF15: 0 | GG15: 0 | GH15: 0 | GI15: 0 | GJ15: 0 | GK15: 0 | GL15: 0 | GM15: 0 | GN15: 0 | GO15: 0 | GP15: 0 | GQ15: 0 | GR15: 0 | GS15: 0 | GT15: 0 | GU15: 0 | GV15: 0 | GW15: 0 | GX15: 0 | GY15: 0 | GZ15: 0 | HA15: 0 | HB15: 0 | HC15: 0 | HD15: 0 | HE15: 0 | HF15: 0 | HG15: 0 | HH15: 0 | HI15: 0 | HJ15: 0 | HK15: 0 | HL15: 0 | HM15: 0 | HN15: 0 | HO15: 0 | HP15: 0 | HQ15: 0 | HR15: 0 | HS15: 0 | HT15: 0 | HU15: 0 | HV15: 0 | HW15: 0 | HX15: 0 | HY15: 0 | HZ15: 0 | IA15: 0 | IB15: 0 | IC15: 0 | ID15: 0 | IE15: 0 | IF15: 0 | IG15: 0 | IH15: 0 | II15: 0 | IJ15: 0 | IK15: 0 | IL15: 0 | IM15: 0 | IN15: 0 | IO15: 0 | IP15: 0 | IQ15: 0 | IR15: 0 | IS15: 0 | IT15: 0 | IU15: 0 | IV15: 0 | IW15: 0 | IX15: 0 | IY15: 0 | IZ15: 0 | JA15: 0 | JB15: 0 | JC15: 0 | JD15: 0 | JE15: 0 | JF15: 0 | JG15: 0 | JH15: 0 | JI15: 0 | JJ15: 0 | JK15: 0 | JL15: 0 | JM15: 0 | JN15: 0 | JO15: 0 | JP15: 0 | JQ15: 0 | JR15: 0 | JS15: 0 | JT15: 0 | JU15: 0 | JV15: 0 | JW15: 0 | JX15: 0 | JY15: 0 | JZ15: 0 | KA15: 0 | KB15: 0 | KC15: 0 | KD15: 0 | KE15: 0 | KF15: 0 | KG15: 0 | KH15: 0 | KI15: 0 | KJ15: 0 | KK15: 0 | KL15: 0 | KM15: 0 | KN15: 0 | KO15: 0 | KP15: 0 | KQ15: 0 | KR15: 0 | KS15: 0 | KT15: 0 | KU15: 0 | KV15: 0 | KW15: 0 | KX15: 0 | KY15: 0 | KZ15: 0 | LA15: 0 | LB15: 0 | LC15: 0 | LD15: 0 | LE15: 0 | LF15: 0 | LG15: 0 | LH15: 0 | LI15: 0 | LJ15: 0 | LK15: 0 | LL15: 0 | LM15: 0 | LN15: 0 | LO15: 0 | LP15: 0 | LQ15: 0 | LR15: 0 | LS15: 0 | LT15: 0 | LU15: 0 | LV15: 0 | LW15: 0 | LX15: 0 | LY15: 0 | LZ15: 0 | MA15: 0 | MB15: 0 | MC15: 0 | MD15: 0 | ME15: 0 | MF15: 0 | MG15: 0 | MH15: 0 | MI15: 0 | MJ15: 0 | MK15: 0 | ML15: 0 | MM15: 0 | MN15: 0 | MO15: 0 | MP15: 0 | MQ15: 0 | MR15: 0 | MS15: 0 | MT15: 0 | MU15: 0 | MV15: 0 | MW15: 0 | MX15: 0 | MY15: 0 | MZ15: 0 | NA15: 0 | NB15: 0 | NC15: 0 | ND15: 0 | NE15: 0 | NF15: 0 | NG15: 0 | NH15: 0 | NI15: 0 | NJ15: 0 | NK15: 0 | NL15: 0 | NM15: 0 | NN15: 0 | NO15: 0 | NP15: 0 | NQ15: 0 | NR15: 0 | NS15: 0 | NT15: 0 | NU15: 0 | NV15: 0 | NW15: 0 | NX15: 0 | NY15: 0 | NZ15: 0 | OA15: 0 | OB15: 0 | OC15: 0 | OD15: 0 | OE15: 0 | OF15: 0 | OG15: 0 | OH15: 0 | OI15: 0 | OJ15: 0 | OK15: 0 | OL15: 0 | OM15: 0 | ON15: 0 | OO15: 0 | OP15: 0 | OQ15: 0 | OR15: 0 | OS15: 0 | OT15: 0 | OU15: 0 | OV15: 0 | OW15: 0 | OX15: 0 | OY15: 0 | OZ15: 0 | PA15: 0 | PB15: 0 | PC15: 0 | PD15: 0 | PE15: 0 | PF15: 0 | PG15: 0 | PH15: 0 | PI15: 0 | PJ15: 0 | PK15: 0 | PL15: 0 | PM15: 0 | PN15: 0 | PO15: 0 | PP15: 0 | PQ15: 0 | PR15: 0 | PS15: 0 | PT15: 0 | PU15: 0 | PV15: 0 | PW15: 0 | PX15: 0 | PY15: 0 | PZ15: 0 | QA15: 0 | QB15: 0 | QC15: 0 | QD15: 0 | QE15: 0 | QF15: 0 | QG15: 0 | QH15: 0 | QI15: 0 | QJ15: 0 | QK15: 0 | QL15: 0 | QM15: 0 | QN15: 0 | QO15: 0 | QP15: 0 | QQ15: 0 | QR15: 0 | QS15: 0 | QT15: 0 | QU15: 0 | QV15: 0 | QW15: 0 | QX15: 0 | QY15: 0 | QZ15: 0 | RA15: 0 | RB15: 0 | RC15: 0 | RD15: 0 | RE15: 0 | RF15: 0 | RG15: 0 | RH15: 0 | RI15: 0 | RJ15: 0 | RK15: 0 | RL15: 0 | RM15: 0 | RN15: 0 | RO15: 0 | RP15: 0 | RQ15: 0 | RR15: 0 | RS15: 0 | RT15: 0 | RU15: 0 | RV15: 0 | RW15: 0 | RX15: 0 | RY15: 0 | RZ15: 0 | SA15: 0 | SB15: 0 | SC15: 0 | SD15: 0 | SE15: 0 | SF15: 0 | SG15: 0 | SH15: 0 | SI15: 0 | SJ15: 0 | SK15: 0 | SL15: 0 | SM15: 0 | SN15: 0 | SO15: 0 | SP15: 0 | SQ15: 0 | SR15: 0 | SS15: 0 | ST15: 0 | SU15: 0 | SV15: 0 | SW15: 0 | SX15: 0 | SY15: 0 | SZ15: 0 | TA15: 0 | TB15: 0 | TC15: 0 | TD15: 0 | TE15: 0 | TF15: 0 | TG15: 0 | TH15: 0 | TI15: 0 | TJ15: 0 | TK15: 0 | TL15: 0 | TM15: 0 | TN15: 0 | TO15: 0 | TP15: 0 | TQ15: 0 | TR15: 0 | TS15: 0 | TT15: 0 | TU15: 0 | TV15: 0 | TW15: 0 | TX15: 0 | TY15: 0 | TZ15: 0 | UA15: 0 | UB15: 0 | UC15: 0 | UD15: 0 | UE15: 0 | UF15: 0 | UG15: 0 | UH15: 0 | UI15: 0 | UJ15: 0 | UK15: 0 | UL15: 0 | UM15: 0 | UN15: 0 | UO15: 0 | UP15: 0 | UQ15: 0 | UR15: 0 | US15: 0 | UT15: 0 | UU15: 0 | UV15: 0 | UW15: 0 | UX15: 0 | UY15: 0 | UZ15: 0 | VA15: 0 | VB15: 0 | VC15: 0 | VD15: 0 | VE15: 0 | VF15: 0 | VG15: 0 | VH15: 0 | VI15: 0 | VJ15: 0 | VK15: 0 | VL15: 0 | VM15: 0 | VN15: 0 | VO15: 0 | VP15: 0 | VQ15: 0 | VR15: 0 | VS15: 0 | VT15: 0 | VU15: 0 | VV15: 0 | VW15: 0 | VX15: 0 | VY15: 0 | VZ15: 0 | WA15: 0 | WB15: 0 | WC15: 0 | WD15: 0 | WE15: 0 | WF15: 0 | WG15: 0 | WH15: 0 | WI15: 0 | WJ15: 0 | WK15: 0 | WL15: 0 | WM15: 0 | WN15: 0 | WO15: 0 | WP15: 0 | WQ15: 0 | WR15: 0 | WS15: 0 | WT15: 0 | WU15: 0 | WV15: 0 | WW15: 0 | WX15: 0 | WY15: 0 | WZ15: 0 | XA15: 0 | XB15: 0 | XC15: 0 | XD15: 0 | XE15: 0 | XF15: 0 | XG15: 0 | XH15: 0 | XI15: 0 | XJ15: 0 | XK15: 0 | XL15: 0 | XM15: 0 | XN15: 0 | XO15: 0 | XP15: 0 | XQ15: 0 | XR15: 0 | XS15: 0 | XT15: 0 | XU15: 0 | XV15: 0 | XW15: 0 | XX15: 0 | XY15: 0 | XZ15: 0 | YA15: 0 | YB15: 0 | YC15: 0 | YD15: 0 | YE15: 0 | YF15: 0 | YG15: 0 | YH15: 0 | YI15: 0 | YJ15: 0 | YK15: 0 | YL15: 0 | YM15: 0 | YN15: 0 | YO15: 0 | YP15: 0 | YQ15: 0 | YR15: 0 | YS15: 0 | YT15: 0 | YU15: 0 | YV15: 0 | YW15: 0 | YX15: 0 | YY15: 0 | YZ15: 0 | ZA15: 0 | ZB15: 0 | ZC15: 0 | ZD15: 0 | ZE15: 0 | ZF15: 0 | ZG15: 0 | ZH15: 0 | ZI15: 0 | ZJ15: 0 | ZK15: 0 | ZL15: 0 | ZM15: 0 | ZN15: 0 | ZO15: 0 | ZP15: 0 | ZQ15: 0 | ZR15: 0 | ZS15: 0 | ZT15: 0 | ZU15: 0 | ZV15: 0 | ZW15: 0 | ZX15: 0 | ZY15: 0 | ZZ15: 0 | AAA15: 0 | AAB15: 0 | AAC15: 0 | AAD15: 0 | AAE15: 0 | AAF15: 0 | AAG15: 0 | AAH15: 0 | AAI15: 0 | AAJ15: 0 | AAK15: 0 | AAL15: 0 | AAM15: 0 | AAN15: 0 | AAO15: 0 | AAP15: 0 | AAQ15: 0 | AAR15: 0 | AAS15: 0 | AAT15: 0 | AAU15: 0 | AAV15: 0 | AAW15: 0 | AAX15: 0 | AAY15: 0 | AAZ15: 0 | ABA15: 0 | ABB15: 0 | ABC15: 0 | ABD15: 0 | ABE15: 0 | ABF15: 0 | ABG15: 0 | ABH15: 0 | ABI15: 0 | ABJ15: 0 | ABK15: 0 | ABL15: 0 | ABM15: 0 | ABN15: 0 | ABO15: 0 | ABP15: 0 | ABQ15: 0 | ABR15: 0 | ABS15: 0 | ABT15: 0 | ABU15: 0 | ABV15: 0 | ABW15: 0 | ABX15: 0 | ABY15: 0 | ABZ15: 0
D16: Battery Capacity | E16: kWh | F16: =INDEX(InputC!I36:AD36,E1) -> 0 | K16: 0 | L16: 0 | M16: 0 | N16: 0 | O16: 0 | P16: 0 | Q16: 0 | R16: 0 | S16: 0 | T16: 0 | U16: 0 | V16: 0 | W16: 0 | X16: 0 | Y16: 0 | Z16: 0 | AA16: 0 | AB16: 0 | AC16: 0 | AD16: 0 | AE16: 0 | AF16: 0 | AG16: 0 | AH16: 0 | AI16: 0 | AJ16: 0 | AK16: 0 | AL16: 0 | AM16: 0 | AN16: 0 | AO16: 0 | AP16: 0 | AQ16: 0 | AR16: 0 | AS16: 0 | AT16: 0 | AU16: 0 | AV16: 0 | AW16: 0 | AX16: 0 | AY16: 0 | AZ16: 0 | BA16: 0 | BB16: 0 | BC16: 0 | BD16: 0 | BE16: 0 | BF16: 0 | BG16: 0 | BH16: 0 | BI16: 0 | BJ16: 0 | BK16: 0 | BL16: 0 | BM16: 0 | BN16: 0 | BO16: 0 | BP16: 0 | BQ16: 0 | BR16: 0 | BS16: 0 | BT16: 0 | BU16: 0 | BV16: 0 | BW16: =$F16*BW$7 -> 0 | BX16: 0 | BY16: 0 | BZ16: 0 | CA16: 0 | CB16: 0 | CC16: 0 | CD16: 0 | CE16: 0 | CF16: 0 | CG16: 0 | CH16: 0 | CI16: 0 | CJ16: 0 | CK16: 0 | CL16: 0 | CM16: 0 | CN16: 0 | CO16: 0 | CP16: 0 | CQ16: 0 | CR16: 0 | CS16: 0 | CT16: 0 | CU16: 0 | CV16: 0 | CW16: 0 | CX16: 0 | CY16: 0 | CZ16: 0 | DA16: 0 | DB16: 0 | DC16: 0 | DD16: 0 | DE16: 0 | DF16: 0 | DG16: 0 | DH16: 0 | DI16: 0 | DJ16: 0 | DK16: 0 | DL16: 0 | DM16: 0 | DN16: 0 | DO16: 0 | DP16: 0 | DQ16: 0 | DR16: 0 | DS16: 0 | DT16: 0 | DU16: 0 | DV16: 0 | DW16: 0 | DX16: 0 | DY16: 0 | DZ16: 0 | EA16: 0 | EB16: 0 | EC16: 0 | ED16: 0 | EE16: 0 | EF16: 0 | EG16: 0 | EH16: 0 | EI16: =$F16*EI$7 -> 0 | EJ16: 0 | EK16: 0 | EL16: 0 | EM16: 0 | EN16: 0 | EO16: 0 | EP16: 0 | EQ16: 0 | ER16: 0 | ES16: 0 | ET16: 0 | EU16: 0 | EV16: 0 | EW16: 0 | EX16: 0 | EY16: 0 | EZ16: 0 | FA16: 0 | FB16: 0 | FC16: 0 | FD16: 0 | FE16: 0 | FF16: 0 | FG16: 0 | FH16: 0 | FI16: 0 | FJ16: 0 | FK16: 0 | FL16: 0 | FM16: 0 | FN16: 0 | FO16: 0 | FP16: 0 | FQ16: 0 | FR16: 0 | FS16: 0 | FT16: 0 | FU16: 0 | FV16: 0 | FW16: 0 | FX16: 0 | FY16: 0 | FZ16: 0 | GA16: 0 | GB16: 0 | GC16: 0 | GD16: 0 | GE16: 0 | GF16: 0 | GG16: 0 | GH16: 0 | GI16: 0 | GJ16: 0 | GK16: 0 | GL16: 0 | GM16: 0 | GN16: 0 | GO16: 0 | GP16: 0 | GQ16: 0 | GR16: 0 | GS16: 0 | GT16: 0 | GU16: =$F16*GU$7 -> 0 | GV16: 0 | GW16: 0 | GX16: 0 | GY16: 0 | GZ16: 0 | HA16: 0 | HB16: 0 | HC16: 0 | HD16: 0 | HE16: 0 | HF16: 0 | HG16: 0 | HH16: 0 | HI16: 0 | HJ16: 0 | HK16: 0 | HL16: 0 | HM16: 0 | HN16: 0 | HO16: 0 | HP16: 0 | HQ16: 0 | HR16: 0 | HS16: 0 | HT16: 0 | HU16: 0 | HV16: 0 | HW16: 0 | HX16: 0 | HY16: 0 | HZ16: 0 | IA16: 0 | IB16: 0 | IC16: 0 | ID16: 0 | IE16: 0 | IF16: 0 | IG16: 0 | IH16: 0 | II16: 0 | IJ16: 0 | IK16: 0 | IL16: 0 | IM16: 0 | IN16: 0 | IO16: 0 | IP16: 0 | IQ16: 0 | IR16: 0 | IS16: 0 | IT16: 0 | IU16: 0 | IV16: 0 | IW16: 0 | IX16: 0 | IY16: 0 | IZ16: 0 | JA16: 0 | JB16: 0 | JC16: 0 | JD16: 0 | JE16: 0 | JF16: 0 | JG16: =$F16*JG$7 -> 0 | JH16: 0 | JI16: 0 | JJ16: 0 | JK16: 0 | JL16: 0 | JM16: 0 | JN16: 0 | JO16: 0 | JP16: 0 | JQ16: 0 | JR16: 0 | JS16: 0 | JT16: 0 | JU16: 0 | JV16: 0 | JW16: 0 | JX16: 0 | JY16: 0 | JZ16: 0 | KA16: 0 | KB16: 0 | KC16: 0 | KD16: 0 | KE16: 0 | KF16: 0 | KG16: 0 | KH16: 0 | KI16: 0 | KJ16: 0 | KK16: 0 | KL16: 0 | KM16: 0 | KN16: 0 | KO16: 0 | KP16: 0 | KQ16: 0 | KR16: 0 | KS16: 0 | KT16: 0 | KU16: 0 | KV16: 0 | KW16: 0 | KX16: 0 | KY16: 0 | KZ16: 0 | LA16: 0 | LB16: 0 | LC16: 0 | LD16: 0 | LE16: 0 | LF16: 0 | LG16: 0 | LH16: 0 | LI16: 0 | LJ16: 0 | LK16: 0 | LL16: 0 | LM16: 0 | LN16: 0 | LO16: 0 | LP16: 0 | LQ16: 0 | LR16: 0 | LS16: =$F16*LS$7 -> 0 | LT16: 0 | LU16: 0 | LV16: 0 | LW16: 0 | LX16: 0 | LY16: 0 | LZ16: 0 | MA16: 0 | MB16: 0 | MC16: 0 | MD16: 0 | ME16: 0 | MF16: 0 | MG16: 0 | MH16: 0 | MI16: 0 | MJ16: 0 | MK16: 0 | ML16: 0 | MM16: 0 | MN16: 0 | MO16: 0 | MP16: 0 | MQ16: 0 | MR16: 0 | MS16: 0 | MT16: 0 | MU16: 0 | MV16: 0 | MW16: 0 | MX16: 0 | MY16: 0 | MZ16: 0 | NA16: 0 | NB16: 0 | NC16: 0 | ND16: 0 | NE16: 0 | NF16: 0 | NG16: 0 | NH16: 0 | NI16: 0 | NJ16: 0 | NK16: 0 | NL16: 0 | NM16: 0 | NN16: 0 | NO16: 0 | NP16: 0 | NQ16: 0 | NR16: 0 | NS16: 0 | NT16: 0 | NU16: 0 | NV16: 0 | NW16: 0 | NX16: 0 | NY16: 0 | NZ16: 0 | OA16: 0 | OB16: 0 | OC16: 0 | OD16: 0 | OE16: =$F16*OE$7 -> 0 | OF16: 0 | OG16: 0 | OH16: 0 | OI16: 0 | OJ16: 0 | OK16: 0 | OL16: 0 | OM16: 0 | ON16: 0 | OO16: 0 | OP16: 0 | OQ16: 0 | OR16: 0 | OS16: 0 | OT16: 0 | OU16: 0 | OV16: 0 | OW16: 0 | OX16: 0 | OY16: 0 | OZ16: 0 | PA16: 0 | PB16: 0 | PC16: 0 | PD16: 0 | PE16: 0 | PF16: 0 | PG16: 0 | PH16: 0 | PI16: 0 | PJ16: 0 | PK16: 0 | PL16: 0 | PM16: 0 | PN16: 0 | PO16: 0 | PP16: 0 | PQ16: 0 | PR16: 0 | PS16: 0 | PT16: 0 | PU16: 0 | PV16: 0 | PW16: 0 | PX16: 0 | PY16: 0 | PZ16: 0 | QA16: 0 | QB16: 0 | QC16: 0 | QD16: 0 | QE16: 0 | QF16: 0 | QG16: 0 | QH16: 0 | QI16: 0 | QJ16: 0 | QK16: 0 | QL16: 0 | QM16: 0 | QN16: 0 | QO16: 0 | QP16: 0 | QQ16: =$F16*QQ$7 -> 0 | QR16: 0 | QS16: 0 | QT16: 0 | QU16: 0 | QV16: 0 | QW16: 0 | QX16: 0 | QY16: 0 | QZ16: 0 | RA16: 0 | RB16: 0 | RC16: 0 | RD16: 0 | RE16: 0 | RF16: 0 | RG16: 0 | RH16: 0 | RI16: 0 | RJ16: 0 | RK16: 0 | RL16: 0 | RM16: 0 | RN16: 0 | RO16: 0 | RP16: 0 | RQ16: 0 | RR16: 0 | RS16: 0 | RT16: 0 | RU16: 0 | RV16: 0 | RW16: 0 | RX16: 0 | RY16: 0 | RZ16: 0 | SA16: 0 | SB16: 0 | SC16: 0 | SD16: 0 | SE16: 0 | SF16: 0 | SG16: 0 | SH16: 0 | SI16: 0 | SJ16: 0 | SK16: 0 | SL16: 0 | SM16: 0 | SN16: 0 | SO16: 0 | SP16: 0 | SQ16: 0 | SR16: 0 | SS16: 0 | ST16: 0 | SU16: 0 | SV16: 0 | SW16: 0 | SX16: 0 | SY16: 0 | SZ16: 0 | TA16: 0 | TB16: 0 | TC16: =$F16*TC$7 -> 0 | TD16: 0 | TE16: 0 | TF16: 0 | TG16: 0 | TH16: 0 | TI16: 0 | TJ16: 0 | TK16: 0 | TL16: 0 | TM16: 0 | TN16: 0 | TO16: 0 | TP16: 0 | TQ16: 0 | TR16: 0 | TS16: 0 | TT16: 0 | TU16: 0 | TV16: 0 | TW16: 0 | TX16: 0 | TY16: 0 | TZ16: 0 | UA16: 0 | UB16: 0 | UC16: 0 | UD16: 0 | UE16: 0 | UF16: 0 | UG16: 0 | UH16: 0 | UI16: 0 | UJ16: 0 | UK16: 0 | UL16: 0 | UM16: 0 | UN16: 0 | UO16: 0 | UP16: 0 | UQ16: 0 | UR16: 0 | US16: 0 | UT16: 0 | UU16: 0 | UV16: 0 | UW16: 0 | UX16: 0 | UY16: 0 | UZ16: 0 | VA16: 0 | VB16: 0 | VC16: 0 | VD16: 0 | VE16: 0 | VF16: 0 | VG16: 0 | VH16: 0 | VI16: 0 | VJ16: 0 | VK16: 0 | VL16: 0 | VM16: 0 | VN16: 0 | VO16: =$F16*VO$7 -> 0 | VP16: 0 | VQ16: 0 | VR16: 0 | VS16: 0 | VT16: 0 | VU16: 0 | VV16: 0 | VW16: 0 | VX16: 0 | VY16: 0 | VZ16: 0 | WA16: 0 | WB16: 0 | WC16: 0 | WD16: 0 | WE16: 0 | WF16: 0 | WG16: 0 | WH16: 0 | WI16: 0 | WJ16: 0 | WK16: 0 | WL16: 0 | WM16: 0 | WN16: 0 | WO16: 0 | WP16: 0 | WQ16: 0 | WR16: 0 | WS16: 0 | WT16: 0 | WU16: 0 | WV16: 0 | WW16: 0 | WX16: 0 | WY16: 0 | WZ16: 0 | XA16: 0 | XB16: 0 | XC16: 0 | XD16: 0 | XE16: 0 | XF16: 0 | XG16: 0 | XH16: 0 | XI16: 0 | XJ16: 0 | XK16: 0 | XL16: 0 | XM16: 0 | XN16: 0 | XO16: 0 | XP16: 0 | XQ16: 0 | XR16: 0 | XS16: 0 | XT16: 0 | XU16: 0 | XV16: 0 | XW16: 0 | XX16: 0 | XY16: 0 | XZ16: 0 | YA16: =$F16*YA$7 -> 0 | YB16: 0 | YC16: 0 | YD16: 0 | YE16: 0 | YF16: 0 | YG16: 0 | YH16: 0 | YI16: 0 | YJ16: 0 | YK16: 0 | YL16: 0 | YM16: 0 | YN16: 0 | YO16: 0 | YP16: 0 | YQ16: 0 | YR16: 0 | YS16: 0 | YT16: 0 | YU16: 0 | YV16: 0 | YW16: 0 | YX16: 0 | YY16: 0 | YZ16: 0 | ZA16: 0 | ZB16: 0 | ZC16: 0 | ZD16: 0 | ZE16: 0 | ZF16: 0 | ZG16: 0 | ZH16: 0 | ZI16: 0 | ZJ16: 0 | ZK16: 0 | ZL16: 0 | ZM16: 0 | ZN16: 0 | ZO16: 0 | ZP16: 0 | ZQ16: 0 | ZR16: 0 | ZS16: 0 | ZT16: 0 | ZU16: 0 | ZV16: 0 | ZW16: 0 | ZX16: 0 | ZY16: 0 | ZZ16: 0 | AAA16: 0 | AAB16: 0 | AAC16: 0 | AAD16: 0 | AAE16: 0 | AAF16: 0 | AAG16: 0 | AAH16: 0 | AAI16: 0 | AAJ16: 0 | AAK16: 0 | AAL16: 0 | AAM16: =$F16*AAM$7 -> 0 | AAN16: 0 | AAO16: 0 | AAP16: 0 | AAQ16: 0 | AAR16: 0 | AAS16: 0 | AAT16: 0 | AAU16: 0 | AAV16: 0 | AAW16: 0 | AAX16: 0 | AAY16: 0 | AAZ16: 0 | ABA16: 0 | ABB16: 0 | ABC16: 0 | ABD16: 0 | ABE16: 0 | ABF16: 0 | ABG16: 0 | ABH16: 0 | ABI16: 0 | ABJ16: 0 | ABK16: 0 | ABL16: 0 | ABM16: 0 | ABN16: 0 | ABO16: 0 | ABP16: 0 | ABQ16: 0 | ABR16: 0 | ABS16: 0 | ABT16: 0 | ABU16: 0 | ABV16: 0 | ABW16: 0 | ABX16: 0 | ABY16: 0 | ABZ16: 0
C18: Annual Yield/Capacity Factor
D19: Solar Yield | E19: kWh/kWp | F19: =INDEX(InputC!I27:AD27,E1) -> 2102.4 | K19: =$F19*K$7 -> 0 | L19: =$F19*L$7 -> 0 | M19: 0 | N19: 0 | O19: 0 | P19: 0 | Q19: 2102.4 | R19: 2102.4 | S19: 2102.4 | T19: 2102.4 | U19: 2102.4 | V19: 2102.4 | W19: 2102.4 | X19: 2102.4 | Y19: 2102.4 | Z19: 2102.4 | AA19: 2102.4 | AB19: 2102.4 | AC19: 2102.4 | AD19: 2102.4 | AE19: 2102.4 | AF19: 2102.4 | AG19: 2102.4 | AH19: 2102.4 | AI19: 2102.4 | AJ19: 2102.4 | AK19: 2102.4 | AL19: 2102.4 | AM19: 2102.4 | AN19: 2102.4 | AO19: 2102.4 | AP19: 2102.4 | AQ19: 2102.4 | AR19: 2102.4 | AS19: 2102.4 | AT19: 2102.4 | AU19: 2102.4 | AV19: 2102.4 | AW19: 2102.4 | AX19: 2102.4 | AY19: 2102.4 | AZ19: 2102.4 | BA19: 2102.4 | BB19: 2102.4 | BC19: 2102.4 | BD19: 2102.4 | BE19: 2102.4 | BF19: 2102.4 | BG19: 2102.4 | BH19: 2102.4 | BI19: 2102.4 | BJ19: 2102.4 | BK19: 2102.4 | BL19: 2102.4 | BM19: 2102.4 | BN19: 2102.4 | BO19: 2102.4 | BP19: 2102.4 | BQ19: 2102.4 | BR19: 2102.4 | BS19: 2102.4 | BT19: 2102.4 | BU19: 2102.4 | BV19: 2102.4 | BW19: 2102.4 | BX19: =$F19*BX$7 -> 2102.4 | BY19: 2102.4 | BZ19: 2102.4 | CA19: 2102.4 | CB19: 2102.4 | CC19: 2102.4 | CD19: 2102.4 | CE19: 2102.4 | CF19: 2102.4 | CG19: 2102.4 | CH19: 2102.4 | CI19: 2102.4 | CJ19: 2102.4 | CK19: 2102.4 | CL19: 2102.4 | CM19: 2102.4 | CN19: 2102.4 | CO19: 2102.4 | CP19: 2102.4 | CQ19: 2102.4 | CR19: 2102.4 | CS19: 2102.4 | CT19: 2102.4 | CU19: 2102.4 | CV19: 2102.4 | CW19: 2102.4 | CX19: 2102.4 | CY19: 2102.4 | CZ19: 2102.4 | DA19: 2102.4 | DB19: 2102.4 | DC19: 2102.4 | DD19: 2102.4 | DE19: 2102.4 | DF19: 2102.4 | DG19: 2102.4 | DH19: 2102.4 | DI19: 2102.4 | DJ19: 2102.4 | DK19: 2102.4 | DL19: 2102.4 | DM19: 2102.4 | DN19: 2102.4 | DO19: 2102.4 | DP19: 2102.4 | DQ19: 2102.4 | DR19: 2102.4 | DS19: 2102.4 | DT19: 2102.4 | DU19: 2102.4 | DV19: 2102.4 | DW19: 2102.4 | DX19: 2102.4 | DY19: 2102.4 | DZ19: 2102.4 | EA19: 2102.4 | EB19: 2102.4 | EC19: 2102.4 | ED19: 2102.4 | EE19: 2102.4 | EF19: 2102.4 | EG19: 2102.4 | EH19: 2102.4 | EI19: 2102.4 | EJ19: =$F19*EJ$7 -> 2102.4 | EK19: 2102.4 | EL19: 2102.4 | EM19: 2102.4 | EN19: 2102.4 | EO19: 2102.4 | EP19: 2102.4 | EQ19: 2102.4 | ER19: 2102.4 | ES19: 2102.4 | ET19: 2102.4 | EU19: 2102.4 | EV19: 2102.4 | EW19: 2102.4 | EX19: 2102.4 | EY19: 2102.4 | EZ19: 2102.4 | FA19: 2102.4 | FB19: 2102.4 | FC19: 2102.4 | FD19: 2102.4 | FE19: 2102.4 | FF19: 2102.4 | FG19: 2102.4 | FH19: 2102.4 | FI19: 2102.4 | FJ19: 2102.4 | FK19: 2102.4 | FL19: 2102.4 | FM19: 2102.4 | FN19: 2102.4 | FO19: 2102.4 | FP19: 2102.4 | FQ19: 2102.4 | FR19: 2102.4 | FS19: 2102.4 | FT19: 2102.4 | FU19: 2102.4 | FV19: 2102.4 | FW19: 2102.4 | FX19: 2102.4 | FY19: 2102.4 | FZ19: 2102.4 | GA19: 2102.4 | GB19: 2102.4 | GC19: 2102.4 | GD19: 2102.4 | GE19: 2102.4 | GF19: 2102.4 | GG19: 2102.4 | GH19: 2102.4 | GI19: 2102.4 | GJ19: 2102.4 | GK19: 2102.4 | GL19: 2102.4 | GM19: 2102.4 | GN19: 2102.4 | GO19: 2102.4 | GP19: 2102.4 | GQ19: 2102.4 | GR19: 2102.4 | GS19: 2102.4 | GT19: 2102.4 | GU19: 2102.4 | GV19: =$F19*GV$7 -> 2102.4 | GW19: 2102.4 | GX19: 2102.4 | GY19: 2102.4 | GZ19: 2102.4 | HA19: 2102.4 | HB19: 2102.4 | HC19: 2102.4 | HD19: 2102.4 | HE19: 2102.4 | HF19: 2102.4 | HG19: 2102.4 | HH19: 2102.4 | HI19: 2102.4 | HJ19: 2102.4 | HK19: 2102.4 | HL19: 2102.4 | HM19: 2102.4 | HN19: 2102.4 | HO19: 2102.4 | HP19: 2102.4 | HQ19: 2102.4 | HR19: 2102.4 | HS19: 2102.4 | HT19: 2102.4 | HU19: 2102.4 | HV19: 2102.4 | HW19: 2102.4 | HX19: 2102.4 | HY19: 2102.4 | HZ19: 2102.4 | IA19: 2102.4 | IB19: 2102.4 | IC19: 2102.4 | ID19: 2102.4 | IE19: 2102.4 | IF19: 2102.4 | IG19: 2102.4 | IH19: 2102.4 | II19: 2102.4 | IJ19: 2102.4 | IK19: 2102.4 | IL19: 2102.4 | IM19: 2102.4 | IN19: 2102.4 | IO19: 2102.4 | IP19: 2102.4 | IQ19: 2102.4 | IR19: 2102.4 | IS19: 2102.4 | IT19: 2102.4 | IU19: 2102.4 | IV19: 2102.4 | IW19: 2102.4 | IX19: 2102.4 | IY19: 2102.4 | IZ19: 2102.4 | JA19: 2102.4 | JB19: 2102.4 | JC19: 2102.4 | JD19: 2102.4 | JE19: 2102.4 | JF19: 2102.4 | JG19: 2102.4 | JH19: =$F19*JH$7 -> 2102.4 | JI19: 2102.4 | JJ19: 2102.4 | JK19: 2102.4 | JL19: 2102.4 | JM19: 2102.4 | JN19: 2102.4 | JO19: 2102.4 | JP19: 2102.4 | JQ19: 2102.4 | JR19: 2102.4 | JS19: 2102.4 | JT19: 2102.4 | JU19: 2102.4 | JV19: 2102.4 | JW19: 2102.4 | JX19: 2102.4 | JY19: 2102.4 | JZ19: 2102.4 | KA19: 2102.4 | KB19: 2102.4 | KC19: 2102.4 | KD19: 2102.4 | KE19: 2102.4 | KF19: 2102.4 | KG19: 2102.4 | KH19: 2102.4 | KI19: 2102.4 | KJ19: 2102.4 | KK19: 2102.4 | KL19: 2102.4 | KM19: 2102.4 | KN19: 2102.4 | KO19: 2102.4 | KP19: 2102.4 | KQ19: 2102.4 | KR19: 2102.4 | KS19: 2102.4 | KT19: 2102.4 | KU19: 2102.4 | KV19: 2102.4 | KW19: 2102.4 | KX19: 2102.4 | KY19: 2102.4 | KZ19: 2102.4 | LA19: 2102.4 | LB19: 2102.4 | LC19: 2102.4 | LD19: 2102.4 | LE19: 2102.4 | LF19: 2102.4 | LG19: 2102.4 | LH19: 2102.4 | LI19: 2102.4 | LJ19: 2102.4 | LK19: 2102.4 | LL19: 2102.4 | LM19: 2102.4 | LN19: 2102.4 | LO19: 2102.4 | LP19: 2102.4 | LQ19: 2102.4 | LR19: 2102.4 | LS19: 2102.4 | LT19: =$F19*LT$7 -> 2102.4 | LU19: 2102.4 | LV19: 2102.4 | LW19: 2102.4 | LX19: 2102.4 | LY19: 2102.4 | LZ19: 2102.4 | MA19: 2102.4 | MB19: 2102.4 | MC19: 2102.4 | MD19: 2102.4 | ME19: 2102.4 | MF19: 2102.4 | MG19: 2102.4 | MH19: 2102.4 | MI19: 2102.4 | MJ19: 2102.4 | MK19: 2102.4 | ML19: 2102.4 | MM19: 2102.4 | MN19: 2102.4 | MO19: 2102.4 | MP19: 2102.4 | MQ19: 2102.4 | MR19: 2102.4 | MS19: 2102.4 | MT19: 2102.4 | MU19: 2102.4 | MV19: 2102.4 | MW19: 2102.4 | MX19: 2102.4 | MY19: 2102.4 | MZ19: 2102.4 | NA19: 2102.4 | NB19: 2102.4 | NC19: 2102.4 | ND19: 2102.4 | NE19: 2102.4 | NF19: 2102.4 | NG19: 2102.4 | NH19: 2102.4 | NI19: 2102.4 | NJ19: 2102.4 | NK19: 2102.4 | NL19: 2102.4 | NM19: 2102.4 | NN19: 2102.4 | NO19: 2102.4 | NP19: 2102.4 | NQ19: 2102.4 | NR19: 2102.4 | NS19: 2102.4 | NT19: 2102.4 | NU19: 2102.4 | NV19: 2102.4 | NW19: 2102.4 | NX19: 2102.4 | NY19: 2102.4 | NZ19: 2102.4 | OA19: 2102.4 | OB19: 2102.4 | OC19: 2102.4 | OD19: 2102.4 | OE19: 2102.4 | OF19: =$F19*OF$7 -> 2102.4 | OG19: 2102.4 | OH19: 2102.4 | OI19: 2102.4 | OJ19: 2102.4 | OK19: 2102.4 | OL19: 2102.4 | OM19: 2102.4 | ON19: 2102.4 | OO19: 2102.4 | OP19: 2102.4 | OQ19: 2102.4 | OR19: 2102.4 | OS19: 2102.4 | OT19: 2102.4 | OU19: 2102.4 | OV19: 2102.4 | OW19: 2102.4 | OX19: 2102.4 | OY19: 2102.4 | OZ19: 2102.4 | PA19: 2102.4 | PB19: 2102.4 | PC19: 2102.4 | PD19: 2102.4 | PE19: 2102.4 | PF19: 2102.4 | PG19: 2102.4 | PH19: 2102.4 | PI19: 2102.4 | PJ19: 2102.4 | PK19: 2102.4 | PL19: 2102.4 | PM19: 2102.4 | PN19: 2102.4 | PO19: 2102.4 | PP19: 2102.4 | PQ19: 2102.4 | PR19: 2102.4 | PS19: 2102.4 | PT19: 2102.4 | PU19: 0 | PV19: 0 | PW19: 0 | PX19: 0 | PY19: 0 | PZ19: 0 | QA19: 0 | QB19: 0 | QC19: 0 | QD19: 0 | QE19: 0 | QF19: 0 | QG19: 0 | QH19: 0 | QI19: 0 | QJ19: 0 | QK19: 0 | QL19: 0 | QM19: 0 | QN19: 0 | QO19: 0 | QP19: 0 | QQ19: 0 | QR19: =$F19*QR$7 -> 0 | QS19: 0 | QT19: 0 | QU19: 0 | QV19: 0 | QW19: 0 | QX19: 0 | QY19: 0 | QZ19: 0 | RA19: 0 | RB19: 0 | RC19: 0 | RD19: 0 | RE19: 0 | RF19: 0 | RG19: 0 | RH19: 0 | RI19: 0 | RJ19: 0 | RK19: 0 | RL19: 0 | RM19: 0 | RN19: 0 | RO19: 0 | RP19: 0 | RQ19: 0 | RR19: 0 | RS19: 0 | RT19: 0 | RU19: 0 | RV19: 0 | RW19: 0 | RX19: 0 | RY19: 0 | RZ19: 0 | SA19: 0 | SB19: 0 | SC19: 0 | SD19: 0 | SE19: 0 | SF19: 0 | SG19: 0 | SH19: 0 | SI19: 0 | SJ19: 0 | SK19: 0 | SL19: 0 | SM19: 0 | SN19: 0 | SO19: 0 | SP19: 0 | SQ19: 0 | SR19: 0 | SS19: 0 | ST19: 0 | SU19: 0 | SV19: 0 | SW19: 0 | SX19: 0 | SY19: 0 | SZ19: 0 | TA19: 0 | TB19: 0 | TC19: 0 | TD19: =$F19*TD$7 -> 0 | TE19: 0 | TF19: 0 | TG19: 0 | TH19: 0 | TI19: 0 | TJ19: 0 | TK19: 0 | TL19: 0 | TM19: 0 | TN19: 0 | TO19: 0 | TP19: 0 | TQ19: 0 | TR19: 0 | TS19: 0 | TT19: 0 | TU19: 0 | TV19: 0 | TW19: 0 | TX19: 0 | TY19: 0 | TZ19: 0 | UA19: 0 | UB19: 0 | UC19: 0 | UD19: 0 | UE19: 0 | UF19: 0 | UG19: 0 | UH19: 0 | UI19: 0 | UJ19: 0 | UK19: 0 | UL19: 0 | UM19: 0 | UN19: 0 | UO19: 0 | UP19: 0 | UQ19: 0 | UR19: 0 | US19: 0 | UT19: 0 | UU19: 0 | UV19: 0 | UW19: 0 | UX19: 0 | UY19: 0 | UZ19: 0 | VA19: 0 | VB19: 0 | VC19: 0 | VD19: 0 | VE19: 0 | VF19: 0 | VG19: 0 | VH19: 0 | VI19: 0 | VJ19: 0 | VK19: 0 | VL19: 0 | VM19: 0 | VN19: 0 | VO19: 0 | VP19: =$F19*VP$7 -> 0 | VQ19: 0 | VR19: 0 | VS19: 0 | VT19: 0 | VU19: 0 | VV19: 0 | VW19: 0 | VX19: 0 | VY19: 0 | VZ19: 0 | WA19: 0 | WB19: 0 | WC19: 0 | WD19: 0 | WE19: 0 | WF19: 0 | WG19: 0 | WH19: 0 | WI19: 0 | WJ19: 0 | WK19: 0 | WL19: 0 | WM19: 0 | WN19: 0 | WO19: 0 | WP19: 0 | WQ19: 0 | WR19: 0 | WS19: 0 | WT19: 0 | WU19: 0 | WV19: 0 | WW19: 0 | WX19: 0 | WY19: 0 | WZ19: 0 | XA19: 0 | XB19: 0 | XC19: 0 | XD19: 0 | XE19: 0 | XF19: 0 | XG19: 0 | XH19: 0 | XI19: 0 | XJ19: 0 | XK19: 0 | XL19: 0 | XM19: 0 | XN19: 0 | XO19: 0 | XP19: 0 | XQ19: 0 | XR19: 0 | XS19: 0 | XT19: 0 | XU19: 0 | XV19: 0 | XW19: 0 | XX19: 0 | XY19: 0 | XZ19: 0 | YA19: 0 | YB19: =$F19*YB$7 -> 0 | YC19: 0 | YD19: 0 | YE19: 0 | YF19: 0 | YG19: 0 | YH19: 0 | YI19: 0 | YJ19: 0 | YK19: 0 | YL19: 0 | YM19: 0 | YN19: 0 | YO19: 0 | YP19: 0 | YQ19: 0 | YR19: 0 | YS19: 0 | YT19: 0 | YU19: 0 | YV19: 0 | YW19: 0 | YX19: 0 | YY19: 0 | YZ19: 0 | ZA19: 0 | ZB19: 0 | ZC19: 0 | ZD19: 0 | ZE19: 0 | ZF19: 0 | ZG19: 0 | ZH19: 0 | ZI19: 0 | ZJ19: 0 | ZK19: 0 | ZL19: 0 | ZM19: 0 | ZN19: 0 | ZO19: 0 | ZP19: 0 | ZQ19: 0 | ZR19: 0 | ZS19: 0 | ZT19: 0 | ZU19: 0 | ZV19: 0 | ZW19: 0 | ZX19: 0 | ZY19: 0 | ZZ19: 0 | AAA19: 0 | AAB19: 0 | AAC19: 0 | AAD19: 0 | AAE19: 0 | AAF19: 0 | AAG19: 0 | AAH19: 0 | AAI19: 0 | AAJ19: 0 | AAK19: 0 | AAL19: 0 | AAM19: 0 | AAN19: =$F19*AAN$7 -> 0 | AAO19: 0 | AAP19: 0 | AAQ19: 0 | AAR19: 0 | AAS19: 0 | AAT19: 0 | AAU19: 0 | AAV19: 0 | AAW19: 0 | AAX19: 0 | AAY19: 0 | AAZ19: 0 | ABA19: 0 | ABB19: 0 | ABC19: 0 | ABD19: 0 | ABE19: 0 | ABF19: 0 | ABG19: 0 | ABH19: 0 | ABI19: 0 | ABJ19: 0 | ABK19: 0 | ABL19: 0 | ABM19: 0 | ABN19: 0 | ABO19: 0 | ABP19: 0 | ABQ19: 0 | ABR19: 0 | ABS19: 0 | ABT19: 0 | ABU19: 0 | ABV19: 0 | ABW19: 0 | ABX19: 0 | ABY19: 0 | ABZ19: 0
D20: Wind Capacity Factor | E20: % | F20: =INDEX(InputC!I31:AD31,E1) -> 0 | K20: =$F20*K$7 -> 0 | L20: 0 | M20: 0 | N20: 0 | O20: 0 | P20: 0 | Q20: 0 | R20: 0 | S20: 0 | T20: 0 | U20: 0 | V20: 0 | W20: 0 | X20: 0 | Y20: 0 | Z20: 0 | AA20: 0 | AB20: 0 | AC20: 0 | AD20: 0 | AE20: 0 | AF20: 0 | AG20: 0 | AH20: 0 | AI20: 0 | AJ20: 0 | AK20: 0 | AL20: 0 | AM20: 0 | AN20: 0 | AO20: 0 | AP20: 0 | AQ20: 0 | AR20: 0 | AS20: 0 | AT20: 0 | AU20: 0 | AV20: 0 | AW20: 0 | AX20: 0 | AY20: 0 | AZ20: 0 | BA20: 0 | BB20: 0 | BC20: 0 | BD20: 0 | BE20: 0 | BF20: 0 | BG20: 0 | BH20: 0 | BI20: 0 | BJ20: 0 | BK20: 0 | BL20: 0 | BM20: 0 | BN20: 0 | BO20: 0 | BP20: 0 | BQ20: 0 | BR20: 0 | BS20: 0 | BT20: 0 | BU20: 0 | BV20: 0 | BW20: 0 | BX20: 0 | BY20: 0 | BZ20: 0 | CA20: 0 | CB20: 0 | CC20: 0 | CD20: 0 | CE20: 0 | CF20: 0 | CG20: 0 | CH20: 0 | CI20: 0 | CJ20: 0 | CK20: 0 | CL20: 0 | CM20: 0 | CN20: 0 | CO20: 0 | CP20: 0 | CQ20: 0 | CR20: 0 | CS20: 0 | CT20: 0 | CU20: 0 | CV20: 0 | CW20: 0 | CX20: 0 | CY20: 0 | CZ20: 0 | DA20: 0 | DB20: 0 | DC20: 0 | DD20: 0 | DE20: 0 | DF20: 0 | DG20: 0 | DH20: 0 | DI20: 0 | DJ20: 0 | DK20: 0 | DL20: 0 | DM20: 0 | DN20: 0 | DO20: 0 | DP20: 0 | DQ20: 0 | DR20: 0 | DS20: 0 | DT20: 0 | DU20: 0 | DV20: 0 | DW20: 0 | DX20: 0 | DY20: 0 | DZ20: 0 | EA20: 0 | EB20: 0 | EC20: 0 | ED20: 0 | EE20: 0 | EF20: 0 | EG20: 0 | EH20: 0 | EI20: 0 | EJ20: 0 | EK20: 0 | EL20: 0 | EM20: 0 | EN20: 0 | EO20: 0 | EP20: 0 | EQ20: 0 | ER20: 0 | ES20: 0 | ET20: 0 | EU20: 0 | EV20: 0 | EW20: 0 | EX20: 0 | EY20: 0 | EZ20: 0 | FA20: 0 | FB20: 0 | FC20: 0 | FD20: 0 | FE20: 0 | FF20: 0 | FG20: 0 | FH20: 0 | FI20: 0 | FJ20: 0 | FK20: 0 | FL20: 0 | FM20: 0 | FN20: 0 | FO20: 0 | FP20: 0 | FQ20: 0 | FR20: 0 | FS20: 0 | FT20: 0 | FU20: 0 | FV20: 0 | FW20: 0 | FX20: 0 | FY20: 0 | FZ20: 0 | GA20: 0 | GB20: 0 | GC20: 0 | GD20: 0 | GE20: 0 | GF20: 0 | GG20: 0 | GH20: 0 | GI20: 0 | GJ20: 0 | GK20: 0 | GL20: 0 | GM20: 0 | GN20: 0 | GO20: 0 | GP20: 0 | GQ20: 0 | GR20: 0 | GS20: 0 | GT20: 0 | GU20: 0 | GV20: 0 | GW20: 0 | GX20: 0 | GY20: 0 | GZ20: 0 | HA20: 0 | HB20: 0 | HC20: 0 | HD20: 0 | HE20: 0 | HF20: 0 | HG20: 0 | HH20: 0 | HI20: 0 | HJ20: 0 | HK20: 0 | HL20: 0 | HM20: 0 | HN20: 0 | HO20: 0 | HP20: 0 | HQ20: 0 | HR20: 0 | HS20: 0 | HT20: 0 | HU20: 0 | HV20: 0 | HW20: 0 | HX20: 0 | HY20: 0 | HZ20: 0 | IA20: 0 | IB20: 0 | IC20: 0 | ID20: 0 | IE20: 0 | IF20: 0 | IG20: 0 | IH20: 0 | II20: 0 | IJ20: 0 | IK20: 0 | IL20: 0 | IM20: 0 | IN20: 0 | IO20: 0 | IP20: 0 | IQ20: 0 | IR20: 0 | IS20: 0 | IT20: 0 | IU20: 0 | IV20: 0 | IW20: 0 | IX20: 0 | IY20: 0 | IZ20: 0 | JA20: 0 | JB20: 0 | JC20: 0 | JD20: 0 | JE20: 0 | JF20: 0 | JG20: 0 | JH20: 0 | JI20: 0 | JJ20: 0 | JK20: 0 | JL20: 0 | JM20: 0 | JN20: 0 | JO20: 0 | JP20: 0 | JQ20: 0 | JR20: 0 | JS20: 0 | JT20: 0 | JU20: 0 | JV20: 0 | JW20: 0 | JX20: 0 | JY20: 0 | JZ20: 0 | KA20: 0 | KB20: 0 | KC20: 0 | KD20: 0 | KE20: 0 | KF20: 0 | KG20: 0 | KH20: 0 | KI20: 0 | KJ20: 0 | KK20: 0 | KL20: 0 | KM20: 0 | KN20: 0 | KO20: 0 | KP20: 0 | KQ20: 0 | KR20: 0 | KS20: 0 | KT20: 0 | KU20: 0 | KV20: 0 | KW20: 0 | KX20: 0 | KY20: 0 | KZ20: 0 | LA20: 0 | LB20: 0 | LC20: 0 | LD20: 0 | LE20: 0 | LF20: 0 | LG20: 0 | LH20: 0 | LI20: 0 | LJ20: 0 | LK20: 0 | LL20: 0 | LM20: 0 | LN20: 0 | LO20: 0 | LP20: 0 | LQ20: 0 | LR20: 0 | LS20: 0 | LT20: 0 | LU20: 0 | LV20: 0 | LW20: 0 | LX20: 0 | LY20: 0 | LZ20: 0 | MA20: 0 | MB20: 0 | MC20: 0 | MD20: 0 | ME20: 0 | MF20: 0 | MG20: 0 | MH20: 0 | MI20: 0 | MJ20: 0 | MK20: 0 | ML20: 0 | MM20: 0 | MN20: 0 | MO20: 0 | MP20: 0 | MQ20: 0 | MR20: 0 | MS20: 0 | MT20: 0 | MU20: 0 | MV20: 0 | MW20: 0 | MX20: 0 | MY20: 0 | MZ20: 0 | NA20: 0 | NB20: 0 | NC20: 0 | ND20: 0 | NE20: 0 | NF20: 0 | NG20: 0 | NH20: 0 | NI20: 0 | NJ20: 0 | NK20: 0 | NL20: 0 | NM20: 0 | NN20: 0 | NO20: 0 | NP20: 0 | NQ20: 0 | NR20: 0 | NS20: 0 | NT20: 0 | NU20: 0 | NV20: 0 | NW20: 0 | NX20: 0 | NY20: 0 | NZ20: 0 | OA20: 0 | OB20: 0 | OC20: 0 | OD20: 0 | OE20: 0 | OF20: 0 | OG20: 0 | OH20: 0 | OI20: 0 | OJ20: 0 | OK20: 0 | OL20: 0 | OM20: 0 | ON20: 0 | OO20: 0 | OP20: 0 | OQ20: 0 | OR20: 0 | OS20: 0 | OT20: 0 | OU20: 0 | OV20: 0 | OW20: 0 | OX20: 0 | OY20: 0 | OZ20: 0 | PA20: 0 | PB20: 0 | PC20: 0 | PD20: 0 | PE20: 0 | PF20: 0 | PG20: 0 | PH20: 0 | PI20: 0 | PJ20: 0 | PK20: 0 | PL20: 0 | PM20: 0 | PN20: 0 | PO20: 0 | PP20: 0 | PQ20: 0 | PR20: 0 | PS20: 0 | PT20: 0 | PU20: 0 | PV20: 0 | PW20: 0 | PX20: 0 | PY20: 0 | PZ20: 0 | QA20: 0 | QB20: 0 | QC20: 0 | QD20: 0 | QE20: 0 | QF20: 0 | QG20: 0 | QH20: 0 | QI20: 0 | QJ20: 0 | QK20: 0 | QL20: 0 | QM20: 0 | QN20: 0 | QO20: 0 | QP20: 0 | QQ20: 0 | QR20: 0 | QS20: 0 | QT20: 0 | QU20: 0 | QV20: 0 | QW20: 0 | QX20: 0 | QY20: 0 | QZ20: 0 | RA20: 0 | RB20: 0 | RC20: 0 | RD20: 0 | RE20: 0 | RF20: 0 | RG20: 0 | RH20: 0 | RI20: 0 | RJ20: 0 | RK20: 0 | RL20: 0 | RM20: 0 | RN20: 0 | RO20: 0 | RP20: 0 | RQ20: 0 | RR20: 0 | RS20: 0 | RT20: 0 | RU20: 0 | RV20: 0 | RW20: 0 | RX20: 0 | RY20: 0 | RZ20: 0 | SA20: 0 | SB20: 0 | SC20: 0 | SD20: 0 | SE20: 0 | SF20: 0 | SG20: 0 | SH20: 0 | SI20: 0 | SJ20: 0 | SK20: 0 | SL20: 0 | SM20: 0 | SN20: 0 | SO20: 0 | SP20: 0 | SQ20: 0 | SR20: 0 | SS20: 0 | ST20: 0 | SU20: 0 | SV20: 0 | SW20: 0 | SX20: 0 | SY20: 0 | SZ20: 0 | TA20: 0 | TB20: 0 | TC20: 0 | TD20: 0 | TE20: 0 | TF20: 0 | TG20: 0 | TH20: 0 | TI20: 0 | TJ20: 0 | TK20: 0 | TL20: 0 | TM20: 0 | TN20: 0 | TO20: 0 | TP20: 0 | TQ20: 0 | TR20: 0 | TS20: 0 | TT20: 0 | TU20: 0 | TV20: 0 | TW20: 0 | TX20: 0 | TY20: 0 | TZ20: 0 | UA20: 0 | UB20: 0 | UC20: 0 | UD20: 0 | UE20: 0 | UF20: 0 | UG20: 0 | UH20: 0 | UI20: 0 | UJ20: 0 | UK20: 0 | UL20: 0 | UM20: 0 | UN20: 0 | UO20: 0 | UP20: 0 | UQ20: 0 | UR20: 0 | US20: 0 | UT20: 0 | UU20: 0 | UV20: 0 | UW20: 0 | UX20: 0 | UY20: 0 | UZ20: 0 | VA20: 0 | VB20: 0 | VC20: 0 | VD20: 0 | VE20: 0 | VF20: 0 | VG20: 0 | VH20: 0 | VI20: 0 | VJ20: 0 | VK20: 0 | VL20: 0 | VM20: 0 | VN20: 0 | VO20: 0 | VP20: 0 | VQ20: 0 | VR20: 0 | VS20: 0 | VT20: 0 | VU20: 0 | VV20: 0 | VW20: 0 | VX20: 0 | VY20: 0 | VZ20: 0 | WA20: 0 | WB20: 0 | WC20: 0 | WD20: 0 | WE20: 0 | WF20: 0 | WG20: 0 | WH20: 0 | WI20: 0 | WJ20: 0 | WK20: 0 | WL20: 0 | WM20: 0 | WN20: 0 | WO20: 0 | WP20: 0 | WQ20: 0 | WR20: 0 | WS20: 0 | WT20: 0 | WU20: 0 | WV20: 0 | WW20: 0 | WX20: 0 | WY20: 0 | WZ20: 0 | XA20: 0 | XB20: 0 | XC20: 0 | XD20: 0 | XE20: 0 | XF20: 0 | XG20: 0 | XH20: 0 | XI20: 0 | XJ20: 0 | XK20: 0 | XL20: 0 | XM20: 0 | XN20: 0 | XO20: 0 | XP20: 0 | XQ20: 0 | XR20: 0 | XS20: 0 | XT20: 0 | XU20: 0 | XV20: 0 | XW20: 0 | XX20: 0 | XY20: 0 | XZ20: 0 | YA20: 0 | YB20: 0 | YC20: 0 | YD20: 0 | YE20: 0 | YF20: 0 | YG20: 0 | YH20: 0 | YI20: 0 | YJ20: 0 | YK20: 0 | YL20: 0 | YM20: 0 | YN20: 0 | YO20: 0 | YP20: 0 | YQ20: 0 | YR20: 0 | YS20: 0 | YT20: 0 | YU20: 0 | YV20: 0 | YW20: 0 | YX20: 0 | YY20: 0 | YZ20: 0 | ZA20: 0 | ZB20: 0 | ZC20: 0 | ZD20: 0 | ZE20: 0 | ZF20: 0 | ZG20: 0 | ZH20: 0 | ZI20: 0 | ZJ20: 0 | ZK20: 0 | ZL20: 0 | ZM20: 0 | ZN20: 0 | ZO20: 0 | ZP20: 0 | ZQ20: 0 | ZR20: 0 | ZS20: 0 | ZT20: 0 | ZU20: 0 | ZV20: 0 | ZW20: 0 | ZX20: 0 | ZY20: 0 | ZZ20: 0 | AAA20: 0 | AAB20: 0 | AAC20: 0 | AAD20: 0 | AAE20: 0 | AAF20: 0 | AAG20: 0 | AAH20: 0 | AAI20: 0 | AAJ20: 0 | AAK20: 0 | AAL20: 0 | AAM20: 0 | AAN20: 0 | AAO20: 0 | AAP20: 0 | AAQ20: 0 | AAR20: 0 | AAS20: 0 | AAT20: 0 | AAU20: 0 | AAV20: 0 | AAW20: 0 | AAX20: 0 | AAY20: 0 | AAZ20: 0 | ABA20: 0 | ABB20: 0 | ABC20: 0 | ABD20: 0 | ABE20: 0 | ABF20: 0 | ABG20: 0 | ABH20: 0 | ABI20: 0 | ABJ20: 0 | ABK20: 0 | ABL20: 0 | ABM20: 0 | ABN20: 0 | ABO20: 0 | ABP20: 0 | ABQ20: 0 | ABR20: 0 | ABS20: 0 | ABT20: 0 | ABU20: 0 | ABV20: 0 | ABW20: 0 | ABX20: 0 | ABY20: 0 | ABZ20: 0
D21: Battery Availability | E21: % | F21: =INDEX(InputC!I37:AD37,E1) -> 0 | K21: 0 | L21: 0 | M21: 0 | N21: 0 | O21: 0 | P21: 0 | Q21: 0 | R21: 0 | S21: 0 | T21: 0 | U21: 0 | V21: 0 | W21: 0 | X21: 0 | Y21: 0 | Z21: 0 | AA21: 0 | AB21: 0 | AC21: 0 | AD21: 0 | AE21: 0 | AF21: 0 | AG21: 0 | AH21: 0 | AI21: 0 | AJ21: 0 | AK21: 0 | AL21: 0 | AM21: 0 | AN21: 0 | AO21: 0 | AP21: 0 | AQ21: 0 | AR21: 0 | AS21: 0 | AT21: 0 | AU21: 0 | AV21: 0 | AW21: 0 | AX21: 0 | AY21: 0 | AZ21: 0 | BA21: 0 | BB21: 0 | BC21: 0 | BD21: 0 | BE21: 0 | BF21: 0 | BG21: 0 | BH21: 0 | BI21: 0 | BJ21: 0 | BK21: 0 | BL21: 0 | BM21: 0 | BN21: 0 | BO21: 0 | BP21: 0 | BQ21: 0 | BR21: 0 | BS21: 0 | BT21: 0 | BU21: 0 | BV21: 0 | BW21: 0 | BX21: 0 | BY21: 0 | BZ21: 0 | CA21: 0 | CB21: 0 | CC21: 0 | CD21: 0 | CE21: 0 | CF21: 0 | CG21: 0 | CH21: 0 | CI21: 0 | CJ21: 0 | CK21: 0 | CL21: 0 | CM21: 0 | CN21: 0 | CO21: 0 | CP21: 0 | CQ21: 0 | CR21: 0 | CS21: 0 | CT21: 0 | CU21: 0 | CV21: 0 | CW21: 0 | CX21: 0 | CY21: 0 | CZ21: 0 | DA21: 0 | DB21: 0 | DC21: 0 | DD21: 0 | DE21: 0 | DF21: 0 | DG21: 0 | DH21: 0 | DI21: 0 | DJ21: 0 | DK21: 0 | DL21: 0 | DM21: 0 | DN21: 0 | DO21: 0 | DP21: 0 | DQ21: 0 | DR21: 0 | DS21: 0 | DT21: 0 | DU21: 0 | DV21: 0 | DW21: 0 | DX21: 0 | DY21: 0 | DZ21: 0 | EA21: 0 | EB21: 0 | EC21: 0 | ED21: 0 | EE21: 0 | EF21: 0 | EG21: 0 | EH21: 0 | EI21: 0 | EJ21: 0 | EK21: 0 | EL21: 0 | EM21: 0 | EN21: 0 | EO21: 0 | EP21: 0 | EQ21: 0 | ER21: 0 | ES21: 0 | ET21: 0 | EU21: 0 | EV21: 0 | EW21: 0 | EX21: 0 | EY21: 0 | EZ21: 0 | FA21: 0 | FB21: 0 | FC21: 0 | FD21: 0 | FE21: 0 | FF21: 0 | FG21: 0 | FH21: 0 | FI21: 0 | FJ21: 0 | FK21: 0 | FL21: 0 | FM21: 0 | FN21: 0 | FO21: 0 | FP21: 0 | FQ21: 0 | FR21: 0 | FS21: 0 | FT21: 0 | FU21: 0 | FV21: 0 | FW21: 0 | FX21: 0 | FY21: 0 | FZ21: 0 | GA21: 0 | GB21: 0 | GC21: 0 | GD21: 0 | GE21: 0 | GF21: 0 | GG21: 0 | GH21: 0 | GI21: 0 | GJ21: 0 | GK21: 0 | GL21: 0 | GM21: 0 | GN21: 0 | GO21: 0 | GP21: 0 | GQ21: 0 | GR21: 0 | GS21: 0 | GT21: 0 | GU21: 0 | GV21: 0 | GW21: 0 | GX21: 0 | GY21: 0 | GZ21: 0 | HA21: 0 | HB21: 0 | HC21: 0 | HD21: 0 | HE21: 0 | HF21: 0 | HG21: 0 | HH21: 0 | HI21: 0 | HJ21: 0 | HK21: 0 | HL21: 0 | HM21: 0 | HN21: 0 | HO21: 0 | HP21: 0 | HQ21: 0 | HR21: 0 | HS21: 0 | HT21: 0 | HU21: 0 | HV21: 0 | HW21: 0 | HX21: 0 | HY21: 0 | HZ21: 0 | IA21: 0 | IB21: 0 | IC21: 0 | ID21: 0 | IE21: 0 | IF21: 0 | IG21: 0 | IH21: 0 | II21: 0 | IJ21: 0 | IK21: 0 | IL21: 0 | IM21: 0 | IN21: 0 | IO21: 0 | IP21: 0 | IQ21: 0 | IR21: 0 | IS21: 0 | IT21: 0 | IU21: 0 | IV21: 0 | IW21: 0 | IX21: 0 | IY21: 0 | IZ21: 0 | JA21: 0 | JB21: 0 | JC21: 0 | JD21: 0 | JE21: 0 | JF21: 0 | JG21: 0 | JH21: 0 | JI21: 0 | JJ21: 0 | JK21: 0 | JL21: 0 | JM21: 0 | JN21: 0 | JO21: 0 | JP21: 0 | JQ21: 0 | JR21: 0 | JS21: 0 | JT21: 0 | JU21: 0 | JV21: 0 | JW21: 0 | JX21: 0 | JY21: 0 | JZ21: 0 | KA21: 0 | KB21: 0 | KC21: 0 | KD21: 0 | KE21: 0 | KF21: 0 | KG21: 0 | KH21: 0 | KI21: 0 | KJ21: 0 | KK21: 0 | KL21: 0 | KM21: 0 | KN21: 0 | KO21: 0 | KP21: 0 | KQ21: 0 | KR21: 0 | KS21: 0 | KT21: 0 | KU21: 0 | KV21: 0 | KW21: 0 | KX21: 0 | KY21: 0 | KZ21: 0 | LA21: 0 | LB21: 0 | LC21: 0 | LD21: 0 | LE21: 0 | LF21: 0 | LG21: 0 | LH21: 0 | LI21: 0 | LJ21: 0 | LK21: 0 | LL21: 0 | LM21: 0 | LN21: 0 | LO21: 0 | LP21: 0 | LQ21: 0 | LR21: 0 | LS21: 0 | LT21: 0 | LU21: 0 | LV21: 0 | LW21: 0 | LX21: 0 | LY21: 0 | LZ21: 0 | MA21: 0 | MB21: 0 | MC21: 0 | MD21: 0 | ME21: 0 | MF21: 0 | MG21: 0 | MH21: 0 | MI21: 0 | MJ21: 0 | MK21: 0 | ML21: 0 | MM21: 0 | MN21: 0 | MO21: 0 | MP21: 0 | MQ21: 0 | MR21: 0 | MS21: 0 | MT21: 0 | MU21: 0 | MV21: 0 | MW21: 0 | MX21: 0 | MY21: 0 | MZ21: 0 | NA21: 0 | NB21: 0 | NC21: 0 | ND21: 0 | NE21: 0 | NF21: 0 | NG21: 0 | NH21: 0 | NI21: 0 | NJ21: 0 | NK21: 0 | NL21: 0 | NM21: 0 | NN21: 0 | NO21: 0 | NP21: 0 | NQ21: 0 | NR21: 0 | NS21: 0 | NT21: 0 | NU21: 0 | NV21: 0 | NW21: 0 | NX21: 0 | NY21: 0 | NZ21: 0 | OA21: 0 | OB21: 0 | OC21: 0 | OD21: 0 | OE21: 0 | OF21: 0 | OG21: 0 | OH21: 0 | OI21: 0 | OJ21: 0 | OK21: 0 | OL21: 0 | OM21: 0 | ON21: 0 | OO21: 0 | OP21: 0 | OQ21: 0 | OR21: 0 | OS21: 0 | OT21: 0 | OU21: 0 | OV21: 0 | OW21: 0 | OX21: 0 | OY21: 0 | OZ21: 0 | PA21: 0 | PB21: 0 | PC21: 0 | PD21: 0 | PE21: 0 | PF21: 0 | PG21: 0 | PH21: 0 | PI21: 0 | PJ21: 0 | PK21: 0 | PL21: 0 | PM21: 0 | PN21: 0 | PO21: 0 | PP21: 0 | PQ21: 0 | PR21: 0 | PS21: 0 | PT21: 0 | PU21: 0 | PV21: 0 | PW21: 0 | PX21: 0 | PY21: 0 | PZ21: 0 | QA21: 0 | QB21: 0 | QC21: 0 | QD21: 0 | QE21: 0 | QF21: 0 | QG21: 0 | QH21: 0 | QI21: 0 | QJ21: 0 | QK21: 0 | QL21: 0 | QM21: 0 | QN21: 0 | QO21: 0 | QP21: 0 | QQ21: 0 | QR21: 0 | QS21: 0 | QT21: 0 | QU21: 0 | QV21: 0 | QW21: 0 | QX21: 0 | QY21: 0 | QZ21: 0 | RA21: 0 | RB21: 0 | RC21: 0 | RD21: 0 | RE21: 0 | RF21: 0 | RG21: 0 | RH21: 0 | RI21: 0 | RJ21: 0 | RK21: 0 | RL21: 0 | RM21: 0 | RN21: 0 | RO21: 0 | RP21: 0 | RQ21: 0 | RR21: 0 | RS21: 0 | RT21: 0 | RU21: 0 | RV21: 0 | RW21: 0 | RX21: 0 | RY21: 0 | RZ21: 0 | SA21: 0 | SB21: 0 | SC21: 0 | SD21: 0 | SE21: 0 | SF21: 0 | SG21: 0 | SH21: 0 | SI21: 0 | SJ21: 0 | SK21: 0 | SL21: 0 | SM21: 0 | SN21: 0 | SO21: 0 | SP21: 0 | SQ21: 0 | SR21: 0 | SS21: 0 | ST21: 0 | SU21: 0 | SV21: 0 | SW21: 0 | SX21: 0 | SY21: 0 | SZ21: 0 | TA21: 0 | TB21: 0 | TC21: 0 | TD21: 0 | TE21: 0 | TF21: 0 | TG21: 0 | TH21: 0 | TI21: 0 | TJ21: 0 | TK21: 0 | TL21: 0 | TM21: 0 | TN21: 0 | TO21: 0 | TP21: 0 | TQ21: 0 | TR21: 0 | TS21: 0 | TT21: 0 | TU21: 0 | TV21: 0 | TW21: 0 | TX21: 0 | TY21: 0 | TZ21: 0 | UA21: 0 | UB21: 0 | UC21: 0 | UD21: 0 | UE21: 0 | UF21: 0 | UG21: 0 | UH21: 0 | UI21: 0 | UJ21: 0 | UK21: 0 | UL21: 0 | UM21: 0 | UN21: 0 | UO21: 0 | UP21: 0 | UQ21: 0 | UR21: 0 | US21: 0 | UT21: 0 | UU21: 0 | UV21: 0 | UW21: 0 | UX21: 0 | UY21: 0 | UZ21: 0 | VA21: 0 | VB21: 0 | VC21: 0 | VD21: 0 | VE21: 0 | VF21: 0 | VG21: 0 | VH21: 0 | VI21: 0 | VJ21: 0 | VK21: 0 | VL21: 0 | VM21: 0 | VN21: 0 | VO21: 0 | VP21: 0 | VQ21: 0 | VR21: 0 | VS21: 0 | VT21: 0 | VU21: 0 | VV21: 0 | VW21: 0 | VX21: 0 | VY21: 0 | VZ21: 0 | WA21: 0 | WB21: 0 | WC21: 0 | WD21: 0 | WE21: 0 | WF21: 0 | WG21: 0 | WH21: 0 | WI21: 0 | WJ21: 0 | WK21: 0 | WL21: 0 | WM21: 0 | WN21: 0 | WO21: 0 | WP21: 0 | WQ21: 0 | WR21: 0 | WS21: 0 | WT21: 0 | WU21: 0 | WV21: 0 | WW21: 0 | WX21: 0 | WY21: 0 | WZ21: 0 | XA21: 0 | XB21: 0 | XC21: 0 | XD21: 0 | XE21: 0 | XF21: 0 | XG21: 0 | XH21: 0 | XI21: 0 | XJ21: 0 | XK21: 0 | XL21: 0 | XM21: 0 | XN21: 0 | XO21: 0 | XP21: 0 | XQ21: 0 | XR21: 0 | XS21: 0 | XT21: 0 | XU21: 0 | XV21: 0 | XW21: 0 | XX21: 0 | XY21: 0 | XZ21: 0 | YA21: 0 | YB21: 0 | YC21: 0 | YD21: 0 | YE21: 0 | YF21: 0 | YG21: 0 | YH21: 0 | YI21: 0 | YJ21: 0 | YK21: 0 | YL21: 0 | YM21: 0 | YN21: 0 | YO21: 0 | YP21: 0 | YQ21: 0 | YR21: 0 | YS21: 0 | YT21: 0 | YU21: 0 | YV21: 0 | YW21: 0 | YX21: 0 | YY21: 0 | YZ21: 0 | ZA21: 0 | ZB21: 0 | ZC21: 0 | ZD21: 0 | ZE21: 0 | ZF21: 0 | ZG21: 0 | ZH21: 0 | ZI21: 0 | ZJ21: 0 | ZK21: 0 | ZL21: 0 | ZM21: 0 | ZN21: 0 | ZO21: 0 | ZP21: 0 | ZQ21: 0 | ZR21: 0 | ZS21: 0 | ZT21: 0 | ZU21: 0 | ZV21: 0 | ZW21: 0 | ZX21: 0 | ZY21: 0 | ZZ21: 0 | AAA21: 0 | AAB21: 0 | AAC21: 0 | AAD21: 0 | AAE21: 0 | AAF21: 0 | AAG21: 0 | AAH21: 0 | AAI21: 0 | AAJ21: 0 | AAK21: 0 | AAL21: 0 | AAM21: 0 | AAN21: 0 | AAO21: 0 | AAP21: 0 | AAQ21: 0 | AAR21: 0 | AAS21: 0 | AAT21: 0 | AAU21: 0 | AAV21: 0 | AAW21: 0 | AAX21: 0 | AAY21: 0 | AAZ21: 0 | ABA21: 0 | ABB21: 0 | ABC21: 0 | ABD21: 0 | ABE21: 0 | ABF21: 0 | ABG21: 0 | ABH21: 0 | ABI21: 0 | ABJ21: 0 | ABK21: 0 | ABL21: 0 | ABM21: 0 | ABN21: 0 | ABO21: 0 | ABP21: 0 | ABQ21: 0 | ABR21: 0 | ABS21: 0 | ABT21: 0 | ABU21: 0 | ABV21: 0 | ABW21: 0 | ABX21: 0 | ABY21: 0 | ABZ21: 0
C23: Generation and Availability
D24: Hours in Period | E24: Hours | K24: =(K5-K4+1)*24 -> 744 | L24: 672 | M24: 744 | N24: 720 | O24: 744 | P24: 720 | Q24: 744 | R24: 744 | S24: 720 | T24: 744 | U24: 720 | V24: 744 | W24: 744 | X24: 672 | Y24: 744 | Z24: 720 | AA24: 744 | AB24: 720 | AC24: 744 | AD24: 744 | AE24: 720 | AF24: 744 | AG24: 720 | AH24: 744 | AI24: 744 | AJ24: 672 | AK24: 744 | AL24: 720 | AM24: 744 | AN24: 720 | AO24: 744 | AP24: 744 | AQ24: 720 | AR24: 744 | AS24: 720 | AT24: 744 | AU24: 744 | AV24: 696 | AW24: 744 | AX24: 720 | AY24: 744 | AZ24: 720 | BA24: 744 | BB24: 744 | BC24: 720 | BD24: 744 | BE24: 720 | BF24: 744 | BG24: 744 | BH24: 672 | BI24: 744 | BJ24: 720 | BK24: 744 | BL24: 720 | BM24: 744 | BN24: 744 | BO24: 720 | BP24: 744 | BQ24: 720 | BR24: 744 | BS24: 744 | BT24: 672 | BU24: 744 | BV24: 720 | BW24: =(BW5-BW4+1)*24 -> 744 | BX24: 720 | BY24: 744 | BZ24: 744 | CA24: 720 | CB24: 744 | CC24: 720 | CD24: 744 | CE24: 744 | CF24: 672 | CG24: 744 | CH24: 720 | CI24: 744 | CJ24: 720 | CK24: 744 | CL24: 744 | CM24: 720 | CN24: 744 | CO24: 720 | CP24: 744 | CQ24: 744 | CR24: 696 | CS24: 744 | CT24: 720 | CU24: 744 | CV24: 720 | CW24: 744 | CX24: 744 | CY24: 720 | CZ24: 744 | DA24: 720 | DB24: 744 | DC24: 744 | DD24: 672 | DE24: 744 | DF24: 720 | DG24: 744 | DH24: 720 | DI24: 744 | DJ24: 744 | DK24: 720 | DL24: 744 | DM24: 720 | DN24: 744 | DO24: 744 | DP24: 672 | DQ24: 744 | DR24: 720 | DS24: 744 | DT24: 720 | DU24: 744 | DV24: 744 | DW24: 720 | DX24: 744 | DY24: 720 | DZ24: 744 | EA24: 744 | EB24: 672 | EC24: 744 | ED24: 720 | EE24: 744 | EF24: 720 | EG24: 744 | EH24: 744 | EI24: =(EI5-EI4+1)*24 -> 720 | EJ24: 744 | EK24: 720 | EL24: 744 | EM24: 744 | EN24: 696 | EO24: 744 | EP24: 720 | EQ24: 744 | ER24: 720 | ES24: 744 | ET24: 744 | EU24: 720 | EV24: 744 | EW24: 720 | EX24: 744 | EY24: 744 | EZ24: 672 | FA24: 744 | FB24: 720 | FC24: 744 | FD24: 720 | FE24: 744 | FF24: 744 | FG24: 720 | FH24: 744 | FI24: 720 | FJ24: 744 | FK24: 744 | FL24: 672 | FM24: 744 | FN24: 720 | FO24: 744 | FP24: 720 | FQ24: 744 | FR24: 744 | FS24: 720 | FT24: 744 | FU24: 720 | FV24: 744 | FW24: 744 | FX24: 672 | FY24: 744 | FZ24: 720 | GA24: 744 | GB24: 720 | GC24: 744 | GD24: 744 | GE24: 720 | GF24: 744 | GG24: 720 | GH24: 744 | GI24: 744 | GJ24: 696 | GK24: 744 | GL24: 720 | GM24: 744 | GN24: 720 | GO24: 744 | GP24: 744 | GQ24: 720 | GR24: 744 | GS24: 720 | GT24: 744 | GU24: =(GU5-GU4+1)*24 -> 744 | GV24: 672 | GW24: 744 | GX24: 720 | GY24: 744 | GZ24: 720 | HA24: 744 | HB24: 744 | HC24: 720 | HD24: 744 | HE24: 720 | HF24: 744 | HG24: 744 | HH24: 672 | HI24: 744 | HJ24: 720 | HK24: 744 | HL24: 720 | HM24: 744 | HN24: 744 | HO24: 720 | HP24: 744 | HQ24: 720 | HR24: 744 | HS24: 744 | HT24: 672 | HU24: 744 | HV24: 720 | HW24: 744 | HX24: 720 | HY24: 744 | HZ24: 744 | IA24: 720 | IB24: 744 | IC24: 720 | ID24: 744 | IE24: 744 | IF24: 696 | IG24: 744 | IH24: 720 | II24: 744 | IJ24: 720 | IK24: 744 | IL24: 744 | IM24: 720 | IN24: 744 | IO24: 720 | IP24: 744 | IQ24: 744 | IR24: 672 | IS24: 744 | IT24: 720 | IU24: 744 | IV24: 720 | IW24: 744 | IX24: 744 | IY24: 720 | IZ24: 744 | JA24: 720 | JB24: 744 | JC24: 744 | JD24: 672 | JE24: 744 | JF24: 720 | JG24: =(JG5-JG4+1)*24 -> 744 | JH24: 720 | JI24: 744 | JJ24: 744 | JK24: 720 | JL24: 744 | JM24: 720 | JN24: 744 | JO24: 744 | JP24: 672 | JQ24: 744 | JR24: 720 | JS24: 744 | JT24: 720 | JU24: 744 | JV24: 744 | JW24: 720 | JX24: 744 | JY24: 720 | JZ24: 744 | KA24: 744 | KB24: 696 | KC24: 744 | KD24: 720 | KE24: 744 | KF24: 720 | KG24: 744 | KH24: 744 | KI24: 720 | KJ24: 744 | KK24: 720 | KL24: 744 | KM24: 744 | KN24: 672 | KO24: 744 | KP24: 720 | KQ24: 744 | KR24: 720 | KS24: 744 | KT24: 744 | KU24: 720 | KV24: 744 | KW24: 720 | KX24: 744 | KY24: 744 | KZ24: 672 | LA24: 744 | LB24: 720 | LC24: 744 | LD24: 720 | LE24: 744 | LF24: 744 | LG24: 720 | LH24: 744 | LI24: 720 | LJ24: 744 | LK24: 744 | LL24: 672 | LM24: 744 | LN24: 720 | LO24: 744 | LP24: 720 | LQ24: 744 | LR24: 744 | LS24: =(LS5-LS4+1)*24 -> 720 | LT24: 744 | LU24: 720 | LV24: 744 | LW24: 744 | LX24: 696 | LY24: 744 | LZ24: 720 | MA24: 744 | MB24: 720 | MC24: 744 | MD24: 744 | ME24: 720 | MF24: 744 | MG24: 720 | MH24: 744 | MI24: 744 | MJ24: 672 | MK24: 744 | ML24: 720 | MM24: 744 | MN24: 720 | MO24: 744 | MP24: 744 | MQ24: 720 | MR24: 744 | MS24: 720 | MT24: 744 | MU24: 744 | MV24: 672 | MW24: 744 | MX24: 720 | MY24: 744 | MZ24: 720 | NA24: 744 | NB24: 744 | NC24: 720 | ND24: 744 | NE24: 720 | NF24: 744 | NG24: 744 | NH24: 672 | NI24: 744 | NJ24: 720 | NK24: 744 | NL24: 720 | NM24: 744 | NN24: 744 | NO24: 720 | NP24: 744 | NQ24: 720 | NR24: 744 | NS24: 744 | NT24: 696 | NU24: 744 | NV24: 720 | NW24: 744 | NX24: 720 | NY24: 744 | NZ24: 744 | OA24: 720 | OB24: 744 | OC24: 720 | OD24: 744 | OE24: =(OE5-OE4+1)*24 -> 744 | OF24: 672 | OG24: 744 | OH24: 720 | OI24: 744 | OJ24: 720 | OK24: 744 | OL24: 744 | OM24: 720 | ON24: 744 | OO24: 720 | OP24: 744 | OQ24: 744 | OR24: 672 | OS24: 744 | OT24: 720 | OU24: 744 | OV24: 720 | OW24: 744 | OX24: 744 | OY24: 720 | OZ24: 744 | PA24: 720 | PB24: 744 | PC24: 744 | PD24: 672 | PE24: 744 | PF24: 720 | PG24: 744 | PH24: 720 | PI24: 744 | PJ24: 744 | PK24: 720 | PL24: 744 | PM24: 720 | PN24: 744 | PO24: 744 | PP24: 696 | PQ24: 744 | PR24: 720 | PS24: 744 | PT24: 720 | PU24: 744 | PV24: 744 | PW24: 720 | PX24: 744 | PY24: 720 | PZ24: 744 | QA24: 744 | QB24: 672 | QC24: 744 | QD24: 720 | QE24: 744 | QF24: 720 | QG24: 744 | QH24: 744 | QI24: 720 | QJ24: 744 | QK24: 720 | QL24: 744 | QM24: 744 | QN24: 672 | QO24: 744 | QP24: 720 | QQ24: =(QQ5-QQ4+1)*24 -> 744 | QR24: 720 | QS24: 744 | QT24: 744 | QU24: 720 | QV24: 744 | QW24: 720 | QX24: 744 | QY24: 744 | QZ24: 672 | RA24: 744 | RB24: 720 | RC24: 744 | RD24: 720 | RE24: 744 | RF24: 744 | RG24: 720 | RH24: 744 | RI24: 720 | RJ24: 744 | RK24: 744 | RL24: 696 | RM24: 744 | RN24: 720 | RO24: 744 | RP24: 720 | RQ24: 744 | RR24: 744 | RS24: 720 | RT24: 744 | RU24: 720 | RV24: 744 | RW24: 744 | RX24: 672 | RY24: 744 | RZ24: 720 | SA24: 744 | SB24: 720 | SC24: 744 | SD24: 744 | SE24: 720 | SF24: 744 | SG24: 720 | SH24: 744 | SI24: 744 | SJ24: 672 | SK24: 744 | SL24: 720 | SM24: 744 | SN24: 720 | SO24: 744 | SP24: 744 | SQ24: 720 | SR24: 744 | SS24: 720 | ST24: 744 | SU24: 744 | SV24: 672 | SW24: 744 | SX24: 720 | SY24: 744 | SZ24: 720 | TA24: 744 | TB24: 744 | TC24: =(TC5-TC4+1)*24 -> 720 | TD24: 744 | TE24: 720 | TF24: 744 | TG24: 744 | TH24: 696 | TI24: 744 | TJ24: 720 | TK24: 744 | TL24: 720 | TM24: 744 | TN24: 744 | TO24: 720 | TP24: 744 | TQ24: 720 | TR24: 744 | TS24: 744 | TT24: 672 | TU24: 744 | TV24: 720 | TW24: 744 | TX24: 720 | TY24: 744 | TZ24: 744 | UA24: 720 | UB24: 744 | UC24: 720 | UD24: 744 | UE24: 744 | UF24: 672 | UG24: 744 | UH24: 720 | UI24: 744 | UJ24: 720 | UK24: 744 | UL24: 744 | UM24: 720 | UN24: 744 | UO24: 720 | UP24: 744 | UQ24: 744 | UR24: 672 | US24: 744 | UT24: 720 | UU24: 744 | UV24: 720 | UW24: 744 | UX24: 744 | UY24: 720 | UZ24: 744 | VA24: 720 | VB24: 744 | VC24: 744 | VD24: 696 | VE24: 744 | VF24: 720 | VG24: 744 | VH24: 720 | VI24: 744 | VJ24: 744 | VK24: 720 | VL24: 744 | VM24: 720 | VN24: 744 | VO24: =(VO5-VO4+1)*24 -> 744 | VP24: 672 | VQ24: 744 | VR24: 720 | VS24: 744 | VT24: 720 | VU24: 744 | VV24: 744 | VW24: 720 | VX24: 744 | VY24: 720 | VZ24: 744 | WA24: 744 | WB24: 672 | WC24: 744 | WD24: 720 | WE24: 744 | WF24: 720 | WG24: 744 | WH24: 744 | WI24: 720 | WJ24: 744 | WK24: 720 | WL24: 744 | WM24: 744 | WN24: 672 | WO24: 744 | WP24: 720 | WQ24: 744 | WR24: 720 | WS24: 744 | WT24: 744 | WU24: 720 | WV24: 744 | WW24: 720 | WX24: 744 | WY24: 744 | WZ24: 696 | XA24: 744 | XB24: 720 | XC24: 744 | XD24: 720 | XE24: 744 | XF24: 744 | XG24: 720 | XH24: 744 | XI24: 720 | XJ24: 744 | XK24: 744 | XL24: 672 | XM24: 744 | XN24: 720 | XO24: 744 | XP24: 720 | XQ24: 744 | XR24: 744 | XS24: 720 | XT24: 744 | XU24: 720 | XV24: 744 | XW24: 744 | XX24: 672 | XY24: 744 | XZ24: 720 | YA24: =(YA5-YA4+1)*24 -> 744 | YB24: 720 | YC24: 744 | YD24: 744 | YE24: 720 | YF24: 744 | YG24: 720 | YH24: 744 | YI24: 744 | YJ24: 672 | YK24: 744 | YL24: 720 | YM24: 744 | YN24: 720 | YO24: 744 | YP24: 744 | YQ24: 720 | YR24: 744 | YS24: 720 | YT24: 744 | YU24: 744 | YV24: 696 | YW24: 744 | YX24: 720 | YY24: 744 | YZ24: 720 | ZA24: 744 | ZB24: 744 | ZC24: 720 | ZD24: 744 | ZE24: 720 | ZF24: 744 | ZG24: 744 | ZH24: 672 | ZI24: 744 | ZJ24: 720 | ZK24: 744 | ZL24: 720 | ZM24: 744 | ZN24: 744 | ZO24: 720 | ZP24: 744 | ZQ24: 720 | ZR24: 744 | ZS24: 744 | ZT24: 672 | ZU24: 744 | ZV24: 720 | ZW24: 744 | ZX24: 720 | ZY24: 744 | ZZ24: 744 | AAA24: 720 | AAB24: 744 | AAC24: 720 | AAD24: 744 | AAE24: 744 | AAF24: 672 | AAG24: 744 | AAH24: 720 | AAI24: 744 | AAJ24: 720 | AAK24: 744 | AAL24: 744 | AAM24: =(AAM5-AAM4+1)*24 -> 720 | AAN24: 744 | AAO24: 720 | AAP24: 744 | AAQ24: 744 | AAR24: 696 | AAS24: 744 | AAT24: 720 | AAU24: 744 | AAV24: 720 | AAW24: 744 | AAX24: 744 | AAY24: 720 | AAZ24: 744 | ABA24: 720 | ABB24: 744 | ABC24: 744 | ABD24: 672 | ABE24: 744 | ABF24: 720 | ABG24: 744 | ABH24: 720 | ABI24: 744 | ABJ24: 744 | ABK24: 720 | ABL24: 744 | ABM24: 720 | ABN24: 744 | ABO24: 744 | ABP24: 672 | ABQ24: 744 | ABR24: 720 | ABS24: 744 | ABT24: 720 | ABU24: 744 | ABV24: 744 | ABW24: 720 | ABX24: 744 | ABY24: 720 | ABZ24: 744
D26: Solar Generation Before Degradation | E26: kWh | K26: =K14*K19/8760*K24 -> 0 | L26: =L14*L19/8760*L24 -> 0 | M26: 0 | N26: 0 | O26: 0 | P26: 0 | Q26: 214272 | R26: 214272 | S26: 207360 | T26: 214272 | U26: 207360 | V26: 214272 | W26: 214272 | X26: 193536 | Y26: 214272 | Z26: 207360 | AA26: 214272 | AB26: 207360 | AC26: 214272 | AD26: 214272 | AE26: 207360 | AF26: 214272 | AG26: 207360 | AH26: 214272 | AI26: 214272 | AJ26: 193536 | AK26: 214272 | AL26: 207360 | AM26: 214272 | AN26: 207360 | AO26: 214272 | AP26: 214272 | AQ26: 207360 | AR26: 214272 | AS26: 207360 | AT26: 214272 | AU26: 214272 | AV26: 200448 | AW26: 214272 | AX26: 207360 | AY26: 214272 | AZ26: 207360 | BA26: 214272 | BB26: 214272 | BC26: 207360 | BD26: 214272 | BE26: 207360 | BF26: 214272 | BG26: 214272 | BH26: 193536 | BI26: 214272 | BJ26: 207360 | BK26: 214272 | BL26: 207360 | BM26: 214272 | BN26: 214272 | BO26: 207360 | BP26: 214272 | BQ26: 207360 | BR26: 214272 | BS26: 214272 | BT26: 193536 | BU26: 214272 | BV26: 207360 | BW26: 214272 | BX26: =BX14*BX19/8760*BX24 -> 207360 | BY26: 214272 | BZ26: 214272 | CA26: 207360 | CB26: 214272 | CC26: 207360 | CD26: 214272 | CE26: 214272 | CF26: 193536 | CG26: 214272 | CH26: 207360 | CI26: 214272 | CJ26: 207360 | CK26: 214272 | CL26: 214272 | CM26: 207360 | CN26: 214272 | CO26: 207360 | CP26: 214272 | CQ26: 214272 | CR26: 200448 | CS26: 214272 | CT26: 207360 | CU26: 214272 | CV26: 207360 | CW26: 214272 | CX26: 214272 | CY26: 207360 | CZ26: 214272 | DA26: 207360 | DB26: 214272 | DC26: 214272 | DD26: 193536 | DE26: 214272 | DF26: 207360 | DG26: 214272 | DH26: 207360 | DI26: 214272 | DJ26: 214272 | DK26: 207360 | DL26: 214272 | DM26: 207360 | DN26: 214272 | DO26: 214272 | DP26: 193536 | DQ26: 214272 | DR26: 207360 | DS26: 214272 | DT26: 207360 | DU26: 214272 | DV26: 214272 | DW26: 207360 | DX26: 214272 | DY26: 207360 | DZ26: 214272 | EA26: 214272 | EB26: 193536 | EC26: 214272 | ED26: 207360 | EE26: 214272 | EF26: 207360 | EG26: 214272 | EH26: 214272 | EI26: 207360 | EJ26: =EJ14*EJ19/8760*EJ24 -> 214272 | EK26: 207360 | EL26: 214272 | EM26: 214272 | EN26: 200448 | EO26: 214272 | EP26: 207360 | EQ26: 214272 | ER26: 207360 | ES26: 214272 | ET26: 214272 | EU26: 207360 | EV26: 214272 | EW26: 207360 | EX26: 214272 | EY26: 214272 | EZ26: 193536 | FA26: 214272 | FB26: 207360 | FC26: 214272 | FD26: 207360 | FE26: 214272 | FF26: 214272 | FG26: 207360 | FH26: 214272 | FI26: 207360 | FJ26: 214272 | FK26: 214272 | FL26: 193536 | FM26: 214272 | FN26: 207360 | FO26: 214272 | FP26: 207360 | FQ26: 214272 | FR26: 214272 | FS26: 207360 | FT26: 214272 | FU26: 207360 | FV26: 214272 | FW26: 214272 | FX26: 193536 | FY26: 214272 | FZ26: 207360 | GA26: 214272 | GB26: 207360 | GC26: 214272 | GD26: 214272 | GE26: 207360 | GF26: 214272 | GG26: 207360 | GH26: 214272 | GI26: 214272 | GJ26: 200448 | GK26: 214272 | GL26: 207360 | GM26: 214272 | GN26: 207360 | GO26: 214272 | GP26: 214272 | GQ26: 207360 | GR26: 214272 | GS26: 207360 | GT26: 214272 | GU26: 214272 | GV26: =GV14*GV19/8760*GV24 -> 193536 | GW26: 214272 | GX26: 207360 | GY26: 214272 | GZ26: 207360 | HA26: 214272 | HB26: 214272 | HC26: 207360 | HD26: 214272 | HE26: 207360 | HF26: 214272 | HG26: 214272 | HH26: 193536 | HI26: 214272 | HJ26: 207360 | HK26: 214272 | HL26: 207360 | HM26: 214272 | HN26: 214272 | HO26: 207360 | HP26: 214272 | HQ26: 207360 | HR26: 214272 | HS26: 214272 | HT26: 193536 | HU26: 214272 | HV26: 207360 | HW26: 214272 | HX26: 207360 | HY26: 214272 | HZ26: 214272 | IA26: 207360 | IB26: 214272 | IC26: 207360 | ID26: 214272 | IE26: 214272 | IF26: 200448 | IG26: 214272 | IH26: 207360 | II26: 214272 | IJ26: 207360 | IK26: 214272 | IL26: 214272 | IM26: 207360 | IN26: 214272 | IO26: 207360 | IP26: 214272 | IQ26: 214272 | IR26: 193536 | IS26: 214272 | IT26: 207360 | IU26: 214272 | IV26: 207360 | IW26: 214272 | IX26: 214272 | IY26: 207360 | IZ26: 214272 | JA26: 207360 | JB26: 214272 | JC26: 214272 | JD26: 193536 | JE26: 214272 | JF26: 207360 | JG26: 214272 | JH26: =JH14*JH19/8760*JH24 -> 207360 | JI26: 214272 | JJ26: 214272 | JK26: 207360 | JL26: 214272 | JM26: 207360 | JN26: 214272 | JO26: 214272 | JP26: 193536 | JQ26: 214272 | JR26: 207360 | JS26: 214272 | JT26: 207360 | JU26: 214272 | JV26: 214272 | JW26: 207360 | JX26: 214272 | JY26: 207360 | JZ26: 214272 | KA26: 214272 | KB26: 200448 | KC26: 214272 | KD26: 207360 | KE26: 214272 | KF26: 207360 | KG26: 214272 | KH26: 214272 | KI26: 207360 | KJ26: 214272 | KK26: 207360 | KL26: 214272 | KM26: 214272 | KN26: 193536 | KO26: 214272 | KP26: 207360 | KQ26: 214272 | KR26: 207360 | KS26: 214272 | KT26: 214272 | KU26: 207360 | KV26: 214272 | KW26: 207360 | KX26: 214272 | KY26: 214272 | KZ26: 193536 | LA26: 214272 | LB26: 207360 | LC26: 214272 | LD26: 207360 | LE26: 214272 | LF26: 214272 | LG26: 207360 | LH26: 214272 | LI26: 207360 | LJ26: 214272 | LK26: 214272 | LL26: 193536 | LM26: 214272 | LN26: 207360 | LO26: 214272 | LP26: 207360 | LQ26: 214272 | LR26: 214272 | LS26: 207360 | LT26: =LT14*LT19/8760*LT24 -> 214272 | LU26: 207360 | LV26: 214272 | LW26: 214272 | LX26: 200448 | LY26: 214272 | LZ26: 207360 | MA26: 214272 | MB26: 207360 | MC26: 214272 | MD26: 214272 | ME26: 207360 | MF26: 214272 | MG26: 207360 | MH26: 214272 | MI26: 214272 | MJ26: 193536 | MK26: 214272 | ML26: 207360 | MM26: 214272 | MN26: 207360 | MO26: 214272 | MP26: 214272 | MQ26: 207360 | MR26: 214272 | MS26: 207360 | MT26: 214272 | MU26: 214272 | MV26: 193536 | MW26: 214272 | MX26: 207360 | MY26: 214272 | MZ26: 207360 | NA26: 214272 | NB26: 214272 | NC26: 207360 | ND26: 214272 | NE26: 207360 | NF26: 214272 | NG26: 214272 | NH26: 193536 | NI26: 214272 | NJ26: 207360 | NK26: 214272 | NL26: 207360 | NM26: 214272 | NN26: 214272 | NO26: 207360 | NP26: 214272 | NQ26: 207360 | NR26: 214272 | NS26: 214272 | NT26: 200448 | NU26: 214272 | NV26: 207360 | NW26: 214272 | NX26: 207360 | NY26: 214272 | NZ26: 214272 | OA26: 207360 | OB26: 214272 | OC26: 207360 | OD26: 214272 | OE26: 214272 | OF26: =OF14*OF19/8760*OF24 -> 193536 | OG26: 214272 | OH26: 207360 | OI26: 214272 | OJ26: 207360 | OK26: 214272 | OL26: 214272 | OM26: 207360 | ON26: 214272 | OO26: 207360 | OP26: 214272 | OQ26: 214272 | OR26: 193536 | OS26: 214272 | OT26: 207360 | OU26: 214272 | OV26: 207360 | OW26: 214272 | OX26: 214272 | OY26: 207360 | OZ26: 214272 | PA26: 207360 | PB26: 214272 | PC26: 214272 | PD26: 193536 | PE26: 214272 | PF26: 207360 | PG26: 214272 | PH26: 207360 | PI26: 214272 | PJ26: 214272 | PK26: 207360 | PL26: 214272 | PM26: 207360 | PN26: 214272 | PO26: 214272 | PP26: 200448 | PQ26: 214272 | PR26: 207360 | PS26: 214272 | PT26: 207360 | PU26: 0 | PV26: 0 | PW26: 0 | PX26: 0 | PY26: 0 | PZ26: 0 | QA26: 0 | QB26: 0 | QC26: 0 | QD26: 0 | QE26: 0 | QF26: 0 | QG26: 0 | QH26: 0 | QI26: 0 | QJ26: 0 | QK26: 0 | QL26: 0 | QM26: 0 | QN26: 0 | QO26: 0 | QP26: 0 | QQ26: 0 | QR26: =QR14*QR19/8760*QR24 -> 0 | QS26: 0 | QT26: 0 | QU26: 0 | QV26: 0 | QW26: 0 | QX26: 0 | QY26: 0 | QZ26: 0 | RA26: 0 | RB26: 0 | RC26: 0 | RD26: 0 | RE26: 0 | RF26: 0 | RG26: 0 | RH26: 0 | RI26: 0 | RJ26: 0 | RK26: 0 | RL26: 0 | RM26: 0 | RN26: 0 | RO26: 0 | RP26: 0 | RQ26: 0 | RR26: 0 | RS26: 0 | RT26: 0 | RU26: 0 | RV26: 0 | RW26: 0 | RX26: 0 | RY26: 0 | RZ26: 0 | SA26: 0 | SB26: 0 | SC26: 0 | SD26: 0 | SE26: 0 | SF26: 0 | SG26: 0 | SH26: 0 | SI26: 0 | SJ26: 0 | SK26: 0 | SL26: 0 | SM26: 0 | SN26: 0 | SO26: 0 | SP26: 0 | SQ26: 0 | SR26: 0 | SS26: 0 | ST26: 0 | SU26: 0 | SV26: 0 | SW26: 0 | SX26: 0 | SY26: 0 | SZ26: 0 | TA26: 0 | TB26: 0 | TC26: 0 | TD26: =TD14*TD19/8760*TD24 -> 0 | TE26: 0 | TF26: 0 | TG26: 0 | TH26: 0 | TI26: 0 | TJ26: 0 | TK26: 0 | TL26: 0 | TM26: 0 | TN26: 0 | TO26: 0 | TP26: 0 | TQ26: 0 | TR26: 0 | TS26: 0 | TT26: 0 | TU26: 0 | TV26: 0 | TW26: 0 | TX26: 0 | TY26: 0 | TZ26: 0 | UA26: 0 | UB26: 0 | UC26: 0 | UD26: 0 | UE26: 0 | UF26: 0 | UG26: 0 | UH26: 0 | UI26: 0 | UJ26: 0 | UK26: 0 | UL26: 0 | UM26: 0 | UN26: 0 | UO26: 0 | UP26: 0 | UQ26: 0 | UR26: 0 | US26: 0 | UT26: 0 | UU26: 0 | UV26: 0 | UW26: 0 | UX26: 0 | UY26: 0 | UZ26: 0 | VA26: 0 | VB26: 0 | VC26: 0 | VD26: 0 | VE26: 0 | VF26: 0 | VG26: 0 | VH26: 0 | VI26: 0 | VJ26: 0 | VK26: 0 | VL26: 0 | VM26: 0 | VN26: 0 | VO26: 0 | VP26: =VP14*VP19/8760*VP24 -> 0 | VQ26: 0 | VR26: 0 | VS26: 0 | VT26: 0 | VU26: 0 | VV26: 0 | VW26: 0 | VX26: 0 | VY26: 0 | VZ26: 0 | WA26: 0 | WB26: 0 | WC26: 0 | WD26: 0 | WE26: 0 | WF26: 0 | WG26: 0 | WH26: 0 | WI26: 0 | WJ26: 0 | WK26: 0 | WL26: 0 | WM26: 0 | WN26: 0 | WO26: 0 | WP26: 0 | WQ26: 0 | WR26: 0 | WS26: 0 | WT26: 0 | WU26: 0 | WV26: 0 | WW26: 0 | WX26: 0 | WY26: 0 | WZ26: 0 | XA26: 0 | XB26: 0 | XC26: 0 | XD26: 0 | XE26: 0 | XF26: 0 | XG26: 0 | XH26: 0 | XI26: 0 | XJ26: 0 | XK26: 0 | XL26: 0 | XM26: 0 | XN26: 0 | XO26: 0 | XP26: 0 | XQ26: 0 | XR26: 0 | XS26: 0 | XT26: 0 | XU26: 0 | XV26: 0 | XW26: 0 | XX26: 0 | XY26: 0 | XZ26: 0 | YA26: 0 | YB26: =YB14*YB19/8760*YB24 -> 0 | YC26: 0 | YD26: 0 | YE26: 0 | YF26: 0 | YG26: 0 | YH26: 0 | YI26: 0 | YJ26: 0 | YK26: 0 | YL26: 0 | YM26: 0 | YN26: 0 | YO26: 0 | YP26: 0 | YQ26: 0 | YR26: 0 | YS26: 0 | YT26: 0 | YU26: 0 | YV26: 0 | YW26: 0 | YX26: 0 | YY26: 0 | YZ26: 0 | ZA26: 0 | ZB26: 0 | ZC26: 0 | ZD26: 0 | ZE26: 0 | ZF26: 0 | ZG26: 0 | ZH26: 0 | ZI26: 0 | ZJ26: 0 | ZK26: 0 | ZL26: 0 | ZM26: 0 | ZN26: 0 | ZO26: 0 | ZP26: 0 | ZQ26: 0 | ZR26: 0 | ZS26: 0 | ZT26: 0 | ZU26: 0 | ZV26: 0 | ZW26: 0 | ZX26: 0 | ZY26: 0 | ZZ26: 0 | AAA26: 0 | AAB26: 0 | AAC26: 0 | AAD26: 0 | AAE26: 0 | AAF26: 0 | AAG26: 0 | AAH26: 0 | AAI26: 0 | AAJ26: 0 | AAK26: 0 | AAL26: 0 | AAM26: 0 | AAN26: =AAN14*AAN19/8760*AAN24 -> 0 | AAO26: 0 | AAP26: 0 | AAQ26: 0 | AAR26: 0 | AAS26: 0 | AAT26: 0 | AAU26: 0 | AAV26: 0 | AAW26: 0 | AAX26: 0 | AAY26: 0 | AAZ26: 0 | ABA26: 0 | ABB26: 0 | ABC26: 0 | ABD26: 0 | ABE26: 0 | ABF26: 0 | ABG26: 0 | ABH26: 0 | ABI26: 0 | ABJ26: 0 | ABK26: 0 | ABL26: 0 | ABM26: 0 | ABN26: 0 | ABO26: 0 | ABP26: 0 | ABQ26: 0 | ABR26: 0 | ABS26: 0 | ABT26: 0 | ABU26: 0 | ABV26: 0 | ABW26: 0 | ABX26: 0 | ABY26: 0 | ABZ26: 0
D27: Wind Generation Before Degradation | E27: kWh | K27: =K15*K20*K24 -> 0 | L27: =L15*L20*L24 -> 0 | M27: 0 | N27: 0 | O27: 0 | P27: 0 | Q27: 0 | R27: 0 | S27: 0 | T27: 0 | U27: 0 | V27: 0 | W27: 0 | X27: 0 | Y27: 0 | Z27: 0 | AA27: 0 | AB27: 0 | AC27: 0 | AD27: 0 | AE27: 0 | AF27: 0 | AG27: 0 | AH27: 0 | AI27: 0 | AJ27: 0 | AK27: 0 | AL27: 0 | AM27: 0 | AN27: 0 | AO27: 0 | AP27: 0 | AQ27: 0 | AR27: 0 | AS27: 0 | AT27: 0 | AU27: 0 | AV27: 0 | AW27: 0 | AX27: 0 | AY27: 0 | AZ27: 0 | BA27: 0 | BB27: 0 | BC27: 0 | BD27: 0 | BE27: 0 | BF27: 0 | BG27: 0 | BH27: 0 | BI27: 0 | BJ27: 0 | BK27: 0 | BL27: 0 | BM27: 0 | BN27: 0 | BO27: 0 | BP27: 0 | BQ27: 0 | BR27: 0 | BS27: 0 | BT27: 0 | BU27: 0 | BV27: 0 | BW27: 0 | BX27: =BX15*BX20*BX24 -> 0 | BY27: 0 | BZ27: 0 | CA27: 0 | CB27: 0 | CC27: 0 | CD27: 0 | CE27: 0 | CF27: 0 | CG27: 0 | CH27: 0 | CI27: 0 | CJ27: 0 | CK27: 0 | CL27: 0 | CM27: 0 | CN27: 0 | CO27: 0 | CP27: 0 | CQ27: 0 | CR27: 0 | CS27: 0 | CT27: 0 | CU27: 0 | CV27: 0 | CW27: 0 | CX27: 0 | CY27: 0 | CZ27: 0 | DA27: 0 | DB27: 0 | DC27: 0 | DD27: 0 | DE27: 0 | DF27: 0 | DG27: 0 | DH27: 0 | DI27: 0 | DJ27: 0 | DK27: 0 | DL27: 0 | DM27: 0 | DN27: 0 | DO27: 0 | DP27: 0 | DQ27: 0 | DR27: 0 | DS27: 0 | DT27: 0 | DU27: 0 | DV27: 0 | DW27: 0 | DX27: 0 | DY27: 0 | DZ27: 0 | EA27: 0 | EB27: 0 | EC27: 0 | ED27: 0 | EE27: 0 | EF27: 0 | EG27: 0 | EH27: 0 | EI27: 0 | EJ27: =EJ15*EJ20*EJ24 -> 0 | EK27: 0 | EL27: 0 | EM27: 0 | EN27: 0 | EO27: 0 | EP27: 0 | EQ27: 0 | ER27: 0 | ES27: 0 | ET27: 0 | EU27: 0 | EV27: 0 | EW27: 0 | EX27: 0 | EY27: 0 | EZ27: 0 | FA27: 0 | FB27: 0 | FC27: 0 | FD27: 0 | FE27: 0 | FF27: 0 | FG27: 0 | FH27: 0 | FI27: 0 | FJ27: 0 | FK27: 0 | FL27: 0 | FM27: 0 | FN27: 0 | FO27: 0 | FP27: 0 | FQ27: 0 | FR27: 0 | FS27: 0 | FT27: 0 | FU27: 0 | FV27: 0 | FW27: 0 | FX27: 0 | FY27: 0 | FZ27: 0 | GA27: 0 | GB27: 0 | GC27: 0 | GD27: 0 | GE27: 0 | GF27: 0 | GG27: 0 | GH27: 0 | GI27: 0 | GJ27: 0 | GK27: 0 | GL27: 0 | GM27: 0 | GN27: 0 | GO27: 0 | GP27: 0 | GQ27: 0 | GR27: 0 | GS27: 0 | GT27: 0 | GU27: 0 | GV27: =GV15*GV20*GV24 -> 0 | GW27: 0 | GX27: 0 | GY27: 0 | GZ27: 0 | HA27: 0 | HB27: 0 | HC27: 0 | HD27: 0 | HE27: 0 | HF27: 0 | HG27: 0 | HH27: 0 | HI27: 0 | HJ27: 0 | HK27: 0 | HL27: 0 | HM27: 0 | HN27: 0 | HO27: 0 | HP27: 0 | HQ27: 0 | HR27: 0 | HS27: 0 | HT27: 0 | HU27: 0 | HV27: 0 | HW27: 0 | HX27: 0 | HY27: 0 | HZ27: 0 | IA27: 0 | IB27: 0 | IC27: 0 | ID27: 0 | IE27: 0 | IF27: 0 | IG27: 0 | IH27: 0 | II27: 0 | IJ27: 0 | IK27: 0 | IL27: 0 | IM27: 0 | IN27: 0 | IO27: 0 | IP27: 0 | IQ27: 0 | IR27: 0 | IS27: 0 | IT27: 0 | IU27: 0 | IV27: 0 | IW27: 0 | IX27: 0 | IY27: 0 | IZ27: 0 | JA27: 0 | JB27: 0 | JC27: 0 | JD27: 0 | JE27: 0 | JF27: 0 | JG27: 0 | JH27: =JH15*JH20*JH24 -> 0 | JI27: 0 | JJ27: 0 | JK27: 0 | JL27: 0 | JM27: 0 | JN27: 0 | JO27: 0 | JP27: 0 | JQ27: 0 | JR27: 0 | JS27: 0 | JT27: 0 | JU27: 0 | JV27: 0 | JW27: 0 | JX27: 0 | JY27: 0 | JZ27: 0 | KA27: 0 | KB27: 0 | KC27: 0 | KD27: 0 | KE27: 0 | KF27: 0 | KG27: 0 | KH27: 0 | KI27: 0 | KJ27: 0 | KK27: 0 | KL27: 0 | KM27: 0 | KN27: 0 | KO27: 0 | KP27: 0 | KQ27: 0 | KR27: 0 | KS27: 0 | KT27: 0 | KU27: 0 | KV27: 0 | KW27: 0 | KX27: 0 | KY27: 0 | KZ27: 0 | LA27: 0 | LB27: 0 | LC27: 0 | LD27: 0 | LE27: 0 | LF27: 0 | LG27: 0 | LH27: 0 | LI27: 0 | LJ27: 0 | LK27: 0 | LL27: 0 | LM27: 0 | LN27: 0 | LO27: 0 | LP27: 0 | LQ27: 0 | LR27: 0 | LS27: 0 | LT27: =LT15*LT20*LT24 -> 0 | LU27: 0 | LV27: 0 | LW27: 0 | LX27: 0 | LY27: 0 | LZ27: 0 | MA27: 0 | MB27: 0 | MC27: 0 | MD27: 0 | ME27: 0 | MF27: 0 | MG27: 0 | MH27: 0 | MI27: 0 | MJ27: 0 | MK27: 0 | ML27: 0 | MM27: 0 | MN27: 0 | MO27: 0 | MP27: 0 | MQ27: 0 | MR27: 0 | MS27: 0 | MT27: 0 | MU27: 0 | MV27: 0 | MW27: 0 | MX27: 0 | MY27: 0 | MZ27: 0 | NA27: 0 | NB27: 0 | NC27: 0 | ND27: 0 | NE27: 0 | NF27: 0 | NG27: 0 | NH27: 0 | NI27: 0 | NJ27: 0 | NK27: 0 | NL27: 0 | NM27: 0 | NN27: 0 | NO27: 0 | NP27: 0 | NQ27: 0 | NR27: 0 | NS27: 0 | NT27: 0 | NU27: 0 | NV27: 0 | NW27: 0 | NX27: 0 | NY27: 0 | NZ27: 0 | OA27: 0 | OB27: 0 | OC27: 0 | OD27: 0 | OE27: 0 | OF27: =OF15*OF20*OF24 -> 0 | OG27: 0 | OH27: 0 | OI27: 0 | OJ27: 0 | OK27: 0 | OL27: 0 | OM27: 0 | ON27: 0 | OO27: 0 | OP27: 0 | OQ27: 0 | OR27: 0 | OS27: 0 | OT27: 0 | OU27: 0 | OV27: 0 | OW27: 0 | OX27: 0 | OY27: 0 | OZ27: 0 | PA27: 0 | PB27: 0 | PC27: 0 | PD27: 0 | PE27: 0 | PF27: 0 | PG27: 0 | PH27: 0 | PI27: 0 | PJ27: 0 | PK27: 0 | PL27: 0 | PM27: 0 | PN27: 0 | PO27: 0 | PP27: 0 | PQ27: 0 | PR27: 0 | PS27: 0 | PT27: 0 | PU27: 0 | PV27: 0 | PW27: 0 | PX27: 0 | PY27: 0 | PZ27: 0 | QA27: 0 | QB27: 0 | QC27: 0 | QD27: 0 | QE27: 0 | QF27: 0 | QG27: 0 | QH27: 0 | QI27: 0 | QJ27: 0 | QK27: 0 | QL27: 0 | QM27: 0 | QN27: 0 | QO27: 0 | QP27: 0 | QQ27: 0 | QR27: =QR15*QR20*QR24 -> 0 | QS27: 0 | QT27: 0 | QU27: 0 | QV27: 0 | QW27: 0 | QX27: 0 | QY27: 0 | QZ27: 0 | RA27: 0 | RB27: 0 | RC27: 0 | RD27: 0 | RE27: 0 | RF27: 0 | RG27: 0 | RH27: 0 | RI27: 0 | RJ27: 0 | RK27: 0 | RL27: 0 | RM27: 0 | RN27: 0 | RO27: 0 | RP27: 0 | RQ27: 0 | RR27: 0 | RS27: 0 | RT27: 0 | RU27: 0 | RV27: 0 | RW27: 0 | RX27: 0 | RY27: 0 | RZ27: 0 | SA27: 0 | SB27: 0 | SC27: 0 | SD27: 0 | SE27: 0 | SF27: 0 | SG27: 0 | SH27: 0 | SI27: 0 | SJ27: 0 | SK27: 0 | SL27: 0 | SM27: 0 | SN27: 0 | SO27: 0 | SP27: 0 | SQ27: 0 | SR27: 0 | SS27: 0 | ST27: 0 | SU27: 0 | SV27: 0 | SW27: 0 | SX27: 0 | SY27: 0 | SZ27: 0 | TA27: 0 | TB27: 0 | TC27: 0 | TD27: =TD15*TD20*TD24 -> 0 | TE27: 0 | TF27: 0 | TG27: 0 | TH27: 0 | TI27: 0 | TJ27: 0 | TK27: 0 | TL27: 0 | TM27: 0 | TN27: 0 | TO27: 0 | TP27: 0 | TQ27: 0 | TR27: 0 | TS27: 0 | TT27: 0 | TU27: 0 | TV27: 0 | TW27: 0 | TX27: 0 | TY27: 0 | TZ27: 0 | UA27: 0 | UB27: 0 | UC27: 0 | UD27: 0 | UE27: 0 | UF27: 0 | UG27: 0 | UH27: 0 | UI27: 0 | UJ27: 0 | UK27: 0 | UL27: 0 | UM27: 0 | UN27: 0 | UO27: 0 | UP27: 0 | UQ27: 0 | UR27: 0 | US27: 0 | UT27: 0 | UU27: 0 | UV27: 0 | UW27: 0 | UX27: 0 | UY27: 0 | UZ27: 0 | VA27: 0 | VB27: 0 | VC27: 0 | VD27: 0 | VE27: 0 | VF27: 0 | VG27: 0 | VH27: 0 | VI27: 0 | VJ27: 0 | VK27: 0 | VL27: 0 | VM27: 0 | VN27: 0 | VO27: 0 | VP27: =VP15*VP20*VP24 -> 0 | VQ27: 0 | VR27: 0 | VS27: 0 | VT27: 0 | VU27: 0 | VV27: 0 | VW27: 0 | VX27: 0 | VY27: 0 | VZ27: 0 | WA27: 0 | WB27: 0 | WC27: 0 | WD27: 0 | WE27: 0 | WF27: 0 | WG27: 0 | WH27: 0 | WI27: 0 | WJ27: 0 | WK27: 0 | WL27: 0 | WM27: 0 | WN27: 0 | WO27: 0 | WP27: 0 | WQ27: 0 | WR27: 0 | WS27: 0 | WT27: 0 | WU27: 0 | WV27: 0 | WW27: 0 | WX27: 0 | WY27: 0 | WZ27: 0 | XA27: 0 | XB27: 0 | XC27: 0 | XD27: 0 | XE27: 0 | XF27: 0 | XG27: 0 | XH27: 0 | XI27: 0 | XJ27: 0 | XK27: 0 | XL27: 0 | XM27: 0 | XN27: 0 | XO27: 0 | XP27: 0 | XQ27: 0 | XR27: 0 | XS27: 0 | XT27: 0 | XU27: 0 | XV27: 0 | XW27: 0 | XX27: 0 | XY27: 0 | XZ27: 0 | YA27: 0 | YB27: =YB15*YB20*YB24 -> 0 | YC27: 0 | YD27: 0 | YE27: 0 | YF27: 0 | YG27: 0 | YH27: 0 | YI27: 0 | YJ27: 0 | YK27: 0 | YL27: 0 | YM27: 0 | YN27: 0 | YO27: 0 | YP27: 0 | YQ27: 0 | YR27: 0 | YS27: 0 | YT27: 0 | YU27: 0 | YV27: 0 | YW27: 0 | YX27: 0 | YY27: 0 | YZ27: 0 | ZA27: 0 | ZB27: 0 | ZC27: 0 | ZD27: 0 | ZE27: 0 | ZF27: 0 | ZG27: 0 | ZH27: 0 | ZI27: 0 | ZJ27: 0 | ZK27: 0 | ZL27: 0 | ZM27: 0 | ZN27: 0 | ZO27: 0 | ZP27: 0 | ZQ27: 0 | ZR27: 0 | ZS27: 0 | ZT27: 0 | ZU27: 0 | ZV27: 0 | ZW27: 0 | ZX27: 0 | ZY27: 0 | ZZ27: 0 | AAA27: 0 | AAB27: 0 | AAC27: 0 | AAD27: 0 | AAE27: 0 | AAF27: 0 | AAG27: 0 | AAH27: 0 | AAI27: 0 | AAJ27: 0 | AAK27: 0 | AAL27: 0 | AAM27: 0 | AAN27: =AAN15*AAN20*AAN24 -> 0 | AAO27: 0 | AAP27: 0 | AAQ27: 0 | AAR27: 0 | AAS27: 0 | AAT27: 0 | AAU27: 0 | AAV27: 0 | AAW27: 0 | AAX27: 0 | AAY27: 0 | AAZ27: 0 | ABA27: 0 | ABB27: 0 | ABC27: 0 | ABD27: 0 | ABE27: 0 | ABF27: 0 | ABG27: 0 | ABH27: 0 | ABI27: 0 | ABJ27: 0 | ABK27: 0 | ABL27: 0 | ABM27: 0 | ABN27: 0 | ABO27: 0 | ABP27: 0 | ABQ27: 0 | ABR27: 0 | ABS27: 0 | ABT27: 0 | ABU27: 0 | ABV27: 0 | ABW27: 0 | ABX27: 0 | ABY27: 0 | ABZ27: 0
D28: Base for Battery Capacity Payment | E28: kWh | K28: =K16*K21*K24 -> 0 | L28: =L16*L21*L24 -> 0 | M28: 0 | N28: 0 | O28: 0 | P28: 0 | Q28: 0 | R28: 0 | S28: 0 | T28: 0 | U28: 0 | V28: 0 | W28: 0 | X28: 0 | Y28: 0 | Z28: 0 | AA28: 0 | AB28: 0 | AC28: 0 | AD28: 0 | AE28: 0 | AF28: 0 | AG28: 0 | AH28: 0 | AI28: 0 | AJ28: 0 | AK28: 0 | AL28: 0 | AM28: 0 | AN28: 0 | AO28: 0 | AP28: 0 | AQ28: 0 | AR28: 0 | AS28: 0 | AT28: 0 | AU28: 0 | AV28: 0 | AW28: 0 | AX28: 0 | AY28: 0 | AZ28: 0 | BA28: 0 | BB28: 0 | BC28: 0 | BD28: 0 | BE28: 0 | BF28: 0 | BG28: 0 | BH28: 0 | BI28: 0 | BJ28: 0 | BK28: 0 | BL28: 0 | BM28: 0 | BN28: 0 | BO28: 0 | BP28: 0 | BQ28: 0 | BR28: 0 | BS28: 0 | BT28: 0 | BU28: 0 | BV28: 0 | BW28: 0 | BX28: =BX16*BX21*BX24 -> 0 | BY28: 0 | BZ28: 0 | CA28: 0 | CB28: 0 | CC28: 0 | CD28: 0 | CE28: 0 | CF28: 0 | CG28: 0 | CH28: 0 | CI28: 0 | CJ28: 0 | CK28: 0 | CL28: 0 | CM28: 0 | CN28: 0 | CO28: 0 | CP28: 0 | CQ28: 0 | CR28: 0 | CS28: 0 | CT28: 0 | CU28: 0 | CV28: 0 | CW28: 0 | CX28: 0 | CY28: 0 | CZ28: 0 | DA28: 0 | DB28: 0 | DC28: 0 | DD28: 0 | DE28: 0 | DF28: 0 | DG28: 0 | DH28: 0 | DI28: 0 | DJ28: 0 | DK28: 0 | DL28: 0 | DM28: 0 | DN28: 0 | DO28: 0 | DP28: 0 | DQ28: 0 | DR28: 0 | DS28: 0 | DT28: 0 | DU28: 0 | DV28: 0 | DW28: 0 | DX28: 0 | DY28: 0 | DZ28: 0 | EA28: 0 | EB28: 0 | EC28: 0 | ED28: 0 | EE28: 0 | EF28: 0 | EG28: 0 | EH28: 0 | EI28: 0 | EJ28: =EJ16*EJ21*EJ24 -> 0 | EK28: 0 | EL28: 0 | EM28: 0 | EN28: 0 | EO28: 0 | EP28: 0 | EQ28: 0 | ER28: 0 | ES28: 0 | ET28: 0 | EU28: 0 | EV28: 0 | EW28: 0 | EX28: 0 | EY28: 0 | EZ28: 0 | FA28: 0 | FB28: 0 | FC28: 0 | FD28: 0 | FE28: 0 | FF28: 0 | FG28: 0 | FH28: 0 | FI28: 0 | FJ28: 0 | FK28: 0 | FL28: 0 | FM28: 0 | FN28: 0 | FO28: 0 | FP28: 0 | FQ28: 0 | FR28: 0 | FS28: 0 | FT28: 0 | FU28: 0 | FV28: 0 | FW28: 0 | FX28: 0 | FY28: 0 | FZ28: 0 | GA28: 0 | GB28: 0 | GC28: 0 | GD28: 0 | GE28: 0 | GF28: 0 | GG28: 0 | GH28: 0 | GI28: 0 | GJ28: 0 | GK28: 0 | GL28: 0 | GM28: 0 | GN28: 0 | GO28: 0 | GP28: 0 | GQ28: 0 | GR28: 0 | GS28: 0 | GT28: 0 | GU28: 0 | GV28: =GV16*GV21*GV24 -> 0 | GW28: 0 | GX28: 0 | GY28: 0 | GZ28: 0 | HA28: 0 | HB28: 0 | HC28: 0 | HD28: 0 | HE28: 0 | HF28: 0 | HG28: 0 | HH28: 0 | HI28: 0 | HJ28: 0 | HK28: 0 | HL28: 0 | HM28: 0 | HN28: 0 | HO28: 0 | HP28: 0 | HQ28: 0 | HR28: 0 | HS28: 0 | HT28: 0 | HU28: 0 | HV28: 0 | HW28: 0 | HX28: 0 | HY28: 0 | HZ28: 0 | IA28: 0 | IB28: 0 | IC28: 0 | ID28: 0 | IE28: 0 | IF28: 0 | IG28: 0 | IH28: 0 | II28: 0 | IJ28: 0 | IK28: 0 | IL28: 0 | IM28: 0 | IN28: 0 | IO28: 0 | IP28: 0 | IQ28: 0 | IR28: 0 | IS28: 0 | IT28: 0 | IU28: 0 | IV28: 0 | IW28: 0 | IX28: 0 | IY28: 0 | IZ28: 0 | JA28: 0 | JB28: 0 | JC28: 0 | JD28: 0 | JE28: 0 | JF28: 0 | JG28: 0 | JH28: =JH16*JH21*JH24 -> 0 | JI28: 0 | JJ28: 0 | JK28: 0 | JL28: 0 | JM28: 0 | JN28: 0 | JO28: 0 | JP28: 0 | JQ28: 0 | JR28: 0 | JS28: 0 | JT28: 0 | JU28: 0 | JV28: 0 | JW28: 0 | JX28: 0 | JY28: 0 | JZ28: 0 | KA28: 0 | KB28: 0 | KC28: 0 | KD28: 0 | KE28: 0 | KF28: 0 | KG28: 0 | KH28: 0 | KI28: 0 | KJ28: 0 | KK28: 0 | KL28: 0 | KM28: 0 | KN28: 0 | KO28: 0 | KP28: 0 | KQ28: 0 | KR28: 0 | KS28: 0 | KT28: 0 | KU28: 0 | KV28: 0 | KW28: 0 | KX28: 0 | KY28: 0 | KZ28: 0 | LA28: 0 | LB28: 0 | LC28: 0 | LD28: 0 | LE28: 0 | LF28: 0 | LG28: 0 | LH28: 0 | LI28: 0 | LJ28: 0 | LK28: 0 | LL28: 0 | LM28: 0 | LN28: 0 | LO28: 0 | LP28: 0 | LQ28: 0 | LR28: 0 | LS28: 0 | LT28: =LT16*LT21*LT24 -> 0 | LU28: 0 | LV28: 0 | LW28: 0 | LX28: 0 | LY28: 0 | LZ28: 0 | MA28: 0 | MB28: 0 | MC28: 0 | MD28: 0 | ME28: 0 | MF28: 0 | MG28: 0 | MH28: 0 | MI28: 0 | MJ28: 0 | MK28: 0 | ML28: 0 | MM28: 0 | MN28: 0 | MO28: 0 | MP28: 0 | MQ28: 0 | MR28: 0 | MS28: 0 | MT28: 0 | MU28: 0 | MV28: 0 | MW28: 0 | MX28: 0 | MY28: 0 | MZ28: 0 | NA28: 0 | NB28: 0 | NC28: 0 | ND28: 0 | NE28: 0 | NF28: 0 | NG28: 0 | NH28: 0 | NI28: 0 | NJ28: 0 | NK28: 0 | NL28: 0 | NM28: 0 | NN28: 0 | NO28: 0 | NP28: 0 | NQ28: 0 | NR28: 0 | NS28: 0 | NT28: 0 | NU28: 0 | NV28: 0 | NW28: 0 | NX28: 0 | NY28: 0 | NZ28: 0 | OA28: 0 | OB28: 0 | OC28: 0 | OD28: 0 | OE28: 0 | OF28: =OF16*OF21*OF24 -> 0 | OG28: 0 | OH28: 0 | OI28: 0 | OJ28: 0 | OK28: 0 | OL28: 0 | OM28: 0 | ON28: 0 | OO28: 0 | OP28: 0 | OQ28: 0 | OR28: 0 | OS28: 0 | OT28: 0 | OU28: 0 | OV28: 0 | OW28: 0 | OX28: 0 | OY28: 0 | OZ28: 0 | PA28: 0 | PB28: 0 | PC28: 0 | PD28: 0 | PE28: 0 | PF28: 0 | PG28: 0 | PH28: 0 | PI28: 0 | PJ28: 0 | PK28: 0 | PL28: 0 | PM28: 0 | PN28: 0 | PO28: 0 | PP28: 0 | PQ28: 0 | PR28: 0 | PS28: 0 | PT28: 0 | PU28: 0 | PV28: 0 | PW28: 0 | PX28: 0 | PY28: 0 | PZ28: 0 | QA28: 0 | QB28: 0 | QC28: 0 | QD28: 0 | QE28: 0 | QF28: 0 | QG28: 0 | QH28: 0 | QI28: 0 | QJ28: 0 | QK28: 0 | QL28: 0 | QM28: 0 | QN28: 0 | QO28: 0 | QP28: 0 | QQ28: 0 | QR28: =QR16*QR21*QR24 -> 0 | QS28: 0 | QT28: 0 | QU28: 0 | QV28: 0 | QW28: 0 | QX28: 0 | QY28: 0 | QZ28: 0 | RA28: 0 | RB28: 0 | RC28: 0 | RD28: 0 | RE28: 0 | RF28: 0 | RG28: 0 | RH28: 0 | RI28: 0 | RJ28: 0 | RK28: 0 | RL28: 0 | RM28: 0 | RN28: 0 | RO28: 0 | RP28: 0 | RQ28: 0 | RR28: 0 | RS28: 0 | RT28: 0 | RU28: 0 | RV28: 0 | RW28: 0 | RX28: 0 | RY28: 0 | RZ28: 0 | SA28: 0 | SB28: 0 | SC28: 0 | SD28: 0 | SE28: 0 | SF28: 0 | SG28: 0 | SH28: 0 | SI28: 0 | SJ28: 0 | SK28: 0 | SL28: 0 | SM28: 0 | SN28: 0 | SO28: 0 | SP28: 0 | SQ28: 0 | SR28: 0 | SS28: 0 | ST28: 0 | SU28: 0 | SV28: 0 | SW28: 0 | SX28: 0 | SY28: 0 | SZ28: 0 | TA28: 0 | TB28: 0 | TC28: 0 | TD28: =TD16*TD21*TD24 -> 0 | TE28: 0 | TF28: 0 | TG28: 0 | TH28: 0 | TI28: 0 | TJ28: 0 | TK28: 0 | TL28: 0 | TM28: 0 | TN28: 0 | TO28: 0 | TP28: 0 | TQ28: 0 | TR28: 0 | TS28: 0 | TT28: 0 | TU28: 0 | TV28: 0 | TW28: 0 | TX28: 0 | TY28: 0 | TZ28: 0 | UA28: 0 | UB28: 0 | UC28: 0 | UD28: 0 | UE28: 0 | UF28: 0 | UG28: 0 | UH28: 0 | UI28: 0 | UJ28: 0 | UK28: 0 | UL28: 0 | UM28: 0 | UN28: 0 | UO28: 0 | UP28: 0 | UQ28: 0 | UR28: 0 | US28: 0 | UT28: 0 | UU28: 0 | UV28: 0 | UW28: 0 | UX28: 0 | UY28: 0 | UZ28: 0 | VA28: 0 | VB28: 0 | VC28: 0 | VD28: 0 | VE28: 0 | VF28: 0 | VG28: 0 | VH28: 0 | VI28: 0 | VJ28: 0 | VK28: 0 | VL28: 0 | VM28: 0 | VN28: 0 | VO28: 0 | VP28: =VP16*VP21*VP24 -> 0 | VQ28: 0 | VR28: 0 | VS28: 0 | VT28: 0 | VU28: 0 | VV28: 0 | VW28: 0 | VX28: 0 | VY28: 0 | VZ28: 0 | WA28: 0 | WB28: 0 | WC28: 0 | WD28: 0 | WE28: 0 | WF28: 0 | WG28: 0 | WH28: 0 | WI28: 0 | WJ28: 0 | WK28: 0 | WL28: 0 | WM28: 0 | WN28: 0 | WO28: 0 | WP28: 0 | WQ28: 0 | WR28: 0 | WS28: 0 | WT28: 0 | WU28: 0 | WV28: 0 | WW28: 0 | WX28: 0 | WY28: 0 | WZ28: 0 | XA28: 0 | XB28: 0 | XC28: 0 | XD28: 0 | XE28: 0 | XF28: 0 | XG28: 0 | XH28: 0 | XI28: 0 | XJ28: 0 | XK28: 0 | XL28: 0 | XM28: 0 | XN28: 0 | XO28: 0 | XP28: 0 | XQ28: 0 | XR28: 0 | XS28: 0 | XT28: 0 | XU28: 0 | XV28: 0 | XW28: 0 | XX28: 0 | XY28: 0 | XZ28: 0 | YA28: 0 | YB28: =YB16*YB21*YB24 -> 0 | YC28: 0 | YD28: 0 | YE28: 0 | YF28: 0 | YG28: 0 | YH28: 0 | YI28: 0 | YJ28: 0 | YK28: 0 | YL28: 0 | YM28: 0 | YN28: 0 | YO28: 0 | YP28: 0 | YQ28: 0 | YR28: 0 | YS28: 0 | YT28: 0 | YU28: 0 | YV28: 0 | YW28: 0 | YX28: 0 | YY28: 0 | YZ28: 0 | ZA28: 0 | ZB28: 0 | ZC28: 0 | ZD28: 0 | ZE28: 0 | ZF28: 0 | ZG28: 0 | ZH28: 0 | ZI28: 0 | ZJ28: 0 | ZK28: 0 | ZL28: 0 | ZM28: 0 | ZN28: 0 | ZO28: 0 | ZP28: 0 | ZQ28: 0 | ZR28: 0 | ZS28: 0 | ZT28: 0 | ZU28: 0 | ZV28: 0 | ZW28: 0 | ZX28: 0 | ZY28: 0 | ZZ28: 0 | AAA28: 0 | AAB28: 0 | AAC28: 0 | AAD28: 0 | AAE28: 0 | AAF28: 0 | AAG28: 0 | AAH28: 0 | AAI28: 0 | AAJ28: 0 | AAK28: 0 | AAL28: 0 | AAM28: 0 | AAN28: =AAN16*AAN21*AAN24 -> 0 | AAO28: 0 | AAP28: 0 | AAQ28: 0 | AAR28: 0 | AAS28: 0 | AAT28: 0 | AAU28: 0 | AAV28: 0 | AAW28: 0 | AAX28: 0 | AAY28: 0 | AAZ28: 0 | ABA28: 0 | ABB28: 0 | ABC28: 0 | ABD28: 0 | ABE28: 0 | ABF28: 0 | ABG28: 0 | ABH28: 0 | ABI28: 0 | ABJ28: 0 | ABK28: 0 | ABL28: 0 | ABM28: 0 | ABN28: 0 | ABO28: 0 | ABP28: 0 | ABQ28: 0 | ABR28: 0 | ABS28: 0 | ABT28: 0 | ABU28: 0 | ABV28: 0 | ABW28: 0 | ABX28: 0 | ABY28: 0 | ABZ28: 0
D30: Degradation | E30: % | F30: =INDEX(InputC!I39:AD39,E1) -> 0.005 | G30: =(1+F30)^(1/(months/Months_Period))-1 -> 0.0004157148447 | J30: 1 | K30: =J30*(1-$G$30*K7) -> 1 | L30: 1 | M30: 1 | N30: 1 | O30: 1 | P30: 1 | Q30: 0.9995842852 | R30: 0.9991687431 | S30: 0.9987533739 | T30: 0.9983381772 | U30: 0.9979231532 | V30: 0.9975083018 | W30: 0.9970936228 | X30: 0.9966791161 | Y30: 0.9962647818 | Z30: 0.9958506198 | AA30: 0.9954366299 | AB30: 0.9950228121 | AC30: 0.9946091664 | AD30: 0.9941956926 | AE30: 0.9937823907 | AF30: 0.9933692606 | AG30: 0.9929563022 | AH30: 0.9925435155 | AI30: 0.9921309005 | AJ30: 0.9917184569 | AK30: 0.9913061848 | AL30: 0.9908940841 | AM30: 0.9904821548 | AN30: 0.9900703966 | AO30: 0.9896588097 | AP30: 0.9892473938 | AQ30: 0.988836149 | AR30: 0.9884250751 | AS30: 0.9880141721 | AT30: 0.98760344 | AU30: 0.9871928786 | AV30: 0.9867824878 | AW30: 0.9863722677 | AX30: 0.9859622181 | AY30: 0.985552339 | AZ30: 0.9851426302 | BA30: 0.9847330918 | BB30: 0.9843237237 | BC30: 0.9839145257 | BD30: 0.9835054978 | BE30: 0.98309664 | BF30: 0.9826879521 | BG30: 0.9822794341 | BH30: 0.981871086 | BI30: 0.9814629076 | BJ30: 0.9810548989 | BK30: 0.9806470598 | BL30: 0.9802393903 | BM30: 0.9798318902 | BN30: 0.9794245596 | BO30: 0.9790173982 | BP30: 0.9786104062 | BQ30: 0.9782035833 | BR30: 0.9777969295 | BS30: 0.9773904448 | BT30: 0.9769841291 | BU30: 0.9765779823 | BV30: 0.9761720044 | BW30: =BV30*(1-$G$30*BW7) -> 0.9757661952 | BX30: 0.9753605547 | BY30: 0.9749550828 | BZ30: 0.9745497795 | CA30: 0.9741446447 | CB30: 0.9737396783 | CC30: 0.9733348803 | CD30: 0.9729302505 | CE30: 0.972525789 | CF30: 0.9721214956 | CG30: 0.9717173702 | CH30: 0.9713134129 | CI30: 0.9709096235 | CJ30: 0.9705060019 | CK30: 0.9701025482 | CL30: 0.9696992621 | CM30: 0.9692961438 | CN30: 0.968893193 | CO30: 0.9684904097 | CP30: 0.9680877939 | CQ30: 0.9676853454 | CR30: 0.9672830642 | CS30: 0.9668809503 | CT30: 0.9664790035 | CU30: 0.9660772239 | CV30: 0.9656756112 | CW30: 0.9652741655 | CX30: 0.9648728867 | CY30: 0.9644717747 | CZ30: 0.9640708295 | DA30: 0.963670051 | DB30: 0.963269439 | DC30: 0.9628689936 | DD30: 0.9624687147 | DE30: 0.9620686021 | DF30: 0.9616686559 | DG30: 0.961268876 | DH30: 0.9608692623 | DI30: 0.9604698146 | DJ30: 0.9600705331 | DK30: 0.9596714175 | DL30: 0.9592724679 | DM30: 0.9588736841 | DN30: 0.958475066 | DO30: 0.9580766137 | DP30: 0.957678327 | DQ30: 0.9572802059 | DR30: 0.9568822504 | DS30: 0.9564844602 | DT30: 0.9560868354 | DU30: 0.9556893759 | DV30: 0.9552920817 | DW30: 0.9548949526 | DX30: 0.9544979886 | DY30: 0.9541011896 | DZ30: 0.9537045555 | EA30: 0.9533080864 | EB30: 0.9529117821 | EC30: 0.9525156425 | ED30: 0.9521196676 | EE30: 0.9517238573 | EF30: 0.9513282116 | EG30: 0.9509327303 | EH30: 0.9505374135 | EI30: =EH30*(1-$G$30*EI7) -> 0.950142261 | EJ30: 0.9497472727 | EK30: 0.9493524487 | EL30: 0.9489577888 | EM30: 0.9485632929 | EN30: 0.9481689611 | EO30: 0.9477747932 | EP30: 0.9473807891 | EQ30: 0.9469869489 | ER30: 0.9465932723 | ES30: 0.9461997595 | ET30: 0.9458064102 | EU30: 0.9454132244 | EV30: 0.9450202021 | EW30: 0.9446273432 | EX30: 0.9442346476 | EY30: 0.9438421152 | EZ30: 0.943449746 | FA30: 0.94305754 | FB30: 0.942665497 | FC30: 0.9422736169 | FD30: 0.9418818998 | FE30: 0.9414903455 | FF30: 0.941098954 | FG30: 0.9407077252 | FH30: 0.940316659 | FI30: 0.9399257554 | FJ30: 0.9395350143 | FK30: 0.9391444357 | FL30: 0.9387540194 | FM30: 0.9383637654 | FN30: 0.9379736737 | FO30: 0.9375837441 | FP30: 0.9371939766 | FQ30: 0.9368043712 | FR30: 0.9364149277 | FS30: 0.9360256461 | FT30: 0.9356365263 | FU30: 0.9352475683 | FV30: 0.934858772 | FW30: 0.9344701374 | FX30: 0.9340816643 | FY30: 0.9336933526 | FZ30: 0.9333052025 | GA30: 0.9329172136 | GB30: 0.9325293861 | GC30: 0.9321417198 | GD30: 0.9317542146 | GE30: 0.9313668706 | GF30: 0.9309796875 | GG30: 0.9305926655 | GH30: 0.9302058043 | GI30: 0.9298191039 | GJ30: 0.9294325643 | GK30: 0.9290461854 | GL30: 0.9286599671 | GM30: 0.9282739094 | GN30: 0.9278880121 | GO30: 0.9275022753 | GP30: 0.9271166988 | GQ30: 0.9267312827 | GR30: 0.9263460267 | GS30: 0.9259609309 | GT30: 0.9255759952 | GU30: =GT30*(1-$G$30*GU7) -> 0.9251912195 | GV30: 0.9248066038 | GW30: 0.924422148 | GX30: 0.924037852 | GY30: 0.9236537157 | GZ30: 0.9232697392 | HA30: 0.9228859222 | HB30: 0.9225022648 | HC30: 0.922118767 | HD30: 0.9217354285 | HE30: 0.9213522494 | HF30: 0.9209692296 | HG30: 0.920586369 | HH30: 0.9202036676 | HI30: 0.9198211253 | HJ30: 0.919438742 | HK30: 0.9190565176 | HL30: 0.9186744522 | HM30: 0.9182925456 | HN30: 0.9179107978 | HO30: 0.9175292086 | HP30: 0.9171477781 | HQ30: 0.9167665061 | HR30: 0.9163853927 | HS30: 0.9160044377 | HT30: 0.915623641 | HU30: 0.9152430027 | HV30: 0.9148625226 | HW30: 0.9144822007 | HX30: 0.9141020368 | HY30: 0.9137220311 | HZ30: 0.9133421832 | IA30: 0.9129624933 | IB30: 0.9125829613 | IC30: 0.912203587 | ID30: 0.9118243704 | IE30: 0.9114453115 | IF30: 0.9110664102 | IG30: 0.9106876663 | IH30: 0.9103090799 | II30: 0.9099306509 | IJ30: 0.9095523793 | IK30: 0.9091742648 | IL30: 0.9087963076 | IM30: 0.9084185075 | IN30: 0.9080408644 | IO30: 0.9076633784 | IP30: 0.9072860492 | IQ30: 0.9069088769 | IR30: 0.9065318615 | IS30: 0.9061550027 | IT30: 0.9057783006 | IU30: 0.9054017551 | IV30: 0.9050253662 | IW30: 0.9046491337 | IX30: 0.9042730576 | IY30: 0.9038971379 | IZ30: 0.9035213744 | JA30: 0.9031457672 | JB30: 0.9027703161 | JC30: 0.9023950211 | JD30: 0.9020198821 | JE30: 0.901644899 | JF30: 0.9012700718 | JG30: =JF30*(1-$G$30*JG7) -> 0.9008954005 | JH30: 0.9005208849 | JI30: 0.900146525 | JJ30: 0.8997723207 | JK30: 0.899398272 | JL30: 0.8990243788 | JM30: 0.898650641 | JN30: 0.8982770586 | JO30: 0.8979036315 | JP30: 0.8975303596 | JQ30: 0.8971572429 | JR30: 0.8967842814 | JS30: 0.8964114748 | JT30: 0.8960388233 | JU30: 0.8956663266 | JV30: 0.8952939848 | JW30: 0.8949217978 | JX30: 0.8945497656 | JY30: 0.8941778879 | JZ30: 0.8938061649 | KA30: 0.8934345964 | KB30: 0.8930631824 | KC30: 0.8926919228 | KD30: 0.8923208175 | KE30: 0.8919498665 | KF30: 0.8915790697 | KG30: 0.891208427 | KH30: 0.8908379385 | KI30: 0.8904676039 | KJ30: 0.8900974233 | KK30: 0.8897273966 | KL30: 0.8893575237 | KM30: 0.8889878046 | KN30: 0.8886182391 | KO30: 0.8882488274 | KP30: 0.8878795691 | KQ30: 0.8875104644 | KR30: 0.8871415131 | KS30: 0.8867727152 | KT30: 0.8864040707 | KU30: 0.8860355793 | KV30: 0.8856672412 | KW30: 0.8852990562 | KX30: 0.8849310242 | KY30: 0.8845631452 | KZ30: 0.8841954192 | LA30: 0.8838278461 | LB30: 0.8834604257 | LC30: 0.8830931581 | LD30: 0.8827260431 | LE30: 0.8823590808 | LF30: 0.8819922711 | LG30: 0.8816256138 | LH30: 0.8812591089 | LI30: 0.8808927564 | LJ30: 0.8805265562 | LK30: 0.8801605083 | LL30: 0.8797946125 | LM30: 0.8794288688 | LN30: 0.8790632772 | LO30: 0.8786978375 | LP30: 0.8783325498 | LQ30: 0.8779674139 | LR30: 0.8776024298 | LS30: =LR30*(1-$G$30*LS7) -> 0.8772375975 | LT30: 0.8768729168 | LU30: 0.8765083877 | LV30: 0.8761440101 | LW30: 0.8757797841 | LX30: 0.8754157094 | LY30: 0.8750517861 | LZ30: 0.8746880141 | MA30: 0.8743243933 | MB30: 0.8739609237 | MC30: 0.8735976051 | MD30: 0.8732344376 | ME30: 0.8728714211 | MF30: 0.8725085555 | MG30: 0.8721458407 | MH30: 0.8717832768 | MI30: 0.8714208635 | MJ30: 0.8710586009 | MK30: 0.8706964889 | ML30: 0.8703345275 | MM30: 0.8699727165 | MN30: 0.8696110559 | MO30: 0.8692495457 | MP30: 0.8688881858 | MQ30: 0.8685269761 | MR30: 0.8681659165 | MS30: 0.867805007 | MT30: 0.8674442476 | MU30: 0.8670836382 | MV30: 0.8667231786 | MW30: 0.8663628689 | MX30: 0.866002709 | MY30: 0.8656426988 | MZ30: 0.8652828383 | NA30: 0.8649231274 | NB30: 0.864563566 | NC30: 0.8642041541 | ND30: 0.8638448916 | NE30: 0.8634857785 | NF30: 0.8631268146 | NG30: 0.862768 | NH30: 0.8624093345 | NI30: 0.8620508182 | NJ30: 0.8616924508 | NK30: 0.8613342325 | NL30: 0.8609761631 | NM30: 0.8606182425 | NN30: 0.8602604707 | NO30: 0.8599028477 | NP30: 0.8595453733 | NQ30: 0.8591880475 | NR30: 0.8588308703 | NS30: 0.8584738415 | NT30: 0.8581169612 | NU30: 0.8577602293 | NV30: 0.8574036456 | NW30: 0.8570472102 | NX30: 0.8566909229 | NY30: 0.8563347838 | NZ30: 0.8559787927 | OA30: 0.8556229496 | OB30: 0.8552672545 | OC30: 0.8549117072 | OD30: 0.8545563077 | OE30: =OD30*(1-$G$30*OE7) -> 0.8542010559 | OF30: 0.8538459519 | OG30: 0.8534909954 | OH30: 0.8531361866 | OI30: 0.8527815252 | OJ30: 0.8524270113 | OK30: 0.8520726447 | OL30: 0.8517184254 | OM30: 0.8513643534 | ON30: 0.8510104286 | OO30: 0.850656651 | OP30: 0.8503030204 | OQ30: 0.8499495368 | OR30: 0.8495962002 | OS30: 0.8492430104 | OT30: 0.8488899675 | OU30: 0.8485370713 | OV30: 0.8481843219 | OW30: 0.847831719 | OX30: 0.8474792628 | OY30: 0.8471269531 | OZ30: 0.8467747899 | PA30: 0.846422773 | PB30: 0.8460709025 | PC30: 0.8457191783 | PD30: 0.8453676002 | PE30: 0.8450161684 | PF30: 0.8446648826 | PG30: 0.8443137429 | PH30: 0.8439627491 | PI30: 0.8436119013 | PJ30: 0.8432611993 | PK30: 0.8429106431 | PL30: 0.8425602326 | PM30: 0.8422099678 | PN30: 0.8418598486 | PO30: 0.841509875 | PP30: 0.8411600469 | PQ30: 0.8408103641 | PR30: 0.8404608268 | PS30: 0.8401114348 | PT30: 0.839762188 | PU30: 0.839762188 | PV30: 0.839762188 | PW30: 0.839762188 | PX30: 0.839762188 | PY30: 0.839762188 | PZ30: 0.839762188 | QA30: 0.839762188 | QB30: 0.839762188 | QC30: 0.839762188 | QD30: 0.839762188 | QE30: 0.839762188 | QF30: 0.839762188 | QG30: 0.839762188 | QH30: 0.839762188 | QI30: 0.839762188 | QJ30: 0.839762188 | QK30: 0.839762188 | QL30: 0.839762188 | QM30: 0.839762188 | QN30: 0.839762188 | QO30: 0.839762188 | QP30: 0.839762188 | QQ30: =QP30*(1-$G$30*QQ7) -> 0.839762188 | QR30: 0.839762188 | QS30: 0.839762188 | QT30: 0.839762188 | QU30: 0.839762188 | QV30: 0.839762188 | QW30: 0.839762188 | QX30: 0.839762188 | QY30: 0.839762188 | QZ30: 0.839762188 | RA30: 0.839762188 | RB30: 0.839762188 | RC30: 0.839762188 | RD30: 0.839762188 | RE30: 0.839762188 | RF30: 0.839762188 | RG30: 0.839762188 | RH30: 0.839762188 | RI30: 0.839762188 | RJ30: 0.839762188 | RK30: 0.839762188 | RL30: 0.839762188 | RM30: 0.839762188 | RN30: 0.839762188 | RO30: 0.839762188 | RP30: 0.839762188 | RQ30: 0.839762188 | RR30: 0.839762188 | RS30: 0.839762188 | RT30: 0.839762188 | RU30: 0.839762188 | RV30: 0.839762188 | RW30: 0.839762188 | RX30: 0.839762188 | RY30: 0.839762188 | RZ30: 0.839762188 | SA30: 0.839762188 | SB30: 0.839762188 | SC30: 0.839762188 | SD30: 0.839762188 | SE30: 0.839762188 | SF30: 0.839762188 | SG30: 0.839762188 | SH30: 0.839762188 | SI30: 0.839762188 | SJ30: 0.839762188 | SK30: 0.839762188 | SL30: 0.839762188 | SM30: 0.839762188 | SN30: 0.839762188 | SO30: 0.839762188 | SP30: 0.839762188 | SQ30: 0.839762188 | SR30: 0.839762188 | SS30: 0.839762188 | ST30: 0.839762188 | SU30: 0.839762188 | SV30: 0.839762188 | SW30: 0.839762188 | SX30: 0.839762188 | SY30: 0.839762188 | SZ30: 0.839762188 | TA30: 0.839762188 | TB30: 0.839762188 | TC30: =TB30*(1-$G$30*TC7) -> 0.839762188 | TD30: 0.839762188 | TE30: 0.839762188 | TF30: 0.839762188 | TG30: 0.839762188 | TH30: 0.839762188 | TI30: 0.839762188 | TJ30: 0.839762188 | TK30: 0.839762188 | TL30: 0.839762188 | TM30: 0.839762188 | TN30: 0.839762188 | TO30: 0.839762188 | TP30: 0.839762188 | TQ30: 0.839762188 | TR30: 0.839762188 | TS30: 0.839762188 | TT30: 0.839762188 | TU30: 0.839762188 | TV30: 0.839762188 | TW30: 0.839762188 | TX30: 0.839762188 | TY30: 0.839762188 | TZ30: 0.839762188 | UA30: 0.839762188 | UB30: 0.839762188 | UC30: 0.839762188 | UD30: 0.839762188 | UE30: 0.839762188 | UF30: 0.839762188 | UG30: 0.839762188 | UH30: 0.839762188 | UI30: 0.839762188 | UJ30: 0.839762188 | UK30: 0.839762188 | UL30: 0.839762188 | UM30: 0.839762188 | UN30: 0.839762188 | UO30: 0.839762188 | UP30: 0.839762188 | UQ30: 0.839762188 | UR30: 0.839762188 | US30: 0.839762188 | UT30: 0.839762188 | UU30: 0.839762188 | UV30: 0.839762188 | UW30: 0.839762188 | UX30: 0.839762188 | UY30: 0.839762188 | UZ30: 0.839762188 | VA30: 0.839762188 | VB30: 0.839762188 | VC30: 0.839762188 | VD30: 0.839762188 | VE30: 0.839762188 | VF30: 0.839762188 | VG30: 0.839762188 | VH30: 0.839762188 | VI30: 0.839762188 | VJ30: 0.839762188 | VK30: 0.839762188 | VL30: 0.839762188 | VM30: 0.839762188 | VN30: 0.839762188 | VO30: =VN30*(1-$G$30*VO7) -> 0.839762188 | VP30: 0.839762188 | VQ30: 0.839762188 | VR30: 0.839762188 | VS30: 0.839762188 | VT30: 0.839762188 | VU30: 0.839762188 | VV30: 0.839762188 | VW30: 0.839762188 | VX30: 0.839762188 | VY30: 0.839762188 | VZ30: 0.839762188 | WA30: 0.839762188 | WB30: 0.839762188 | WC30: 0.839762188 | WD30: 0.839762188 | WE30: 0.839762188 | WF30: 0.839762188 | WG30: 0.839762188 | WH30: 0.839762188 | WI30: 0.839762188 | WJ30: 0.839762188 | WK30: 0.839762188 | WL30: 0.839762188 | WM30: 0.839762188 | WN30: 0.839762188 | WO30: 0.839762188 | WP30: 0.839762188 | WQ30: 0.839762188 | WR30: 0.839762188 | WS30: 0.839762188 | WT30: 0.839762188 | WU30: 0.839762188 | WV30: 0.839762188 | WW30: 0.839762188 | WX30: 0.839762188 | WY30: 0.839762188 | WZ30: 0.839762188 | XA30: 0.839762188 | XB30: 0.839762188 | XC30: 0.839762188 | XD30: 0.839762188 | XE30: 0.839762188 | XF30: 0.839762188 | XG30: 0.839762188 | XH30: 0.839762188 | XI30: 0.839762188 | XJ30: 0.839762188 | XK30: 0.839762188 | XL30: 0.839762188 | XM30: 0.839762188 | XN30: 0.839762188 | XO30: 0.839762188 | XP30: 0.839762188 | XQ30: 0.839762188 | XR30: 0.839762188 | XS30: 0.839762188 | XT30: 0.839762188 | XU30: 0.839762188 | XV30: 0.839762188 | XW30: 0.839762188 | XX30: 0.839762188 | XY30: 0.839762188 | XZ30: 0.839762188 | YA30: =XZ30*(1-$G$30*YA7) -> 0.839762188 | YB30: 0.839762188 | YC30: 0.839762188 | YD30: 0.839762188 | YE30: 0.839762188 | YF30: 0.839762188 | YG30: 0.839762188 | YH30: 0.839762188 | YI30: 0.839762188 | YJ30: 0.839762188 | YK30: 0.839762188 | YL30: 0.839762188 | YM30: 0.839762188 | YN30: 0.839762188 | YO30: 0.839762188 | YP30: 0.839762188 | YQ30: 0.839762188 | YR30: 0.839762188 | YS30: 0.839762188 | YT30: 0.839762188 | YU30: 0.839762188 | YV30: 0.839762188 | YW30: 0.839762188 | YX30: 0.839762188 | YY30: 0.839762188 | YZ30: 0.839762188 | ZA30: 0.839762188 | ZB30: 0.839762188 | ZC30: 0.839762188 | ZD30: 0.839762188 | ZE30: 0.839762188 | ZF30: 0.839762188 | ZG30: 0.839762188 | ZH30: 0.839762188 | ZI30: 0.839762188 | ZJ30: 0.839762188 | ZK30: 0.839762188 | ZL30: 0.839762188 | ZM30: 0.839762188 | ZN30: 0.839762188 | ZO30: 0.839762188 | ZP30: 0.839762188 | ZQ30: 0.839762188 | ZR30: 0.839762188 | ZS30: 0.839762188 | ZT30: 0.839762188 | ZU30: 0.839762188 | ZV30: 0.839762188 | ZW30: 0.839762188 | ZX30: 0.839762188 | ZY30: 0.839762188 | ZZ30: 0.839762188 | AAA30: 0.839762188 | AAB30: 0.839762188 | AAC30: 0.839762188 | AAD30: 0.839762188 | AAE30: 0.839762188 | AAF30: 0.839762188 | AAG30: 0.839762188 | AAH30: 0.839762188 | AAI30: 0.839762188 | AAJ30: 0.839762188 | AAK30: 0.839762188 | AAL30: 0.839762188 | AAM30: =AAL30*(1-$G$30*AAM7) -> 0.839762188 | AAN30: 0.839762188 | AAO30: 0.839762188 | AAP30: 0.839762188 | AAQ30: 0.839762188 | AAR30: 0.839762188 | AAS30: 0.839762188 | AAT30: 0.839762188 | AAU30: 0.839762188 | AAV30: 0.839762188 | AAW30: 0.839762188 | AAX30: 0.839762188 | AAY30: 0.839762188 | AAZ30: 0.839762188 | ABA30: 0.839762188 | ABB30: 0.839762188 | ABC30: 0.839762188 | ABD30: 0.839762188 | ABE30: 0.839762188 | ABF30: 0.839762188 | ABG30: 0.839762188 | ABH30: 0.839762188 | ABI30: 0.839762188 | ABJ30: 0.839762188 | ABK30: 0.839762188 | ABL30: 0.839762188 | ABM30: 0.839762188 | ABN30: 0.839762188 | ABO30: 0.839762188 | ABP30: 0.839762188 | ABQ30: 0.839762188 | ABR30: 0.839762188 | ABS30: 0.839762188 | ABT30: 0.839762188 | ABU30: 0.839762188 | ABV30: 0.839762188 | ABW30: 0.839762188 | ABX30: 0.839762188 | ABY30: 0.839762188 | ABZ30: 0.839762188
D32: Solar Generation After Degradation | E32: kWh | K32: =K26*K$30 -> 0 | L32: =L26*L$30 -> 0 | M32: 0 | N32: 0 | O32: 0 | P32: 0 | Q32: 214182.9239 | R32: 214093.8849 | S32: 207101.4996 | T32: 213915.9179 | U32: 206929.3451 | V32: 213738.0988 | W32: 213649.2447 | X32: 192893.2894 | Y32: 213471.6473 | Z32: 206499.5845 | AA32: 213294.1976 | AB32: 206327.9303 | AC32: 213116.8953 | AD32: 213028.2994 | AE32: 206070.7165 | AF32: 212851.2182 | AG32: 205899.4188 | AH32: 212674.2842 | AI32: 212585.8723 | AJ32: 191933.2233 | AK32: 212409.1588 | AL32: 205471.7973 | AM32: 212232.5923 | AN32: 205300.9974 | AO32: 212056.1725 | AP32: 211968.0176 | AQ32: 205045.0639 | AR32: 211791.8177 | AS32: 204874.6187 | AT32: 211615.7643 | AU32: 211527.7925 | AV32: 197798.5761 | AW32: 211351.9585 | AX32: 204449.1255 | AY32: 211176.2708 | AZ32: 204279.1758 | BA32: 211000.7291 | BB32: 210913.0129 | BC32: 204024.516 | BD32: 210737.69 | BE32: 203854.9193 | BF32: 210562.5129 | BG32: 210474.9789 | BH32: 190027.4025 | BI32: 210300.0201 | BJ32: 203431.5438 | BK32: 210125.2068 | BL32: 203262.44 | BM32: 209950.5388 | BN32: 209863.2592 | BO32: 203009.0477 | BP32: 209688.8089 | BQ32: 202840.295 | BR32: 209514.5037 | BS32: 209427.4054 | BT32: 189081.6004 | BU32: 209253.3174 | BV32: 202419.0268 | BW32: 209079.3742 | BX32: =BX26*BX$30 -> 202250.7646 | BY32: 208905.5755 | BZ32: 208818.7304 | CA32: 201998.6335 | CB32: 208645.1483 | CC32: 201830.7208 | CD32: 208471.7106 | CE32: 208385.0459 | CF32: 188140.5058 | CG32: 208211.8244 | CH32: 201411.5493 | CI32: 208038.7468 | CJ32: 201244.1246 | CK32: 207865.8132 | CL32: 207779.4003 | CM32: 200993.2484 | CN32: 207606.6822 | CO32: 200826.1714 | CP32: 207434.1078 | CQ32: 207347.8743 | CR32: 193889.9557 | CS32: 207175.515 | CT32: 200409.0862 | CU32: 207003.2989 | CV32: 200242.4947 | CW32: 206831.226 | CX32: 206745.2432 | CY32: 199992.8672 | CZ32: 206573.3848 | DA32: 199826.6218 | DB32: 206401.6692 | DC32: 206315.865 | DD32: 186272.3452 | DE32: 206144.3635 | DF32: 199411.6125 | DG32: 205973.0046 | DH32: 199245.8502 | DI32: 205801.7881 | DJ32: 205716.2333 | DK32: 198997.4651 | DL32: 205545.2302 | DM32: 198832.0471 | DN32: 205374.3693 | DO32: 205288.9922 | DP32: 185345.2327 | DQ32: 205118.3443 | DR32: 198419.1034 | DS32: 204947.8383 | DT32: 198254.1662 | DU32: 204777.474 | DV32: 204692.3449 | DW32: 198007.0174 | DX32: 204522.193 | DY32: 197842.4227 | DZ32: 204352.1825 | EA32: 204267.2303 | EB32: 184422.7347 | EC32: 204097.4318 | ED32: 197431.5343 | EE32: 203927.7744 | EF32: 197267.418 | EG32: 203758.258 | EH32: 203673.5527 | EI32: 197021.4992 | EJ32: =EJ26*EJ$30 -> 203504.2476 | EK32: 196857.7238 | EL32: 203335.0833 | EM32: 203250.5539 | EN32: 190058.5719 | EO32: 203081.6005 | EP32: 196448.8804 | EQ32: 202912.7875 | ER32: 196285.581 | ES32: 202744.1149 | ET32: 202659.8311 | EU32: 196040.8862 | EV32: 202491.3687 | EW32: 195877.9259 | EX32: 202323.0464 | EY32: 202238.9377 | EZ32: 182591.49 | FA32: 202070.8252 | FB32: 195471.1174 | FC32: 201902.8524 | FD32: 195308.6307 | FE32: 201735.0193 | FF32: 201651.1551 | FG32: 195065.1539 | FH32: 201483.5312 | FI32: 194903.0046 | FJ32: 201316.0466 | FK32: 201232.3565 | FL32: 181682.6979 | FM32: 201065.0807 | FN32: 194498.221 | FO32: 200897.944 | FP32: 194336.543 | FQ32: 200730.9462 | FR32: 200647.4994 | FS32: 194094.278 | FT32: 200480.7098 | FU32: 193932.9358 | FV32: 200314.0588 | FW32: 200230.7853 | FX32: 180778.429 | FY32: 200064.3421 | FZ32: 193530.1668 | GA32: 199898.0372 | GB32: 193369.2935 | GC32: 199731.8706 | GD32: 199648.8391 | GE32: 193128.2343 | GF32: 199482.8796 | GG32: 192967.6951 | GH32: 199317.0581 | GI32: 199234.199 | GJ32: 186302.8987 | GK32: 199068.5842 | GL32: 192566.9308 | GM32: 198903.1071 | GN32: 192406.8582 | GO32: 198737.7675 | GP32: 198655.1493 | GQ32: 192166.9988 | GR32: 198490.0158 | GS32: 192007.2586 | GT32: 198325.0196 | GU32: 198242.573 | GV32: =GV26*GV$30 -> 178983.3709 | GW32: 198077.7825 | GX32: 191608.489 | GY32: 197913.129 | GZ32: 191449.2131 | HA32: 197748.6123 | HB32: 197666.4053 | HC32: 191210.5475 | HD32: 197502.0937 | HE32: 191051.6024 | HF32: 197337.9188 | HG32: 197255.8825 | HH32: 178092.537 | HI32: 197091.9122 | HJ32: 190654.8175 | HK32: 196928.0781 | HL32: 190496.3344 | HM32: 196764.3803 | HN32: 196682.5825 | HO32: 190258.8567 | HP32: 196519.0887 | HQ32: 190100.7027 | HR32: 196355.7309 | HS32: 196274.1029 | HT32: 177206.137 | HU32: 196110.9487 | HV32: 189705.8927 | HW32: 195947.9301 | HX32: 189548.1984 | HY32: 195785.047 | HZ32: 195703.6563 | IA32: 189311.9026 | IB32: 195540.9763 | IC32: 189154.5358 | ID32: 195378.4315 | IE32: 195297.2098 | IF32: 182621.4398 | IG32: 195134.8676 | IH32: 188761.6908 | II32: 194972.6604 | IJ32: 188604.7814 | IK32: 194810.5881 | IL32: 194729.6024 | IM32: 188369.6617 | IN32: 194567.7321 | IO32: 188213.0781 | IP32: 194405.9963 | IQ32: 194325.1789 | IR32: 175446.5503 | IS32: 194163.6447 | IT32: 187822.1884 | IU32: 194002.2449 | IV32: 187666.0599 | IW32: 193840.9792 | IX32: 193760.3966 | IY32: 187432.1105 | IZ32: 193599.3319 | JA32: 187276.3063 | JB32: 193438.4012 | JC32: 193357.986 | JD32: 174573.3199 | JE32: 193197.2558 | JF32: 186887.3621 | JG32: 193036.6593 | JH32: =JH26*JH$30 -> 186732.0107 | JI32: 192876.1962 | JJ32: 192796.0147 | JK32: 186499.2257 | JL32: 192635.7517 | JM32: 186344.1969 | JN32: 192475.6219 | JO32: 192395.6069 | JP32: 173704.4357 | JQ32: 192235.6768 | JR32: 185957.1886 | JS32: 192075.8795 | JT32: 185802.6104 | JU32: 191916.2151 | JV32: 191836.4327 | JW32: 185570.984 | JX32: 191676.9674 | JY32: 185416.7268 | JZ32: 191517.6346 | KA32: 191438.0178 | KB32: 179012.7288 | KC32: 191278.8837 | KD32: 185031.6447 | KE32: 191119.8818 | KF32: 184877.8359 | KG32: 190961.0121 | KH32: 190881.6267 | KI32: 184647.3623 | KJ32: 190722.9551 | KK32: 184493.873 | KL32: 190564.4153 | KM32: 190485.1949 | KN32: 171979.6195 | KO32: 190326.8527 | KP32: 184110.7075 | KQ32: 190168.6422 | KR32: 183957.6642 | KS32: 190010.5632 | KT32: 189931.573 | KU32: 183728.3377 | KV32: 189773.6911 | KW32: 183575.6123 | KX32: 189615.9404 | KY32: 189537.1143 | KZ32: 171123.6447 | LA32: 189379.5602 | LB32: 183194.3539 | LC32: 189222.1372 | LD32: 183042.0723 | LE32: 189064.845 | LF32: 188986.2479 | LG32: 182813.8873 | LH32: 188829.1518 | LI32: 182661.922 | LJ32: 188672.1863 | LK32: 188593.7524 | LL32: 170271.9301 | LM32: 188436.9826 | LN32: 182282.5612 | LO32: 188280.343 | LP32: 182131.0375 | LQ32: 188123.8337 | LR32: 188045.6278 | LS32: 181903.9882 | LT32: =LT26*LT$30 -> 187889.3136 | LU32: 181752.7793 | LV32: 187733.1293 | LW32: 187655.0859 | LX32: 175475.3281 | LY32: 187499.0963 | LZ32: 181375.3066 | MA32: 187343.2364 | MB32: 181224.5371 | MC32: 187187.506 | MD32: 187109.6894 | ME32: 180998.6179 | MF32: 186954.1532 | MG32: 180848.1615 | MH32: 186798.7463 | MI32: 186721.0913 | MJ32: 168581.1974 | MK32: 186565.8781 | ML32: 180472.5676 | MM32: 186410.7939 | MN32: 180322.5486 | MO32: 186255.8387 | MP32: 186178.4093 | MQ32: 180097.7538 | MR32: 186023.6473 | MS32: 179948.0463 | MT32: 185869.0138 | MU32: 185791.7453 | MV32: 167742.1371 | MW32: 185637.3047 | MX32: 179574.3217 | MY32: 185482.9924 | MZ32: 179425.0494 | NA32: 185328.8084 | NB32: 185251.7644 | NC32: 179201.3734 | ND32: 185097.7726 | NE32: 179052.411 | NF32: 184943.9088 | NG32: 184867.0249 | NH32: 166907.253 | NI32: 184713.3529 | NJ32: 178680.5466 | NK32: 184559.8087 | NL32: 178532.0172 | NM32: 184406.3921 | NN32: 184329.7316 | NO32: 178309.4545 | NP32: 184176.5062 | NQ32: 178161.2335 | NR32: 184023.4082 | NS32: 183946.907 | NT32: 172007.8286 | NU32: 183793.9998 | NV32: 177791.22 | NW32: 183641.2198 | NX32: 177643.4298 | NY32: 183488.5668 | NZ32: 183412.2879 | OA32: 177421.9748 | OB32: 183259.8251 | OC32: 177274.4916 | OD32: 183107.4892 | OE32: 183031.3687 | OF32: =OF26*OF$30 -> 165249.9301 | OG32: 182879.2226 | OH32: 176906.3196 | OI32: 182727.203 | OJ32: 176759.2651 | OK32: 182575.3097 | OL32: 182499.4105 | OM32: 176538.9123 | ON32: 182347.7066 | OO32: 176392.1631 | OP32: 182196.1288 | OQ32: 182120.3871 | OR32: 164427.4502 | OS32: 181968.9983 | OT32: 176025.8237 | OU32: 181817.7353 | OV32: 175879.501 | OW32: 181666.5981 | OX32: 181591.0766 | OY32: 175660.245 | OZ32: 181440.1278 | PA32: 175514.2262 | PB32: 181289.3044 | PC32: 181213.9398 | PD32: 163609.0639 | PE32: 181063.3044 | PF32: 175149.7101 | PG32: 180912.7943 | PH32: 175004.1157 | PI32: 180762.4093 | PJ32: 180687.2637 | PK32: 174785.951 | PL32: 180537.0662 | PM32: 174640.6589 | PN32: 180386.9935 | PO32: 180312.0039 | PP32: 168608.8491 | PQ32: 180162.1183 | PR32: 174277.957 | PS32: 180012.3573 | PT32: 174133.0873 | PU32: 0 | PV32: 0 | PW32: 0 | PX32: 0 | PY32: 0 | PZ32: 0 | QA32: 0 | QB32: 0 | QC32: 0 | QD32: 0 | QE32: 0 | QF32: 0 | QG32: 0 | QH32: 0 | QI32: 0 | QJ32: 0 | QK32: 0 | QL32: 0 | QM32: 0 | QN32: 0 | QO32: 0 | QP32: 0 | QQ32: 0 | QR32: =QR26*QR$30 -> 0 | QS32: 0 | QT32: 0 | QU32: 0 | QV32: 0 | QW32: 0 | QX32: 0 | QY32: 0 | QZ32: 0 | RA32: 0 | RB32: 0 | RC32: 0 | RD32: 0 | RE32: 0 | RF32: 0 | RG32: 0 | RH32: 0 | RI32: 0 | RJ32: 0 | RK32: 0 | RL32: 0 | RM32: 0 | RN32: 0 | RO32: 0 | RP32: 0 | RQ32: 0 | RR32: 0 | RS32: 0 | RT32: 0 | RU32: 0 | RV32: 0 | RW32: 0 | RX32: 0 | RY32: 0 | RZ32: 0 | SA32: 0 | SB32: 0 | SC32: 0 | SD32: 0 | SE32: 0 | SF32: 0 | SG32: 0 | SH32: 0 | SI32: 0 | SJ32: 0 | SK32: 0 | SL32: 0 | SM32: 0 | SN32: 0 | SO32: 0 | SP32: 0 | SQ32: 0 | SR32: 0 | SS32: 0 | ST32: 0 | SU32: 0 | SV32: 0 | SW32: 0 | SX32: 0 | SY32: 0 | SZ32: 0 | TA32: 0 | TB32: 0 | TC32: 0 | TD32: =TD26*TD$30 -> 0 | TE32: 0 | TF32: 0 | TG32: 0 | TH32: 0 | TI32: 0 | TJ32: 0 | TK32: 0 | TL32: 0 | TM32: 0 | TN32: 0 | TO32: 0 | TP32: 0 | TQ32: 0 | TR32: 0 | TS32: 0 | TT32: 0 | TU32: 0 | TV32: 0 | TW32: 0 | TX32: 0 | TY32: 0 | TZ32: 0 | UA32: 0 | UB32: 0 | UC32: 0 | UD32: 0 | UE32: 0 | UF32: 0 | UG32: 0 | UH32: 0 | UI32: 0 | UJ32: 0 | UK32: 0 | UL32: 0 | UM32: 0 | UN32: 0 | UO32: 0 | UP32: 0 | UQ32: 0 | UR32: 0 | US32: 0 | UT32: 0 | UU32: 0 | UV32: 0 | UW32: 0 | UX32: 0 | UY32: 0 | UZ32: 0 | VA32: 0 | VB32: 0 | VC32: 0 | VD32: 0 | VE32: 0 | VF32: 0 | VG32: 0 | VH32: 0 | VI32: 0 | VJ32: 0 | VK32: 0 | VL32: 0 | VM32: 0 | VN32: 0 | VO32: 0 | VP32: =VP26*VP$30 -> 0 | VQ32: 0 | VR32: 0 | VS32: 0 | VT32: 0 | VU32: 0 | VV32: 0 | VW32: 0 | VX32: 0 | VY32: 0 | VZ32: 0 | WA32: 0 | WB32: 0 | WC32: 0 | WD32: 0 | WE32: 0 | WF32: 0 | WG32: 0 | WH32: 0 | WI32: 0 | WJ32: 0 | WK32: 0 | WL32: 0 | WM32: 0 | WN32: 0 | WO32: 0 | WP32: 0 | WQ32: 0 | WR32: 0 | WS32: 0 | WT32: 0 | WU32: 0 | WV32: 0 | WW32: 0 | WX32: 0 | WY32: 0 | WZ32: 0 | XA32: 0 | XB32: 0 | XC32: 0 | XD32: 0 | XE32: 0 | XF32: 0 | XG32: 0 | XH32: 0 | XI32: 0 | XJ32: 0 | XK32: 0 | XL32: 0 | XM32: 0 | XN32: 0 | XO32: 0 | XP32: 0 | XQ32: 0 | XR32: 0 | XS32: 0 | XT32: 0 | XU32: 0 | XV32: 0 | XW32: 0 | XX32: 0 | XY32: 0 | XZ32: 0 | YA32: 0 | YB32: =YB26*YB$30 -> 0 | YC32: 0 | YD32: 0 | YE32: 0 | YF32: 0 | YG32: 0 | YH32: 0 | YI32: 0 | YJ32: 0 | YK32: 0 | YL32: 0 | YM32: 0 | YN32: 0 | YO32: 0 | YP32: 0 | YQ32: 0 | YR32: 0 | YS32: 0 | YT32: 0 | YU32: 0 | YV32: 0 | YW32: 0 | YX32: 0 | YY32: 0 | YZ32: 0 | ZA32: 0 | ZB32: 0 | ZC32: 0 | ZD32: 0 | ZE32: 0 | ZF32: 0 | ZG32: 0 | ZH32: 0 | ZI32: 0 | ZJ32: 0 | ZK32: 0 | ZL32: 0 | ZM32: 0 | ZN32: 0 | ZO32: 0 | ZP32: 0 | ZQ32: 0 | ZR32: 0 | ZS32: 0 | ZT32: 0 | ZU32: 0 | ZV32: 0 | ZW32: 0 | ZX32: 0 | ZY32: 0 | ZZ32: 0 | AAA32: 0 | AAB32: 0 | AAC32: 0 | AAD32: 0 | AAE32: 0 | AAF32: 0 | AAG32: 0 | AAH32: 0 | AAI32: 0 | AAJ32: 0 | AAK32: 0 | AAL32: 0 | AAM32: 0 | AAN32: =AAN26*AAN$30 -> 0 | AAO32: 0 | AAP32: 0 | AAQ32: 0 | AAR32: 0 | AAS32: 0 | AAT32: 0 | AAU32: 0 | AAV32: 0 | AAW32: 0 | AAX32: 0 | AAY32: 0 | AAZ32: 0 | ABA32: 0 | ABB32: 0 | ABC32: 0 | ABD32: 0 | ABE32: 0 | ABF32: 0 | ABG32: 0 | ABH32: 0 | ABI32: 0 | ABJ32: 0 | ABK32: 0 | ABL32: 0 | ABM32: 0 | ABN32: 0 | ABO32: 0 | ABP32: 0 | ABQ32: 0 | ABR32: 0 | ABS32: 0 | ABT32: 0 | ABU32: 0 | ABV32: 0 | ABW32: 0 | ABX32: 0 | ABY32: 0 | ABZ32: 0
D33: Wind Generation After Degradation | E33: kWh | K33: =K27*K$30 -> 0 | L33: 0 | M33: 0 | N33: 0 | O33: 0 | P33: 0 | Q33: 0 | R33: 0 | S33: 0 | T33: 0 | U33: 0 | V33: 0 | W33: 0 | X33: 0 | Y33: 0 | Z33: 0 | AA33: 0 | AB33: 0 | AC33: 0 | AD33: 0 | AE33: 0 | AF33: 0 | AG33: 0 | AH33: 0 | AI33: 0 | AJ33: 0 | AK33: 0 | AL33: 0 | AM33: 0 | AN33: 0 | AO33: 0 | AP33: 0 | AQ33: 0 | AR33: 0 | AS33: 0 | AT33: 0 | AU33: 0 | AV33: 0 | AW33: 0 | AX33: 0 | AY33: 0 | AZ33: 0 | BA33: 0 | BB33: 0 | BC33: 0 | BD33: 0 | BE33: 0 | BF33: 0 | BG33: 0 | BH33: 0 | BI33: 0 | BJ33: 0 | BK33: 0 | BL33: 0 | BM33: 0 | BN33: 0 | BO33: 0 | BP33: 0 | BQ33: 0 | BR33: 0 | BS33: 0 | BT33: 0 | BU33: 0 | BV33: 0 | BW33: 0 | BX33: 0 | BY33: 0 | BZ33: 0 | CA33: 0 | CB33: 0 | CC33: 0 | CD33: 0 | CE33: 0 | CF33: 0 | CG33: 0 | CH33: 0 | CI33: 0 | CJ33: 0 | CK33: 0 | CL33: 0 | CM33: 0 | CN33: 0 | CO33: 0 | CP33: 0 | CQ33: 0 | CR33: 0 | CS33: 0 | CT33: 0 | CU33: 0 | CV33: 0 | CW33: 0 | CX33: 0 | CY33: 0 | CZ33: 0 | DA33: 0 | DB33: 0 | DC33: 0 | DD33: 0 | DE33: 0 | DF33: 0 | DG33: 0 | DH33: 0 | DI33: 0 | DJ33: 0 | DK33: 0 | DL33: 0 | DM33: 0 | DN33: 0 | DO33: 0 | DP33: 0 | DQ33: 0 | DR33: 0 | DS33: 0 | DT33: 0 | DU33: 0 | DV33: 0 | DW33: 0 | DX33: 0 | DY33: 0 | DZ33: 0 | EA33: 0 | EB33: 0 | EC33: 0 | ED33: 0 | EE33: 0 | EF33: 0 | EG33: 0 | EH33: 0 | EI33: 0 | EJ33: 0 | EK33: 0 | EL33: 0 | EM33: 0 | EN33: 0 | EO33: 0 | EP33: 0 | EQ33: 0 | ER33: 0 | ES33: 0 | ET33: 0 | EU33: 0 | EV33: 0 | EW33: 0 | EX33: 0 | EY33: 0 | EZ33: 0 | FA33: 0 | FB33: 0 | FC33: 0 | FD33: 0 | FE33: 0 | FF33: 0 | FG33: 0 | FH33: 0 | FI33: 0 | FJ33: 0 | FK33: 0 | FL33: 0 | FM33: 0 | FN33: 0 | FO33: 0 | FP33: 0 | FQ33: 0 | FR33: 0 | FS33: 0 | FT33: 0 | FU33: 0 | FV33: 0 | FW33: 0 | FX33: 0 | FY33: 0 | FZ33: 0 | GA33: 0 | GB33: 0 | GC33: 0 | GD33: 0 | GE33: 0 | GF33: 0 | GG33: 0 | GH33: 0 | GI33: 0 | GJ33: 0 | GK33: 0 | GL33: 0 | GM33: 0 | GN33: 0 | GO33: 0 | GP33: 0 | GQ33: 0 | GR33: 0 | GS33: 0 | GT33: 0 | GU33: 0 | GV33: 0 | GW33: 0 | GX33: 0 | GY33: 0 | GZ33: 0 | HA33: 0 | HB33: 0 | HC33: 0 | HD33: 0 | HE33: 0 | HF33: 0 | HG33: 0 | HH33: 0 | HI33: 0 | HJ33: 0 | HK33: 0 | HL33: 0 | HM33: 0 | HN33: 0 | HO33: 0 | HP33: 0 | HQ33: 0 | HR33: 0 | HS33: 0 | HT33: 0 | HU33: 0 | HV33: 0 | HW33: 0 | HX33: 0 | HY33: 0 | HZ33: 0 | IA33: 0 | IB33: 0 | IC33: 0 | ID33: 0 | IE33: 0 | IF33: 0 | IG33: 0 | IH33: 0 | II33: 0 | IJ33: 0 | IK33: 0 | IL33: 0 | IM33: 0 | IN33: 0 | IO33: 0 | IP33: 0 | IQ33: 0 | IR33: 0 | IS33: 0 | IT33: 0 | IU33: 0 | IV33: 0 | IW33: 0 | IX33: 0 | IY33: 0 | IZ33: 0 | JA33: 0 | JB33: 0 | JC33: 0 | JD33: 0 | JE33: 0 | JF33: 0 | JG33: 0 | JH33: 0 | JI33: 0 | JJ33: 0 | JK33: 0 | JL33: 0 | JM33: 0 | JN33: 0 | JO33: 0 | JP33: 0 | JQ33: 0 | JR33: 0 | JS33: 0 | JT33: 0 | JU33: 0 | JV33: 0 | JW33: 0 | JX33: 0 | JY33: 0 | JZ33: 0 | KA33: 0 | KB33: 0 | KC33: 0 | KD33: 0 | KE33: 0 | KF33: 0 | KG33: 0 | KH33: 0 | KI33: 0 | KJ33: 0 | KK33: 0 | KL33: 0 | KM33: 0 | KN33: 0 | KO33: 0 | KP33: 0 | KQ33: 0 | KR33: 0 | KS33: 0 | KT33: 0 | KU33: 0 | KV33: 0 | KW33: 0 | KX33: 0 | KY33: 0 | KZ33: 0 | LA33: 0 | LB33: 0 | LC33: 0 | LD33: 0 | LE33: 0 | LF33: 0 | LG33: 0 | LH33: 0 | LI33: 0 | LJ33: 0 | LK33: 0 | LL33: 0 | LM33: 0 | LN33: 0 | LO33: 0 | LP33: 0 | LQ33: 0 | LR33: 0 | LS33: 0 | LT33: 0 | LU33: 0 | LV33: 0 | LW33: 0 | LX33: 0 | LY33: 0 | LZ33: 0 | MA33: 0 | MB33: 0 | MC33: 0 | MD33: 0 | ME33: 0 | MF33: 0 | MG33: 0 | MH33: 0 | MI33: 0 | MJ33: 0 | MK33: 0 | ML33: 0 | MM33: 0 | MN33: 0 | MO33: 0 | MP33: 0 | MQ33: 0 | MR33: 0 | MS33: 0 | MT33: 0 | MU33: 0 | MV33: 0 | MW33: 0 | MX33: 0 | MY33: 0 | MZ33: 0 | NA33: 0 | NB33: 0 | NC33: 0 | ND33: 0 | NE33: 0 | NF33: 0 | NG33: 0 | NH33: 0 | NI33: 0 | NJ33: 0 | NK33: 0 | NL33: 0 | NM33: 0 | NN33: 0 | NO33: 0 | NP33: 0 | NQ33: 0 | NR33: 0 | NS33: 0 | NT33: 0 | NU33: 0 | NV33: 0 | NW33: 0 | NX33: 0 | NY33: 0 | NZ33: 0 | OA33: 0 | OB33: 0 | OC33: 0 | OD33: 0 | OE33: 0 | OF33: 0 | OG33: 0 | OH33: 0 | OI33: 0 | OJ33: 0 | OK33: 0 | OL33: 0 | OM33: 0 | ON33: 0 | OO33: 0 | OP33: 0 | OQ33: 0 | OR33: 0 | OS33: 0 | OT33: 0 | OU33: 0 | OV33: 0 | OW33: 0 | OX33: 0 | OY33: 0 | OZ33: 0 | PA33: 0 | PB33: 0 | PC33: 0 | PD33: 0 | PE33: 0 | PF33: 0 | PG33: 0 | PH33: 0 | PI33: 0 | PJ33: 0 | PK33: 0 | PL33: 0 | PM33: 0 | PN33: 0 | PO33: 0 | PP33: 0 | PQ33: 0 | PR33: 0 | PS33: 0 | PT33: 0 | PU33: 0 | PV33: 0 | PW33: 0 | PX33: 0 | PY33: 0 | PZ33: 0 | QA33: 0 | QB33: 0 | QC33: 0 | QD33: 0 | QE33: 0 | QF33: 0 | QG33: 0 | QH33: 0 | QI33: 0 | QJ33: 0 | QK33: 0 | QL33: 0 | QM33: 0 | QN33: 0 | QO33: 0 | QP33: 0 | QQ33: 0 | QR33: 0 | QS33: 0 | QT33: 0 | QU33: 0 | QV33: 0 | QW33: 0 | QX33: 0 | QY33: 0 | QZ33: 0 | RA33: 0 | RB33: 0 | RC33: 0 | RD33: 0 | RE33: 0 | RF33: 0 | RG33: 0 | RH33: 0 | RI33: 0 | RJ33: 0 | RK33: 0 | RL33: 0 | RM33: 0 | RN33: 0 | RO33: 0 | RP33: 0 | RQ33: 0 | RR33: 0 | RS33: 0 | RT33: 0 | RU33: 0 | RV33: 0 | RW33: 0 | RX33: 0 | RY33: 0 | RZ33: 0 | SA33: 0 | SB33: 0 | SC33: 0 | SD33: 0 | SE33: 0 | SF33: 0 | SG33: 0 | SH33: 0 | SI33: 0 | SJ33: 0 | SK33: 0 | SL33: 0 | SM33: 0 | SN33: 0 | SO33: 0 | SP33: 0 | SQ33: 0 | SR33: 0 | SS33: 0 | ST33: 0 | SU33: 0 | SV33: 0 | SW33: 0 | SX33: 0 | SY33: 0 | SZ33: 0 | TA33: 0 | TB33: 0 | TC33: 0 | TD33: 0 | TE33: 0 | TF33: 0 | TG33: 0 | TH33: 0 | TI33: 0 | TJ33: 0 | TK33: 0 | TL33: 0 | TM33: 0 | TN33: 0 | TO33: 0 | TP33: 0 | TQ33: 0 | TR33: 0 | TS33: 0 | TT33: 0 | TU33: 0 | TV33: 0 | TW33: 0 | TX33: 0 | TY33: 0 | TZ33: 0 | UA33: 0 | UB33: 0 | UC33: 0 | UD33: 0 | UE33: 0 | UF33: 0 | UG33: 0 | UH33: 0 | UI33: 0 | UJ33: 0 | UK33: 0 | UL33: 0 | UM33: 0 | UN33: 0 | UO33: 0 | UP33: 0 | UQ33: 0 | UR33: 0 | US33: 0 | UT33: 0 | UU33: 0 | UV33: 0 | UW33: 0 | UX33: 0 | UY33: 0 | UZ33: 0 | VA33: 0 | VB33: 0 | VC33: 0 | VD33: 0 | VE33: 0 | VF33: 0 | VG33: 0 | VH33: 0 | VI33: 0 | VJ33: 0 | VK33: 0 | VL33: 0 | VM33: 0 | VN33: 0 | VO33: 0 | VP33: 0 | VQ33: 0 | VR33: 0 | VS33: 0 | VT33: 0 | VU33: 0 | VV33: 0 | VW33: 0 | VX33: 0 | VY33: 0 | VZ33: 0 | WA33: 0 | WB33: 0 | WC33: 0 | WD33: 0 | WE33: 0 | WF33: 0 | WG33: 0 | WH33: 0 | WI33: 0 | WJ33: 0 | WK33: 0 | WL33: 0 | WM33: 0 | WN33: 0 | WO33: 0 | WP33: 0 | WQ33: 0 | WR33: 0 | WS33: 0 | WT33: 0 | WU33: 0 | WV33: 0 | WW33: 0 | WX33: 0 | WY33: 0 | WZ33: 0 | XA33: 0 | XB33: 0 | XC33: 0 | XD33: 0 | XE33: 0 | XF33: 0 | XG33: 0 | XH33: 0 | XI33: 0 | XJ33: 0 | XK33: 0 | XL33: 0 | XM33: 0 | XN33: 0 | XO33: 0 | XP33: 0 | XQ33: 0 | XR33: 0 | XS33: 0 | XT33: 0 | XU33: 0 | XV33: 0 | XW33: 0 | XX33: 0 | XY33: 0 | XZ33: 0 | YA33: 0 | YB33: 0 | YC33: 0 | YD33: 0 | YE33: 0 | YF33: 0 | YG33: 0 | YH33: 0 | YI33: 0 | YJ33: 0 | YK33: 0 | YL33: 0 | YM33: 0 | YN33: 0 | YO33: 0 | YP33: 0 | YQ33: 0 | YR33: 0 | YS33: 0 | YT33: 0 | YU33: 0 | YV33: 0 | YW33: 0 | YX33: 0 | YY33: 0 | YZ33: 0 | ZA33: 0 | ZB33: 0 | ZC33: 0 | ZD33: 0 | ZE33: 0 | ZF33: 0 | ZG33: 0 | ZH33: 0 | ZI33: 0 | ZJ33: 0 | ZK33: 0 | ZL33: 0 | ZM33: 0 | ZN33: 0 | ZO33: 0 | ZP33: 0 | ZQ33: 0 | ZR33: 0 | ZS33: 0 | ZT33: 0 | ZU33: 0 | ZV33: 0 | ZW33: 0 | ZX33: 0 | ZY33: 0 | ZZ33: 0 | AAA33: 0 | AAB33: 0 | AAC33: 0 | AAD33: 0 | AAE33: 0 | AAF33: 0 | AAG33: 0 | AAH33: 0 | AAI33: 0 | AAJ33: 0 | AAK33: 0 | AAL33: 0 | AAM33: 0 | AAN33: 0 | AAO33: 0 | AAP33: 0 | AAQ33: 0 | AAR33: 0 | AAS33: 0 | AAT33: 0 | AAU33: 0 | AAV33: 0 | AAW33: 0 | AAX33: 0 | AAY33: 0 | AAZ33: 0 | ABA33: 0 | ABB33: 0 | ABC33: 0 | ABD33: 0 | ABE33: 0 | ABF33: 0 | ABG33: 0 | ABH33: 0 | ABI33: 0 | ABJ33: 0 | ABK33: 0 | ABL33: 0 | ABM33: 0 | ABN33: 0 | ABO33: 0 | ABP33: 0 | ABQ33: 0 | ABR33: 0 | ABS33: 0 | ABT33: 0 | ABU33: 0 | ABV33: 0 | ABW33: 0 | ABX33: 0 | ABY33: 0 | ABZ33: 0
D34: Battery Capacity Base After Degradation | E34: kWh | K34: 0 | L34: 0 | M34: 0 | N34: 0 | O34: 0 | P34: 0 | Q34: 0 | R34: 0 | S34: 0 | T34: 0 | U34: 0 | V34: 0 | W34: 0 | X34: 0 | Y34: 0 | Z34: 0 | AA34: 0 | AB34: 0 | AC34: 0 | AD34: 0 | AE34: 0 | AF34: 0 | AG34: 0 | AH34: 0 | AI34: 0 | AJ34: 0 | AK34: 0 | AL34: 0 | AM34: 0 | AN34: 0 | AO34: 0 | AP34: 0 | AQ34: 0 | AR34: 0 | AS34: 0 | AT34: 0 | AU34: 0 | AV34: 0 | AW34: 0 | AX34: 0 | AY34: 0 | AZ34: 0 | BA34: 0 | BB34: 0 | BC34: 0 | BD34: 0 | BE34: 0 | BF34: 0 | BG34: 0 | BH34: 0 | BI34: 0 | BJ34: 0 | BK34: 0 | BL34: 0 | BM34: 0 | BN34: 0 | BO34: 0 | BP34: 0 | BQ34: 0 | BR34: 0 | BS34: 0 | BT34: 0 | BU34: 0 | BV34: 0 | BW34: 0 | BX34: 0 | BY34: 0 | BZ34: 0 | CA34: 0 | CB34: 0 | CC34: 0 | CD34: 0 | CE34: 0 | CF34: 0 | CG34: 0 | CH34: 0 | CI34: 0 | CJ34: 0 | CK34: 0 | CL34: 0 | CM34: 0 | CN34: 0 | CO34: 0 | CP34: 0 | CQ34: 0 | CR34: 0 | CS34: 0 | CT34: 0 | CU34: 0 | CV34: 0 | CW34: 0 | CX34: 0 | CY34: 0 | CZ34: 0 | DA34: 0 | DB34: 0 | DC34: 0 | DD34: 0 | DE34: 0 | DF34: 0 | DG34: 0 | DH34: 0 | DI34: 0 | DJ34: 0 | DK34: 0 | DL34: 0 | DM34: 0 | DN34: 0 | DO34: 0 | DP34: 0 | DQ34: 0 | DR34: 0 | DS34: 0 | DT34: 0 | DU34: 0 | DV34: 0 | DW34: 0 | DX34: 0 | DY34: 0 | DZ34: 0 | EA34: 0 | EB34: 0 | EC34: 0 | ED34: 0 | EE34: 0 | EF34: 0 | EG34: 0 | EH34: 0 | EI34: 0 | EJ34: 0 | EK34: 0 | EL34: 0 | EM34: 0 | EN34: 0 | EO34: 0 | EP34: 0 | EQ34: 0 | ER34: 0 | ES34: 0 | ET34: 0 | EU34: 0 | EV34: 0 | EW34: 0 | EX34: 0 | EY34: 0 | EZ34: 0 | FA34: 0 | FB34: 0 | FC34: 0 | FD34: 0 | FE34: 0 | FF34: 0 | FG34: 0 | FH34: 0 | FI34: 0 | FJ34: 0 | FK34: 0 | FL34: 0 | FM34: 0 | FN34: 0 | FO34: 0 | FP34: 0 | FQ34: 0 | FR34: 0 | FS34: 0 | FT34: 0 | FU34: 0 | FV34: 0 | FW34: 0 | FX34: 0 | FY34: 0 | FZ34: 0 | GA34: 0 | GB34: 0 | GC34: 0 | GD34: 0 | GE34: 0 | GF34: 0 | GG34: 0 | GH34: 0 | GI34: 0 | GJ34: 0 | GK34: 0 | GL34: 0 | GM34: 0 | GN34: 0 | GO34: 0 | GP34: 0 | GQ34: 0 | GR34: 0 | GS34: 0 | GT34: 0 | GU34: 0 | GV34: 0 | GW34: 0 | GX34: 0 | GY34: 0 | GZ34: 0 | HA34: 0 | HB34: 0 | HC34: 0 | HD34: 0 | HE34: 0 | HF34: 0 | HG34: 0 | HH34: 0 | HI34: 0 | HJ34: 0 | HK34: 0 | HL34: 0 | HM34: 0 | HN34: 0 | HO34: 0 | HP34: 0 | HQ34: 0 | HR34: 0 | HS34: 0 | HT34: 0 | HU34: 0 | HV34: 0 | HW34: 0 | HX34: 0 | HY34: 0 | HZ34: 0 | IA34: 0 | IB34: 0 | IC34: 0 | ID34: 0 | IE34: 0 | IF34: 0 | IG34: 0 | IH34: 0 | II34: 0 | IJ34: 0 | IK34: 0 | IL34: 0 | IM34: 0 | IN34: 0 | IO34: 0 | IP34: 0 | IQ34: 0 | IR34: 0 | IS34: 0 | IT34: 0 | IU34: 0 | IV34: 0 | IW34: 0 | IX34: 0 | IY34: 0 | IZ34: 0 | JA34: 0 | JB34: 0 | JC34: 0 | JD34: 0 | JE34: 0 | JF34: 0 | JG34: 0 | JH34: 0 | JI34: 0 | JJ34: 0 | JK34: 0 | JL34: 0 | JM34: 0 | JN34: 0 | JO34: 0 | JP34: 0 | JQ34: 0 | JR34: 0 | JS34: 0 | JT34: 0 | JU34: 0 | JV34: 0 | JW34: 0 | JX34: 0 | JY34: 0 | JZ34: 0 | KA34: 0 | KB34: 0 | KC34: 0 | KD34: 0 | KE34: 0 | KF34: 0 | KG34: 0 | KH34: 0 | KI34: 0 | KJ34: 0 | KK34: 0 | KL34: 0 | KM34: 0 | KN34: 0 | KO34: 0 | KP34: 0 | KQ34: 0 | KR34: 0 | KS34: 0 | KT34: 0 | KU34: 0 | KV34: 0 | KW34: 0 | KX34: 0 | KY34: 0 | KZ34: 0 | LA34: 0 | LB34: 0 | LC34: 0 | LD34: 0 | LE34: 0 | LF34: 0 | LG34: 0 | LH34: 0 | LI34: 0 | LJ34: 0 | LK34: 0 | LL34: 0 | LM34: 0 | LN34: 0 | LO34: 0 | LP34: 0 | LQ34: 0 | LR34: 0 | LS34: 0 | LT34: 0 | LU34: 0 | LV34: 0 | LW34: 0 | LX34: 0 | LY34: 0 | LZ34: 0 | MA34: 0 | MB34: 0 | MC34: 0 | MD34: 0 | ME34: 0 | MF34: 0 | MG34: 0 | MH34: 0 | MI34: 0 | MJ34: 0 | MK34: 0 | ML34: 0 | MM34: 0 | MN34: 0 | MO34: 0 | MP34: 0 | MQ34: 0 | MR34: 0 | MS34: 0 | MT34: 0 | MU34: 0 | MV34: 0 | MW34: 0 | MX34: 0 | MY34: 0 | MZ34: 0 | NA34: 0 | NB34: 0 | NC34: 0 | ND34: 0 | NE34: 0 | NF34: 0 | NG34: 0 | NH34: 0 | NI34: 0 | NJ34: 0 | NK34: 0 | NL34: 0 | NM34: 0 | NN34: 0 | NO34: 0 | NP34: 0 | NQ34: 0 | NR34: 0 | NS34: 0 | NT34: 0 | NU34: 0 | NV34: 0 | NW34: 0 | NX34: 0 | NY34: 0 | NZ34: 0 | OA34: 0 | OB34: 0 | OC34: 0 | OD34: 0 | OE34: 0 | OF34: 0 | OG34: 0 | OH34: 0 | OI34: 0 | OJ34: 0 | OK34: 0 | OL34: 0 | OM34: 0 | ON34: 0 | OO34: 0 | OP34: 0 | OQ34: 0 | OR34: 0 | OS34: 0 | OT34: 0 | OU34: 0 | OV34: 0 | OW34: 0 | OX34: 0 | OY34: 0 | OZ34: 0 | PA34: 0 | PB34: 0 | PC34: 0 | PD34: 0 | PE34: 0 | PF34: 0 | PG34: 0 | PH34: 0 | PI34: 0 | PJ34: 0 | PK34: 0 | PL34: 0 | PM34: 0 | PN34: 0 | PO34: 0 | PP34: 0 | PQ34: 0 | PR34: 0 | PS34: 0 | PT34: 0 | PU34: 0 | PV34: 0 | PW34: 0 | PX34: 0 | PY34: 0 | PZ34: 0 | QA34: 0 | QB34: 0 | QC34: 0 | QD34: 0 | QE34: 0 | QF34: 0 | QG34: 0 | QH34: 0 | QI34: 0 | QJ34: 0 | QK34: 0 | QL34: 0 | QM34: 0 | QN34: 0 | QO34: 0 | QP34: 0 | QQ34: 0 | QR34: 0 | QS34: 0 | QT34: 0 | QU34: 0 | QV34: 0 | QW34: 0 | QX34: 0 | QY34: 0 | QZ34: 0 | RA34: 0 | RB34: 0 | RC34: 0 | RD34: 0 | RE34: 0 | RF34: 0 | RG34: 0 | RH34: 0 | RI34: 0 | RJ34: 0 | RK34: 0 | RL34: 0 | RM34: 0 | RN34: 0 | RO34: 0 | RP34: 0 | RQ34: 0 | RR34: 0 | RS34: 0 | RT34: 0 | RU34: 0 | RV34: 0 | RW34: 0 | RX34: 0 | RY34: 0 | RZ34: 0 | SA34: 0 | SB34: 0 | SC34: 0 | SD34: 0 | SE34: 0 | SF34: 0 | SG34: 0 | SH34: 0 | SI34: 0 | SJ34: 0 | SK34: 0 | SL34: 0 | SM34: 0 | SN34: 0 | SO34: 0 | SP34: 0 | SQ34: 0 | SR34: 0 | SS34: 0 | ST34: 0 | SU34: 0 | SV34: 0 | SW34: 0 | SX34: 0 | SY34: 0 | SZ34: 0 | TA34: 0 | TB34: 0 | TC34: 0 | TD34: 0 | TE34: 0 | TF34: 0 | TG34: 0 | TH34: 0 | TI34: 0 | TJ34: 0 | TK34: 0 | TL34: 0 | TM34: 0 | TN34: 0 | TO34: 0 | TP34: 0 | TQ34: 0 | TR34: 0 | TS34: 0 | TT34: 0 | TU34: 0 | TV34: 0 | TW34: 0 | TX34: 0 | TY34: 0 | TZ34: 0 | UA34: 0 | UB34: 0 | UC34: 0 | UD34: 0 | UE34: 0 | UF34: 0 | UG34: 0 | UH34: 0 | UI34: 0 | UJ34: 0 | UK34: 0 | UL34: 0 | UM34: 0 | UN34: 0 | UO34: 0 | UP34: 0 | UQ34: 0 | UR34: 0 | US34: 0 | UT34: 0 | UU34: 0 | UV34: 0 | UW34: 0 | UX34: 0 | UY34: 0 | UZ34: 0 | VA34: 0 | VB34: 0 | VC34: 0 | VD34: 0 | VE34: 0 | VF34: 0 | VG34: 0 | VH34: 0 | VI34: 0 | VJ34: 0 | VK34: 0 | VL34: 0 | VM34: 0 | VN34: 0 | VO34: 0 | VP34: 0 | VQ34: 0 | VR34: 0 | VS34: 0 | VT34: 0 | VU34: 0 | VV34: 0 | VW34: 0 | VX34: 0 | VY34: 0 | VZ34: 0 | WA34: 0 | WB34: 0 | WC34: 0 | WD34: 0 | WE34: 0 | WF34: 0 | WG34: 0 | WH34: 0 | WI34: 0 | WJ34: 0 | WK34: 0 | WL34: 0 | WM34: 0 | WN34: 0 | WO34: 0 | WP34: 0 | WQ34: 0 | WR34: 0 | WS34: 0 | WT34: 0 | WU34: 0 | WV34: 0 | WW34: 0 | WX34: 0 | WY34: 0 | WZ34: 0 | XA34: 0 | XB34: 0 | XC34: 0 | XD34: 0 | XE34: 0 | XF34: 0 | XG34: 0 | XH34: 0 | XI34: 0 | XJ34: 0 | XK34: 0 | XL34: 0 | XM34: 0 | XN34: 0 | XO34: 0 | XP34: 0 | XQ34: 0 | XR34: 0 | XS34: 0 | XT34: 0 | XU34: 0 | XV34: 0 | XW34: 0 | XX34: 0 | XY34: 0 | XZ34: 0 | YA34: 0 | YB34: 0 | YC34: 0 | YD34: 0 | YE34: 0 | YF34: 0 | YG34: 0 | YH34: 0 | YI34: 0 | YJ34: 0 | YK34: 0 | YL34: 0 | YM34: 0 | YN34: 0 | YO34: 0 | YP34: 0 | YQ34: 0 | YR34: 0 | YS34: 0 | YT34: 0 | YU34: 0 | YV34: 0 | YW34: 0 | YX34: 0 | YY34: 0 | YZ34: 0 | ZA34: 0 | ZB34: 0 | ZC34: 0 | ZD34: 0 | ZE34: 0 | ZF34: 0 | ZG34: 0 | ZH34: 0 | ZI34: 0 | ZJ34: 0 | ZK34: 0 | ZL34: 0 | ZM34: 0 | ZN34: 0 | ZO34: 0 | ZP34: 0 | ZQ34: 0 | ZR34: 0 | ZS34: 0 | ZT34: 0 | ZU34: 0 | ZV34: 0 | ZW34: 0 | ZX34: 0 | ZY34: 0 | ZZ34: 0 | AAA34: 0 | AAB34: 0 | AAC34: 0 | AAD34: 0 | AAE34: 0 | AAF34: 0 | AAG34: 0 | AAH34: 0 | AAI34: 0 | AAJ34: 0 | AAK34: 0 | AAL34: 0 | AAM34: 0 | AAN34: 0 | AAO34: 0 | AAP34: 0 | AAQ34: 0 | AAR34: 0 | AAS34: 0 | AAT34: 0 | AAU34: 0 | AAV34: 0 | AAW34: 0 | AAX34: 0 | AAY34: 0 | AAZ34: 0 | ABA34: 0 | ABB34: 0 | ABC34: 0 | ABD34: 0 | ABE34: 0 | ABF34: 0 | ABG34: 0 | ABH34: 0 | ABI34: 0 | ABJ34: 0 | ABK34: 0 | ABL34: 0 | ABM34: 0 | ABN34: 0 | ABO34: 0 | ABP34: 0 | ABQ34: 0 | ABR34: 0 | ABS34: 0 | ABT34: 0 | ABU34: 0 | ABV34: 0 | ABW34: 0 | ABX34: 0 | ABY34: 0 | ABZ34: 0
D35: Total Volumes Applied | E35: kWh | K35: =SUM(K32:K34) -> 0 | L35: =SUM(L32:L34) -> 0 | M35: 0 | N35: 0 | O35: 0 | P35: 0 | Q35: 214182.9239 | R35: 214093.8849 | S35: 207101.4996 | T35: 213915.9179 | U35: 206929.3451 | V35: 213738.0988 | W35: 213649.2447 | X35: 192893.2894 | Y35: 213471.6473 | Z35: 206499.5845 | AA35: 213294.1976 | AB35: 206327.9303 | AC35: 213116.8953 | AD35: 213028.2994 | AE35: 206070.7165 | AF35: 212851.2182 | AG35: 205899.4188 | AH35: 212674.2842 | AI35: 212585.8723 | AJ35: 191933.2233 | AK35: 212409.1588 | AL35: 205471.7973 | AM35: 212232.5923 | AN35: 205300.9974 | AO35: 212056.1725 | AP35: 211968.0176 | AQ35: 205045.0639 | AR35: 211791.8177 | AS35: 204874.6187 | AT35: 211615.7643 | AU35: 211527.7925 | AV35: 197798.5761 | AW35: 211351.9585 | AX35: 204449.1255 | AY35: 211176.2708 | AZ35: 204279.1758 | BA35: 211000.7291 | BB35: 210913.0129 | BC35: 204024.516 | BD35: 210737.69 | BE35: 203854.9193 | BF35: 210562.5129 | BG35: 210474.9789 | BH35: 190027.4025 | BI35: 210300.0201 | BJ35: 203431.5438 | BK35: 210125.2068 | BL35: 203262.44 | BM35: 209950.5388 | BN35: 209863.2592 | BO35: 203009.0477 | BP35: 209688.8089 | BQ35: 202840.295 | BR35: 209514.5037 | BS35: 209427.4054 | BT35: 189081.6004 | BU35: 209253.3174 | BV35: 202419.0268 | BW35: 209079.3742 | BX35: =SUM(BX32:BX34) -> 202250.7646 | BY35: 208905.5755 | BZ35: 208818.7304 | CA35: 201998.6335 | CB35: 208645.1483 | CC35: 201830.7208 | CD35: 208471.7106 | CE35: 208385.0459 | CF35: 188140.5058 | CG35: 208211.8244 | CH35: 201411.5493 | CI35: 208038.7468 | CJ35: 201244.1246 | CK35: 207865.8132 | CL35: 207779.4003 | CM35: 200993.2484 | CN35: 207606.6822 | CO35: 200826.1714 | CP35: 207434.1078 | CQ35: 207347.8743 | CR35: 193889.9557 | CS35: 207175.515 | CT35: 200409.0862 | CU35: 207003.2989 | CV35: 200242.4947 | CW35: 206831.226 | CX35: 206745.2432 | CY35: 199992.8672 | CZ35: 206573.3848 | DA35: 199826.6218 | DB35: 206401.6692 | DC35: 206315.865 | DD35: 186272.3452 | DE35: 206144.3635 | DF35: 199411.6125 | DG35: 205973.0046 | DH35: 199245.8502 | DI35: 205801.7881 | DJ35: 205716.2333 | DK35: 198997.4651 | DL35: 205545.2302 | DM35: 198832.0471 | DN35: 205374.3693 | DO35: 205288.9922 | DP35: 185345.2327 | DQ35: 205118.3443 | DR35: 198419.1034 | DS35: 204947.8383 | DT35: 198254.1662 | DU35: 204777.474 | DV35: 204692.3449 | DW35: 198007.0174 | DX35: 204522.193 | DY35: 197842.4227 | DZ35: 204352.1825 | EA35: 204267.2303 | EB35: 184422.7347 | EC35: 204097.4318 | ED35: 197431.5343 | EE35: 203927.7744 | EF35: 197267.418 | EG35: 203758.258 | EH35: 203673.5527 | EI35: 197021.4992 | EJ35: =SUM(EJ32:EJ34) -> 203504.2476 | EK35: 196857.7238 | EL35: 203335.0833 | EM35: 203250.5539 | EN35: 190058.5719 | EO35: 203081.6005 | EP35: 196448.8804 | EQ35: 202912.7875 | ER35: 196285.581 | ES35: 202744.1149 | ET35: 202659.8311 | EU35: 196040.8862 | EV35: 202491.3687 | EW35: 195877.9259 | EX35: 202323.0464 | EY35: 202238.9377 | EZ35: 182591.49 | FA35: 202070.8252 | FB35: 195471.1174 | FC35: 201902.8524 | FD35: 195308.6307 | FE35: 201735.0193 | FF35: 201651.1551 | FG35: 195065.1539 | FH35: 201483.5312 | FI35: 194903.0046 | FJ35: 201316.0466 | FK35: 201232.3565 | FL35: 181682.6979 | FM35: 201065.0807 | FN35: 194498.221 | FO35: 200897.944 | FP35: 194336.543 | FQ35: 200730.9462 | FR35: 200647.4994 | FS35: 194094.278 | FT35: 200480.7098 | FU35: 193932.9358 | FV35: 200314.0588 | FW35: 200230.7853 | FX35: 180778.429 | FY35: 200064.3421 | FZ35: 193530.1668 | GA35: 199898.0372 | GB35: 193369.2935 | GC35: 199731.8706 | GD35: 199648.8391 | GE35: 193128.2343 | GF35: 199482.8796 | GG35: 192967.6951 | GH35: 199317.0581 | GI35: 199234.199 | GJ35: 186302.8987 | GK35: 199068.5842 | GL35: 192566.9308 | GM35: 198903.1071 | GN35: 192406.8582 | GO35: 198737.7675 | GP35: 198655.1493 | GQ35: 192166.9988 | GR35: 198490.0158 | GS35: 192007.2586 | GT35: 198325.0196 | GU35: 198242.573 | GV35: =SUM(GV32:GV34) -> 178983.3709 | GW35: 198077.7825 | GX35: 191608.489 | GY35: 197913.129 | GZ35: 191449.2131 | HA35: 197748.6123 | HB35: 197666.4053 | HC35: 191210.5475 | HD35: 197502.0937 | HE35: 191051.6024 | HF35: 197337.9188 | HG35: 197255.8825 | HH35: 178092.537 | HI35: 197091.9122 | HJ35: 190654.8175 | HK35: 196928.0781 | HL35: 190496.3344 | HM35: 196764.3803 | HN35: 196682.5825 | HO35: 190258.8567 | HP35: 196519.0887 | HQ35: 190100.7027 | HR35: 196355.7309 | HS35: 196274.1029 | HT35: 177206.137 | HU35: 196110.9487 | HV35: 189705.8927 | HW35: 195947.9301 | HX35: 189548.1984 | HY35: 195785.047 | HZ35: 195703.6563 | IA35: 189311.9026 | IB35: 195540.9763 | IC35: 189154.5358 | ID35: 195378.4315 | IE35: 195297.2098 | IF35: 182621.4398 | IG35: 195134.8676 | IH35: 188761.6908 | II35: 194972.6604 | IJ35: 188604.7814 | IK35: 194810.5881 | IL35: 194729.6024 | IM35: 188369.6617 | IN35: 194567.7321 | IO35: 188213.0781 | IP35: 194405.9963 | IQ35: 194325.1789 | IR35: 175446.5503 | IS35: 194163.6447 | IT35: 187822.1884 | IU35: 194002.2449 | IV35: 187666.0599 | IW35: 193840.9792 | IX35: 193760.3966 | IY35: 187432.1105 | IZ35: 193599.3319 | JA35: 187276.3063 | JB35: 193438.4012 | JC35: 193357.986 | JD35: 174573.3199 | JE35: 193197.2558 | JF35: 186887.3621 | JG35: 193036.6593 | JH35: =SUM(JH32:JH34) -> 186732.0107 | JI35: 192876.1962 | JJ35: 192796.0147 | JK35: 186499.2257 | JL35: 192635.7517 | JM35: 186344.1969 | JN35: 192475.6219 | JO35: 192395.6069 | JP35: 173704.4357 | JQ35: 192235.6768 | JR35: 185957.1886 | JS35: 192075.8795 | JT35: 185802.6104 | JU35: 191916.2151 | JV35: 191836.4327 | JW35: 185570.984 | JX35: 191676.9674 | JY35: 185416.7268 | JZ35: 191517.6346 | KA35: 191438.0178 | KB35: 179012.7288 | KC35: 191278.8837 | KD35: 185031.6447 | KE35: 191119.8818 | KF35: 184877.8359 | KG35: 190961.0121 | KH35: 190881.6267 | KI35: 184647.3623 | KJ35: 190722.9551 | KK35: 184493.873 | KL35: 190564.4153 | KM35: 190485.1949 | KN35: 171979.6195 | KO35: 190326.8527 | KP35: 184110.7075 | KQ35: 190168.6422 | KR35: 183957.6642 | KS35: 190010.5632 | KT35: 189931.573 | KU35: 183728.3377 | KV35: 189773.6911 | KW35: 183575.6123 | KX35: 189615.9404 | KY35: 189537.1143 | KZ35: 171123.6447 | LA35: 189379.5602 | LB35: 183194.3539 | LC35: 189222.1372 | LD35: 183042.0723 | LE35: 189064.845 | LF35: 188986.2479 | LG35: 182813.8873 | LH35: 188829.1518 | LI35: 182661.922 | LJ35: 188672.1863 | LK35: 188593.7524 | LL35: 170271.9301 | LM35: 188436.9826 | LN35: 182282.5612 | LO35: 188280.343 | LP35: 182131.0375 | LQ35: 188123.8337 | LR35: 188045.6278 | LS35: 181903.9882 | LT35: =SUM(LT32:LT34) -> 187889.3136 | LU35: 181752.7793 | LV35: 187733.1293 | LW35: 187655.0859 | LX35: 175475.3281 | LY35: 187499.0963 | LZ35: 181375.3066 | MA35: 187343.2364 | MB35: 181224.5371 | MC35: 187187.506 | MD35: 187109.6894 | ME35: 180998.6179 | MF35: 186954.1532 | MG35: 180848.1615 | MH35: 186798.7463 | MI35: 186721.0913 | MJ35: 168581.1974 | MK35: 186565.8781 | ML35: 180472.5676 | MM35: 186410.7939 | MN35: 180322.5486 | MO35: 186255.8387 | MP35: 186178.4093 | MQ35: 180097.7538 | MR35: 186023.6473 | MS35: 179948.0463 | MT35: 185869.0138 | MU35: 185791.7453 | MV35: 167742.1371 | MW35: 185637.3047 | MX35: 179574.3217 | MY35: 185482.9924 | MZ35: 179425.0494 | NA35: 185328.8084 | NB35: 185251.7644 | NC35: 179201.3734 | ND35: 185097.7726 | NE35: 179052.411 | NF35: 184943.9088 | NG35: 184867.0249 | NH35: 166907.253 | NI35: 184713.3529 | NJ35: 178680.5466 | NK35: 184559.8087 | NL35: 178532.0172 | NM35: 184406.3921 | NN35: 184329.7316 | NO35: 178309.4545 | NP35: 184176.5062 | NQ35: 178161.2335 | NR35: 184023.4082 | NS35: 183946.907 | NT35: 172007.8286 | NU35: 183793.9998 | NV35: 177791.22 | NW35: 183641.2198 | NX35: 177643.4298 | NY35: 183488.5668 | NZ35: 183412.2879 | OA35: 177421.9748 | OB35: 183259.8251 | OC35: 177274.4916 | OD35: 183107.4892 | OE35: 183031.3687 | OF35: =SUM(OF32:OF34) -> 165249.9301 | OG35: 182879.2226 | OH35: 176906.3196 | OI35: 182727.203 | OJ35: 176759.2651 | OK35: 182575.3097 | OL35: 182499.4105 | OM35: 176538.9123 | ON35: 182347.7066 | OO35: 176392.1631 | OP35: 182196.1288 | OQ35: 182120.3871 | OR35: 164427.4502 | OS35: 181968.9983 | OT35: 176025.8237 | OU35: 181817.7353 | OV35: 175879.501 | OW35: 181666.5981 | OX35: 181591.0766 | OY35: 175660.245 | OZ35: 181440.1278 | PA35: 175514.2262 | PB35: 181289.3044 | PC35: 181213.9398 | PD35: 163609.0639 | PE35: 181063.3044 | PF35: 175149.7101 | PG35: 180912.7943 | PH35: 175004.1157 | PI35: 180762.4093 | PJ35: 180687.2637 | PK35: 174785.951 | PL35: 180537.0662 | PM35: 174640.6589 | PN35: 180386.9935 | PO35: 180312.0039 | PP35: 168608.8491 | PQ35: 180162.1183 | PR35: 174277.957 | PS35: 180012.3573 | PT35: 174133.0873 | PU35: 0 | PV35: 0 | PW35: 0 | PX35: 0 | PY35: 0 | PZ35: 0 | QA35: 0 | QB35: 0 | QC35: 0 | QD35: 0 | QE35: 0 | QF35: 0 | QG35: 0 | QH35: 0 | QI35: 0 | QJ35: 0 | QK35: 0 | QL35: 0 | QM35: 0 | QN35: 0 | QO35: 0 | QP35: 0 | QQ35: 0 | QR35: =SUM(QR32:QR34) -> 0 | QS35: 0 | QT35: 0 | QU35: 0 | QV35: 0 | QW35: 0 | QX35: 0 | QY35: 0 | QZ35: 0 | RA35: 0 | RB35: 0 | RC35: 0 | RD35: 0 | RE35: 0 | RF35: 0 | RG35: 0 | RH35: 0 | RI35: 0 | RJ35: 0 | RK35: 0 | RL35: 0 | RM35: 0 | RN35: 0 | RO35: 0 | RP35: 0 | RQ35: 0 | RR35: 0 | RS35: 0 | RT35: 0 | RU35: 0 | RV35: 0 | RW35: 0 | RX35: 0 | RY35: 0 | RZ35: 0 | SA35: 0 | SB35: 0 | SC35: 0 | SD35: 0 | SE35: 0 | SF35: 0 | SG35: 0 | SH35: 0 | SI35: 0 | SJ35: 0 | SK35: 0 | SL35: 0 | SM35: 0 | SN35: 0 | SO35: 0 | SP35: 0 | SQ35: 0 | SR35: 0 | SS35: 0 | ST35: 0 | SU35: 0 | SV35: 0 | SW35: 0 | SX35: 0 | SY35: 0 | SZ35: 0 | TA35: 0 | TB35: 0 | TC35: 0 | TD35: =SUM(TD32:TD34) -> 0 | TE35: 0 | TF35: 0 | TG35: 0 | TH35: 0 | TI35: 0 | TJ35: 0 | TK35: 0 | TL35: 0 | TM35: 0 | TN35: 0 | TO35: 0 | TP35: 0 | TQ35: 0 | TR35: 0 | TS35: 0 | TT35: 0 | TU35: 0 | TV35: 0 | TW35: 0 | TX35: 0 | TY35: 0 | TZ35: 0 | UA35: 0 | UB35: 0 | UC35: 0 | UD35: 0 | UE35: 0 | UF35: 0 | UG35: 0 | UH35: 0 | UI35: 0 | UJ35: 0 | UK35: 0 | UL35: 0 | UM35: 0 | UN35: 0 | UO35: 0 | UP35: 0 | UQ35: 0 | UR35: 0 | US35: 0 | UT35: 0 | UU35: 0 | UV35: 0 | UW35: 0 | UX35: 0 | UY35: 0 | UZ35: 0 | VA35: 0 | VB35: 0 | VC35: 0 | VD35: 0 | VE35: 0 | VF35: 0 | VG35: 0 | VH35: 0 | VI35: 0 | VJ35: 0 | VK35: 0 | VL35: 0 | VM35: 0 | VN35: 0 | VO35: 0 | VP35: =SUM(VP32:VP34) -> 0 | VQ35: 0 | VR35: 0 | VS35: 0 | VT35: 0 | VU35: 0 | VV35: 0 | VW35: 0 | VX35: 0 | VY35: 0 | VZ35: 0 | WA35: 0 | WB35: 0 | WC35: 0 | WD35: 0 | WE35: 0 | WF35: 0 | WG35: 0 | WH35: 0 | WI35: 0 | WJ35: 0 | WK35: 0 | WL35: 0 | WM35: 0 | WN35: 0 | WO35: 0 | WP35: 0 | WQ35: 0 | WR35: 0 | WS35: 0 | WT35: 0 | WU35: 0 | WV35: 0 | WW35: 0 | WX35: 0 | WY35: 0 | WZ35: 0 | XA35: 0 | XB35: 0 | XC35: 0 | XD35: 0 | XE35: 0 | XF35: 0 | XG35: 0 | XH35: 0 | XI35: 0 | XJ35: 0 | XK35: 0 | XL35: 0 | XM35: 0 | XN35: 0 | XO35: 0 | XP35: 0 | XQ35: 0 | XR35: 0 | XS35: 0 | XT35: 0 | XU35: 0 | XV35: 0 | XW35: 0 | XX35: 0 | XY35: 0 | XZ35: 0 | YA35: 0 | YB35: =SUM(YB32:YB34) -> 0 | YC35: 0 | YD35: 0 | YE35: 0 | YF35: 0 | YG35: 0 | YH35: 0 | YI35: 0 | YJ35: 0 | YK35: 0 | YL35: 0 | YM35: 0 | YN35: 0 | YO35: 0 | YP35: 0 | YQ35: 0 | YR35: 0 | YS35: 0 | YT35: 0 | YU35: 0 | YV35: 0 | YW35: 0 | YX35: 0 | YY35: 0 | YZ35: 0 | ZA35: 0 | ZB35: 0 | ZC35: 0 | ZD35: 0 | ZE35: 0 | ZF35: 0 | ZG35: 0 | ZH35: 0 | ZI35: 0 | ZJ35: 0 | ZK35: 0 | ZL35: 0 | ZM35: 0 | ZN35: 0 | ZO35: 0 | ZP35: 0 | ZQ35: 0 | ZR35: 0 | ZS35: 0 | ZT35: 0 | ZU35: 0 | ZV35: 0 | ZW35: 0 | ZX35: 0 | ZY35: 0 | ZZ35: 0 | AAA35: 0 | AAB35: 0 | AAC35: 0 | AAD35: 0 | AAE35: 0 | AAF35: 0 | AAG35: 0 | AAH35: 0 | AAI35: 0 | AAJ35: 0 | AAK35: 0 | AAL35: 0 | AAM35: 0 | AAN35: =SUM(AAN32:AAN34) -> 0 | AAO35: 0 | AAP35: 0 | AAQ35: 0 | AAR35: 0 | AAS35: 0 | AAT35: 0 | AAU35: 0 | AAV35: 0 | AAW35: 0 | AAX35: 0 | AAY35: 0 | AAZ35: 0 | ABA35: 0 | ABB35: 0 | ABC35: 0 | ABD35: 0 | ABE35: 0 | ABF35: 0 | ABG35: 0 | ABH35: 0 | ABI35: 0 | ABJ35: 0 | ABK35: 0 | ABL35: 0 | ABM35: 0 | ABN35: 0 | ABO35: 0 | ABP35: 0 | ABQ35: 0 | ABR35: 0 | ABS35: 0 | ABT35: 0 | ABU35: 0 | ABV35: 0 | ABW35: 0 | ABX35: 0 | ABY35: 0 | ABZ35: 0
B37: Operations
C39: Capital Expenditures
D40: Capital Expenditure for Solar | E40: USD/kWp | F40: =INDEX(InputC!I46:AD46,E1) -> 360 | G40: =F40*F14 -> 432000 | K40: =$G40 -> 432000 | L40: =$G40 -> 432000 | M40: 432000 | N40: 432000 | O40: 432000 | P40: 432000 | Q40: 432000 | R40: 432000 | S40: 432000 | T40: 432000 | U40: 432000 | V40: 432000 | W40: 432000 | X40: 432000 | Y40: 432000 | Z40: 432000 | AA40: 432000 | AB40: 432000 | AC40: 432000 | AD40: 432000 | AE40: 432000 | AF40: 432000 | AG40: 432000 | AH40: 432000 | AI40: 432000 | AJ40: 432000 | AK40: 432000 | AL40: 432000 | AM40: 432000 | AN40: 432000 | AO40: 432000 | AP40: 432000 | AQ40: 432000 | AR40: 432000 | AS40: 432000 | AT40: 432000 | AU40: 432000 | AV40: 432000 | AW40: 432000 | AX40: 432000 | AY40: 432000 | AZ40: 432000 | BA40: 432000 | BB40: 432000 | BC40: 432000 | BD40: 432000 | BE40: 432000 | BF40: 432000 | BG40: 432000 | BH40: 432000 | BI40: 432000 | BJ40: 432000 | BK40: 432000 | BL40: 432000 | BM40: 432000 | BN40: 432000 | BO40: 432000 | BP40: 432000 | BQ40: 432000 | BR40: 432000 | BS40: 432000 | BT40: 432000 | BU40: 432000 | BV40: 432000 | BW40: 432000 | BX40: =$G40 -> 432000 | BY40: 432000 | BZ40: 432000 | CA40: 432000 | CB40: 432000 | CC40: 432000 | CD40: 432000 | CE40: 432000 | CF40: 432000 | CG40: 432000 | CH40: 432000 | CI40: 432000 | CJ40: 432000 | CK40: 432000 | CL40: 432000 | CM40: 432000 | CN40: 432000 | CO40: 432000 | CP40: 432000 | CQ40: 432000 | CR40: 432000 | CS40: 432000 | CT40: 432000 | CU40: 432000 | CV40: 432000 | CW40: 432000 | CX40: 432000 | CY40: 432000 | CZ40: 432000 | DA40: 432000 | DB40: 432000 | DC40: 432000 | DD40: 432000 | DE40: 432000 | DF40: 432000 | DG40: 432000 | DH40: 432000 | DI40: 432000 | DJ40: 432000 | DK40: 432000 | DL40: 432000 | DM40: 432000 | DN40: 432000 | DO40: 432000 | DP40: 432000 | DQ40: 432000 | DR40: 432000 | DS40: 432000 | DT40: 432000 | DU40: 432000 | DV40: 432000 | DW40: 432000 | DX40: 432000 | DY40: 432000 | DZ40: 432000 | EA40: 432000 | EB40: 432000 | EC40: 432000 | ED40: 432000 | EE40: 432000 | EF40: 432000 | EG40: 432000 | EH40: 432000 | EI40: 432000 | EJ40: =$G40 -> 432000 | EK40: 432000 | EL40: 432000 | EM40: 432000 | EN40: 432000 | EO40: 432000 | EP40: 432000 | EQ40: 432000 | ER40: 432000 | ES40: 432000 | ET40: 432000 | EU40: 432000 | EV40: 432000 | EW40: 432000 | EX40: 432000 | EY40: 432000 | EZ40: 432000 | FA40: 432000 | FB40: 432000 | FC40: 432000 | FD40: 432000 | FE40: 432000 | FF40: 432000 | FG40: 432000 | FH40: 432000 | FI40: 432000 | FJ40: 432000 | FK40: 432000 | FL40: 432000 | FM40: 432000 | FN40: 432000 | FO40: 432000 | FP40: 432000 | FQ40: 432000 | FR40: 432000 | FS40: 432000 | FT40: 432000 | FU40: 432000 | FV40: 432000 | FW40: 432000 | FX40: 432000 | FY40: 432000 | FZ40: 432000 | GA40: 432000 | GB40: 432000 | GC40: 432000 | GD40: 432000 | GE40: 432000 | GF40: 432000 | GG40: 432000 | GH40: 432000 | GI40: 432000 | GJ40: 432000 | GK40: 432000 | GL40: 432000 | GM40: 432000 | GN40: 432000 | GO40: 432000 | GP40: 432000 | GQ40: 432000 | GR40: 432000 | GS40: 432000 | GT40: 432000 | GU40: 432000 | GV40: =$G40 -> 432000 | GW40: 432000 | GX40: 432000 | GY40: 432000 | GZ40: 432000 | HA40: 432000 | HB40: 432000 | HC40: 432000 | HD40: 432000 | HE40: 432000 | HF40: 432000 | HG40: 432000 | HH40: 432000 | HI40: 432000 | HJ40: 432000 | HK40: 432000 | HL40: 432000 | HM40: 432000 | HN40: 432000 | HO40: 432000 | HP40: 432000 | HQ40: 432000 | HR40: 432000 | HS40: 432000 | HT40: 432000 | HU40: 432000 | HV40: 432000 | HW40: 432000 | HX40: 432000 | HY40: 432000 | HZ40: 432000 | IA40: 432000 | IB40: 432000 | IC40: 432000 | ID40: 432000 | IE40: 432000 | IF40: 432000 | IG40: 432000 | IH40: 432000 | II40: 432000 | IJ40: 432000 | IK40: 432000 | IL40: 432000 | IM40: 432000 | IN40: 432000 | IO40: 432000 | IP40: 432000 | IQ40: 432000 | IR40: 432000 | IS40: 432000 | IT40: 432000 | IU40: 432000 | IV40: 432000 | IW40: 432000 | IX40: 432000 | IY40: 432000 | IZ40: 432000 | JA40: 432000 | JB40: 432000 | JC40: 432000 | JD40: 432000 | JE40: 432000 | JF40: 432000 | JG40: 432000 | JH40: =$G40 -> 432000 | JI40: 432000 | JJ40: 432000 | JK40: 432000 | JL40: 432000 | JM40: 432000 | JN40: 432000 | JO40: 432000 | JP40: 432000 | JQ40: 432000 | JR40: 432000 | JS40: 432000 | JT40: 432000 | JU40: 432000 | JV40: 432000 | JW40: 432000 | JX40: 432000 | JY40: 432000 | JZ40: 432000 | KA40: 432000 | KB40: 432000 | KC40: 432000 | KD40: 432000 | KE40: 432000 | KF40: 432000 | KG40: 432000 | KH40: 432000 | KI40: 432000 | KJ40: 432000 | KK40: 432000 | KL40: 432000 | KM40: 432000 | KN40: 432000 | KO40: 432000 | KP40: 432000 | KQ40: 432000 | KR40: 432000 | KS40: 432000 | KT40: 432000 | KU40: 432000 | KV40: 432000 | KW40: 432000 | KX40: 432000 | KY40: 432000 | KZ40: 432000 | LA40: 432000 | LB40: 432000 | LC40: 432000 | LD40: 432000 | LE40: 432000 | LF40: 432000 | LG40: 432000 | LH40: 432000 | LI40: 432000 | LJ40: 432000 | LK40: 432000 | LL40: 432000 | LM40: 432000 | LN40: 432000 | LO40: 432000 | LP40: 432000 | LQ40: 432000 | LR40: 432000 | LS40: 432000 | LT40: =$G40 -> 432000 | LU40: 432000 | LV40: 432000 | LW40: 432000 | LX40: 432000 | LY40: 432000 | LZ40: 432000 | MA40: 432000 | MB40: 432000 | MC40: 432000 | MD40: 432000 | ME40: 432000 | MF40: 432000 | MG40: 432000 | MH40: 432000 | MI40: 432000 | MJ40: 432000 | MK40: 432000 | ML40: 432000 | MM40: 432000 | MN40: 432000 | MO40: 432000 | MP40: 432000 | MQ40: 432000 | MR40: 432000 | MS40: 432000 | MT40: 432000 | MU40: 432000 | MV40: 432000 | MW40: 432000 | MX40: 432000 | MY40: 432000 | MZ40: 432000 | NA40: 432000 | NB40: 432000 | NC40: 432000 | ND40: 432000 | NE40: 432000 | NF40: 432000 | NG40: 432000 | NH40: 432000 | NI40: 432000 | NJ40: 432000 | NK40: 432000 | NL40: 432000 | NM40: 432000 | NN40: 432000 | NO40: 432000 | NP40: 432000 | NQ40: 432000 | NR40: 432000 | NS40: 432000 | NT40: 432000 | NU40: 432000 | NV40: 432000 | NW40: 432000 | NX40: 432000 | NY40: 432000 | NZ40: 432000 | OA40: 432000 | OB40: 432000 | OC40: 432000 | OD40: 432000 | OE40: 432000 | OF40: =$G40 -> 432000 | OG40: 432000 | OH40: 432000 | OI40: 432000 | OJ40: 432000 | OK40: 432000 | OL40: 432000 | OM40: 432000 | ON40: 432000 | OO40: 432000 | OP40: 432000 | OQ40: 432000 | OR40: 432000 | OS40: 432000 | OT40: 432000 | OU40: 432000 | OV40: 432000 | OW40: 432000 | OX40: 432000 | OY40: 432000 | OZ40: 432000 | PA40: 432000 | PB40: 432000 | PC40: 432000 | PD40: 432000 | PE40: 432000 | PF40: 432000 | PG40: 432000 | PH40: 432000 | PI40: 432000 | PJ40: 432000 | PK40: 432000 | PL40: 432000 | PM40: 432000 | PN40: 432000 | PO40: 432000 | PP40: 432000 | PQ40: 432000 | PR40: 432000 | PS40: 432000 | PT40: 432000 | PU40: 432000 | PV40: 432000 | PW40: 432000 | PX40: 432000 | PY40: 432000 | PZ40: 432000 | QA40: 432000 | QB40: 432000 | QC40: 432000 | QD40: 432000 | QE40: 432000 | QF40: 432000 | QG40: 432000 | QH40: 432000 | QI40: 432000 | QJ40: 432000 | QK40: 432000 | QL40: 432000 | QM40: 432000 | QN40: 432000 | QO40: 432000 | QP40: 432000 | QQ40: 432000 | QR40: =$G40 -> 432000 | QS40: 432000 | QT40: 432000 | QU40: 432000 | QV40: 432000 | QW40: 432000 | QX40: 432000 | QY40: 432000 | QZ40: 432000 | RA40: 432000 | RB40: 432000 | RC40: 432000 | RD40: 432000 | RE40: 432000 | RF40: 432000 | RG40: 432000 | RH40: 432000 | RI40: 432000 | RJ40: 432000 | RK40: 432000 | RL40: 432000 | RM40: 432000 | RN40: 432000 | RO40: 432000 | RP40: 432000 | RQ40: 432000 | RR40: 432000 | RS40: 432000 | RT40: 432000 | RU40: 432000 | RV40: 432000 | RW40: 432000 | RX40: 432000 | RY40: 432000 | RZ40: 432000 | SA40: 432000 | SB40: 432000 | SC40: 432000 | SD40: 432000 | SE40: 432000 | SF40: 432000 | SG40: 432000 | SH40: 432000 | SI40: 432000 | SJ40: 432000 | SK40: 432000 | SL40: 432000 | SM40: 432000 | SN40: 432000 | SO40: 432000 | SP40: 432000 | SQ40: 432000 | SR40: 432000 | SS40: 432000 | ST40: 432000 | SU40: 432000 | SV40: 432000 | SW40: 432000 | SX40: 432000 | SY40: 432000 | SZ40: 432000 | TA40: 432000 | TB40: 432000 | TC40: 432000 | TD40: =$G40 -> 432000 | TE40: 432000 | TF40: 432000 | TG40: 432000 | TH40: 432000 | TI40: 432000 | TJ40: 432000 | TK40: 432000 | TL40: 432000 | TM40: 432000 | TN40: 432000 | TO40: 432000 | TP40: 432000 | TQ40: 432000 | TR40: 432000 | TS40: 432000 | TT40: 432000 | TU40: 432000 | TV40: 432000 | TW40: 432000 | TX40: 432000 | TY40: 432000 | TZ40: 432000 | UA40: 432000 | UB40: 432000 | UC40: 432000 | UD40: 432000 | UE40: 432000 | UF40: 432000 | UG40: 432000 | UH40: 432000 | UI40: 432000 | UJ40: 432000 | UK40: 432000 | UL40: 432000 | UM40: 432000 | UN40: 432000 | UO40: 432000 | UP40: 432000 | UQ40: 432000 | UR40: 432000 | US40: 432000 | UT40: 432000 | UU40: 432000 | UV40: 432000 | UW40: 432000 | UX40: 432000 | UY40: 432000 | UZ40: 432000 | VA40: 432000 | VB40: 432000 | VC40: 432000 | VD40: 432000 | VE40: 432000 | VF40: 432000 | VG40: 432000 | VH40: 432000 | VI40: 432000 | VJ40: 432000 | VK40: 432000 | VL40: 432000 | VM40: 432000 | VN40: 432000 | VO40: 432000 | VP40: =$G40 -> 432000 | VQ40: 432000 | VR40: 432000 | VS40: 432000 | VT40: 432000 | VU40: 432000 | VV40: 432000 | VW40: 432000 | VX40: 432000 | VY40: 432000 | VZ40: 432000 | WA40: 432000 | WB40: 432000 | WC40: 432000 | WD40: 432000 | WE40: 432000 | WF40: 432000 | WG40: 432000 | WH40: 432000 | WI40: 432000 | WJ40: 432000 | WK40: 432000 | WL40: 432000 | WM40: 432000 | WN40: 432000 | WO40: 432000 | WP40: 432000 | WQ40: 432000 | WR40: 432000 | WS40: 432000 | WT40: 432000 | WU40: 432000 | WV40: 432000 | WW40: 432000 | WX40: 432000 | WY40: 432000 | WZ40: 432000 | XA40: 432000 | XB40: 432000 | XC40: 432000 | XD40: 432000 | XE40: 432000 | XF40: 432000 | XG40: 432000 | XH40: 432000 | XI40: 432000 | XJ40: 432000 | XK40: 432000 | XL40: 432000 | XM40: 432000 | XN40: 432000 | XO40: 432000 | XP40: 432000 | XQ40: 432000 | XR40: 432000 | XS40: 432000 | XT40: 432000 | XU40: 432000 | XV40: 432000 | XW40: 432000 | XX40: 432000 | XY40: 432000 | XZ40: 432000 | YA40: 432000 | YB40: =$G40 -> 432000 | YC40: 432000 | YD40: 432000 | YE40: 432000 | YF40: 432000 | YG40: 432000 | YH40: 432000 | YI40: 432000 | YJ40: 432000 | YK40: 432000 | YL40: 432000 | YM40: 432000 | YN40: 432000 | YO40: 432000 | YP40: 432000 | YQ40: 432000 | YR40: 432000 | YS40: 432000 | YT40: 432000 | YU40: 432000 | YV40: 432000 | YW40: 432000 | YX40: 432000 | YY40: 432000 | YZ40: 432000 | ZA40: 432000 | ZB40: 432000 | ZC40: 432000 | ZD40: 432000 | ZE40: 432000 | ZF40: 432000 | ZG40: 432000 | ZH40: 432000 | ZI40: 432000 | ZJ40: 432000 | ZK40: 432000 | ZL40: 432000 | ZM40: 432000 | ZN40: 432000 | ZO40: 432000 | ZP40: 432000 | ZQ40: 432000 | ZR40: 432000 | ZS40: 432000 | ZT40: 432000 | ZU40: 432000 | ZV40: 432000 | ZW40: 432000 | ZX40: 432000 | ZY40: 432000 | ZZ40: 432000 | AAA40: 432000 | AAB40: 432000 | AAC40: 432000 | AAD40: 432000 | AAE40: 432000 | AAF40: 432000 | AAG40: 432000 | AAH40: 432000 | AAI40: 432000 | AAJ40: 432000 | AAK40: 432000 | AAL40: 432000 | AAM40: 432000 | AAN40: =$G40 -> 432000 | AAO40: 432000 | AAP40: 432000 | AAQ40: 432000 | AAR40: 432000 | AAS40: 432000 | AAT40: 432000 | AAU40: 432000 | AAV40: 432000 | AAW40: 432000 | AAX40: 432000 | AAY40: 432000 | AAZ40: 432000 | ABA40: 432000 | ABB40: 432000 | ABC40: 432000 | ABD40: 432000 | ABE40: 432000 | ABF40: 432000 | ABG40: 432000 | ABH40: 432000 | ABI40: 432000 | ABJ40: 432000 | ABK40: 432000 | ABL40: 432000 | ABM40: 432000 | ABN40: 432000 | ABO40: 432000 | ABP40: 432000 | ABQ40: 432000 | ABR40: 432000 | ABS40: 432000 | ABT40: 432000 | ABU40: 432000 | ABV40: 432000 | ABW40: 432000 | ABX40: 432000 | ABY40: 432000 | ABZ40: 432000
D41: Capital Expenditure for Wind | E41: USD/kW | F41: =INDEX(InputC!I47:AD47,E1) -> 0 | G41: =F41*F15 -> 0 | K41: =$G41 -> 0 | L41: 0 | M41: 0 | N41: 0 | O41: 0 | P41: 0 | Q41: 0 | R41: 0 | S41: 0 | T41: 0 | U41: 0 | V41: 0 | W41: 0 | X41: 0 | Y41: 0 | Z41: 0 | AA41: 0 | AB41: 0 | AC41: 0 | AD41: 0 | AE41: 0 | AF41: 0 | AG41: 0 | AH41: 0 | AI41: 0 | AJ41: 0 | AK41: 0 | AL41: 0 | AM41: 0 | AN41: 0 | AO41: 0 | AP41: 0 | AQ41: 0 | AR41: 0 | AS41: 0 | AT41: 0 | AU41: 0 | AV41: 0 | AW41: 0 | AX41: 0 | AY41: 0 | AZ41: 0 | BA41: 0 | BB41: 0 | BC41: 0 | BD41: 0 | BE41: 0 | BF41: 0 | BG41: 0 | BH41: 0 | BI41: 0 | BJ41: 0 | BK41: 0 | BL41: 0 | BM41: 0 | BN41: 0 | BO41: 0 | BP41: 0 | BQ41: 0 | BR41: 0 | BS41: 0 | BT41: 0 | BU41: 0 | BV41: 0 | BW41: 0 | BX41: 0 | BY41: 0 | BZ41: 0 | CA41: 0 | CB41: 0 | CC41: 0 | CD41: 0 | CE41: 0 | CF41: 0 | CG41: 0 | CH41: 0 | CI41: 0 | CJ41: 0 | CK41: 0 | CL41: 0 | CM41: 0 | CN41: 0 | CO41: 0 | CP41: 0 | CQ41: 0 | CR41: 0 | CS41: 0 | CT41: 0 | CU41: 0 | CV41: 0 | CW41: 0 | CX41: 0 | CY41: 0 | CZ41: 0 | DA41: 0 | DB41: 0 | DC41: 0 | DD41: 0 | DE41: 0 | DF41: 0 | DG41: 0 | DH41: 0 | DI41: 0 | DJ41: 0 | DK41: 0 | DL41: 0 | DM41: 0 | DN41: 0 | DO41: 0 | DP41: 0 | DQ41: 0 | DR41: 0 | DS41: 0 | DT41: 0 | DU41: 0 | DV41: 0 | DW41: 0 | DX41: 0 | DY41: 0 | DZ41: 0 | EA41: 0 | EB41: 0 | EC41: 0 | ED41: 0 | EE41: 0 | EF41: 0 | EG41: 0 | EH41: 0 | EI41: 0 | EJ41: 0 | EK41: 0 | EL41: 0 | EM41: 0 | EN41: 0 | EO41: 0 | EP41: 0 | EQ41: 0 | ER41: 0 | ES41: 0 | ET41: 0 | EU41: 0 | EV41: 0 | EW41: 0 | EX41: 0 | EY41: 0 | EZ41: 0 | FA41: 0 | FB41: 0 | FC41: 0 | FD41: 0 | FE41: 0 | FF41: 0 | FG41: 0 | FH41: 0 | FI41: 0 | FJ41: 0 | FK41: 0 | FL41: 0 | FM41: 0 | FN41: 0 | FO41: 0 | FP41: 0 | FQ41: 0 | FR41: 0 | FS41: 0 | FT41: 0 | FU41: 0 | FV41: 0 | FW41: 0 | FX41: 0 | FY41: 0 | FZ41: 0 | GA41: 0 | GB41: 0 | GC41: 0 | GD41: 0 | GE41: 0 | GF41: 0 | GG41: 0 | GH41: 0 | GI41: 0 | GJ41: 0 | GK41: 0 | GL41: 0 | GM41: 0 | GN41: 0 | GO41: 0 | GP41: 0 | GQ41: 0 | GR41: 0 | GS41: 0 | GT41: 0 | GU41: 0 | GV41: 0 | GW41: 0 | GX41: 0 | GY41: 0 | GZ41: 0 | HA41: 0 | HB41: 0 | HC41: 0 | HD41: 0 | HE41: 0 | HF41: 0 | HG41: 0 | HH41: 0 | HI41: 0 | HJ41: 0 | HK41: 0 | HL41: 0 | HM41: 0 | HN41: 0 | HO41: 0 | HP41: 0 | HQ41: 0 | HR41: 0 | HS41: 0 | HT41: 0 | HU41: 0 | HV41: 0 | HW41: 0 | HX41: 0 | HY41: 0 | HZ41: 0 | IA41: 0 | IB41: 0 | IC41: 0 | ID41: 0 | IE41: 0 | IF41: 0 | IG41: 0 | IH41: 0 | II41: 0 | IJ41: 0 | IK41: 0 | IL41: 0 | IM41: 0 | IN41: 0 | IO41: 0 | IP41: 0 | IQ41: 0 | IR41: 0 | IS41: 0 | IT41: 0 | IU41: 0 | IV41: 0 | IW41: 0 | IX41: 0 | IY41: 0 | IZ41: 0 | JA41: 0 | JB41: 0 | JC41: 0 | JD41: 0 | JE41: 0 | JF41: 0 | JG41: 0 | JH41: 0 | JI41: 0 | JJ41: 0 | JK41: 0 | JL41: 0 | JM41: 0 | JN41: 0 | JO41: 0 | JP41: 0 | JQ41: 0 | JR41: 0 | JS41: 0 | JT41: 0 | JU41: 0 | JV41: 0 | JW41: 0 | JX41: 0 | JY41: 0 | JZ41: 0 | KA41: 0 | KB41: 0 | KC41: 0 | KD41: 0 | KE41: 0 | KF41: 0 | KG41: 0 | KH41: 0 | KI41: 0 | KJ41: 0 | KK41: 0 | KL41: 0 | KM41: 0 | KN41: 0 | KO41: 0 | KP41: 0 | KQ41: 0 | KR41: 0 | KS41: 0 | KT41: 0 | KU41: 0 | KV41: 0 | KW41: 0 | KX41: 0 | KY41: 0 | KZ41: 0 | LA41: 0 | LB41: 0 | LC41: 0 | LD41: 0 | LE41: 0 | LF41: 0 | LG41: 0 | LH41: 0 | LI41: 0 | LJ41: 0 | LK41: 0 | LL41: 0 | LM41: 0 | LN41: 0 | LO41: 0 | LP41: 0 | LQ41: 0 | LR41: 0 | LS41: 0 | LT41: 0 | LU41: 0 | LV41: 0 | LW41: 0 | LX41: 0 | LY41: 0 | LZ41: 0 | MA41: 0 | MB41: 0 | MC41: 0 | MD41: 0 | ME41: 0 | MF41: 0 | MG41: 0 | MH41: 0 | MI41: 0 | MJ41: 0 | MK41: 0 | ML41: 0 | MM41: 0 | MN41: 0 | MO41: 0 | MP41: 0 | MQ41: 0 | MR41: 0 | MS41: 0 | MT41: 0 | MU41: 0 | MV41: 0 | MW41: 0 | MX41: 0 | MY41: 0 | MZ41: 0 | NA41: 0 | NB41: 0 | NC41: 0 | ND41: 0 | NE41: 0 | NF41: 0 | NG41: 0 | NH41: 0 | NI41: 0 | NJ41: 0 | NK41: 0 | NL41: 0 | NM41: 0 | NN41: 0 | NO41: 0 | NP41: 0 | NQ41: 0 | NR41: 0 | NS41: 0 | NT41: 0 | NU41: 0 | NV41: 0 | NW41: 0 | NX41: 0 | NY41: 0 | NZ41: 0 | OA41: 0 | OB41: 0 | OC41: 0 | OD41: 0 | OE41: 0 | OF41: 0 | OG41: 0 | OH41: 0 | OI41: 0 | OJ41: 0 | OK41: 0 | OL41: 0 | OM41: 0 | ON41: 0 | OO41: 0 | OP41: 0 | OQ41: 0 | OR41: 0 | OS41: 0 | OT41: 0 | OU41: 0 | OV41: 0 | OW41: 0 | OX41: 0 | OY41: 0 | OZ41: 0 | PA41: 0 | PB41: 0 | PC41: 0 | PD41: 0 | PE41: 0 | PF41: 0 | PG41: 0 | PH41: 0 | PI41: 0 | PJ41: 0 | PK41: 0 | PL41: 0 | PM41: 0 | PN41: 0 | PO41: 0 | PP41: 0 | PQ41: 0 | PR41: 0 | PS41: 0 | PT41: 0 | PU41: 0 | PV41: 0 | PW41: 0 | PX41: 0 | PY41: 0 | PZ41: 0 | QA41: 0 | QB41: 0 | QC41: 0 | QD41: 0 | QE41: 0 | QF41: 0 | QG41: 0 | QH41: 0 | QI41: 0 | QJ41: 0 | QK41: 0 | QL41: 0 | QM41: 0 | QN41: 0 | QO41: 0 | QP41: 0 | QQ41: 0 | QR41: 0 | QS41: 0 | QT41: 0 | QU41: 0 | QV41: 0 | QW41: 0 | QX41: 0 | QY41: 0 | QZ41: 0 | RA41: 0 | RB41: 0 | RC41: 0 | RD41: 0 | RE41: 0 | RF41: 0 | RG41: 0 | RH41: 0 | RI41: 0 | RJ41: 0 | RK41: 0 | RL41: 0 | RM41: 0 | RN41: 0 | RO41: 0 | RP41: 0 | RQ41: 0 | RR41: 0 | RS41: 0 | RT41: 0 | RU41: 0 | RV41: 0 | RW41: 0 | RX41: 0 | RY41: 0 | RZ41: 0 | SA41: 0 | SB41: 0 | SC41: 0 | SD41: 0 | SE41: 0 | SF41: 0 | SG41: 0 | SH41: 0 | SI41: 0 | SJ41: 0 | SK41: 0 | SL41: 0 | SM41: 0 | SN41: 0 | SO41: 0 | SP41: 0 | SQ41: 0 | SR41: 0 | SS41: 0 | ST41: 0 | SU41: 0 | SV41: 0 | SW41: 0 | SX41: 0 | SY41: 0 | SZ41: 0 | TA41: 0 | TB41: 0 | TC41: 0 | TD41: 0 | TE41: 0 | TF41: 0 | TG41: 0 | TH41: 0 | TI41: 0 | TJ41: 0 | TK41: 0 | TL41: 0 | TM41: 0 | TN41: 0 | TO41: 0 | TP41: 0 | TQ41: 0 | TR41: 0 | TS41: 0 | TT41: 0 | TU41: 0 | TV41: 0 | TW41: 0 | TX41: 0 | TY41: 0 | TZ41: 0 | UA41: 0 | UB41: 0 | UC41: 0 | UD41: 0 | UE41: 0 | UF41: 0 | UG41: 0 | UH41: 0 | UI41: 0 | UJ41: 0 | UK41: 0 | UL41: 0 | UM41: 0 | UN41: 0 | UO41: 0 | UP41: 0 | UQ41: 0 | UR41: 0 | US41: 0 | UT41: 0 | UU41: 0 | UV41: 0 | UW41: 0 | UX41: 0 | UY41: 0 | UZ41: 0 | VA41: 0 | VB41: 0 | VC41: 0 | VD41: 0 | VE41: 0 | VF41: 0 | VG41: 0 | VH41: 0 | VI41: 0 | VJ41: 0 | VK41: 0 | VL41: 0 | VM41: 0 | VN41: 0 | VO41: 0 | VP41: 0 | VQ41: 0 | VR41: 0 | VS41: 0 | VT41: 0 | VU41: 0 | VV41: 0 | VW41: 0 | VX41: 0 | VY41: 0 | VZ41: 0 | WA41: 0 | WB41: 0 | WC41: 0 | WD41: 0 | WE41: 0 | WF41: 0 | WG41: 0 | WH41: 0 | WI41: 0 | WJ41: 0 | WK41: 0 | WL41: 0 | WM41: 0 | WN41: 0 | WO41: 0 | WP41: 0 | WQ41: 0 | WR41: 0 | WS41: 0 | WT41: 0 | WU41: 0 | WV41: 0 | WW41: 0 | WX41: 0 | WY41: 0 | WZ41: 0 | XA41: 0 | XB41: 0 | XC41: 0 | XD41: 0 | XE41: 0 | XF41: 0 | XG41: 0 | XH41: 0 | XI41: 0 | XJ41: 0 | XK41: 0 | XL41: 0 | XM41: 0 | XN41: 0 | XO41: 0 | XP41: 0 | XQ41: 0 | XR41: 0 | XS41: 0 | XT41: 0 | XU41: 0 | XV41: 0 | XW41: 0 | XX41: 0 | XY41: 0 | XZ41: 0 | YA41: 0 | YB41: 0 | YC41: 0 | YD41: 0 | YE41: 0 | YF41: 0 | YG41: 0 | YH41: 0 | YI41: 0 | YJ41: 0 | YK41: 0 | YL41: 0 | YM41: 0 | YN41: 0 | YO41: 0 | YP41: 0 | YQ41: 0 | YR41: 0 | YS41: 0 | YT41: 0 | YU41: 0 | YV41: 0 | YW41: 0 | YX41: 0 | YY41: 0 | YZ41: 0 | ZA41: 0 | ZB41: 0 | ZC41: 0 | ZD41: 0 | ZE41: 0 | ZF41: 0 | ZG41: 0 | ZH41: 0 | ZI41: 0 | ZJ41: 0 | ZK41: 0 | ZL41: 0 | ZM41: 0 | ZN41: 0 | ZO41: 0 | ZP41: 0 | ZQ41: 0 | ZR41: 0 | ZS41: 0 | ZT41: 0 | ZU41: 0 | ZV41: 0 | ZW41: 0 | ZX41: 0 | ZY41: 0 | ZZ41: 0 | AAA41: 0 | AAB41: 0 | AAC41: 0 | AAD41: 0 | AAE41: 0 | AAF41: 0 | AAG41: 0 | AAH41: 0 | AAI41: 0 | AAJ41: 0 | AAK41: 0 | AAL41: 0 | AAM41: 0 | AAN41: 0 | AAO41: 0 | AAP41: 0 | AAQ41: 0 | AAR41: 0 | AAS41: 0 | AAT41: 0 | AAU41: 0 | AAV41: 0 | AAW41: 0 | AAX41: 0 | AAY41: 0 | AAZ41: 0 | ABA41: 0 | ABB41: 0 | ABC41: 0 | ABD41: 0 | ABE41: 0 | ABF41: 0 | ABG41: 0 | ABH41: 0 | ABI41: 0 | ABJ41: 0 | ABK41: 0 | ABL41: 0 | ABM41: 0 | ABN41: 0 | ABO41: 0 | ABP41: 0 | ABQ41: 0 | ABR41: 0 | ABS41: 0 | ABT41: 0 | ABU41: 0 | ABV41: 0 | ABW41: 0 | ABX41: 0 | ABY41: 0 | ABZ41: 0
D42: Capital Expenditure for Battery | E42: USD/kWh | F42: =INDEX(InputC!I48:AD48,E1) -> 0 | G42: =F42*F16 -> 0 | K42: 0 | L42: 0 | M42: 0 | N42: 0 | O42: 0 | P42: 0 | Q42: 0 | R42: 0 | S42: 0 | T42: 0 | U42: 0 | V42: 0 | W42: 0 | X42: 0 | Y42: 0 | Z42: 0 | AA42: 0 | AB42: 0 | AC42: 0 | AD42: 0 | AE42: 0 | AF42: 0 | AG42: 0 | AH42: 0 | AI42: 0 | AJ42: 0 | AK42: 0 | AL42: 0 | AM42: 0 | AN42: 0 | AO42: 0 | AP42: 0 | AQ42: 0 | AR42: 0 | AS42: 0 | AT42: 0 | AU42: 0 | AV42: 0 | AW42: 0 | AX42: 0 | AY42: 0 | AZ42: 0 | BA42: 0 | BB42: 0 | BC42: 0 | BD42: 0 | BE42: 0 | BF42: 0 | BG42: 0 | BH42: 0 | BI42: 0 | BJ42: 0 | BK42: 0 | BL42: 0 | BM42: 0 | BN42: 0 | BO42: 0 | BP42: 0 | BQ42: 0 | BR42: 0 | BS42: 0 | BT42: 0 | BU42: 0 | BV42: 0 | BW42: 0 | BX42: 0 | BY42: 0 | BZ42: 0 | CA42: 0 | CB42: 0 | CC42: 0 | CD42: 0 | CE42: 0 | CF42: 0 | CG42: 0 | CH42: 0 | CI42: 0 | CJ42: 0 | CK42: 0 | CL42: 0 | CM42: 0 | CN42: 0 | CO42: 0 | CP42: 0 | CQ42: 0 | CR42: 0 | CS42: 0 | CT42: 0 | CU42: 0 | CV42: 0 | CW42: 0 | CX42: 0 | CY42: 0 | CZ42: 0 | DA42: 0 | DB42: 0 | DC42: 0 | DD42: 0 | DE42: 0 | DF42: 0 | DG42: 0 | DH42: 0 | DI42: 0 | DJ42: 0 | DK42: 0 | DL42: 0 | DM42: 0 | DN42: 0 | DO42: 0 | DP42: 0 | DQ42: 0 | DR42: 0 | DS42: 0 | DT42: 0 | DU42: 0 | DV42: 0 | DW42: 0 | DX42: 0 | DY42: 0 | DZ42: 0 | EA42: 0 | EB42: 0 | EC42: 0 | ED42: 0 | EE42: 0 | EF42: 0 | EG42: 0 | EH42: 0 | EI42: 0 | EJ42: 0 | EK42: 0 | EL42: 0 | EM42: 0 | EN42: 0 | EO42: 0 | EP42: 0 | EQ42: 0 | ER42: 0 | ES42: 0 | ET42: 0 | EU42: 0 | EV42: 0 | EW42: 0 | EX42: 0 | EY42: 0 | EZ42: 0 | FA42: 0 | FB42: 0 | FC42: 0 | FD42: 0 | FE42: 0 | FF42: 0 | FG42: 0 | FH42: 0 | FI42: 0 | FJ42: 0 | FK42: 0 | FL42: 0 | FM42: 0 | FN42: 0 | FO42: 0 | FP42: 0 | FQ42: 0 | FR42: 0 | FS42: 0 | FT42: 0 | FU42: 0 | FV42: 0 | FW42: 0 | FX42: 0 | FY42: 0 | FZ42: 0 | GA42: 0 | GB42: 0 | GC42: 0 | GD42: 0 | GE42: 0 | GF42: 0 | GG42: 0 | GH42: 0 | GI42: 0 | GJ42: 0 | GK42: 0 | GL42: 0 | GM42: 0 | GN42: 0 | GO42: 0 | GP42: 0 | GQ42: 0 | GR42: 0 | GS42: 0 | GT42: 0 | GU42: 0 | GV42: 0 | GW42: 0 | GX42: 0 | GY42: 0 | GZ42: 0 | HA42: 0 | HB42: 0 | HC42: 0 | HD42: 0 | HE42: 0 | HF42: 0 | HG42: 0 | HH42: 0 | HI42: 0 | HJ42: 0 | HK42: 0 | HL42: 0 | HM42: 0 | HN42: 0 | HO42: 0 | HP42: 0 | HQ42: 0 | HR42: 0 | HS42: 0 | HT42: 0 | HU42: 0 | HV42: 0 | HW42: 0 | HX42: 0 | HY42: 0 | HZ42: 0 | IA42: 0 | IB42: 0 | IC42: 0 | ID42: 0 | IE42: 0 | IF42: 0 | IG42: 0 | IH42: 0 | II42: 0 | IJ42: 0 | IK42: 0 | IL42: 0 | IM42: 0 | IN42: 0 | IO42: 0 | IP42: 0 | IQ42: 0 | IR42: 0 | IS42: 0 | IT42: 0 | IU42: 0 | IV42: 0 | IW42: 0 | IX42: 0 | IY42: 0 | IZ42: 0 | JA42: 0 | JB42: 0 | JC42: 0 | JD42: 0 | JE42: 0 | JF42: 0 | JG42: 0 | JH42: 0 | JI42: 0 | JJ42: 0 | JK42: 0 | JL42: 0 | JM42: 0 | JN42: 0 | JO42: 0 | JP42: 0 | JQ42: 0 | JR42: 0 | JS42: 0 | JT42: 0 | JU42: 0 | JV42: 0 | JW42: 0 | JX42: 0 | JY42: 0 | JZ42: 0 | KA42: 0 | KB42: 0 | KC42: 0 | KD42: 0 | KE42: 0 | KF42: 0 | KG42: 0 | KH42: 0 | KI42: 0 | KJ42: 0 | KK42: 0 | KL42: 0 | KM42: 0 | KN42: 0 | KO42: 0 | KP42: 0 | KQ42: 0 | KR42: 0 | KS42: 0 | KT42: 0 | KU42: 0 | KV42: 0 | KW42: 0 | KX42: 0 | KY42: 0 | KZ42: 0 | LA42: 0 | LB42: 0 | LC42: 0 | LD42: 0 | LE42: 0 | LF42: 0 | LG42: 0 | LH42: 0 | LI42: 0 | LJ42: 0 | LK42: 0 | LL42: 0 | LM42: 0 | LN42: 0 | LO42: 0 | LP42: 0 | LQ42: 0 | LR42: 0 | LS42: 0 | LT42: 0 | LU42: 0 | LV42: 0 | LW42: 0 | LX42: 0 | LY42: 0 | LZ42: 0 | MA42: 0 | MB42: 0 | MC42: 0 | MD42: 0 | ME42: 0 | MF42: 0 | MG42: 0 | MH42: 0 | MI42: 0 | MJ42: 0 | MK42: 0 | ML42: 0 | MM42: 0 | MN42: 0 | MO42: 0 | MP42: 0 | MQ42: 0 | MR42: 0 | MS42: 0 | MT42: 0 | MU42: 0 | MV42: 0 | MW42: 0 | MX42: 0 | MY42: 0 | MZ42: 0 | NA42: 0 | NB42: 0 | NC42: 0 | ND42: 0 | NE42: 0 | NF42: 0 | NG42: 0 | NH42: 0 | NI42: 0 | NJ42: 0 | NK42: 0 | NL42: 0 | NM42: 0 | NN42: 0 | NO42: 0 | NP42: 0 | NQ42: 0 | NR42: 0 | NS42: 0 | NT42: 0 | NU42: 0 | NV42: 0 | NW42: 0 | NX42: 0 | NY42: 0 | NZ42: 0 | OA42: 0 | OB42: 0 | OC42: 0 | OD42: 0 | OE42: 0 | OF42: 0 | OG42: 0 | OH42: 0 | OI42: 0 | OJ42: 0 | OK42: 0 | OL42: 0 | OM42: 0 | ON42: 0 | OO42: 0 | OP42: 0 | OQ42: 0 | OR42: 0 | OS42: 0 | OT42: 0 | OU42: 0 | OV42: 0 | OW42: 0 | OX42: 0 | OY42: 0 | OZ42: 0 | PA42: 0 | PB42: 0 | PC42: 0 | PD42: 0 | PE42: 0 | PF42: 0 | PG42: 0 | PH42: 0 | PI42: 0 | PJ42: 0 | PK42: 0 | PL42: 0 | PM42: 0 | PN42: 0 | PO42: 0 | PP42: 0 | PQ42: 0 | PR42: 0 | PS42: 0 | PT42: 0 | PU42: 0 | PV42: 0 | PW42: 0 | PX42: 0 | PY42: 0 | PZ42: 0 | QA42: 0 | QB42: 0 | QC42: 0 | QD42: 0 | QE42: 0 | QF42: 0 | QG42: 0 | QH42: 0 | QI42: 0 | QJ42: 0 | QK42: 0 | QL42: 0 | QM42: 0 | QN42: 0 | QO42: 0 | QP42: 0 | QQ42: 0 | QR42: 0 | QS42: 0 | QT42: 0 | QU42: 0 | QV42: 0 | QW42: 0 | QX42: 0 | QY42: 0 | QZ42: 0 | RA42: 0 | RB42: 0 | RC42: 0 | RD42: 0 | RE42: 0 | RF42: 0 | RG42: 0 | RH42: 0 | RI42: 0 | RJ42: 0 | RK42: 0 | RL42: 0 | RM42: 0 | RN42: 0 | RO42: 0 | RP42: 0 | RQ42: 0 | RR42: 0 | RS42: 0 | RT42: 0 | RU42: 0 | RV42: 0 | RW42: 0 | RX42: 0 | RY42: 0 | RZ42: 0 | SA42: 0 | SB42: 0 | SC42: 0 | SD42: 0 | SE42: 0 | SF42: 0 | SG42: 0 | SH42: 0 | SI42: 0 | SJ42: 0 | SK42: 0 | SL42: 0 | SM42: 0 | SN42: 0 | SO42: 0 | SP42: 0 | SQ42: 0 | SR42: 0 | SS42: 0 | ST42: 0 | SU42: 0 | SV42: 0 | SW42: 0 | SX42: 0 | SY42: 0 | SZ42: 0 | TA42: 0 | TB42: 0 | TC42: 0 | TD42: 0 | TE42: 0 | TF42: 0 | TG42: 0 | TH42: 0 | TI42: 0 | TJ42: 0 | TK42: 0 | TL42: 0 | TM42: 0 | TN42: 0 | TO42: 0 | TP42: 0 | TQ42: 0 | TR42: 0 | TS42: 0 | TT42: 0 | TU42: 0 | TV42: 0 | TW42: 0 | TX42: 0 | TY42: 0 | TZ42: 0 | UA42: 0 | UB42: 0 | UC42: 0 | UD42: 0 | UE42: 0 | UF42: 0 | UG42: 0 | UH42: 0 | UI42: 0 | UJ42: 0 | UK42: 0 | UL42: 0 | UM42: 0 | UN42: 0 | UO42: 0 | UP42: 0 | UQ42: 0 | UR42: 0 | US42: 0 | UT42: 0 | UU42: 0 | UV42: 0 | UW42: 0 | UX42: 0 | UY42: 0 | UZ42: 0 | VA42: 0 | VB42: 0 | VC42: 0 | VD42: 0 | VE42: 0 | VF42: 0 | VG42: 0 | VH42: 0 | VI42: 0 | VJ42: 0 | VK42: 0 | VL42: 0 | VM42: 0 | VN42: 0 | VO42: 0 | VP42: 0 | VQ42: 0 | VR42: 0 | VS42: 0 | VT42: 0 | VU42: 0 | VV42: 0 | VW42: 0 | VX42: 0 | VY42: 0 | VZ42: 0 | WA42: 0 | WB42: 0 | WC42: 0 | WD42: 0 | WE42: 0 | WF42: 0 | WG42: 0 | WH42: 0 | WI42: 0 | WJ42: 0 | WK42: 0 | WL42: 0 | WM42: 0 | WN42: 0 | WO42: 0 | WP42: 0 | WQ42: 0 | WR42: 0 | WS42: 0 | WT42: 0 | WU42: 0 | WV42: 0 | WW42: 0 | WX42: 0 | WY42: 0 | WZ42: 0 | XA42: 0 | XB42: 0 | XC42: 0 | XD42: 0 | XE42: 0 | XF42: 0 | XG42: 0 | XH42: 0 | XI42: 0 | XJ42: 0 | XK42: 0 | XL42: 0 | XM42: 0 | XN42: 0 | XO42: 0 | XP42: 0 | XQ42: 0 | XR42: 0 | XS42: 0 | XT42: 0 | XU42: 0 | XV42: 0 | XW42: 0 | XX42: 0 | XY42: 0 | XZ42: 0 | YA42: 0 | YB42: 0 | YC42: 0 | YD42: 0 | YE42: 0 | YF42: 0 | YG42: 0 | YH42: 0 | YI42: 0 | YJ42: 0 | YK42: 0 | YL42: 0 | YM42: 0 | YN42: 0 | YO42: 0 | YP42: 0 | YQ42: 0 | YR42: 0 | YS42: 0 | YT42: 0 | YU42: 0 | YV42: 0 | YW42: 0 | YX42: 0 | YY42: 0 | YZ42: 0 | ZA42: 0 | ZB42: 0 | ZC42: 0 | ZD42: 0 | ZE42: 0 | ZF42: 0 | ZG42: 0 | ZH42: 0 | ZI42: 0 | ZJ42: 0 | ZK42: 0 | ZL42: 0 | ZM42: 0 | ZN42: 0 | ZO42: 0 | ZP42: 0 | ZQ42: 0 | ZR42: 0 | ZS42: 0 | ZT42: 0 | ZU42: 0 | ZV42: 0 | ZW42: 0 | ZX42: 0 | ZY42: 0 | ZZ42: 0 | AAA42: 0 | AAB42: 0 | AAC42: 0 | AAD42: 0 | AAE42: 0 | AAF42: 0 | AAG42: 0 | AAH42: 0 | AAI42: 0 | AAJ42: 0 | AAK42: 0 | AAL42: 0 | AAM42: 0 | AAN42: 0 | AAO42: 0 | AAP42: 0 | AAQ42: 0 | AAR42: 0 | AAS42: 0 | AAT42: 0 | AAU42: 0 | AAV42: 0 | AAW42: 0 | AAX42: 0 | AAY42: 0 | AAZ42: 0 | ABA42: 0 | ABB42: 0 | ABC42: 0 | ABD42: 0 | ABE42: 0 | ABF42: 0 | ABG42: 0 | ABH42: 0 | ABI42: 0 | ABJ42: 0 | ABK42: 0 | ABL42: 0 | ABM42: 0 | ABN42: 0 | ABO42: 0 | ABP42: 0 | ABQ42: 0 | ABR42: 0 | ABS42: 0 | ABT42: 0 | ABU42: 0 | ABV42: 0 | ABW42: 0 | ABX42: 0 | ABY42: 0 | ABZ42: 0
D44: Total Cost | E44: USD | F44: =SUM(G40:G42) -> 432000 | I44: USD | K44: =$F$44 -> 432000 | L44: 432000 | M44: 432000 | N44: 432000 | O44: 432000 | P44: 432000 | Q44: 432000 | R44: 432000 | S44: 432000 | T44: 432000 | U44: 432000 | V44: 432000 | W44: 432000 | X44: 432000 | Y44: 432000 | Z44: 432000 | AA44: 432000 | AB44: 432000 | AC44: 432000 | AD44: 432000 | AE44: 432000 | AF44: 432000 | AG44: 432000 | AH44: 432000 | AI44: 432000 | AJ44: 432000 | AK44: 432000 | AL44: 432000 | AM44: 432000 | AN44: 432000 | AO44: 432000 | AP44: 432000 | AQ44: 432000 | AR44: 432000 | AS44: 432000 | AT44: 432000 | AU44: 432000 | AV44: 432000 | AW44: 432000 | AX44: 432000 | AY44: 432000 | AZ44: 432000 | BA44: 432000 | BB44: 432000 | BC44: 432000 | BD44: 432000 | BE44: 432000 | BF44: 432000 | BG44: 432000 | BH44: 432000 | BI44: 432000 | BJ44: 432000 | BK44: 432000 | BL44: 432000 | BM44: 432000 | BN44: 432000 | BO44: 432000 | BP44: 432000 | BQ44: 432000 | BR44: 432000 | BS44: 432000 | BT44: 432000 | BU44: 432000 | BV44: 432000 | BW44: =$F$44 -> 432000 | BX44: 432000 | BY44: 432000 | BZ44: 432000 | CA44: 432000 | CB44: 432000 | CC44: 432000 | CD44: 432000 | CE44: 432000 | CF44: 432000 | CG44: 432000 | CH44: 432000 | CI44: 432000 | CJ44: 432000 | CK44: 432000 | CL44: 432000 | CM44: 432000 | CN44: 432000 | CO44: 432000 | CP44: 432000 | CQ44: 432000 | CR44: 432000 | CS44: 432000 | CT44: 432000 | CU44: 432000 | CV44: 432000 | CW44: 432000 | CX44: 432000 | CY44: 432000 | CZ44: 432000 | DA44: 432000 | DB44: 432000 | DC44: 432000 | DD44: 432000 | DE44: 432000 | DF44: 432000 | DG44: 432000 | DH44: 432000 | DI44: 432000 | DJ44: 432000 | DK44: 432000 | DL44: 432000 | DM44: 432000 | DN44: 432000 | DO44: 432000 | DP44: 432000 | DQ44: 432000 | DR44: 432000 | DS44: 432000 | DT44: 432000 | DU44: 432000 | DV44: 432000 | DW44: 432000 | DX44: 432000 | DY44: 432000 | DZ44: 432000 | EA44: 432000 | EB44: 432000 | EC44: 432000 | ED44: 432000 | EE44: 432000 | EF44: 432000 | EG44: 432000 | EH44: 432000 | EI44: =$F$44 -> 432000 | EJ44: 432000 | EK44: 432000 | EL44: 432000 | EM44: 432000 | EN44: 432000 | EO44: 432000 | EP44: 432000 | EQ44: 432000 | ER44: 432000 | ES44: 432000 | ET44: 432000 | EU44: 432000 | EV44: 432000 | EW44: 432000 | EX44: 432000 | EY44: 432000 | EZ44: 432000 | FA44: 432000 | FB44: 432000 | FC44: 432000 | FD44: 432000 | FE44: 432000 | FF44: 432000 | FG44: 432000 | FH44: 432000 | FI44: 432000 | FJ44: 432000 | FK44: 432000 | FL44: 432000 | FM44: 432000 | FN44: 432000 | FO44: 432000 | FP44: 432000 | FQ44: 432000 | FR44: 432000 | FS44: 432000 | FT44: 432000 | FU44: 432000 | FV44: 432000 | FW44: 432000 | FX44: 432000 | FY44: 432000 | FZ44: 432000 | GA44: 432000 | GB44: 432000 | GC44: 432000 | GD44: 432000 | GE44: 432000 | GF44: 432000 | GG44: 432000 | GH44: 432000 | GI44: 432000 | GJ44: 432000 | GK44: 432000 | GL44: 432000 | GM44: 432000 | GN44: 432000 | GO44: 432000 | GP44: 432000 | GQ44: 432000 | GR44: 432000 | GS44: 432000 | GT44: 432000 | GU44: =$F$44 -> 432000 | GV44: 432000 | GW44: 432000 | GX44: 432000 | GY44: 432000 | GZ44: 432000 | HA44: 432000 | HB44: 432000 | HC44: 432000 | HD44: 432000 | HE44: 432000 | HF44: 432000 | HG44: 432000 | HH44: 432000 | HI44: 432000 | HJ44: 432000 | HK44: 432000 | HL44: 432000 | HM44: 432000 | HN44: 432000 | HO44: 432000 | HP44: 432000 | HQ44: 432000 | HR44: 432000 | HS44: 432000 | HT44: 432000 | HU44: 432000 | HV44: 432000 | HW44: 432000 | HX44: 432000 | HY44: 432000 | HZ44: 432000 | IA44: 432000 | IB44: 432000 | IC44: 432000 | ID44: 432000 | IE44: 432000 | IF44: 432000 | IG44: 432000 | IH44: 432000 | II44: 432000 | IJ44: 432000 | IK44: 432000 | IL44: 432000 | IM44: 432000 | IN44: 432000 | IO44: 432000 | IP44: 432000 | IQ44: 432000 | IR44: 432000 | IS44: 432000 | IT44: 432000 | IU44: 432000 | IV44: 432000 | IW44: 432000 | IX44: 432000 | IY44: 432000 | IZ44: 432000 | JA44: 432000 | JB44: 432000 | JC44: 432000 | JD44: 432000 | JE44: 432000 | JF44: 432000 | JG44: =$F$44 -> 432000 | JH44: 432000 | JI44: 432000 | JJ44: 432000 | JK44: 432000 | JL44: 432000 | JM44: 432000 | JN44: 432000 | JO44: 432000 | JP44: 432000 | JQ44: 432000 | JR44: 432000 | JS44: 432000 | JT44: 432000 | JU44: 432000 | JV44: 432000 | JW44: 432000 | JX44: 432000 | JY44: 432000 | JZ44: 432000 | KA44: 432000 | KB44: 432000 | KC44: 432000 | KD44: 432000 | KE44: 432000 | KF44: 432000 | KG44: 432000 | KH44: 432000 | KI44: 432000 | KJ44: 432000 | KK44: 432000 | KL44: 432000 | KM44: 432000 | KN44: 432000 | KO44: 432000 | KP44: 432000 | KQ44: 432000 | KR44: 432000 | KS44: 432000 | KT44: 432000 | KU44: 432000 | KV44: 432000 | KW44: 432000 | KX44: 432000 | KY44: 432000 | KZ44: 432000 | LA44: 432000 | LB44: 432000 | LC44: 432000 | LD44: 432000 | LE44: 432000 | LF44: 432000 | LG44: 432000 | LH44: 432000 | LI44: 432000 | LJ44: 432000 | LK44: 432000 | LL44: 432000 | LM44: 432000 | LN44: 432000 | LO44: 432000 | LP44: 432000 | LQ44: 432000 | LR44: 432000 | LS44: =$F$44 -> 432000 | LT44: 432000 | LU44: 432000 | LV44: 432000 | LW44: 432000 | LX44: 432000 | LY44: 432000 | LZ44: 432000 | MA44: 432000 | MB44: 432000 | MC44: 432000 | MD44: 432000 | ME44: 432000 | MF44: 432000 | MG44: 432000 | MH44: 432000 | MI44: 432000 | MJ44: 432000 | MK44: 432000 | ML44: 432000 | MM44: 432000 | MN44: 432000 | MO44: 432000 | MP44: 432000 | MQ44: 432000 | MR44: 432000 | MS44: 432000 | MT44: 432000 | MU44: 432000 | MV44: 432000 | MW44: 432000 | MX44: 432000 | MY44: 432000 | MZ44: 432000 | NA44: 432000 | NB44: 432000 | NC44: 432000 | ND44: 432000 | NE44: 432000 | NF44: 432000 | NG44: 432000 | NH44: 432000 | NI44: 432000 | NJ44: 432000 | NK44: 432000 | NL44: 432000 | NM44: 432000 | NN44: 432000 | NO44: 432000 | NP44: 432000 | NQ44: 432000 | NR44: 432000 | NS44: 432000 | NT44: 432000 | NU44: 432000 | NV44: 432000 | NW44: 432000 | NX44: 432000 | NY44: 432000 | NZ44: 432000 | OA44: 432000 | OB44: 432000 | OC44: 432000 | OD44: 432000 | OE44: =$F$44 -> 432000 | OF44: 432000 | OG44: 432000 | OH44: 432000 | OI44: 432000 | OJ44: 432000 | OK44: 432000 | OL44: 432000 | OM44: 432000 | ON44: 432000 | OO44: 432000 | OP44: 432000 | OQ44: 432000 | OR44: 432000 | OS44: 432000 | OT44: 432000 | OU44: 432000 | OV44: 432000 | OW44: 432000 | OX44: 432000 | OY44: 432000 | OZ44: 432000 | PA44: 432000 | PB44: 432000 | PC44: 432000 | PD44: 432000 | PE44: 432000 | PF44: 432000 | PG44: 432000 | PH44: 432000 | PI44: 432000 | PJ44: 432000 | PK44: 432000 | PL44: 432000 | PM44: 432000 | PN44: 432000 | PO44: 432000 | PP44: 432000 | PQ44: 432000 | PR44: 432000 | PS44: 432000 | PT44: 432000 | PU44: 432000 | PV44: 432000 | PW44: 432000 | PX44: 432000 | PY44: 432000 | PZ44: 432000 | QA44: 432000 | QB44: 432000 | QC44: 432000 | QD44: 432000 | QE44: 432000 | QF44: 432000 | QG44: 432000 | QH44: 432000 | QI44: 432000 | QJ44: 432000 | QK44: 432000 | QL44: 432000 | QM44: 432000 | QN44: 432000 | QO44: 432000 | QP44: 432000 | QQ44: =$F$44 -> 432000 | QR44: 432000 | QS44: 432000 | QT44: 432000 | QU44: 432000 | QV44: 432000 | QW44: 432000 | QX44: 432000 | QY44: 432000 | QZ44: 432000 | RA44: 432000 | RB44: 432000 | RC44: 432000 | RD44: 432000 | RE44: 432000 | RF44: 432000 | RG44: 432000 | RH44: 432000 | RI44: 432000 | RJ44: 432000 | RK44: 432000 | RL44: 432000 | RM44: 432000 | RN44: 432000 | RO44: 432000 | RP44: 432000 | RQ44: 432000 | RR44: 432000 | RS44: 432000 | RT44: 432000 | RU44: 432000 | RV44: 432000 | RW44: 432000 | RX44: 432000 | RY44: 432000 | RZ44: 432000 | SA44: 432000 | SB44: 432000 | SC44: 432000 | SD44: 432000 | SE44: 432000 | SF44: 432000 | SG44: 432000 | SH44: 432000 | SI44: 432000 | SJ44: 432000 | SK44: 432000 | SL44: 432000 | SM44: 432000 | SN44: 432000 | SO44: 432000 | SP44: 432000 | SQ44: 432000 | SR44: 432000 | SS44: 432000 | ST44: 432000 | SU44: 432000 | SV44: 432000 | SW44: 432000 | SX44: 432000 | SY44: 432000 | SZ44: 432000 | TA44: 432000 | TB44: 432000 | TC44: =$F$44 -> 432000 | TD44: 432000 | TE44: 432000 | TF44: 432000 | TG44: 432000 | TH44: 432000 | TI44: 432000 | TJ44: 432000 | TK44: 432000 | TL44: 432000 | TM44: 432000 | TN44: 432000 | TO44: 432000 | TP44: 432000 | TQ44: 432000 | TR44: 432000 | TS44: 432000 | TT44: 432000 | TU44: 432000 | TV44: 432000 | TW44: 432000 | TX44: 432000 | TY44: 432000 | TZ44: 432000 | UA44: 432000 | UB44: 432000 | UC44: 432000 | UD44: 432000 | UE44: 432000 | UF44: 432000 | UG44: 432000 | UH44: 432000 | UI44: 432000 | UJ44: 432000 | UK44: 432000 | UL44: 432000 | UM44: 432000 | UN44: 432000 | UO44: 432000 | UP44: 432000 | UQ44: 432000 | UR44: 432000 | US44: 432000 | UT44: 432000 | UU44: 432000 | UV44: 432000 | UW44: 432000 | UX44: 432000 | UY44: 432000 | UZ44: 432000 | VA44: 432000 | VB44: 432000 | VC44: 432000 | VD44: 432000 | VE44: 432000 | VF44: 432000 | VG44: 432000 | VH44: 432000 | VI44: 432000 | VJ44: 432000 | VK44: 432000 | VL44: 432000 | VM44: 432000 | VN44: 432000 | VO44: =$F$44 -> 432000 | VP44: 432000 | VQ44: 432000 | VR44: 432000 | VS44: 432000 | VT44: 432000 | VU44: 432000 | VV44: 432000 | VW44: 432000 | VX44: 432000 | VY44: 432000 | VZ44: 432000 | WA44: 432000 | WB44: 432000 | WC44: 432000 | WD44: 432000 | WE44: 432000 | WF44: 432000 | WG44: 432000 | WH44: 432000 | WI44: 432000 | WJ44: 432000 | WK44: 432000 | WL44: 432000 | WM44: 432000 | WN44: 432000 | WO44: 432000 | WP44: 432000 | WQ44: 432000 | WR44: 432000 | WS44: 432000 | WT44: 432000 | WU44: 432000 | WV44: 432000 | WW44: 432000 | WX44: 432000 | WY44: 432000 | WZ44: 432000 | XA44: 432000 | XB44: 432000 | XC44: 432000 | XD44: 432000 | XE44: 432000 | XF44: 432000 | XG44: 432000 | XH44: 432000 | XI44: 432000 | XJ44: 432000 | XK44: 432000 | XL44: 432000 | XM44: 432000 | XN44: 432000 | XO44: 432000 | XP44: 432000 | XQ44: 432000 | XR44: 432000 | XS44: 432000 | XT44: 432000 | XU44: 432000 | XV44: 432000 | XW44: 432000 | XX44: 432000 | XY44: 432000 | XZ44: 432000 | YA44: =$F$44 -> 432000 | YB44: 432000 | YC44: 432000 | YD44: 432000 | YE44: 432000 | YF44: 432000 | YG44: 432000 | YH44: 432000 | YI44: 432000 | YJ44: 432000 | YK44: 432000 | YL44: 432000 | YM44: 432000 | YN44: 432000 | YO44: 432000 | YP44: 432000 | YQ44: 432000 | YR44: 432000 | YS44: 432000 | YT44: 432000 | YU44: 432000 | YV44: 432000 | YW44: 432000 | YX44: 432000 | YY44: 432000 | YZ44: 432000 | ZA44: 432000 | ZB44: 432000 | ZC44: 432000 | ZD44: 432000 | ZE44: 432000 | ZF44: 432000 | ZG44: 432000 | ZH44: 432000 | ZI44: 432000 | ZJ44: 432000 | ZK44: 432000 | ZL44: 432000 | ZM44: 432000 | ZN44: 432000 | ZO44: 432000 | ZP44: 432000 | ZQ44: 432000 | ZR44: 432000 | ZS44: 432000 | ZT44: 432000 | ZU44: 432000 | ZV44: 432000 | ZW44: 432000 | ZX44: 432000 | ZY44: 432000 | ZZ44: 432000 | AAA44: 432000 | AAB44: 432000 | AAC44: 432000 | AAD44: 432000 | AAE44: 432000 | AAF44: 432000 | AAG44: 432000 | AAH44: 432000 | AAI44: 432000 | AAJ44: 432000 | AAK44: 432000 | AAL44: 432000 | AAM44: =$F$44 -> 432000 | AAN44: 432000 | AAO44: 432000 | AAP44: 432000 | AAQ44: 432000 | AAR44: 432000 | AAS44: 432000 | AAT44: 432000 | AAU44: 432000 | AAV44: 432000 | AAW44: 432000 | AAX44: 432000 | AAY44: 432000 | AAZ44: 432000 | ABA44: 432000 | ABB44: 432000 | ABC44: 432000 | ABD44: 432000 | ABE44: 432000 | ABF44: 432000 | ABG44: 432000 | ABH44: 432000 | ABI44: 432000 | ABJ44: 432000 | ABK44: 432000 | ABL44: 432000 | ABM44: 432000 | ABN44: 432000 | ABO44: 432000 | ABP44: 432000 | ABQ44: 432000 | ABR44: 432000 | ABS44: 432000 | ABT44: 432000 | ABU44: 432000 | ABV44: 432000 | ABW44: 432000 | ABX44: 432000 | ABY44: 432000 | ABZ44: 432000
D45: Percent Spent | E45: Months/Per | F45: =1/H6 -> 0.1666666667 | I45: % | K45: =$F45*K$6 -> 0.1666666667 | L45: =$F45*L$6 -> 0.1666666667 | M45: 0.1666666667 | N45: 0.1666666667 | O45: 0.1666666667 | P45: 0.1666666667 | Q45: 0 | R45: 0 | S45: 0 | T45: 0 | U45: 0 | V45: 0 | W45: 0 | X45: 0 | Y45: 0 | Z45: 0 | AA45: 0 | AB45: 0 | AC45: 0 | AD45: 0 | AE45: 0 | AF45: 0 | AG45: 0 | AH45: 0 | AI45: 0 | AJ45: 0 | AK45: 0 | AL45: 0 | AM45: 0 | AN45: 0 | AO45: 0 | AP45: 0 | AQ45: 0 | AR45: 0 | AS45: 0 | AT45: 0 | AU45: 0 | AV45: 0 | AW45: 0 | AX45: 0 | AY45: 0 | AZ45: 0 | BA45: 0 | BB45: 0 | BC45: 0 | BD45: 0 | BE45: 0 | BF45: 0 | BG45: 0 | BH45: 0 | BI45: 0 | BJ45: 0 | BK45: 0 | BL45: 0 | BM45: 0 | BN45: 0 | BO45: 0 | BP45: 0 | BQ45: 0 | BR45: 0 | BS45: 0 | BT45: 0 | BU45: 0 | BV45: 0 | BW45: 0 | BX45: =$F45*BX$6 -> 0 | BY45: 0 | BZ45: 0 | CA45: 0 | CB45: 0 | CC45: 0 | CD45: 0 | CE45: 0 | CF45: 0 | CG45: 0 | CH45: 0 | CI45: 0 | CJ45: 0 | CK45: 0 | CL45: 0 | CM45: 0 | CN45: 0 | CO45: 0 | CP45: 0 | CQ45: 0 | CR45: 0 | CS45: 0 | CT45: 0 | CU45: 0 | CV45: 0 | CW45: 0 | CX45: 0 | CY45: 0 | CZ45: 0 | DA45: 0 | DB45: 0 | DC45: 0 | DD45: 0 | DE45: 0 | DF45: 0 | DG45: 0 | DH45: 0 | DI45: 0 | DJ45: 0 | DK45: 0 | DL45: 0 | DM45: 0 | DN45: 0 | DO45: 0 | DP45: 0 | DQ45: 0 | DR45: 0 | DS45: 0 | DT45: 0 | DU45: 0 | DV45: 0 | DW45: 0 | DX45: 0 | DY45: 0 | DZ45: 0 | EA45: 0 | EB45: 0 | EC45: 0 | ED45: 0 | EE45: 0 | EF45: 0 | EG45: 0 | EH45: 0 | EI45: 0 | EJ45: =$F45*EJ$6 -> 0 | EK45: 0 | EL45: 0 | EM45: 0 | EN45: 0 | EO45: 0 | EP45: 0 | EQ45: 0 | ER45: 0 | ES45: 0 | ET45: 0 | EU45: 0 | EV45: 0 | EW45: 0 | EX45: 0 | EY45: 0 | EZ45: 0 | FA45: 0 | FB45: 0 | FC45: 0 | FD45: 0 | FE45: 0 | FF45: 0 | FG45: 0 | FH45: 0 | FI45: 0 | FJ45: 0 | FK45: 0 | FL45: 0 | FM45: 0 | FN45: 0 | FO45: 0 | FP45: 0 | FQ45: 0 | FR45: 0 | FS45: 0 | FT45: 0 | FU45: 0 | FV45: 0 | FW45: 0 | FX45: 0 | FY45: 0 | FZ45: 0 | GA45: 0 | GB45: 0 | GC45: 0 | GD45: 0 | GE45: 0 | GF45: 0 | GG45: 0 | GH45: 0 | GI45: 0 | GJ45: 0 | GK45: 0 | GL45: 0 | GM45: 0 | GN45: 0 | GO45: 0 | GP45: 0 | GQ45: 0 | GR45: 0 | GS45: 0 | GT45: 0 | GU45: 0 | GV45: =$F45*GV$6 -> 0 | GW45: 0 | GX45: 0 | GY45: 0 | GZ45: 0 | HA45: 0 | HB45: 0 | HC45: 0 | HD45: 0 | HE45: 0 | HF45: 0 | HG45: 0 | HH45: 0 | HI45: 0 | HJ45: 0 | HK45: 0 | HL45: 0 | HM45: 0 | HN45: 0 | HO45: 0 | HP45: 0 | HQ45: 0 | HR45: 0 | HS45: 0 | HT45: 0 | HU45: 0 | HV45: 0 | HW45: 0 | HX45: 0 | HY45: 0 | HZ45: 0 | IA45: 0 | IB45: 0 | IC45: 0 | ID45: 0 | IE45: 0 | IF45: 0 | IG45: 0 | IH45: 0 | II45: 0 | IJ45: 0 | IK45: 0 | IL45: 0 | IM45: 0 | IN45: 0 | IO45: 0 | IP45: 0 | IQ45: 0 | IR45: 0 | IS45: 0 | IT45: 0 | IU45: 0 | IV45: 0 | IW45: 0 | IX45: 0 | IY45: 0 | IZ45: 0 | JA45: 0 | JB45: 0 | JC45: 0 | JD45: 0 | JE45: 0 | JF45: 0 | JG45: 0 | JH45: =$F45*JH$6 -> 0 | JI45: 0 | JJ45: 0 | JK45: 0 | JL45: 0 | JM45: 0 | JN45: 0 | JO45: 0 | JP45: 0 | JQ45: 0 | JR45: 0 | JS45: 0 | JT45: 0 | JU45: 0 | JV45: 0 | JW45: 0 | JX45: 0 | JY45: 0 | JZ45: 0 | KA45: 0 | KB45: 0 | KC45: 0 | KD45: 0 | KE45: 0 | KF45: 0 | KG45: 0 | KH45: 0 | KI45: 0 | KJ45: 0 | KK45: 0 | KL45: 0 | KM45: 0 | KN45: 0 | KO45: 0 | KP45: 0 | KQ45: 0 | KR45: 0 | KS45: 0 | KT45: 0 | KU45: 0 | KV45: 0 | KW45: 0 | KX45: 0 | KY45: 0 | KZ45: 0 | LA45: 0 | LB45: 0 | LC45: 0 | LD45: 0 | LE45: 0 | LF45: 0 | LG45: 0 | LH45: 0 | LI45: 0 | LJ45: 0 | LK45: 0 | LL45: 0 | LM45: 0 | LN45: 0 | LO45: 0 | LP45: 0 | LQ45: 0 | LR45: 0 | LS45: 0 | LT45: =$F45*LT$6 -> 0 | LU45: 0 | LV45: 0 | LW45: 0 | LX45: 0 | LY45: 0 | LZ45: 0 | MA45: 0 | MB45: 0 | MC45: 0 | MD45: 0 | ME45: 0 | MF45: 0 | MG45: 0 | MH45: 0 | MI45: 0 | MJ45: 0 | MK45: 0 | ML45: 0 | MM45: 0 | MN45: 0 | MO45: 0 | MP45: 0 | MQ45: 0 | MR45: 0 | MS45: 0 | MT45: 0 | MU45: 0 | MV45: 0 | MW45: 0 | MX45: 0 | MY45: 0 | MZ45: 0 | NA45: 0 | NB45: 0 | NC45: 0 | ND45: 0 | NE45: 0 | NF45: 0 | NG45: 0 | NH45: 0 | NI45: 0 | NJ45: 0 | NK45: 0 | NL45: 0 | NM45: 0 | NN45: 0 | NO45: 0 | NP45: 0 | NQ45: 0 | NR45: 0 | NS45: 0 | NT45: 0 | NU45: 0 | NV45: 0 | NW45: 0 | NX45: 0 | NY45: 0 | NZ45: 0 | OA45: 0 | OB45: 0 | OC45: 0 | OD45: 0 | OE45: 0 | OF45: =$F45*OF$6 -> 0 | OG45: 0 | OH45: 0 | OI45: 0 | OJ45: 0 | OK45: 0 | OL45: 0 | OM45: 0 | ON45: 0 | OO45: 0 | OP45: 0 | OQ45: 0 | OR45: 0 | OS45: 0 | OT45: 0 | OU45: 0 | OV45: 0 | OW45: 0 | OX45: 0 | OY45: 0 | OZ45: 0 | PA45: 0 | PB45: 0 | PC45: 0 | PD45: 0 | PE45: 0 | PF45: 0 | PG45: 0 | PH45: 0 | PI45: 0 | PJ45: 0 | PK45: 0 | PL45: 0 | PM45: 0 | PN45: 0 | PO45: 0 | PP45: 0 | PQ45: 0 | PR45: 0 | PS45: 0 | PT45: 0 | PU45: 0 | PV45: 0 | PW45: 0 | PX45: 0 | PY45: 0 | PZ45: 0 | QA45: 0 | QB45: 0 | QC45: 0 | QD45: 0 | QE45: 0 | QF45: 0 | QG45: 0 | QH45: 0 | QI45: 0 | QJ45: 0 | QK45: 0 | QL45: 0 | QM45: 0 | QN45: 0 | QO45: 0 | QP45: 0 | QQ45: 0 | QR45: =$F45*QR$6 -> 0 | QS45: 0 | QT45: 0 | QU45: 0 | QV45: 0 | QW45: 0 | QX45: 0 | QY45: 0 | QZ45: 0 | RA45: 0 | RB45: 0 | RC45: 0 | RD45: 0 | RE45: 0 | RF45: 0 | RG45: 0 | RH45: 0 | RI45: 0 | RJ45: 0 | RK45: 0 | RL45: 0 | RM45: 0 | RN45: 0 | RO45: 0 | RP45: 0 | RQ45: 0 | RR45: 0 | RS45: 0 | RT45: 0 | RU45: 0 | RV45: 0 | RW45: 0 | RX45: 0 | RY45: 0 | RZ45: 0 | SA45: 0 | SB45: 0 | SC45: 0 | SD45: 0 | SE45: 0 | SF45: 0 | SG45: 0 | SH45: 0 | SI45: 0 | SJ45: 0 | SK45: 0 | SL45: 0 | SM45: 0 | SN45: 0 | SO45: 0 | SP45: 0 | SQ45: 0 | SR45: 0 | SS45: 0 | ST45: 0 | SU45: 0 | SV45: 0 | SW45: 0 | SX45: 0 | SY45: 0 | SZ45: 0 | TA45: 0 | TB45: 0 | TC45: 0 | TD45: =$F45*TD$6 -> 0 | TE45: 0 | TF45: 0 | TG45: 0 | TH45: 0 | TI45: 0 | TJ45: 0 | TK45: 0 | TL45: 0 | TM45: 0 | TN45: 0 | TO45: 0 | TP45: 0 | TQ45: 0 | TR45: 0 | TS45: 0 | TT45: 0 | TU45: 0 | TV45: 0 | TW45: 0 | TX45: 0 | TY45: 0 | TZ45: 0 | UA45: 0 | UB45: 0 | UC45: 0 | UD45: 0 | UE45: 0 | UF45: 0 | UG45: 0 | UH45: 0 | UI45: 0 | UJ45: 0 | UK45: 0 | UL45: 0 | UM45: 0 | UN45: 0 | UO45: 0 | UP45: 0 | UQ45: 0 | UR45: 0 | US45: 0 | UT45: 0 | UU45: 0 | UV45: 0 | UW45: 0 | UX45: 0 | UY45: 0 | UZ45: 0 | VA45: 0 | VB45: 0 | VC45: 0 | VD45: 0 | VE45: 0 | VF45: 0 | VG45: 0 | VH45: 0 | VI45: 0 | VJ45: 0 | VK45: 0 | VL45: 0 | VM45: 0 | VN45: 0 | VO45: 0 | VP45: =$F45*VP$6 -> 0 | VQ45: 0 | VR45: 0 | VS45: 0 | VT45: 0 | VU45: 0 | VV45: 0 | VW45: 0 | VX45: 0 | VY45: 0 | VZ45: 0 | WA45: 0 | WB45: 0 | WC45: 0 | WD45: 0 | WE45: 0 | WF45: 0 | WG45: 0 | WH45: 0 | WI45: 0 | WJ45: 0 | WK45: 0 | WL45: 0 | WM45: 0 | WN45: 0 | WO45: 0 | WP45: 0 | WQ45: 0 | WR45: 0 | WS45: 0 | WT45: 0 | WU45: 0 | WV45: 0 | WW45: 0 | WX45: 0 | WY45: 0 | WZ45: 0 | XA45: 0 | XB45: 0 | XC45: 0 | XD45: 0 | XE45: 0 | XF45: 0 | XG45: 0 | XH45: 0 | XI45: 0 | XJ45: 0 | XK45: 0 | XL45: 0 | XM45: 0 | XN45: 0 | XO45: 0 | XP45: 0 | XQ45: 0 | XR45: 0 | XS45: 0 | XT45: 0 | XU45: 0 | XV45: 0 | XW45: 0 | XX45: 0 | XY45: 0 | XZ45: 0 | YA45: 0 | YB45: =$F45*YB$6 -> 0 | YC45: 0 | YD45: 0 | YE45: 0 | YF45: 0 | YG45: 0 | YH45: 0 | YI45: 0 | YJ45: 0 | YK45: 0 | YL45: 0 | YM45: 0 | YN45: 0 | YO45: 0 | YP45: 0 | YQ45: 0 | YR45: 0 | YS45: 0 | YT45: 0 | YU45: 0 | YV45: 0 | YW45: 0 | YX45: 0 | YY45: 0 | YZ45: 0 | ZA45: 0 | ZB45: 0 | ZC45: 0 | ZD45: 0 | ZE45: 0 | ZF45: 0 | ZG45: 0 | ZH45: 0 | ZI45: 0 | ZJ45: 0 | ZK45: 0 | ZL45: 0 | ZM45: 0 | ZN45: 0 | ZO45: 0 | ZP45: 0 | ZQ45: 0 | ZR45: 0 | ZS45: 0 | ZT45: 0 | ZU45: 0 | ZV45: 0 | ZW45: 0 | ZX45: 0 | ZY45: 0 | ZZ45: 0 | AAA45: 0 | AAB45: 0 | AAC45: 0 | AAD45: 0 | AAE45: 0 | AAF45: 0 | AAG45: 0 | AAH45: 0 | AAI45: 0 | AAJ45: 0 | AAK45: 0 | AAL45: 0 | AAM45: 0 | AAN45: =$F45*AAN$6 -> 0 | AAO45: 0 | AAP45: 0 | AAQ45: 0 | AAR45: 0 | AAS45: 0 | AAT45: 0 | AAU45: 0 | AAV45: 0 | AAW45: 0 | AAX45: 0 | AAY45: 0 | AAZ45: 0 | ABA45: 0 | ABB45: 0 | ABC45: 0 | ABD45: 0 | ABE45: 0 | ABF45: 0 | ABG45: 0 | ABH45: 0 | ABI45: 0 | ABJ45: 0 | ABK45: 0 | ABL45: 0 | ABM45: 0 | ABN45: 0 | ABO45: 0 | ABP45: 0 | ABQ45: 0 | ABR45: 0 | ABS45: 0 | ABT45: 0 | ABU45: 0 | ABV45: 0 | ABW45: 0 | ABX45: 0 | ABY45: 0 | ABZ45: 0
D46: Capital Expenditues | H46: =SUM(K46:XFD46) -> 432000 | I46: USD | K46: =K44*K45 -> 72000 | L46: =L44*L45 -> 72000 | M46: 72000 | N46: 72000 | O46: 72000 | P46: 72000 | Q46: 0 | R46: 0 | S46: 0 | T46: 0 | U46: 0 | V46: 0 | W46: 0 | X46: 0 | Y46: 0 | Z46: 0 | AA46: 0 | AB46: 0 | AC46: 0 | AD46: 0 | AE46: 0 | AF46: 0 | AG46: 0 | AH46: 0 | AI46: 0 | AJ46: 0 | AK46: 0 | AL46: 0 | AM46: 0 | AN46: 0 | AO46: 0 | AP46: 0 | AQ46: 0 | AR46: 0 | AS46: 0 | AT46: 0 | AU46: 0 | AV46: 0 | AW46: 0 | AX46: 0 | AY46: 0 | AZ46: 0 | BA46: 0 | BB46: 0 | BC46: 0 | BD46: 0 | BE46: 0 | BF46: 0 | BG46: 0 | BH46: 0 | BI46: 0 | BJ46: 0 | BK46: 0 | BL46: 0 | BM46: 0 | BN46: 0 | BO46: 0 | BP46: 0 | BQ46: 0 | BR46: 0 | BS46: 0 | BT46: 0 | BU46: 0 | BV46: 0 | BW46: 0 | BX46: =BX44*BX45 -> 0 | BY46: 0 | BZ46: 0 | CA46: 0 | CB46: 0 | CC46: 0 | CD46: 0 | CE46: 0 | CF46: 0 | CG46: 0 | CH46: 0 | CI46: 0 | CJ46: 0 | CK46: 0 | CL46: 0 | CM46: 0 | CN46: 0 | CO46: 0 | CP46: 0 | CQ46: 0 | CR46: 0 | CS46: 0 | CT46: 0 | CU46: 0 | CV46: 0 | CW46: 0 | CX46: 0 | CY46: 0 | CZ46: 0 | DA46: 0 | DB46: 0 | DC46: 0 | DD46: 0 | DE46: 0 | DF46: 0 | DG46: 0 | DH46: 0 | DI46: 0 | DJ46: 0 | DK46: 0 | DL46: 0 | DM46: 0 | DN46: 0 | DO46: 0 | DP46: 0 | DQ46: 0 | DR46: 0 | DS46: 0 | DT46: 0 | DU46: 0 | DV46: 0 | DW46: 0 | DX46: 0 | DY46: 0 | DZ46: 0 | EA46: 0 | EB46: 0 | EC46: 0 | ED46: 0 | EE46: 0 | EF46: 0 | EG46: 0 | EH46: 0 | EI46: 0 | EJ46: =EJ44*EJ45 -> 0 | EK46: 0 | EL46: 0 | EM46: 0 | EN46: 0 | EO46: 0 | EP46: 0 | EQ46: 0 | ER46: 0 | ES46: 0 | ET46: 0 | EU46: 0 | EV46: 0 | EW46: 0 | EX46: 0 | EY46: 0 | EZ46: 0 | FA46: 0 | FB46: 0 | FC46: 0 | FD46: 0 | FE46: 0 | FF46: 0 | FG46: 0 | FH46: 0 | FI46: 0 | FJ46: 0 | FK46: 0 | FL46: 0 | FM46: 0 | FN46: 0 | FO46: 0 | FP46: 0 | FQ46: 0 | FR46: 0 | FS46: 0 | FT46: 0 | FU46: 0 | FV46: 0 | FW46: 0 | FX46: 0 | FY46: 0 | FZ46: 0 | GA46: 0 | GB46: 0 | GC46: 0 | GD46: 0 | GE46: 0 | GF46: 0 | GG46: 0 | GH46: 0 | GI46: 0 | GJ46: 0 | GK46: 0 | GL46: 0 | GM46: 0 | GN46: 0 | GO46: 0 | GP46: 0 | GQ46: 0 | GR46: 0 | GS46: 0 | GT46: 0 | GU46: 0 | GV46: =GV44*GV45 -> 0 | GW46: 0 | GX46: 0 | GY46: 0 | GZ46: 0 | HA46: 0 | HB46: 0 | HC46: 0 | HD46: 0 | HE46: 0 | HF46: 0 | HG46: 0 | HH46: 0 | HI46: 0 | HJ46: 0 | HK46: 0 | HL46: 0 | HM46: 0 | HN46: 0 | HO46: 0 | HP46: 0 | HQ46: 0 | HR46: 0 | HS46: 0 | HT46: 0 | HU46: 0 | HV46: 0 | HW46: 0 | HX46: 0 | HY46: 0 | HZ46: 0 | IA46: 0 | IB46: 0 | IC46: 0 | ID46: 0 | IE46: 0 | IF46: 0 | IG46: 0 | IH46: 0 | II46: 0 | IJ46: 0 | IK46: 0 | IL46: 0 | IM46: 0 | IN46: 0 | IO46: 0 | IP46: 0 | IQ46: 0 | IR46: 0 | IS46: 0 | IT46: 0 | IU46: 0 | IV46: 0 | IW46: 0 | IX46: 0 | IY46: 0 | IZ46: 0 | JA46: =JA44*JA45 -> 0 | JB46: 0 | JC46: 0 | JD46: 0 | JE46: 0 | JF46: 0 | JG46: 0 | JH46: 0 | JI46: 0 | JJ46: 0 | JK46: 0 | JL46: 0 | JM46: 0 | JN46: 0 | JO46: 0 | JP46: 0 | JQ46: 0 | JR46: 0 | JS46: 0 | JT46: 0 | JU46: 0 | JV46: 0 | JW46: 0 | JX46: 0 | JY46: 0 | JZ46: 0 | KA46: 0 | KB46: 0 | KC46: 0 | KD46: 0 | KE46: 0 | KF46: 0 | KG46: 0 | KH46: 0 | KI46: 0 | KJ46: 0 | KK46: 0 | KL46: 0 | KM46: 0 | KN46: 0 | KO46: 0 | KP46: 0 | KQ46: 0 | KR46: 0 | KS46: 0 | KT46: 0 | KU46: 0 | KV46: 0 | KW46: 0 | KX46: 0 | KY46: 0 | KZ46: 0 | LA46: 0 | LB46: 0 | LC46: 0 | LD46: 0 | LE46: 0 | LF46: 0 | LG46: 0 | LH46: 0 | LI46: 0 | LJ46: 0 | LK46: 0 | LL46: 0 | LM46: =LM44*LM45 -> 0 | LN46: 0 | LO46: 0 | LP46: 0 | LQ46: 0 | LR46: 0 | LS46: 0 | LT46: 0 | LU46: 0 | LV46: 0 | LW46: 0 | LX46: 0 | LY46: 0 | LZ46: 0 | MA46: 0 | MB46: 0 | MC46: 0 | MD46: 0 | ME46: 0 | MF46: 0 | MG46: 0 | MH46: 0 | MI46: 0 | MJ46: 0 | MK46: 0 | ML46: 0 | MM46: 0 | MN46: 0 | MO46: 0 | MP46: 0 | MQ46: 0 | MR46: 0 | MS46: 0 | MT46: 0 | MU46: 0 | MV46: 0 | MW46: 0 | MX46: 0 | MY46: 0 | MZ46: 0 | NA46: 0 | NB46: 0 | NC46: 0 | ND46: 0 | NE46: 0 | NF46: 0 | NG46: 0 | NH46: 0 | NI46: 0 | NJ46: 0 | NK46: 0 | NL46: 0 | NM46: 0 | NN46: 0 | NO46: 0 | NP46: 0 | NQ46: 0 | NR46: 0 | NS46: 0 | NT46: 0 | NU46: 0 | NV46: 0 | NW46: 0 | NX46: 0 | NY46: =NY44*NY45 -> 0 | NZ46: 0 | OA46: 0 | OB46: 0 | OC46: 0 | OD46: 0 | OE46: 0 | OF46: 0 | OG46: 0 | OH46: 0 | OI46: 0 | OJ46: 0 | OK46: 0 | OL46: 0 | OM46: 0 | ON46: 0 | OO46: 0 | OP46: 0 | OQ46: 0 | OR46: 0 | OS46: 0 | OT46: 0 | OU46: 0 | OV46: 0 | OW46: 0 | OX46: 0 | OY46: 0 | OZ46: 0 | PA46: 0 | PB46: 0 | PC46: 0 | PD46: 0 | PE46: 0 | PF46: 0 | PG46: 0 | PH46: 0 | PI46: 0 | PJ46: 0 | PK46: 0 | PL46: 0 | PM46: 0 | PN46: 0 | PO46: 0 | PP46: 0 | PQ46: 0 | PR46: 0 | PS46: 0 | PT46: 0 | PU46: 0 | PV46: 0 | PW46: 0 | PX46: 0 | PY46: 0 | PZ46: 0 | QA46: 0 | QB46: 0 | QC46: 0 | QD46: 0 | QE46: 0 | QF46: 0 | QG46: 0 | QH46: 0 | QI46: 0 | QJ46: 0 | QK46: =QK44*QK45 -> 0 | QL46: 0 | QM46: 0 | QN46: 0 | QO46: 0 | QP46: 0 | QQ46: 0 | QR46: 0 | QS46: 0 | QT46: 0 | QU46: 0 | QV46: 0 | QW46: 0 | QX46: 0 | QY46: 0 | QZ46: 0 | RA46: 0 | RB46: 0 | RC46: 0 | RD46: 0 | RE46: 0 | RF46: 0 | RG46: 0 | RH46: 0 | RI46: 0 | RJ46: 0 | RK46: 0 | RL46: 0 | RM46: 0 | RN46: 0 | RO46: 0 | RP46: 0 | RQ46: 0 | RR46: 0 | RS46: 0 | RT46: 0 | RU46: 0 | RV46: 0 | RW46: 0 | RX46: 0 | RY46: 0 | RZ46: 0 | SA46: 0 | SB46: 0 | SC46: 0 | SD46: 0 | SE46: 0 | SF46: 0 | SG46: 0 | SH46: 0 | SI46: 0 | SJ46: 0 | SK46: 0 | SL46: 0 | SM46: 0 | SN46: 0 | SO46: 0 | SP46: 0 | SQ46: 0 | SR46: 0 | SS46: 0 | ST46: 0 | SU46: 0 | SV46: 0 | SW46: =SW44*SW45 -> 0 | SX46: 0 | SY46: 0 | SZ46: 0 | TA46: 0 | TB46: 0 | TC46: 0 | TD46: 0 | TE46: 0 | TF46: 0 | TG46: 0 | TH46: 0 | TI46: 0 | TJ46: 0 | TK46: 0 | TL46: 0 | TM46: 0 | TN46: 0 | TO46: 0 | TP46: 0 | TQ46: 0 | TR46: 0 | TS46: 0 | TT46: 0 | TU46: 0 | TV46: 0 | TW46: 0 | TX46: 0 | TY46: 0 | TZ46: 0 | UA46: 0 | UB46: 0 | UC46: 0 | UD46: 0 | UE46: 0 | UF46: 0 | UG46: 0 | UH46: 0 | UI46: 0 | UJ46: 0 | UK46: 0 | UL46: 0 | UM46: 0 | UN46: 0 | UO46: 0 | UP46: 0 | UQ46: 0 | UR46: 0 | US46: 0 | UT46: 0 | UU46: 0 | UV46: 0 | UW46: 0 | UX46: 0 | UY46: 0 | UZ46: 0 | VA46: 0 | VB46: 0 | VC46: 0 | VD46: 0 | VE46: 0 | VF46: 0 | VG46: 0 | VH46: 0 | VI46: =VI44*VI45 -> 0 | VJ46: 0 | VK46: 0 | VL46: 0 | VM46: 0 | VN46: 0 | VO46: 0 | VP46: 0 | VQ46: 0 | VR46: 0 | VS46: 0 | VT46: 0 | VU46: 0 | VV46: 0 | VW46: 0 | VX46: 0 | VY46: 0 | VZ46: 0 | WA46: 0 | WB46: 0 | WC46: 0 | WD46: 0 | WE46: 0 | WF46: 0 | WG46: 0 | WH46: 0 | WI46: 0 | WJ46: 0 | WK46: 0 | WL46: 0 | WM46: 0 | WN46: 0 | WO46: 0 | WP46: 0 | WQ46: 0 | WR46: 0 | WS46: 0 | WT46: 0 | WU46: 0 | WV46: 0 | WW46: 0 | WX46: 0 | WY46: 0 | WZ46: 0 | XA46: 0 | XB46: 0 | XC46: 0 | XD46: 0 | XE46: 0 | XF46: 0 | XG46: 0 | XH46: 0 | XI46: 0 | XJ46: 0 | XK46: 0 | XL46: 0 | XM46: 0 | XN46: 0 | XO46: 0 | XP46: 0 | XQ46: 0 | XR46: 0 | XS46: 0 | XT46: 0 | XU46: =XU44*XU45 -> 0 | XV46: 0 | XW46: 0 | XX46: 0 | XY46: 0 | XZ46: 0 | YA46: 0 | YB46: 0 | YC46: 0 | YD46: 0 | YE46: 0 | YF46: 0 | YG46: 0 | YH46: 0 | YI46: 0 | YJ46: 0 | YK46: 0 | YL46: 0 | YM46: 0 | YN46: 0 | YO46: 0 | YP46: 0 | YQ46: 0 | YR46: 0 | YS46: 0 | YT46: 0 | YU46: 0 | YV46: 0 | YW46: 0 | YX46: 0 | YY46: 0 | YZ46: 0 | ZA46: 0 | ZB46: 0 | ZC46: 0 | ZD46: 0 | ZE46: 0 | ZF46: 0 | ZG46: 0 | ZH46: 0 | ZI46: 0 | ZJ46: 0 | ZK46: 0 | ZL46: 0 | ZM46: 0 | ZN46: 0 | ZO46: 0 | ZP46: 0 | ZQ46: 0 | ZR46: 0 | ZS46: 0 | ZT46: 0 | ZU46: 0 | ZV46: 0 | ZW46: 0 | ZX46: 0 | ZY46: 0 | ZZ46: 0 | AAA46: 0 | AAB46: 0 | AAC46: 0 | AAD46: 0 | AAE46: 0 | AAF46: 0 | AAG46: =AAG44*AAG45 -> 0 | AAH46: 0 | AAI46: 0 | AAJ46: 0 | AAK46: 0 | AAL46: 0 | AAM46: 0 | AAN46: 0 | AAO46: 0 | AAP46: 0 | AAQ46: 0 | AAR46: 0 | AAS46: 0 | AAT46: 0 | AAU46: 0 | AAV46: 0 | AAW46: 0 | AAX46: 0 | AAY46: 0 | AAZ46: 0 | ABA46: 0 | ABB46: 0 | ABC46: 0 | ABD46: 0 | ABE46: 0 | ABF46: 0 | ABG46: 0 | ABH46: 0 | ABI46: 0 | ABJ46: 0 | ABK46: 0 | ABL46: 0 | ABM46: 0 | ABN46: 0 | ABO46: 0 | ABP46: 0 | ABQ46: 0 | ABR46: 0 | ABS46: 0 | ABT46: 0 | ABU46: 0 | ABV46: 0 | ABW46: 0 | ABX46: 0 | ABY46: 0 | ABZ46: 0
D48: Year | K48: =YEAR(K4) -> 2025 | L48: 2025 | M48: 2025 | N48: 2025 | O48: 2025 | P48: 2025 | Q48: 2025 | R48: 2025 | S48: 2025 | T48: 2025 | U48: 2025 | V48: 2025 | W48: 2026 | X48: 2026 | Y48: 2026 | Z48: 2026 | AA48: 2026 | AB48: 2026 | AC48: 2026 | AD48: 2026 | AE48: 2026 | AF48: 2026 | AG48: 2026 | AH48: 2026 | AI48: 2027 | AJ48: 2027 | AK48: 2027 | AL48: 2027 | AM48: 2027 | AN48: 2027 | AO48: 2027 | AP48: 2027 | AQ48: 2027 | AR48: 2027 | AS48: 2027 | AT48: 2027 | AU48: 2028 | AV48: 2028 | AW48: 2028 | AX48: 2028 | AY48: 2028 | AZ48: 2028 | BA48: 2028 | BB48: 2028 | BC48: 2028 | BD48: 2028 | BE48: 2028 | BF48: 2028 | BG48: 2029 | BH48: 2029 | BI48: 2029 | BJ48: 2029 | BK48: 2029 | BL48: 2029 | BM48: 2029 | BN48: 2029 | BO48: 2029 | BP48: 2029 | BQ48: 2029 | BR48: 2029 | BS48: 2030 | BT48: 2030 | BU48: 2030 | BV48: 2030 | BW48: =YEAR(BW4) -> 2030 | BX48: 2030 | BY48: 2030 | BZ48: 2030 | CA48: 2030 | CB48: 2030 | CC48: 2030 | CD48: 2030 | CE48: 2031 | CF48: 2031 | CG48: 2031 | CH48: 2031 | CI48: 2031 | CJ48: 2031 | CK48: 2031 | CL48: 2031 | CM48: 2031 | CN48: 2031 | CO48: 2031 | CP48: 2031 | CQ48: 2032 | CR48: 2032 | CS48: 2032 | CT48: 2032 | CU48: 2032 | CV48: 2032 | CW48: 2032 | CX48: 2032 | CY48: 2032 | CZ48: 2032 | DA48: 2032 | DB48: 2032 | DC48: 2033 | DD48: 2033 | DE48: 2033 | DF48: 2033 | DG48: 2033 | DH48: 2033 | DI48: 2033 | DJ48: 2033 | DK48: 2033 | DL48: 2033 | DM48: 2033 | DN48: 2033 | DO48: 2034 | DP48: 2034 | DQ48: 2034 | DR48: 2034 | DS48: 2034 | DT48: 2034 | DU48: 2034 | DV48: 2034 | DW48: 2034 | DX48: 2034 | DY48: 2034 | DZ48: 2034 | EA48: 2035 | EB48: 2035 | EC48: 2035 | ED48: 2035 | EE48: 2035 | EF48: 2035 | EG48: 2035 | EH48: 2035 | EI48: =YEAR(EI4) -> 2035 | EJ48: 2035 | EK48: 2035 | EL48: 2035 | EM48: 2036 | EN48: 2036 | EO48: 2036 | EP48: 2036 | EQ48: 2036 | ER48: 2036 | ES48: 2036 | ET48: 2036 | EU48: 2036 | EV48: 2036 | EW48: 2036 | EX48: 2036 | EY48: 2037 | EZ48: 2037 | FA48: 2037 | FB48: 2037 | FC48: 2037 | FD48: 2037 | FE48: 2037 | FF48: 2037 | FG48: 2037 | FH48: 2037 | FI48: 2037 | FJ48: 2037 | FK48: 2038 | FL48: 2038 | FM48: 2038 | FN48: 2038 | FO48: 2038 | FP48: 2038 | FQ48: 2038 | FR48: 2038 | FS48: 2038 | FT48: 2038 | FU48: 2038 | FV48: 2038 | FW48: 2039 | FX48: 2039 | FY48: 2039 | FZ48: 2039 | GA48: 2039 | GB48: 2039 | GC48: 2039 | GD48: 2039 | GE48: 2039 | GF48: 2039 | GG48: 2039 | GH48: 2039 | GI48: 2040 | GJ48: 2040 | GK48: 2040 | GL48: 2040 | GM48: 2040 | GN48: 2040 | GO48: 2040 | GP48: 2040 | GQ48: 2040 | GR48: 2040 | GS48: 2040 | GT48: 2040 | GU48: =YEAR(GU4) -> 2041 | GV48: 2041 | GW48: 2041 | GX48: 2041 | GY48: 2041 | GZ48: 2041 | HA48: 2041 | HB48: 2041 | HC48: 2041 | HD48: 2041 | HE48: 2041 | HF48: 2041 | HG48: 2042 | HH48: 2042 | HI48: 2042 | HJ48: 2042 | HK48: 2042 | HL48: 2042 | HM48: 2042 | HN48: 2042 | HO48: 2042 | HP48: 2042 | HQ48: 2042 | HR48: 2042 | HS48: 2043 | HT48: 2043 | HU48: 2043 | HV48: 2043 | HW48: 2043 | HX48: 2043 | HY48: 2043 | HZ48: 2043 | IA48: 2043 | IB48: 2043 | IC48: 2043 | ID48: 2043 | IE48: 2044 | IF48: 2044 | IG48: 2044 | IH48: 2044 | II48: 2044 | IJ48: 2044 | IK48: 2044 | IL48: 2044 | IM48: 2044 | IN48: 2044 | IO48: 2044 | IP48: 2044 | IQ48: 2045 | IR48: 2045 | IS48: 2045 | IT48: 2045 | IU48: 2045 | IV48: 2045 | IW48: 2045 | IX48: 2045 | IY48: 2045 | IZ48: 2045 | JA48: 2045 | JB48: 2045 | JC48: 2046 | JD48: 2046 | JE48: 2046 | JF48: 2046 | JG48: =YEAR(JG4) -> 2046 | JH48: 2046 | JI48: 2046 | JJ48: 2046 | JK48: 2046 | JL48: 2046 | JM48: 2046 | JN48: 2046 | JO48: 2047 | JP48: 2047 | JQ48: 2047 | JR48: 2047 | JS48: 2047 | JT48: 2047 | JU48: 2047 | JV48: 2047 | JW48: 2047 | JX48: 2047 | JY48: 2047 | JZ48: 2047 | KA48: 2048 | KB48: 2048 | KC48: 2048 | KD48: 2048 | KE48: 2048 | KF48: 2048 | KG48: 2048 | KH48: 2048 | KI48: 2048 | KJ48: 2048 | KK48: 2048 | KL48: 2048 | KM48: 2049 | KN48: 2049 | KO48: 2049 | KP48: 2049 | KQ48: 2049 | KR48: 2049 | KS48: 2049 | KT48: 2049 | KU48: 2049 | KV48: 2049 | KW48: 2049 | KX48: 2049 | KY48: 2050 | KZ48: 2050 | LA48: 2050 | LB48: 2050 | LC48: 2050 | LD48: 2050 | LE48: 2050 | LF48: 2050 | LG48: 2050 | LH48: 2050 | LI48: 2050 | LJ48: 2050 | LK48: 2051 | LL48: 2051 | LM48: 2051 | LN48: 2051 | LO48: 2051 | LP48: 2051 | LQ48: 2051 | LR48: 2051 | LS48: =YEAR(LS4) -> 2051 | LT48: 2051 | LU48: 2051 | LV48: 2051 | LW48: 2052 | LX48: 2052 | LY48: 2052 | LZ48: 2052 | MA48: 2052 | MB48: 2052 | MC48: 2052 | MD48: 2052 | ME48: 2052 | MF48: 2052 | MG48: 2052 | MH48: 2052 | MI48: 2053 | MJ48: 2053 | MK48: 2053 | ML48: 2053 | MM48: 2053 | MN48: 2053 | MO48: 2053 | MP48: 2053 | MQ48: 2053 | MR48: 2053 | MS48: 2053 | MT48: 2053 | MU48: 2054 | MV48: 2054 | MW48: 2054 | MX48: 2054 | MY48: 2054 | MZ48: 2054 | NA48: 2054 | NB48: 2054 | NC48: 2054 | ND48: 2054 | NE48: 2054 | NF48: 2054 | NG48: 2055 | NH48: 2055 | NI48: 2055 | NJ48: 2055 | NK48: 2055 | NL48: 2055 | NM48: 2055 | NN48: 2055 | NO48: 2055 | NP48: 2055 | NQ48: 2055 | NR48: 2055 | NS48: 2056 | NT48: 2056 | NU48: 2056 | NV48: 2056 | NW48: 2056 | NX48: 2056 | NY48: 2056 | NZ48: 2056 | OA48: 2056 | OB48: 2056 | OC48: 2056 | OD48: 2056 | OE48: =YEAR(OE4) -> 2057 | OF48: 2057 | OG48: 2057 | OH48: 2057 | OI48: 2057 | OJ48: 2057 | OK48: 2057 | OL48: 2057 | OM48: 2057 | ON48: 2057 | OO48: 2057 | OP48: 2057 | OQ48: 2058 | OR48: 2058 | OS48: 2058 | OT48: 2058 | OU48: 2058 | OV48: 2058 | OW48: 2058 | OX48: 2058 | OY48: 2058 | OZ48: 2058 | PA48: 2058 | PB48: 2058 | PC48: 2059 | PD48: 2059 | PE48: 2059 | PF48: 2059 | PG48: 2059 | PH48: 2059 | PI48: 2059 | PJ48: 2059 | PK48: 2059 | PL48: 2059 | PM48: 2059 | PN48: 2059 | PO48: 2060 | PP48: 2060 | PQ48: 2060 | PR48: 2060 | PS48: 2060 | PT48: 2060 | PU48: 2060 | PV48: 2060 | PW48: 2060 | PX48: 2060 | PY48: 2060 | PZ48: 2060 | QA48: 2061 | QB48: 2061 | QC48: 2061 | QD48: 2061 | QE48: 2061 | QF48: 2061 | QG48: 2061 | QH48: 2061 | QI48: 2061 | QJ48: 2061 | QK48: 2061 | QL48: 2061 | QM48: 2062 | QN48: 2062 | QO48: 2062 | QP48: 2062 | QQ48: =YEAR(QQ4) -> 2062 | QR48: 2062 | QS48: 2062 | QT48: 2062 | QU48: 2062 | QV48: 2062 | QW48: 2062 | QX48: 2062 | QY48: 2063 | QZ48: 2063 | RA48: 2063 | RB48: 2063 | RC48: 2063 | RD48: 2063 | RE48: 2063 | RF48: 2063 | RG48: 2063 | RH48: 2063 | RI48: 2063 | RJ48: 2063 | RK48: 2064 | RL48: 2064 | RM48: 2064 | RN48: 2064 | RO48: 2064 | RP48: 2064 | RQ48: 2064 | RR48: 2064 | RS48: 2064 | RT48: 2064 | RU48: 2064 | RV48: 2064 | RW48: 2065 | RX48: 2065 | RY48: 2065 | RZ48: 2065 | SA48: 2065 | SB48: 2065 | SC48: 2065 | SD48: 2065 | SE48: 2065 | SF48: 2065 | SG48: 2065 | SH48: 2065 | SI48: 2066 | SJ48: 2066 | SK48: 2066 | SL48: 2066 | SM48: 2066 | SN48: 2066 | SO48: 2066 | SP48: 2066 | SQ48: 2066 | SR48: 2066 | SS48: 2066 | ST48: 2066 | SU48: 2067 | SV48: 2067 | SW48: 2067 | SX48: 2067 | SY48: 2067 | SZ48: 2067 | TA48: 2067 | TB48: 2067 | TC48: =YEAR(TC4) -> 2067 | TD48: 2067 | TE48: 2067 | TF48: 2067 | TG48: 2068 | TH48: 2068 | TI48: 2068 | TJ48: 2068 | TK48: 2068 | TL48: 2068 | TM48: 2068 | TN48: 2068 | TO48: 2068 | TP48: 2068 | TQ48: 2068 | TR48: 2068 | TS48: 2069 | TT48: 2069 | TU48: 2069 | TV48: 2069 | TW48: 2069 | TX48: 2069 | TY48: 2069 | TZ48: 2069 | UA48: 2069 | UB48: 2069 | UC48: 2069 | UD48: 2069 | UE48: 2070 | UF48: 2070 | UG48: 2070 | UH48: 2070 | UI48: 2070 | UJ48: 2070 | UK48: 2070 | UL48: 2070 | UM48: 2070 | UN48: 2070 | UO48: 2070 | UP48: 2070 | UQ48: 2071 | UR48: 2071 | US48: 2071 | UT48: 2071 | UU48: 2071 | UV48: 2071 | UW48: 2071 | UX48: 2071 | UY48: 2071 | UZ48: 2071 | VA48: 2071 | VB48: 2071 | VC48: 2072 | VD48: 2072 | VE48: 2072 | VF48: 2072 | VG48: 2072 | VH48: 2072 | VI48: 2072 | VJ48: 2072 | VK48: 2072 | VL48: 2072 | VM48: 2072 | VN48: 2072 | VO48: =YEAR(VO4) -> 2073 | VP48: 2073 | VQ48: 2073 | VR48: 2073 | VS48: 2073 | VT48: 2073 | VU48: 2073 | VV48: 2073 | VW48: 2073 | VX48: 2073 | VY48: 2073 | VZ48: 2073 | WA48: 2074 | WB48: 2074 | WC48: 2074 | WD48: 2074 | WE48: 2074 | WF48: 2074 | WG48: 2074 | WH48: 2074 | WI48: 2074 | WJ48: 2074 | WK48: 2074 | WL48: 2074 | WM48: 2075 | WN48: 2075 | WO48: 2075 | WP48: 2075 | WQ48: 2075 | WR48: 2075 | WS48: 2075 | WT48: 2075 | WU48: 2075 | WV48: 2075 | WW48: 2075 | WX48: 2075 | WY48: 2076 | WZ48: 2076 | XA48: 2076 | XB48: 2076 | XC48: 2076 | XD48: 2076 | XE48: 2076 | XF48: 2076 | XG48: 2076 | XH48: 2076 | XI48: 2076 | XJ48: 2076 | XK48: 2077 | XL48: 2077 | XM48: 2077 | XN48: 2077 | XO48: 2077 | XP48: 2077 | XQ48: 2077 | XR48: 2077 | XS48: 2077 | XT48: 2077 | XU48: 2077 | XV48: 2077 | XW48: 2078 | XX48: 2078 | XY48: 2078 | XZ48: 2078 | YA48: =YEAR(YA4) -> 2078 | YB48: 2078 | YC48: 2078 | YD48: 2078 | YE48: 2078 | YF48: 2078 | YG48: 2078 | YH48: 2078 | YI48: 2079 | YJ48: 2079 | YK48: 2079 | YL48: 2079 | YM48: 2079 | YN48: 2079 | YO48: 2079 | YP48: 2079 | YQ48: 2079 | YR48: 2079 | YS48: 2079 | YT48: 2079 | YU48: 2080 | YV48: 2080 | YW48: 2080 | YX48: 2080 | YY48: 2080 | YZ48: 2080 | ZA48: 2080 | ZB48: 2080 | ZC48: 2080 | ZD48: 2080 | ZE48: 2080 | ZF48: 2080 | ZG48: 2081 | ZH48: 2081 | ZI48: 2081 | ZJ48: 2081 | ZK48: 2081 | ZL48: 2081 | ZM48: 2081 | ZN48: 2081 | ZO48: 2081 | ZP48: 2081 | ZQ48: 2081 | ZR48: 2081 | ZS48: 2082 | ZT48: 2082 | ZU48: 2082 | ZV48: 2082 | ZW48: 2082 | ZX48: 2082 | ZY48: 2082 | ZZ48: 2082 | AAA48: 2082 | AAB48: 2082 | AAC48: 2082 | AAD48: 2082 | AAE48: 2083 | AAF48: 2083 | AAG48: 2083 | AAH48: 2083 | AAI48: 2083 | AAJ48: 2083 | AAK48: 2083 | AAL48: 2083 | AAM48: =YEAR(AAM4) -> 2083 | AAN48: 2083 | AAO48: 2083 | AAP48: 2083 | AAQ48: 2084 | AAR48: 2084 | AAS48: 2084 | AAT48: 2084 | AAU48: 2084 | AAV48: 2084 | AAW48: 2084 | AAX48: 2084 | AAY48: 2084 | AAZ48: 2084 | ABA48: 2084 | ABB48: 2084 | ABC48: 2085 | ABD48: 2085 | ABE48: 2085 | ABF48: 2085 | ABG48: 2085 | ABH48: 2085 | ABI48: 2085 | ABJ48: 2085 | ABK48: 2085 | ABL48: 2085 | ABM48: 2085 | ABN48: 2085 | ABO48: 2086 | ABP48: 2086 | ABQ48: 2086 | ABR48: 2086 | ABS48: 2086 | ABT48: 2086 | ABU48: 2086 | ABV48: 2086 | ABW48: 2086 | ABX48: 2086 | ABY48: 2086 | ABZ48: 2086
